Workbook

Sheet Q_1
A1: "1. S kým z triedy by si chcel sedieť v jednej lavici?"
B2: 3
B3: 28 | D3: 1 | E3: 2 | F3: 3 | G3: 4 | H3: 5 | I3: 6 | J3: 7 | K3: 8 | L3: 9 | M3: 10 | N3: 11 | O3: 12 | P3: 13 | Q3: 14 | R3: 15 | S3: 16 | T3: 17 | U3: 18 | V3: 19 | W3: 20 | X3: 21 | Y3: 22 | Z3: 23 | AA3: 24 | AB3: 25 | AC3: 26 | AD3: 27 | AE3: 28
D4: "01_Oso m" | E4: "02_Oso m" | F4: "03_Oso m" | G4: "04_Oso m" | H4: "05_Oso m" | I4: "*06_Oso m" | J4: "07_Oso m" | K4: "08_Oso m" | L4: "09_Oso f" | M4: "**10_Oso m" | N4: "11_Oso m" | O4: "12_Oso m" | P4: "13_Oso m" | Q4: "14_Oso m" | R4: "15_Oso f" | S4: "16_Oso f" | T4: "17_Oso f" | U4: "18_Oso f" | V4: "19_Oso f" | W4: "20_Oso f" | X4: "21_Oso f" | Y4: "22_Oso f" | Z4: "23_Oso f" | AA4: "24_Oso f" | AB4: "25_Oso f" | AC4: "26_Oso f" | AD4: "27_Oso f" | AE4: "28_Oso f"
A5: → | B5: 1 | C5: "01_Oso m" | H5: 1 | M5: 3 | N5: 2 | AF5: 3 | AQ5: 2 | AR5: 0 | AS5: 1 | AT5: 1 | AU5: 4 | AV5: 0 | AW5: 4 | AX5: 4 | AY5: 6 | AZ5: 2 | BA5: 3 | BB5: 3 | BC5: 1 | BD5: 2 | BE5: 0 | BF5: 2 | BG5: 0 | BH5: 4 | BI5: 1 | BJ5: 2 | BK5: 2 | BL5: 5 | BM5: 10 | BN5: 3 | BO5: 3 | BP5: 2 | BQ5: 8 | BR5: 6
B6: 2 | C6: "02_Oso m" | K6: 1 | L6: 3 | N6: 2 | AF6: 3 | AQ6: 2 | AR6: 0 | AS6: 0 | AT6: 0 | AU6: 1 | AV6: 0 | AW6: 0 | AX6: 2 | AY6: 1 | AZ6: 0 | BA6: 1 | BB6: 0 | BC6: 1 | BD6: 2 | BE6: 0 | BF6: 0 | BG6: 0 | BH6: 3 | BI6: 1 | BJ6: 0 | BK6: 0 | BL6: 1 | BM6: 2 | BN6: 1 | BO6: 2 | BP6: 1 | BQ6: 3 | BR6: 3
B7: 3 | C7: "03_Oso m" | L7: 2 | O7: 3 | AE7: 1 | AF7: 3 | AQ7: 0 | AR7: 0 | AS7: 1 | AT7: 1 | AU7: 1 | AV7: 0 | AW7: 2 | AX7: 0 | AY7: 3 | AZ7: 0 | BA7: 2 | BB7: 1 | BC7: 0 | BD7: 0 | BE7: 0 | BF7: 2 | BG7: 0 | BH7: 1 | BI7: 0 | BJ7: 2 | BK7: 1 | BL7: 1 | BM7: 2 | BN7: 2 | BO7: 1 | BP7: 0 | BQ7: 2 | BR7: 2
B8: 4 | C8: "04_Oso m" | Z8: 3 | AB8: 1 | AE8: 2 | AF8: 3 | AQ8: 0 | AR8: 0 | AS8: 0 | AT8: 0 | AU8: 2 | AV8: 0 | AW8: 2 | AX8: 2 | AY8: 2 | AZ8: 2 | BA8: 0 | BB8: 2 | BC8: 0 | BD8: 0 | BE8: 0 | BF8: 0 | BG8: 0 | BH8: 0 | BI8: 0 | BJ8: 0 | BK8: 1 | BL8: 3 | BM8: 6 | BN8: 0 | BO8: 0 | BP8: 1 | BQ8: 3 | BR8: 1
B9: 5 | C9: "05_Oso m" | D9: 1 | J9: 3 | L9: 2 | AF9: 3 | AQ9: 7.142857143 | AR9: 0 | AS9: 0 | AT9: 0 | AU9: 3.571428571 | AV9: 0 | AW9: 0 | AX9: 7.142857143 | AY9: 3.571428571 | AZ9: 0 | BA9: 3.571428571 | BB9: 0 | BC9: 3.571428571 | BD9: 7.142857143 | BE9: 0 | BF9: 0 | BG9: 0 | BH9: 10.71428571 | BI9: 3.571428571 | BJ9: 0 | BK9: 0 | BL9: 3.571428571 | BM9: 7.142857143 | BN9: 3.571428571 | BO9: 7.142857143 | BP9: 3.571428571 | BQ9: 10.71428571 | BR9: 10.71428571
B10: 6 | C10: "*06_Oso m" | M10: 3 | N10: 1 | O10: 2 | AF10: 3 | AQ10: 0 | AR10: 0 | AS10: 3.571428571 | AT10: 3.571428571 | AU10: 3.571428571 | AV10: 0 | AW10: 7.142857143 | AX10: 0 | AY10: 10.71428571 | AZ10: 0 | BA10: 7.142857143 | BB10: 3.571428571 | BC10: 0 | BD10: 0 | BE10: 0 | BF10: 7.142857143 | BG10: 0 | BH10: 3.571428571 | BI10: 0 | BJ10: 7.142857143 | BK10: 3.571428571 | BL10: 3.571428571 | BM10: 7.142857143 | BN10: 7.142857143 | BO10: 3.571428571 | BP10: 0 | BQ10: 7.142857143 | BR10: 7.142857143
B11: 7 | C11: "07_Oso m" | H11: 3 | L11: 1 | AE11: 2 | AF11: 3 | AQ11: 0 | AR11: 0 | AS11: 0 | AT11: 0 | AU11: 7.142857143 | AV11: 0 | AW11: 7.142857143 | AX11: 7.142857143 | AY11: 7.142857143 | AZ11: 7.142857143 | BA11: 0 | BB11: 7.142857143 | BC11: 0 | BD11: 0 | BE11: 0 | BF11: 0 | BG11: 0 | BH11: 0 | BI11: 0 | BJ11: 0 | BK11: 3.571428571 | BL11: 10.71428571 | BM11: 21.42857143 | BN11: 0 | BO11: 0 | BP11: 3.571428571 | BQ11: 10.71428571 | BR11: 3.571428571
B12: 8 | C12: "08_Oso m" | J12: 2 | L12: 3 | AE12: 1 | AF12: 3 | AQ12: 7.142857143 | AR12: 0 | AS12: 3.571428571 | AT12: 3.571428571 | AU12: 14.28571429 | AV12: 0 | AW12: 14.28571429 | AX12: 14.28571429 | AY12: 21.42857143 | AZ12: 7.142857143 | BA12: 10.71428571 | BB12: 10.71428571 | BC12: 3.571428571 | BD12: 7.142857143 | BE12: 0 | BF12: 7.142857143 | BG12: 0 | BH12: 14.28571429 | BI12: 3.571428571 | BJ12: 7.142857143 | BK12: 7.142857143 | BL12: 17.85714286 | BM12: 35.71428571 | BN12: 10.71428571 | BO12: 10.71428571 | BP12: 7.142857143 | BQ12: 28.57142857 | BR12: 21.42857143
B13: 9 | C13: "09_Oso f" | F13: 2 | J13: 3 | AE13: 1 | AF13: 3
B14: 10 | C14: "**10_Oso m" | D14: 1 | H14: 2 | K14: 3 | AF14: 3
B15: 11 | C15: "11_Oso m" | J15: 2 | K15: 1 | AE15: 3 | AF15: 3
B16: 12 | C16: "12_Oso m" | W16: 2 | X16: 3 | Z16: 1 | AF16: 3
B17: 13 | C17: "13_Oso m" | G17: 2 | O17: 3 | Q17: 1 | AF17: 3
B18: 14 | C18: "14_Oso m" | K18: 3 | L18: 2 | P18: 1 | AF18: 3
B19: 15 | C19: "15_Oso f" | Y19: 3 | Z19: 2 | AC19: 1 | AF19: 3
B20: 16 | C20: "16_Oso f" | Y20: 3 | AA20: 2 | AD20: 1 | AF20: 3
B21: 17 | C21: "17_Oso f" | S21: 2 | Y21: 1 | AD21: 3 | AF21: 3
B22: 18 | C22: "18_Oso f" | W22: 2 | Z22: 3 | AD22: 1 | AF22: 3
B23: 19 | C23: "19_Oso f" | U23: 1 | Z23: 3 | AD23: 2 | AF23: 3
B24: 20 | C24: "20_Oso f" | U24: 2 | Z24: 3 | AD24: 1 | AF24: 3
B25: 21 | C25: "21_Oso f" | Y25: 3 | AA25: 1 | AD25: 2 | AF25: 3
B26: 22 | C26: "22_Oso f" | Z26: 2 | AB26: 1 | AD26: 3 | AF26: 3
B27: 23 | C27: "23_Oso f" | H27: 3 | U27: 1 | AB27: 2 | AF27: 3
B28: 24 | C28: "24_Oso f" | V28: 1 | X28: 2 | AC28: 3 | AF28: 3
B29: 25 | C29: "25_Oso f" | Y29: 2 | Z29: 1 | AD29: 3 | AF29: 3
B30: 26 | C30: "26_Oso f" | Q30: 1 | Z30: 3 | AA30: 2 | AF30: 3
B31: 27 | C31: "27_Oso f" | S31: 2 | U31: 1 | Z31: 3 | AF31: 3
B32: 28 | C32: "28_Oso f" | AF32: 0
C33: Suma volieb 1 + 2 + 3 spolu | D33: 2 | E33: 0 | F33: 1 | G33: 1 | H33: 4 | I33: 0 | J33: 4 | K33: 4 | L33: 6 | M33: 2 | N33: 3 | O33: 3 | P33: 1 | Q33: 2 | R33: 0 | S33: 2 | T33: 0 | U33: 4 | V33: 1 | W33: 2 | X33: 2 | Y33: 5 | Z33: 10 | AA33: 3 | AB33: 3 | AC33: 2 | AD33: 8 | AE33: 6 | AF33: =SUM($D$33:$AE$33) -> 81
C34: Suma volieb 1 | D34: =COUNTIF(D5:D32,1) -> 2 | E34: 0 | F34: 0 | G34: 0 | H34: 1 | I34: 0 | J34: 0 | K34: 2 | L34: 1 | M34: 0 | N34: 1 | O34: 0 | P34: 1 | Q34: 2 | R34: 0 | S34: 0 | T34: 0 | U34: 3 | V34: 1 | W34: 0 | X34: 0 | Y34: 1 | Z34: 2 | AA34: 1 | AB34: 2 | AC34: 1 | AD34: 3 | AE34: 3
C35: Suma volieb 2 | D35: =COUNTIF(D5:D32,2) -> 0 | E35: 0 | F35: 1 | G35: 1 | H35: 1 | I35: 0 | J35: 2 | K35: 0 | L35: 3 | M35: 0 | N35: 2 | O35: 1 | P35: 0 | Q35: 0 | R35: 0 | S35: 2 | T35: 0 | U35: 1 | V35: 0 | W35: 2 | X35: 1 | Y35: 1 | Z35: 2 | AA35: 2 | AB35: 1 | AC35: 0 | AD35: 2 | AE35: 2
C36: Suma volieb 3 | D36: =COUNTIF(D5:D32,3) -> 0 | E36: 0 | F36: 0 | G36: 0 | H36: 2 | I36: 0 | J36: 2 | K36: 2 | L36: 2 | M36: 2 | N36: 0 | O36: 2 | P36: 0 | Q36: 0 | R36: 0 | S36: 0 | T36: 0 | U36: 0 | V36: 0 | W36: 0 | X36: 1 | Y36: 3 | Z36: 6 | AA36: 0 | AB36: 0 | AC36: 1 | AD36: 3 | AE36: 1
C37: Percento Suma volieb 1 | D37: =(D34/$B$3)*100 -> 7.142857143 | E37: 0 | F37: 0 | G37: 0 | H37: 3.571428571 | I37: 0 | J37: 0 | K37: 7.142857143 | L37: 3.571428571 | M37: 0 | N37: 3.571428571 | O37: 0 | P37: 3.571428571 | Q37: 7.142857143 | R37: 0 | S37: 0 | T37: 0 | U37: 10.71428571 | V37: 3.571428571 | W37: 0 | X37: 0 | Y37: 3.571428571 | Z37: 7.142857143 | AA37: 3.571428571 | AB37: 7.142857143 | AC37: 3.571428571 | AD37: 10.71428571 | AE37: 10.71428571
C38: Percento Suma volieb 2 | D38: =(D35/$B$3)*100 -> 0 | E38: 0 | F38: 3.571428571 | G38: 3.571428571 | H38: 3.571428571 | I38: 0 | J38: 7.142857143 | K38: 0 | L38: 10.71428571 | M38: 0 | N38: 7.142857143 | O38: 3.571428571 | P38: 0 | Q38: 0 | R38: 0 | S38: 7.142857143 | T38: 0 | U38: 3.571428571 | V38: 0 | W38: 7.142857143 | X38: 3.571428571 | Y38: 3.571428571 | Z38: 7.142857143 | AA38: 7.142857143 | AB38: 3.571428571 | AC38: 0 | AD38: 7.142857143 | AE38: 7.142857143
C39: Percento Suma volieb 3 | D39: =(D36/$B$3)*100 -> 0 | E39: 0 | F39: 0 | G39: 0 | H39: 7.142857143 | I39: 0 | J39: 7.142857143 | K39: 7.142857143 | L39: 7.142857143 | M39: 7.142857143 | N39: 0 | O39: 7.142857143 | P39: 0 | Q39: 0 | R39: 0 | S39: 0 | T39: 0 | U39: 0 | V39: 0 | W39: 0 | X39: 3.571428571 | Y39: 10.71428571 | Z39: 21.42857143 | AA39: 0 | AB39: 0 | AC39: 3.571428571 | AD39: 10.71428571 | AE39: 3.571428571
C40: Percento Suma volieb 1 + 2 + 3 spolu | D40: =(D33/$B$3)*100 -> 7.142857143 | E40: 0 | F40: 3.571428571 | G40: 3.571428571 | H40: 14.28571429 | I40: 0 | J40: 14.28571429 | K40: 14.28571429 | L40: 21.42857143 | M40: 7.142857143 | N40: 10.71428571 | O40: 10.71428571 | P40: 3.571428571 | Q40: 7.142857143 | R40: 0 | S40: 7.142857143 | T40: 0 | U40: 14.28571429 | V40: 3.571428571 | W40: 7.142857143 | X40: 7.142857143 | Y40: 17.85714286 | Z40: 35.71428571 | AA40: 10.71428571 | AB40: 10.71428571 | AC40: 7.142857143 | AD40: 28.57142857 | AE40: 21.42857143
D42: 1 | E42: 2 | F42: 3 | G42: 4 | H42: 5 | I42: 6 | J42: 7 | K42: 8 | L42: 9 | M42: 10 | N42: 11 | O42: 12 | P42: 13 | Q42: 14 | R42: 15 | S42: 16 | T42: 17 | U42: 18 | V42: 19 | W42: 20 | X42: 21 | Y42: 22 | Z42: 23 | AA42: 24 | AB42: 25 | AC42: 26 | AD42: 27 | AE42: 28
D43: "01_Oso m" | E43: "02_Oso m" | F43: "03_Oso m" | G43: "04_Oso m" | H43: "05_Oso m" | I43: "*06_Oso m" | J43: "07_Oso m" | K43: "08_Oso m" | L43: "09_Oso f" | M43: "**10_Oso m" | N43: "11_Oso m" | O43: "12_Oso m" | P43: "13_Oso m" | Q43: "14_Oso m" | R43: "15_Oso f" | S43: "16_Oso f" | T43: "17_Oso f" | U43: "18_Oso f" | V43: "19_Oso f" | W43: "20_Oso f" | X43: "21_Oso f" | Y43: "22_Oso f" | Z43: "23_Oso f" | AA43: "24_Oso f" | AB43: "25_Oso f" | AC43: "26_Oso f" | AD43: "27_Oso f" | AE43: "28_Oso f"
B44: 1 | C44: "01_Oso m" | D44: =IF(D5<>0,D$3,"") ->  | H44: 5 | M44: 10 | N44: 11 | AG44: 5, 10, 11, | AK44: 5 | AL44: 10 | AM44: 11 | AN44: 2
B45: 2 | C45: "02_Oso m" | D45: =IF(D6<>0,D$3,"") ->  | K45: 8 | L45: 9 | N45: 11 | AG45: 8, 9, 11, | AK45: 8 | AL45: 9 | AM45: 11 | AN45: 0
B46: 3 | C46: "03_Oso m" | D46: =IF(D7<>0,D$3,"") ->  | L46: 9 | O46: 12 | AE46: 28 | AG46: 9, 12, 28, | AK46: 9 | AL46: 12 | AM46: 28 | AN46: 1
B47: 4 | C47: "04_Oso m" | D47: =IF(D8<>0,D$3,"") ->  | Z47: 23 | AB47: 25 | AE47: 28 | AG47: 23, 25, 28, | AK47: 23 | AL47: 25 | AM47: 28 | AN47: 0
B48: 5 | C48: "05_Oso m" | D48: =IF(D9<>0,D$3,"") -> 1 | J48: 7 | L48: 9 | AG48: 1, 7, 9, | AK48: 1 | AL48: 7 | AM48: 9 | AN48: 2
B49: 6 | C49: "*06_Oso m" | D49: =IF(D10<>0,D$3,"") ->  | M49: 10 | N49: 11 | O49: 12 | AG49: 10, 11, 12, | AK49: 10 | AL49: 11 | AM49: 12 | AN49: 0
B50: 7 | C50: "07_Oso m" | D50: =IF(D11<>0,D$3,"") ->  | H50: 5 | L50: 9 | AE50: 28 | AG50: 5, 9, 28, | AK50: 5 | AL50: 9 | AM50: 28 | AN50: 2
B51: 8 | C51: "08_Oso m" | D51: =IF(D12<>0,D$3,"") ->  | J51: 7 | L51: 9 | AE51: 28 | AG51: 7, 9, 28, | AK51: 7 | AL51: 9 | AM51: 28 | AN51: 0
B52: 9 | C52: "09_Oso f" | D52: =IF(D13<>0,D$3,"") ->  | F52: 3 | J52: 7 | AE52: 28 | AG52: 3, 7, 28, | AK52: 3 | AL52: 7 | AM52: 28 | AN52: 2
B53: 10 | C53: "**10_Oso m" | D53: =IF(D14<>0,D$3,"") -> 1 | H53: 5 | K53: 8 | AG53: 1, 5, 8, | AK53: 1 | AL53: 5 | AM53: 8 | AN53: 1
B54: 11 | C54: "11_Oso m" | D54: =IF(D15<>0,D$3,"") ->  | J54: 7 | K54: 8 | AE54: 28 | AG54: 7, 8, 28, | AK54: 7 | AL54: 8 | AM54: 28 | AN54: 0
B55: 12 | C55: "12_Oso m" | D55: =IF(D16<>0,D$3,"") ->  | W55: 20 | X55: 21 | Z55: 23 | AG55: 20, 21, 23, | AK55: 20 | AL55: 21 | AM55: 23 | AN55: 0
B56: 13 | C56: "13_Oso m" | D56: =IF(D17<>0,D$3,"") ->  | G56: 4 | O56: 12 | Q56: 14 | AG56: 4, 12, 14, | AK56: 4 | AL56: 12 | AM56: 14 | AN56: 1
B57: 14 | C57: "14_Oso m" | D57: =IF(D18<>0,D$3,"") ->  | K57: 8 | L57: 9 | P57: 13 | AG57: 8, 9, 13, | AK57: 8 | AL57: 9 | AM57: 13 | AN57: 1
B58: 15 | C58: "15_Oso f" | D58: =IF(D19<>0,D$3,"") ->  | Y58: 22 | Z58: 23 | AC58: 26 | AG58: 22, 23, 26, | AK58: 22 | AL58: 23 | AM58: 26 | AN58: 0
B59: 16 | C59: "16_Oso f" | D59: =IF(D20<>0,D$3,"") ->  | Y59: 22 | AA59: 24 | AD59: 27 | AG59: 22, 24, 27, | AK59: 22 | AL59: 24 | AM59: 27 | AN59: 1
B60: 17 | C60: "17_Oso f" | D60: =IF(D21<>0,D$3,"") ->  | S60: 16 | Y60: 22 | AD60: 27 | AG60: 16, 22, 27, | AK60: 16 | AL60: 22 | AM60: 27 | AN60: 0
B61: 18 | C61: "18_Oso f" | D61: =IF(D22<>0,D$3,"") ->  | W61: 20 | Z61: 23 | AD61: 27 | AG61: 20, 23, 27, | AK61: 20 | AL61: 23 | AM61: 27 | AN61: 3
B62: 19 | C62: "19_Oso f" | D62: =IF(D23<>0,D$3,"") ->  | U62: 18 | Z62: 23 | AD62: 27 | AG62: 18, 23, 27, | AK62: 18 | AL62: 23 | AM62: 27 | AN62: 0
B63: 20 | C63: "20_Oso f" | D63: =IF(D24<>0,D$3,"") ->  | U63: 18 | Z63: 23 | AD63: 27 | AG63: 18, 23, 27, | AK63: 18 | AL63: 23 | AM63: 27 | AN63: 1
B64: 21 | C64: "21_Oso f" | D64: =IF(D25<>0,D$3,"") ->  | Y64: 22 | AA64: 24 | AD64: 27 | AG64: 22, 24, 27, | AK64: 22 | AL64: 24 | AM64: 27 | AN64: 1
B65: 22 | C65: "22_Oso f" | D65: =IF(D26<>0,D$3,"") ->  | Z65: 23 | AB65: 25 | AD65: 27 | AG65: 23, 25, 27, | AK65: 23 | AL65: 25 | AM65: 27 | AN65: 1
B66: 23 | C66: "23_Oso f" | D66: =IF(D27<>0,D$3,"") ->  | H66: 5 | U66: 18 | AB66: 25 | AG66: 5, 18, 25, | AK66: 5 | AL66: 18 | AM66: 25 | AN66: 2
B67: 24 | C67: "24_Oso f" | D67: =IF(D28<>0,D$3,"") ->  | V67: 19 | X67: 21 | AC67: 26 | AG67: 19, 21, 26, | AK67: 19 | AL67: 21 | AM67: 26 | AN67: 2
B68: 25 | C68: "25_Oso f" | D68: =IF(D29<>0,D$3,"") ->  | Y68: 22 | Z68: 23 | AD68: 27 | AG68: 22, 23, 27, | AK68: 22 | AL68: 23 | AM68: 27 | AN68: 2
B69: 26 | C69: "26_Oso f" | D69: =IF(D30<>0,D$3,"") ->  | Q69: 14 | Z69: 23 | AA69: 24 | AG69: 14, 23, 24, | AK69: 14 | AL69: 23 | AM69: 24 | AN69: 1
B70: 27 | C70: "27_Oso f" | D70: =IF(D31<>0,D$3,"") ->  | S70: 16 | U70: 18 | Z70: 23 | AG70: 16, 18, 23, | AK70: 16 | AL70: 18 | AM70: 23 | AN70: 2
B71: 28 | C71: "28_Oso f" | D71: =IF(D32<>0,D$3,"") ->  | AG71: 0, 0, 0, | AK71: 0 | AL71: 0 | AM71: 0 | AN71: 0
AN72: =SUM($AN$44:$AN$71) -> 28

Sheet Q_2
A1: "2. S kým z triedy by si najradšej písaval úlohy a učieval sa?"
B2: 3
B3: 28 | D3: 1 | E3: 2 | F3: 3 | G3: 4 | H3: 5 | I3: 6 | J3: 7 | K3: 8 | L3: 9 | M3: 10 | N3: 11 | O3: 12 | P3: 13 | Q3: 14 | R3: 15 | S3: 16 | T3: 17 | U3: 18 | V3: 19 | W3: 20 | X3: 21 | Y3: 22 | Z3: 23 | AA3: 24 | AB3: 25 | AC3: 26 | AD3: 27 | AE3: 28
D4: "01_Oso m" | E4: "02_Oso m" | F4: "03_Oso m" | G4: "04_Oso m" | H4: "05_Oso m" | I4: "*06_Oso m" | J4: "07_Oso m" | K4: "08_Oso m" | L4: "09_Oso f" | M4: "**10_Oso m" | N4: "11_Oso m" | O4: "12_Oso m" | P4: "13_Oso m" | Q4: "14_Oso m" | R4: "15_Oso f" | S4: "16_Oso f" | T4: "17_Oso f" | U4: "18_Oso f" | V4: "19_Oso f" | W4: "20_Oso f" | X4: "21_Oso f" | Y4: "22_Oso f" | Z4: "23_Oso f" | AA4: "24_Oso f" | AB4: "25_Oso f" | AC4: "26_Oso f" | AD4: "27_Oso f" | AE4: "28_Oso f"
A5: → | B5: 1 | C5: "01_Oso m" | H5: 1 | J5: 3 | N5: 2 | AF5: 3 | AQ5: 1 | AR5: 0 | AS5: 3 | AT5: 1 | AU5: 1 | AV5: 0 | AW5: 6 | AX5: 4 | AY5: 7 | AZ5: 0 | BA5: 1 | BB5: 0 | BC5: 1 | BD5: 2 | BE5: 2 | BF5: 0 | BG5: 0 | BH5: 5 | BI5: 2 | BJ5: 1 | BK5: 1 | BL5: 1 | BM5: 14 | BN5: 0 | BO5: 9 | BP5: 6 | BQ5: 5 | BR5: 8
B6: 2 | C6: "02_Oso m" | J6: 3 | K6: 1 | L6: 2 | AF6: 3 | AQ6: 1 | AR6: 0 | AS6: 1 | AT6: 0 | AU6: 1 | AV6: 0 | AW6: 3 | AX6: 2 | AY6: 2 | AZ6: 0 | BA6: 0 | BB6: 0 | BC6: 0 | BD6: 1 | BE6: 1 | BF6: 0 | BG6: 0 | BH6: 2 | BI6: 0 | BJ6: 0 | BK6: 1 | BL6: 0 | BM6: 5 | BN6: 0 | BO6: 3 | BP6: 3 | BQ6: 1 | BR6: 0
B7: 3 | C7: "03_Oso m" | J7: 1 | Z7: 2 | AE7: 3 | AF7: 3 | AQ7: 0 | AR7: 0 | AS7: 2 | AT7: 0 | AU7: 0 | AV7: 0 | AW7: 0 | AX7: 1 | AY7: 4 | AZ7: 0 | BA7: 1 | BB7: 0 | BC7: 0 | BD7: 1 | BE7: 0 | BF7: 0 | BG7: 0 | BH7: 1 | BI7: 1 | BJ7: 1 | BK7: 0 | BL7: 0 | BM7: 5 | BN7: 0 | BO7: 4 | BP7: 3 | BQ7: 1 | BR7: 2
B8: 4 | C8: "04_Oso m" | L8: 1 | P8: 3 | Q8: 2 | AF8: 3 | AQ8: 0 | AR8: 0 | AS8: 0 | AT8: 1 | AU8: 0 | AV8: 0 | AW8: 3 | AX8: 1 | AY8: 1 | AZ8: 0 | BA8: 0 | BB8: 0 | BC8: 1 | BD8: 0 | BE8: 1 | BF8: 0 | BG8: 0 | BH8: 2 | BI8: 1 | BJ8: 0 | BK8: 0 | BL8: 1 | BM8: 4 | BN8: 0 | BO8: 2 | BP8: 0 | BQ8: 3 | BR8: 6
B9: 5 | C9: "05_Oso m" | D9: 1 | L9: 2 | AE9: 3 | AF9: 3 | AQ9: 3.571428571 | AR9: 0 | AS9: 3.571428571 | AT9: 0 | AU9: 3.571428571 | AV9: 0 | AW9: 10.71428571 | AX9: 7.142857143 | AY9: 7.142857143 | AZ9: 0 | BA9: 0 | BB9: 0 | BC9: 0 | BD9: 3.571428571 | BE9: 3.571428571 | BF9: 0 | BG9: 0 | BH9: 7.142857143 | BI9: 0 | BJ9: 0 | BK9: 3.571428571 | BL9: 0 | BM9: 17.85714286 | BN9: 0 | BO9: 10.71428571 | BP9: 10.71428571 | BQ9: 3.571428571 | BR9: 0
B10: 6 | C10: "*06_Oso m" | Z10: 3 | AB10: 2 | AC10: 1 | AF10: 3 | AQ10: 0 | AR10: 0 | AS10: 7.142857143 | AT10: 0 | AU10: 0 | AV10: 0 | AW10: 0 | AX10: 3.571428571 | AY10: 14.28571429 | AZ10: 0 | BA10: 3.571428571 | BB10: 0 | BC10: 0 | BD10: 3.571428571 | BE10: 0 | BF10: 0 | BG10: 0 | BH10: 3.571428571 | BI10: 3.571428571 | BJ10: 3.571428571 | BK10: 0 | BL10: 0 | BM10: 17.85714286 | BN10: 0 | BO10: 14.28571429 | BP10: 10.71428571 | BQ10: 3.571428571 | BR10: 7.142857143
B11: 7 | C11: "07_Oso m" | F11: 2 | L11: 1 | AE11: 3 | AF11: 3 | AQ11: 0 | AR11: 0 | AS11: 0 | AT11: 3.571428571 | AU11: 0 | AV11: 0 | AW11: 10.71428571 | AX11: 3.571428571 | AY11: 3.571428571 | AZ11: 0 | BA11: 0 | BB11: 0 | BC11: 3.571428571 | BD11: 0 | BE11: 3.571428571 | BF11: 0 | BG11: 0 | BH11: 7.142857143 | BI11: 3.571428571 | BJ11: 0 | BK11: 0 | BL11: 3.571428571 | BM11: 14.28571429 | BN11: 0 | BO11: 7.142857143 | BP11: 0 | BQ11: 10.71428571 | BR11: 21.42857143
B12: 8 | C12: "08_Oso m" | J12: 1 | L12: 2 | AE12: 3 | AF12: 3 | AQ12: 3.571428571 | AR12: 0 | AS12: 10.71428571 | AT12: 3.571428571 | AU12: 3.571428571 | AV12: 0 | AW12: 21.42857143 | AX12: 14.28571429 | AY12: 25 | AZ12: 0 | BA12: 3.571428571 | BB12: 0 | BC12: 3.571428571 | BD12: 7.142857143 | BE12: 7.142857143 | BF12: 0 | BG12: 0 | BH12: 17.85714286 | BI12: 7.142857143 | BJ12: 3.571428571 | BK12: 3.571428571 | BL12: 3.571428571 | BM12: 50 | BN12: 0 | BO12: 32.14285714 | BP12: 21.42857143 | BQ12: 17.85714286 | BR12: 28.57142857
B13: 9 | C13: "09_Oso f" | F13: 1 | J13: 3 | AE13: 2 | AF13: 3
B14: 10 | C14: "**10_Oso m" | F14: 2 | L14: 3 | Z14: 1 | AF14: 3
B15: 11 | C15: "11_Oso m" | J15: 1 | K15: 2 | AE15: 3 | AF15: 3
B16: 12 | C16: "12_Oso m" | K16: 3 | Z16: 1 | AD16: 2 | AF16: 3
B17: 13 | C17: "13_Oso m" | G17: 3 | Q17: 1 | AE17: 2 | AF17: 3
B18: 14 | C18: "14_Oso m" | K18: 1 | L18: 2 | AE18: 3 | AF18: 3
B19: 15 | C19: "15_Oso f" | Z19: 3 | AB19: 2 | AC19: 1 | AF19: 3
B20: 16 | C20: "16_Oso f" | Z20: 3 | AB20: 2 | AD20: 1 | AF20: 3
B21: 17 | C21: "17_Oso f" | R21: 1 | AC21: 2 | AD21: 3 | AF21: 3
B22: 18 | C22: "18_Oso f" | V22: 2 | Z22: 1 | AD22: 3 | AF22: 3
B23: 19 | C23: "19_Oso f" | U23: 1 | Z23: 2 | AD23: 3 | AF23: 3
B24: 20 | C24: "20_Oso f" | U24: 1 | Z24: 3 | AB24: 2 | AF24: 3
B25: 21 | C25: "21_Oso f" | U25: 3 | Z25: 2 | AB25: 1 | AF25: 3
B26: 22 | C26: "22_Oso f" | Z26: 2 | AB26: 3 | AC26: 1 | AF26: 3
B27: 23 | C27: "23_Oso f" | U27: 3 | W27: 2 | AB27: 1 | AF27: 3
B28: 24 | C28: "24_Oso f" | V28: 3 | X28: 1 | AC28: 2 | AF28: 3
B29: 25 | C29: "25_Oso f" | Y29: 3 | Z29: 1 | AC29: 2 | AF29: 3
B30: 26 | C30: "26_Oso f" | R30: 3 | Z30: 2 | AB30: 1 | AF30: 3
B31: 27 | C31: "27_Oso f" | U31: 2 | Z31: 1 | AB31: 3 | AF31: 3
B32: 28 | C32: "28_Oso f" | AF32: 0
C33: Suma volieb 1 + 2 + 3 spolu | D33: 1 | E33: 0 | F33: 3 | G33: 1 | H33: 1 | I33: 0 | J33: 6 | K33: 4 | L33: 7 | M33: 0 | N33: 1 | O33: 0 | P33: 1 | Q33: 2 | R33: 2 | S33: 0 | T33: 0 | U33: 5 | V33: 2 | W33: 1 | X33: 1 | Y33: 1 | Z33: 14 | AA33: 0 | AB33: 9 | AC33: 6 | AD33: 5 | AE33: 8 | AF33: =SUM($D$33:$AE$33) -> 81
C34: Suma volieb 1 | D34: =COUNTIF(D5:D32,1) -> 1 | E34: 0 | F34: 1 | G34: 0 | H34: 1 | I34: 0 | J34: 3 | K34: 2 | L34: 2 | M34: 0 | N34: 0 | O34: 0 | P34: 0 | Q34: 1 | R34: 1 | S34: 0 | T34: 0 | U34: 2 | V34: 0 | W34: 0 | X34: 1 | Y34: 0 | Z34: 5 | AA34: 0 | AB34: 3 | AC34: 3 | AD34: 1 | AE34: 0
C35: Suma volieb 2 | D35: =COUNTIF(D5:D32,2) -> 0 | E35: 0 | F35: 2 | G35: 0 | H35: 0 | I35: 0 | J35: 0 | K35: 1 | L35: 4 | M35: 0 | N35: 1 | O35: 0 | P35: 0 | Q35: 1 | R35: 0 | S35: 0 | T35: 0 | U35: 1 | V35: 1 | W35: 1 | X35: 0 | Y35: 0 | Z35: 5 | AA35: 0 | AB35: 4 | AC35: 3 | AD35: 1 | AE35: 2
C36: Suma volieb 3 | D36: =COUNTIF(D5:D32,3) -> 0 | E36: 0 | F36: 0 | G36: 1 | H36: 0 | I36: 0 | J36: 3 | K36: 1 | L36: 1 | M36: 0 | N36: 0 | O36: 0 | P36: 1 | Q36: 0 | R36: 1 | S36: 0 | T36: 0 | U36: 2 | V36: 1 | W36: 0 | X36: 0 | Y36: 1 | Z36: 4 | AA36: 0 | AB36: 2 | AC36: 0 | AD36: 3 | AE36: 6
C37: Percento Suma volieb 1 | D37: =(D34/$B$3)*100 -> 3.571428571 | E37: 0 | F37: 3.571428571 | G37: 0 | H37: 3.571428571 | I37: 0 | J37: 10.71428571 | K37: 7.142857143 | L37: 7.142857143 | M37: 0 | N37: 0 | O37: 0 | P37: 0 | Q37: 3.571428571 | R37: 3.571428571 | S37: 0 | T37: 0 | U37: 7.142857143 | V37: 0 | W37: 0 | X37: 3.571428571 | Y37: 0 | Z37: 17.85714286 | AA37: 0 | AB37: 10.71428571 | AC37: 10.71428571 | AD37: 3.571428571 | AE37: 0
C38: Percento Suma volieb 2 | D38: =(D35/$B$3)*100 -> 0 | E38: 0 | F38: 7.142857143 | G38: 0 | H38: 0 | I38: 0 | J38: 0 | K38: 3.571428571 | L38: 14.28571429 | M38: 0 | N38: 3.571428571 | O38: 0 | P38: 0 | Q38: 3.571428571 | R38: 0 | S38: 0 | T38: 0 | U38: 3.571428571 | V38: 3.571428571 | W38: 3.571428571 | X38: 0 | Y38: 0 | Z38: 17.85714286 | AA38: 0 | AB38: 14.28571429 | AC38: 10.71428571 | AD38: 3.571428571 | AE38: 7.142857143
C39: Percento Suma volieb 3 | D39: =(D36/$B$3)*100 -> 0 | E39: 0 | F39: 0 | G39: 3.571428571 | H39: 0 | I39: 0 | J39: 10.71428571 | K39: 3.571428571 | L39: 3.571428571 | M39: 0 | N39: 0 | O39: 0 | P39: 3.571428571 | Q39: 0 | R39: 3.571428571 | S39: 0 | T39: 0 | U39: 7.142857143 | V39: 3.571428571 | W39: 0 | X39: 0 | Y39: 3.571428571 | Z39: 14.28571429 | AA39: 0 | AB39: 7.142857143 | AC39: 0 | AD39: 10.71428571 | AE39: 21.42857143
C40: Percento Suma volieb 1 + 2 + 3 spolu | D40: =(D33/$B$3)*100 -> 3.571428571 | E40: 0 | F40: 10.71428571 | G40: 3.571428571 | H40: 3.571428571 | I40: 0 | J40: 21.42857143 | K40: 14.28571429 | L40: 25 | M40: 0 | N40: 3.571428571 | O40: 0 | P40: 3.571428571 | Q40: 7.142857143 | R40: 7.142857143 | S40: 0 | T40: 0 | U40: 17.85714286 | V40: 7.142857143 | W40: 3.571428571 | X40: 3.571428571 | Y40: 3.571428571 | Z40: 50 | AA40: 0 | AB40: 32.14285714 | AC40: 21.42857143 | AD40: 17.85714286 | AE40: 28.57142857
D42: 1 | E42: 2 | F42: 3 | G42: 4 | H42: 5 | I42: 6 | J42: 7 | K42: 8 | L42: 9 | M42: 10 | N42: 11 | O42: 12 | P42: 13 | Q42: 14 | R42: 15 | S42: 16 | T42: 17 | U42: 18 | V42: 19 | W42: 20 | X42: 21 | Y42: 22 | Z42: 23 | AA42: 24 | AB42: 25 | AC42: 26 | AD42: 27 | AE42: 28
D43: "01_Oso m" | E43: "02_Oso m" | F43: "03_Oso m" | G43: "04_Oso m" | H43: "05_Oso m" | I43: "*06_Oso m" | J43: "07_Oso m" | K43: "08_Oso m" | L43: "09_Oso f" | M43: "**10_Oso m" | N43: "11_Oso m" | O43: "12_Oso m" | P43: "13_Oso m" | Q43: "14_Oso m" | R43: "15_Oso f" | S43: "16_Oso f" | T43: "17_Oso f" | U43: "18_Oso f" | V43: "19_Oso f" | W43: "20_Oso f" | X43: "21_Oso f" | Y43: "22_Oso f" | Z43: "23_Oso f" | AA43: "24_Oso f" | AB43: "25_Oso f" | AC43: "26_Oso f" | AD43: "27_Oso f" | AE43: "28_Oso f"
B44: 1 | C44: "01_Oso m" | D44: =IF(D5<>0,D$3,"") ->  | H44: 5 | J44: 7 | N44: 11 | AG44: 5, 7, 11, | AK44: 5 | AL44: 7 | AM44: 11 | AN44: 1
B45: 2 | C45: "02_Oso m" | J45: 7 | K45: 8 | L45: 9 | AG45: 7, 8, 9, | AK45: 7 | AL45: 8 | AM45: 9 | AN45: 0
B46: 3 | C46: "03_Oso m" | J46: 7 | Z46: 23 | AE46: 28 | AG46: 7, 23, 28, | AK46: 7 | AL46: 23 | AM46: 28 | AN46: 1
B47: 4 | C47: "04_Oso m" | L47: 9 | P47: 13 | Q47: 14 | AG47: 9, 13, 14, | AK47: 9 | AL47: 13 | AM47: 14 | AN47: 1
B48: 5 | C48: "05_Oso m" | D48: 1 | L48: 9 | AE48: 28 | AG48: 1, 9, 28, | AK48: 1 | AL48: 9 | AM48: 28 | AN48: 1
B49: 6 | C49: "*06_Oso m" | Z49: 23 | AB49: 25 | AC49: 26 | AG49: 23, 25, 26, | AK49: 23 | AL49: 25 | AM49: 26 | AN49: 0
B50: 7 | C50: "07_Oso m" | F50: 3 | L50: 9 | AE50: 28 | AG50: 3, 9, 28, | AK50: 3 | AL50: 9 | AM50: 28 | AN50: 2
B51: 8 | C51: "08_Oso m" | J51: 7 | L51: 9 | AE51: 28 | AG51: 7, 9, 28, | AK51: 7 | AL51: 9 | AM51: 28 | AN51: 0
B52: 9 | C52: "09_Oso f" | F52: 3 | J52: 7 | AE52: 28 | AG52: 3, 7, 28, | AK52: 3 | AL52: 7 | AM52: 28 | AN52: 1
B53: 10 | C53: "**10_Oso m" | F53: 3 | G53: =IF(G14<>0,G$3,"") ->  | L53: 9 | Z53: 23 | AG53: 3, 9, 23, | AK53: 3 | AL53: 9 | AM53: 23 | AN53: 0
B54: 11 | C54: "11_Oso m" | D54: =IF(D15<>0,D$3,"") ->  | J54: 7 | K54: 8 | AE54: 28 | AG54: 7, 8, 28, | AK54: 7 | AL54: 8 | AM54: 28 | AN54: 0
B55: 12 | C55: "12_Oso m" | K55: 8 | Z55: 23 | AD55: 27 | AG55: 8, 23, 27, | AK55: 8 | AL55: 23 | AM55: 27 | AN55: 0
B56: 13 | C56: "13_Oso m" | G56: 4 | Q56: 14 | AE56: 28 | AG56: 4, 14, 28, | AK56: 4 | AL56: 14 | AM56: 28 | AN56: 1
B57: 14 | C57: "14_Oso m" | K57: 8 | L57: 9 | AE57: 28 | AG57: 8, 9, 28, | AK57: 8 | AL57: 9 | AM57: 28 | AN57: 0
B58: 15 | C58: "15_Oso f" | Z58: 23 | AB58: 25 | AC58: 26 | AG58: 23, 25, 26, | AK58: 23 | AL58: 25 | AM58: 26 | AN58: 1
B59: 16 | C59: "16_Oso f" | Z59: 23 | AB59: 25 | AD59: 27 | AG59: 23, 25, 27, | AK59: 23 | AL59: 25 | AM59: 27 | AN59: 0
B60: 17 | C60: "17_Oso f" | R60: 15 | AC60: 26 | AD60: 27 | AG60: 15, 26, 27, | AK60: 15 | AL60: 26 | AM60: 27 | AN60: 0
B61: 18 | C61: "18_Oso f" | V61: 19 | Z61: 23 | AD61: 27 | AG61: 19, 23, 27, | AK61: 19 | AL61: 23 | AM61: 27 | AN61: 3
B62: 19 | C62: "19_Oso f" | U62: 18 | Z62: 23 | AD62: 27 | AG62: 18, 23, 27, | AK62: 18 | AL62: 23 | AM62: 27 | AN62: 1
B63: 20 | C63: "20_Oso f" | G63: =IF(G24<>0,G$3,"") ->  | U63: 18 | Z63: 23 | AB63: 25 | AG63: 18, 23, 25, | AK63: 18 | AL63: 23 | AM63: 25 | AN63: 1
B64: 21 | C64: "21_Oso f" | D64: =IF(D25<>0,D$3,"") ->  | U64: 18 | Z64: 23 | AB64: 25 | AG64: 18, 23, 25, | AK64: 18 | AL64: 23 | AM64: 25 | AN64: 0
B65: 22 | C65: "22_Oso f" | Z65: 23 | AB65: 25 | AC65: 26 | AG65: 23, 25, 26, | AK65: 23 | AL65: 25 | AM65: 26 | AN65: 1
B66: 23 | C66: "23_Oso f" | U66: 18 | W66: 20 | AB66: 25 | AG66: 18, 20, 25, | AK66: 18 | AL66: 20 | AM66: 25 | AN66: 3
B67: 24 | C67: "24_Oso f" | V67: 19 | X67: 21 | AC67: 26 | AG67: 19, 21, 26, | AK67: 19 | AL67: 21 | AM67: 26 | AN67: 0
B68: 25 | C68: "25_Oso f" | Y68: 22 | Z68: 23 | AC68: 26 | AG68: 22, 23, 26, | AK68: 22 | AL68: 23 | AM68: 26 | AN68: 3
B69: 26 | C69: "26_Oso f" | R69: 15 | Z69: 23 | AB69: 25 | AG69: 15, 23, 25, | AK69: 15 | AL69: 23 | AM69: 25 | AN69: 2
B70: 27 | C70: "27_Oso f" | U70: 18 | Z70: 23 | AB70: 25 | AG70: 18, 23, 25, | AK70: 18 | AL70: 23 | AM70: 25 | AN70: 1
B71: 28 | C71: "28_Oso f" | AG71: 0, 0, 0, | AK71: 0 | AL71: 0 | AM71: 0 | AN71: 0
AN72: =SUM($AN$44:$AN$71) -> 24

Sheet Q_3
A1: "3. S kým z triedy by si chcel stráviť prázdniny na pustom ostrove?"
B2: 3
B3: 28 | D3: 1 | E3: 2 | F3: 3 | G3: 4 | H3: 5 | I3: 6 | J3: 7 | K3: 8 | L3: 9 | M3: 10 | N3: 11 | O3: 12 | P3: 13 | Q3: 14 | R3: 15 | S3: 16 | T3: 17 | U3: 18 | V3: 19 | W3: 20 | X3: 21 | Y3: 22 | Z3: 23 | AA3: 24 | AB3: 25 | AC3: 26 | AD3: 27 | AE3: 28
D4: "01_Oso m" | E4: "02_Oso m" | F4: "03_Oso m" | G4: "04_Oso m" | H4: "05_Oso m" | I4: "*06_Oso m" | J4: "07_Oso m" | K4: "08_Oso m" | L4: "09_Oso f" | M4: "**10_Oso m" | N4: "11_Oso m" | O4: "12_Oso m" | P4: "13_Oso m" | Q4: "14_Oso m" | R4: "15_Oso f" | S4: "16_Oso f" | T4: "17_Oso f" | U4: "18_Oso f" | V4: "19_Oso f" | W4: "20_Oso f" | X4: "21_Oso f" | Y4: "22_Oso f" | Z4: "23_Oso f" | AA4: "24_Oso f" | AB4: "25_Oso f" | AC4: "26_Oso f" | AD4: "27_Oso f" | AE4: "28_Oso f"
A5: → | B5: 1 | C5: "01_Oso m" | H5: 1 | M5: 2 | N5: 3 | AF5: 3 | AQ5: 1 | AR5: 0 | AS5: 2 | AT5: 0 | AU5: 4 | AV5: 2 | AW5: 4 | AX5: 4 | AY5: 5 | AZ5: 3 | BA5: 4 | BB5: 4 | BC5: 0 | BD5: 1 | BE5: 1 | BF5: 4 | BG5: 1 | BH5: 5 | BI5: 2 | BJ5: 3 | BK5: 4 | BL5: 3 | BM5: 9 | BN5: 1 | BO5: 3 | BP5: 1 | BQ5: 6 | BR5: 4
B6: 2 | C6: "02_Oso m" | J6: 3 | K6: 2 | L6: 1 | AF6: 3 | AQ6: 0 | AR6: 0 | AS6: 0 | AT6: 0 | AU6: 2 | AV6: 1 | AW6: 0 | AX6: 3 | AY6: 1 | AZ6: 1 | BA6: 2 | BB6: 0 | BC6: 0 | BD6: 1 | BE6: 0 | BF6: 1 | BG6: 1 | BH6: 0 | BI6: 1 | BJ6: 2 | BK6: 1 | BL6: 1 | BM6: 2 | BN6: 1 | BO6: 2 | BP6: 0 | BQ6: 2 | BR6: 2
B7: 3 | C7: "03_Oso m" | J7: 3 | L7: 2 | AE7: 1 | AF7: 3 | AQ7: 0 | AR7: 0 | AS7: 0 | AT7: 0 | AU7: 1 | AV7: 1 | AW7: 2 | AX7: 1 | AY7: 2 | AZ7: 1 | BA7: 1 | BB7: 3 | BC7: 0 | BD7: 0 | BE7: 1 | BF7: 1 | BG7: 0 | BH7: 2 | BI7: 0 | BJ7: 1 | BK7: 1 | BL7: 1 | BM7: 4 | BN7: 0 | BO7: 1 | BP7: 0 | BQ7: 3 | BR7: 0
B8: 4 | C8: "04_Oso m" | H8: 1 | L8: 3 | O8: 2 | AF8: 3 | AQ8: 1 | AR8: 0 | AS8: 2 | AT8: 0 | AU8: 1 | AV8: 0 | AW8: 2 | AX8: 0 | AY8: 2 | AZ8: 1 | BA8: 1 | BB8: 1 | BC8: 0 | BD8: 0 | BE8: 0 | BF8: 2 | BG8: 0 | BH8: 3 | BI8: 1 | BJ8: 0 | BK8: 2 | BL8: 1 | BM8: 3 | BN8: 0 | BO8: 0 | BP8: 1 | BQ8: 1 | BR8: 2
B9: 5 | C9: "05_Oso m" | I9: 2 | M9: 1 | AE9: 3 | AF9: 3 | AQ9: 0 | AR9: 0 | AS9: 0 | AT9: 0 | AU9: 7.142857143 | AV9: 3.571428571 | AW9: 0 | AX9: 10.71428571 | AY9: 3.571428571 | AZ9: 3.571428571 | BA9: 7.142857143 | BB9: 0 | BC9: 0 | BD9: 3.571428571 | BE9: 0 | BF9: 3.571428571 | BG9: 3.571428571 | BH9: 0 | BI9: 3.571428571 | BJ9: 7.142857143 | BK9: 3.571428571 | BL9: 3.571428571 | BM9: 7.142857143 | BN9: 3.571428571 | BO9: 7.142857143 | BP9: 0 | BQ9: 7.142857143 | BR9: 7.142857143
B10: 6 | C10: "*06_Oso m" | M10: 3 | N10: 1 | O10: 2 | AF10: 3 | AQ10: 0 | AR10: 0 | AS10: 0 | AT10: 0 | AU10: 3.571428571 | AV10: 3.571428571 | AW10: 7.142857143 | AX10: 3.571428571 | AY10: 7.142857143 | AZ10: 3.571428571 | BA10: 3.571428571 | BB10: 10.71428571 | BC10: 0 | BD10: 0 | BE10: 3.571428571 | BF10: 3.571428571 | BG10: 0 | BH10: 7.142857143 | BI10: 0 | BJ10: 3.571428571 | BK10: 3.571428571 | BL10: 3.571428571 | BM10: 14.28571429 | BN10: 0 | BO10: 3.571428571 | BP10: 0 | BQ10: 10.71428571 | BR10: 0
B11: 7 | C11: "07_Oso m" | F11: 3 | K11: 1 | N11: 2 | AF11: 3 | AQ11: 3.571428571 | AR11: 0 | AS11: 7.142857143 | AT11: 0 | AU11: 3.571428571 | AV11: 0 | AW11: 7.142857143 | AX11: 0 | AY11: 7.142857143 | AZ11: 3.571428571 | BA11: 3.571428571 | BB11: 3.571428571 | BC11: 0 | BD11: 0 | BE11: 0 | BF11: 7.142857143 | BG11: 0 | BH11: 10.71428571 | BI11: 3.571428571 | BJ11: 0 | BK11: 7.142857143 | BL11: 3.571428571 | BM11: 10.71428571 | BN11: 0 | BO11: 0 | BP11: 3.571428571 | BQ11: 3.571428571 | BR11: 7.142857143
B12: 8 | C12: "08_Oso m" | L12: 3 | N12: 1 | O12: 2 | AF12: 3 | AQ12: 3.571428571 | AR12: 0 | AS12: 7.142857143 | AT12: 0 | AU12: 14.28571429 | AV12: 7.142857143 | AW12: 14.28571429 | AX12: 14.28571429 | AY12: 17.85714286 | AZ12: 10.71428571 | BA12: 14.28571429 | BB12: 14.28571429 | BC12: 0 | BD12: 3.571428571 | BE12: 3.571428571 | BF12: 14.28571429 | BG12: 3.571428571 | BH12: 17.85714286 | BI12: 7.142857143 | BJ12: 10.71428571 | BK12: 14.28571429 | BL12: 10.71428571 | BM12: 32.14285714 | BN12: 3.571428571 | BO12: 10.71428571 | BP12: 3.571428571 | BQ12: 21.42857143 | BR12: 14.28571429
B13: 9 | C13: "09_Oso f" | F13: 3 | J13: 2 | AE13: 1 | AF13: 3
B14: 10 | C14: "**10_Oso m" | D14: 3 | H14: 2 | I14: 1 | AF14: 3
B15: 11 | C15: "11_Oso m" | J15: 2 | K15: 1 | AE15: 3 | AF15: 3
B16: 12 | C16: "12_Oso m" | W16: 2 | Z16: 1 | AD16: 3 | AF16: 3
B17: 13 | C17: "13_Oso m" | L17: 2 | O17: 3 | Q17: 1 | AF17: 3
B18: 14 | C18: "14_Oso m" | K18: 1 | Z18: 2 | AC18: 3 | AF18: 3
B19: 15 | C19: "15_Oso f" | Y19: 1 | Z19: 3 | AB19: 2 | AF19: 3
B20: 16 | C20: "16_Oso f" | U20: 3 | W20: 1 | AD20: 2 | AF20: 3
B21: 17 | C21: "17_Oso f" | S21: 1 | X21: 3 | Y21: 2 | AF21: 3
B22: 18 | C22: "18_Oso f" | S22: 3 | Z22: 2 | AD22: 1 | AF22: 3
B23: 19 | C23: "19_Oso f" | T23: 1 | Z23: 3 | AD23: 2 | AF23: 3
B24: 20 | C24: "20_Oso f" | U24: 3 | Z24: 2 | AD24: 1 | AF24: 3
B25: 21 | C25: "21_Oso f" | U25: 2 | V25: 3 | AA25: 1 | AF25: 3
B26: 22 | C26: "22_Oso f" | S26: 2 | X26: 1 | Z26: 3 | AF26: 3
B27: 23 | C27: "23_Oso f" | H27: 3 | U27: 2 | AB27: 1 | AF27: 3
B28: 24 | C28: "24_Oso f" | R28: 2 | X28: 3 | AB28: 1 | AF28: 3
B29: 25 | C29: "25_Oso f" | S29: 3 | Z29: 1 | AD29: 2 | AF29: 3
B30: 26 | C30: "26_Oso f" | W30: 1 | X30: 2 | Y30: 3 | AF30: 3
B31: 27 | C31: "27_Oso f" | U31: 3 | V31: 1 | Z31: 2 | AF31: 3
B32: 28 | C32: "28_Oso f" | AF32: 0
C33: Suma volieb 1 + 2 + 3 spolu | D33: 1 | E33: 0 | F33: 2 | G33: 0 | H33: 4 | I33: 2 | J33: 4 | K33: 4 | L33: 5 | M33: 3 | N33: 4 | O33: 4 | P33: 0 | Q33: 1 | R33: 1 | S33: 4 | T33: 1 | U33: 5 | V33: 2 | W33: 3 | X33: 4 | Y33: 3 | Z33: 9 | AA33: 1 | AB33: 3 | AC33: 1 | AD33: 6 | AE33: 4 | AF33: =SUM($D$33:$AE$33) -> 81
C34: Suma volieb 1 | D34: =COUNTIF(D5:D32,1) -> 0 | E34: 0 | F34: 0 | G34: 0 | H34: 2 | I34: 1 | J34: 0 | K34: 3 | L34: 1 | M34: 1 | N34: 2 | O34: 0 | P34: 0 | Q34: 1 | R34: 0 | S34: 1 | T34: 1 | U34: 0 | V34: 1 | W34: 2 | X34: 1 | Y34: 1 | Z34: 2 | AA34: 1 | AB34: 2 | AC34: 0 | AD34: 2 | AE34: 2
C35: Suma volieb 2 | D35: =COUNTIF(D5:D32,2) -> 0 | E35: 0 | F35: 0 | G35: 0 | H35: 1 | I35: 1 | J35: 2 | K35: 1 | L35: 2 | M35: 1 | N35: 1 | O35: 3 | P35: 0 | Q35: 0 | R35: 1 | S35: 1 | T35: 0 | U35: 2 | V35: 0 | W35: 1 | X35: 1 | Y35: 1 | Z35: 4 | AA35: 0 | AB35: 1 | AC35: 0 | AD35: 3 | AE35: 0
C36: Suma volieb 3 | D36: =COUNTIF(D5:D32,3) -> 1 | E36: 0 | F36: 2 | G36: 0 | H36: 1 | I36: 0 | J36: 2 | K36: 0 | L36: 2 | M36: 1 | N36: 1 | O36: 1 | P36: 0 | Q36: 0 | R36: 0 | S36: 2 | T36: 0 | U36: 3 | V36: 1 | W36: 0 | X36: 2 | Y36: 1 | Z36: 3 | AA36: 0 | AB36: 0 | AC36: 1 | AD36: 1 | AE36: 2
C37: Percento Suma volieb 1 | D37: =(D34/$B$3)*100 -> 0 | E37: 0 | F37: 0 | G37: 0 | H37: 7.142857143 | I37: 3.571428571 | J37: 0 | K37: 10.71428571 | L37: 3.571428571 | M37: 3.571428571 | N37: 7.142857143 | O37: 0 | P37: 0 | Q37: 3.571428571 | R37: 0 | S37: 3.571428571 | T37: 3.571428571 | U37: 0 | V37: 3.571428571 | W37: 7.142857143 | X37: 3.571428571 | Y37: 3.571428571 | Z37: 7.142857143 | AA37: 3.571428571 | AB37: 7.142857143 | AC37: 0 | AD37: 7.142857143 | AE37: 7.142857143
C38: Percento Suma volieb 2 | D38: =(D35/$B$3)*100 -> 0 | E38: 0 | F38: 0 | G38: 0 | H38: 3.571428571 | I38: 3.571428571 | J38: 7.142857143 | K38: 3.571428571 | L38: 7.142857143 | M38: 3.571428571 | N38: 3.571428571 | O38: 10.71428571 | P38: 0 | Q38: 0 | R38: 3.571428571 | S38: 3.571428571 | T38: 0 | U38: 7.142857143 | V38: 0 | W38: 3.571428571 | X38: 3.571428571 | Y38: 3.571428571 | Z38: 14.28571429 | AA38: 0 | AB38: 3.571428571 | AC38: 0 | AD38: 10.71428571 | AE38: 0
C39: Percento Suma volieb 3 | D39: =(D36/$B$3)*100 -> 3.571428571 | E39: 0 | F39: 7.142857143 | G39: 0 | H39: 3.571428571 | I39: 0 | J39: 7.142857143 | K39: 0 | L39: 7.142857143 | M39: 3.571428571 | N39: 3.571428571 | O39: 3.571428571 | P39: 0 | Q39: 0 | R39: 0 | S39: 7.142857143 | T39: 0 | U39: 10.71428571 | V39: 3.571428571 | W39: 0 | X39: 7.142857143 | Y39: 3.571428571 | Z39: 10.71428571 | AA39: 0 | AB39: 0 | AC39: 3.571428571 | AD39: 3.571428571 | AE39: 7.142857143
C40: Percento Suma volieb 1 + 2 + 3 spolu | D40: =(D33/$B$3)*100 -> 3.571428571 | E40: 0 | F40: 7.142857143 | G40: 0 | H40: 14.28571429 | I40: 7.142857143 | J40: 14.28571429 | K40: 14.28571429 | L40: 17.85714286 | M40: 10.71428571 | N40: 14.28571429 | O40: 14.28571429 | P40: 0 | Q40: 3.571428571 | R40: 3.571428571 | S40: 14.28571429 | T40: 3.571428571 | U40: 17.85714286 | V40: 7.142857143 | W40: 10.71428571 | X40: 14.28571429 | Y40: 10.71428571 | Z40: 32.14285714 | AA40: 3.571428571 | AB40: 10.71428571 | AC40: 3.571428571 | AD40: 21.42857143 | AE40: 14.28571429
D42: 1 | E42: 2 | F42: 3 | G42: 4 | H42: 5 | I42: 6 | J42: 7 | K42: 8 | L42: 9 | M42: 10 | N42: 11 | O42: 12 | P42: 13 | Q42: 14 | R42: 15 | S42: 16 | T42: 17 | U42: 18 | V42: 19 | W42: 20 | X42: 21 | Y42: 22 | Z42: 23 | AA42: 24 | AB42: 25 | AC42: 26 | AD42: 27 | AE42: 28
D43: "01_Oso m" | E43: "02_Oso m" | F43: "03_Oso m" | G43: "04_Oso m" | H43: "05_Oso m" | I43: "*06_Oso m" | J43: "07_Oso m" | K43: "08_Oso m" | L43: "09_Oso f" | M43: "**10_Oso m" | N43: "11_Oso m" | O43: "12_Oso m" | P43: "13_Oso m" | Q43: "14_Oso m" | R43: "15_Oso f" | S43: "16_Oso f" | T43: "17_Oso f" | U43: "18_Oso f" | V43: "19_Oso f" | W43: "20_Oso f" | X43: "21_Oso f" | Y43: "22_Oso f" | Z43: "23_Oso f" | AA43: "24_Oso f" | AB43: "25_Oso f" | AC43: "26_Oso f" | AD43: "27_Oso f" | AE43: "28_Oso f"
B44: 1 | C44: "01_Oso m" | D44: =IF(D5<>0,D$3,"") ->  | H44: 5 | M44: 10 | N44: 11 | AG44: 5, 10, 11, | AK44: 5 | AL44: 10 | AM44: 11 | AN44: 1
B45: 2 | C45: "02_Oso m" | J45: 7 | K45: 8 | L45: 9 | AG45: 7, 8, 9, | AK45: 7 | AL45: 8 | AM45: 9 | AN45: 0
B46: 3 | C46: "03_Oso m" | J46: 7 | L46: 9 | AE46: 28 | AG46: 7, 9, 28, | AK46: 7 | AL46: 9 | AM46: 28 | AN46: 2
B47: 4 | C47: "04_Oso m" | H47: 5 | L47: 9 | O47: 12 | AG47: 5, 9, 12, | AK47: 5 | AL47: 9 | AM47: 12 | AN47: 0
B48: 5 | C48: "05_Oso m" | I48: 6 | M48: 10 | AE48: 28 | AG48: 6, 10, 28, | AK48: 6 | AL48: 10 | AM48: 28 | AN48: 1
B49: 6 | C49: "*06_Oso m" | M49: 10 | N49: 11 | O49: 12 | AG49: 10, 11, 12, | AK49: 10 | AL49: 11 | AM49: 12 | AN49: 1
B50: 7 | C50: "07_Oso m" | F50: 3 | K50: 8 | N50: 11 | AG50: 3, 8, 11, | AK50: 3 | AL50: 8 | AM50: 11 | AN50: 2
B51: 8 | C51: "08_Oso m" | L51: 9 | N51: 11 | O51: 12 | AG51: 9, 11, 12, | AK51: 9 | AL51: 11 | AM51: 12 | AN51: 1
B52: 9 | C52: "09_Oso f" | F52: 3 | J52: 7 | AE52: 28 | AG52: 3, 7, 28, | AK52: 3 | AL52: 7 | AM52: 28 | AN52: 1
B53: 10 | C53: "**10_Oso m" | D53: 1 | G53: =IF(G14<>0,G$3,"") ->  | H53: 5 | I53: 6 | AG53: 1, 5, 6, | AK53: 1 | AL53: 5 | AM53: 6 | AN53: 3
B54: 11 | C54: "11_Oso m" | D54: =IF(D15<>0,D$3,"") ->  | J54: 7 | K54: 8 | AE54: 28 | AG54: 7, 8, 28, | AK54: 7 | AL54: 8 | AM54: 28 | AN54: 2
B55: 12 | C55: "12_Oso m" | W55: 20 | Z55: 23 | AD55: 27 | AG55: 20, 23, 27, | AK55: 20 | AL55: 23 | AM55: 27 | AN55: 0
B56: 13 | C56: "13_Oso m" | L56: 9 | O56: 12 | Q56: 14 | AG56: 9, 12, 14, | AK56: 9 | AL56: 12 | AM56: 14 | AN56: 0
B57: 14 | C57: "14_Oso m" | K57: 8 | Z57: 23 | AC57: 26 | AG57: 8, 23, 26, | AK57: 8 | AL57: 23 | AM57: 26 | AN57: 0
B58: 15 | C58: "15_Oso f" | Y58: 22 | Z58: 23 | AB58: 25 | AG58: 22, 23, 25, | AK58: 22 | AL58: 23 | AM58: 25 | AN58: 0
B59: 16 | C59: "16_Oso f" | U59: 18 | W59: 20 | AD59: 27 | AG59: 18, 20, 27, | AK59: 18 | AL59: 20 | AM59: 27 | AN59: 1
B60: 17 | C60: "17_Oso f" | S60: 16 | X60: 21 | Y60: 22 | AG60: 16, 21, 22, | AK60: 16 | AL60: 21 | AM60: 22 | AN60: 0
B61: 18 | C61: "18_Oso f" | S61: 16 | Z61: 23 | AD61: 27 | AG61: 16, 23, 27, | AK61: 16 | AL61: 23 | AM61: 27 | AN61: 3
B62: 19 | C62: "19_Oso f" | T62: 17 | Z62: 23 | AD62: 27 | AG62: 17, 23, 27, | AK62: 17 | AL62: 23 | AM62: 27 | AN62: 1
B63: 20 | C63: "20_Oso f" | G63: =IF(G24<>0,G$3,"") ->  | U63: 18 | Z63: 23 | AD63: 27 | AG63: 18, 23, 27, | AK63: 18 | AL63: 23 | AM63: 27 | AN63: 0
B64: 21 | C64: "21_Oso f" | D64: =IF(D25<>0,D$3,"") ->  | U64: 18 | V64: 19 | AA64: 24 | AG64: 18, 19, 24, | AK64: 18 | AL64: 19 | AM64: 24 | AN64: 1
B65: 22 | C65: "22_Oso f" | S65: 16 | X65: 21 | Z65: 23 | AG65: 16, 21, 23, | AK65: 16 | AL65: 21 | AM65: 23 | AN65: 0
B66: 23 | C66: "23_Oso f" | H66: 5 | U66: 18 | AB66: 25 | AG66: 5, 18, 25, | AK66: 5 | AL66: 18 | AM66: 25 | AN66: 2
B67: 24 | C67: "24_Oso f" | R67: 15 | X67: 21 | AB67: 25 | AG67: 15, 21, 25, | AK67: 15 | AL67: 21 | AM67: 25 | AN67: 1
B68: 25 | C68: "25_Oso f" | S68: 16 | Z68: 23 | AD68: 27 | AG68: 16, 23, 27, | AK68: 16 | AL68: 23 | AM68: 27 | AN68: 1
B69: 26 | C69: "26_Oso f" | W69: 20 | X69: 21 | Y69: 22 | AG69: 20, 21, 22, | AK69: 20 | AL69: 21 | AM69: 22 | AN69: 0
B70: 27 | C70: "27_Oso f" | U70: 18 | V70: 19 | Z70: 23 | AG70: 18, 19, 23, | AK70: 18 | AL70: 19 | AM70: 23 | AN70: 2
B71: 28 | C71: "28_Oso f" | AG71: 0, 0, 0, | AK71: 0 | AL71: 0 | AM71: 0 | AN71: 0
AN72: =SUM($AN$44:$AN$71) -> 26

Sheet Q_4
A1: "4. Kto by najlepšie dokázal hájiť záujmy triedy?"
B2: 3
B3: 28 | D3: 1 | E3: 2 | F3: 3 | G3: 4 | H3: 5 | I3: 6 | J3: 7 | K3: 8 | L3: 9 | M3: 10 | N3: 11 | O3: 12 | P3: 13 | Q3: 14 | R3: 15 | S3: 16 | T3: 17 | U3: 18 | V3: 19 | W3: 20 | X3: 21 | Y3: 22 | Z3: 23 | AA3: 24 | AB3: 25 | AC3: 26 | AD3: 27 | AE3: 28
D4: "01_Oso m" | E4: "02_Oso m" | F4: "03_Oso m" | G4: "04_Oso m" | H4: "05_Oso m" | I4: "*06_Oso m" | J4: "07_Oso m" | K4: "08_Oso m" | L4: "09_Oso f" | M4: "**10_Oso m" | N4: "11_Oso m" | O4: "12_Oso m" | P4: "13_Oso m" | Q4: "14_Oso m" | R4: "15_Oso f" | S4: "16_Oso f" | T4: "17_Oso f" | U4: "18_Oso f" | V4: "19_Oso f" | W4: "20_Oso f" | X4: "21_Oso f" | Y4: "22_Oso f" | Z4: "23_Oso f" | AA4: "24_Oso f" | AB4: "25_Oso f" | AC4: "26_Oso f" | AD4: "27_Oso f" | AE4: "28_Oso f"
A5: → | B5: 1 | C5: "01_Oso m" | R5: 1 | Z5: 3 | AC5: 2 | AF5: 3 | AQ5: 0 | AR5: 0 | AS5: 0 | AT5: 0 | AU5: 2 | AV5: 0 | AW5: 2 | AX5: 1 | AY5: 10 | AZ5: 0 | BA5: 0 | BB5: 0 | BC5: 0 | BD5: 0 | BE5: 8 | BF5: 0 | BG5: 0 | BH5: 2 | BI5: 0 | BJ5: 3 | BK5: 0 | BL5: 0 | BM5: 25 | BN5: 0 | BO5: 12 | BP5: 8 | BQ5: 0 | BR5: 8
B6: 2 | C6: "02_Oso m" | J6: 3 | Z6: 1 | AB6: 2 | AF6: 3 | AQ6: 0 | AR6: 0 | AS6: 0 | AT6: 0 | AU6: 0 | AV6: 0 | AW6: 0 | AX6: 0 | AY6: 2 | AZ6: 0 | BA6: 0 | BB6: 0 | BC6: 0 | BD6: 0 | BE6: 4 | BF6: 0 | BG6: 0 | BH6: 1 | BI6: 0 | BJ6: 0 | BK6: 0 | BL6: 0 | BM6: 17 | BN6: 0 | BO6: 2 | BP6: 0 | BQ6: 0 | BR6: 1
B7: 3 | C7: "03_Oso m" | Z7: 1 | AC7: 2 | AE7: 3 | AF7: 3 | AQ7: 0 | AR7: 0 | AS7: 0 | AT7: 0 | AU7: 0 | AV7: 0 | AW7: 1 | AX7: 0 | AY7: 3 | AZ7: 0 | BA7: 0 | BB7: 0 | BC7: 0 | BD7: 0 | BE7: 1 | BF7: 0 | BG7: 0 | BH7: 0 | BI7: 0 | BJ7: 2 | BK7: 0 | BL7: 0 | BM7: 4 | BN7: 0 | BO7: 6 | BP7: 6 | BQ7: 0 | BR7: 4
B8: 4 | C8: "04_Oso m" | L8: 2 | R8: 1 | Z8: 3 | AF8: 3 | AQ8: 0 | AR8: 0 | AS8: 0 | AT8: 0 | AU8: 2 | AV8: 0 | AW8: 1 | AX8: 1 | AY8: 5 | AZ8: 0 | BA8: 0 | BB8: 0 | BC8: 0 | BD8: 0 | BE8: 3 | BF8: 0 | BG8: 0 | BH8: 1 | BI8: 0 | BJ8: 1 | BK8: 0 | BL8: 0 | BM8: 4 | BN8: 0 | BO8: 4 | BP8: 2 | BQ8: 0 | BR8: 3
B9: 5 | C9: "05_Oso m" | L9: 3 | Z9: 2 | AE9: 1 | AF9: 3 | AQ9: 0 | AR9: 0 | AS9: 0 | AT9: 0 | AU9: 0 | AV9: 0 | AW9: 0 | AX9: 0 | AY9: 7.142857143 | AZ9: 0 | BA9: 0 | BB9: 0 | BC9: 0 | BD9: 0 | BE9: 14.28571429 | BF9: 0 | BG9: 0 | BH9: 3.571428571 | BI9: 0 | BJ9: 0 | BK9: 0 | BL9: 0 | BM9: 60.71428571 | BN9: 0 | BO9: 7.142857143 | BP9: 0 | BQ9: 0 | BR9: 3.571428571
B10: 6 | C10: "*06_Oso m" | K10: 3 | Z10: 1 | AC10: 2 | AF10: 3 | AQ10: 0 | AR10: 0 | AS10: 0 | AT10: 0 | AU10: 0 | AV10: 0 | AW10: 3.571428571 | AX10: 0 | AY10: 10.71428571 | AZ10: 0 | BA10: 0 | BB10: 0 | BC10: 0 | BD10: 0 | BE10: 3.571428571 | BF10: 0 | BG10: 0 | BH10: 0 | BI10: 0 | BJ10: 7.142857143 | BK10: 0 | BL10: 0 | BM10: 14.28571429 | BN10: 0 | BO10: 21.42857143 | BP10: 21.42857143 | BQ10: 0 | BR10: 14.28571429
B11: 7 | C11: "07_Oso m" | R11: 3 | Z11: 1 | AC11: 2 | AF11: 3 | AQ11: 0 | AR11: 0 | AS11: 0 | AT11: 0 | AU11: 7.142857143 | AV11: 0 | AW11: 3.571428571 | AX11: 3.571428571 | AY11: 17.85714286 | AZ11: 0 | BA11: 0 | BB11: 0 | BC11: 0 | BD11: 0 | BE11: 10.71428571 | BF11: 0 | BG11: 0 | BH11: 3.571428571 | BI11: 0 | BJ11: 3.571428571 | BK11: 0 | BL11: 0 | BM11: 14.28571429 | BN11: 0 | BO11: 14.28571429 | BP11: 7.142857143 | BQ11: 0 | BR11: 10.71428571
B12: 8 | C12: "08_Oso m" | L12: 3 | Z12: 1 | AC12: 2 | AF12: 3 | AQ12: 0 | AR12: 0 | AS12: 0 | AT12: 0 | AU12: 7.142857143 | AV12: 0 | AW12: 7.142857143 | AX12: 3.571428571 | AY12: 35.71428571 | AZ12: 0 | BA12: 0 | BB12: 0 | BC12: 0 | BD12: 0 | BE12: 28.57142857 | BF12: 0 | BG12: 0 | BH12: 7.142857143 | BI12: 0 | BJ12: 10.71428571 | BK12: 0 | BL12: 0 | BM12: 89.28571429 | BN12: 0 | BO12: 42.85714286 | BP12: 28.57142857 | BQ12: 0 | BR12: 28.57142857
B13: 9 | C13: "09_Oso f" | Z13: 1 | AB13: 3 | AE13: 2 | AF13: 3
B14: 10 | C14: "**10_Oso m" | L14: 1 | Z14: 3 | AE14: 2 | AF14: 3
B15: 11 | C15: "11_Oso m" | J15: 2 | L15: 1 | AE15: 3 | AF15: 3
B16: 12 | C16: "12_Oso m" | L16: 3 | Z16: 1 | AE16: 2 | AF16: 3
B17: 13 | C17: "13_Oso m" | Z17: 1 | AB17: 2 | AE17: 3 | AF17: 3
B18: 14 | C18: "14_Oso m" | L18: 3 | Z18: 1 | AE18: 2 | AF18: 3
B19: 15 | C19: "15_Oso f" | H19: 3 | Z19: 2 | AB19: 1 | AF19: 3
B20: 16 | C20: "16_Oso f" | R20: 1 | Z20: 2 | AB20: 3 | AF20: 3
B21: 17 | C21: "17_Oso f" | R21: 1 | Z21: 3 | AC21: 2 | AF21: 3
B22: 18 | C22: "18_Oso f" | W22: 2 | Z22: 1 | AB22: 3 | AF22: 3
B23: 19 | C23: "19_Oso f" | L23: 3 | Z23: 1 | AB23: 2 | AF23: 3
B24: 20 | C24: "20_Oso f" | L24: 2 | U24: 3 | Z24: 1 | AF24: 3
B25: 21 | C25: "21_Oso f" | L25: 2 | Z25: 1 | AB25: 3 | AF25: 3
B26: 22 | C26: "22_Oso f" | Z26: 2 | AB26: 1 | AC26: 3 | AF26: 3
B27: 23 | C27: "23_Oso f" | H27: 3 | U27: 1 | W27: 2 | AF27: 3
B28: 24 | C28: "24_Oso f" | R28: 3 | Z28: 1 | AB28: 2 | AF28: 3
B29: 25 | C29: "25_Oso f" | R29: 2 | Z29: 1 | AC29: 3 | AF29: 3
B30: 26 | C30: "26_Oso f" | R30: 3 | Z30: 1 | AB30: 2 | AF30: 3
B31: 27 | C31: "27_Oso f" | W31: 3 | Z31: 1 | AB31: 2 | AF31: 3
B32: 28 | C32: "28_Oso f" | AF32: 0
C33: Suma volieb 1 + 2 + 3 spolu | D33: 0 | E33: 0 | F33: 0 | G33: 0 | H33: 2 | I33: 0 | J33: 2 | K33: 1 | L33: 10 | M33: 0 | N33: 0 | O33: 0 | P33: 0 | Q33: 0 | R33: 8 | S33: 0 | T33: 0 | U33: 2 | V33: 0 | W33: 3 | X33: 0 | Y33: 0 | Z33: 25 | AA33: 0 | AB33: 12 | AC33: 8 | AD33: 0 | AE33: 8 | AF33: =SUM($D$33:$AE$33) -> 81
C34: Suma volieb 1 | D34: =COUNTIF(D5:D32,1) -> 0 | E34: 0 | F34: 0 | G34: 0 | H34: 0 | I34: 0 | J34: 0 | K34: 0 | L34: 2 | M34: 0 | N34: 0 | O34: 0 | P34: 0 | Q34: 0 | R34: 4 | S34: 0 | T34: 0 | U34: 1 | V34: 0 | W34: 0 | X34: 0 | Y34: 0 | Z34: 17 | AA34: 0 | AB34: 2 | AC34: 0 | AD34: 0 | AE34: 1
C35: Suma volieb 2 | D35: =COUNTIF(D5:D32,2) -> 0 | E35: 0 | F35: 0 | G35: 0 | H35: 0 | I35: 0 | J35: 1 | K35: 0 | L35: 3 | M35: 0 | N35: 0 | O35: 0 | P35: 0 | Q35: 0 | R35: 1 | S35: 0 | T35: 0 | U35: 0 | V35: 0 | W35: 2 | X35: 0 | Y35: 0 | Z35: 4 | AA35: 0 | AB35: 6 | AC35: 6 | AD35: 0 | AE35: 4
C36: Suma volieb 3 | D36: =COUNTIF(D5:D32,3) -> 0 | E36: 0 | F36: 0 | G36: 0 | H36: 2 | I36: 0 | J36: 1 | K36: 1 | L36: 5 | M36: 0 | N36: 0 | O36: 0 | P36: 0 | Q36: 0 | R36: 3 | S36: 0 | T36: 0 | U36: 1 | V36: 0 | W36: 1 | X36: 0 | Y36: 0 | Z36: 4 | AA36: 0 | AB36: 4 | AC36: 2 | AD36: 0 | AE36: 3
C37: Percento Suma volieb 1 | D37: =(D34/$B$3)*100 -> 0 | E37: 0 | F37: 0 | G37: 0 | H37: 0 | I37: 0 | J37: 0 | K37: 0 | L37: 7.142857143 | M37: 0 | N37: 0 | O37: 0 | P37: 0 | Q37: 0 | R37: 14.28571429 | S37: 0 | T37: 0 | U37: 3.571428571 | V37: 0 | W37: 0 | X37: 0 | Y37: 0 | Z37: 60.71428571 | AA37: 0 | AB37: 7.142857143 | AC37: 0 | AD37: 0 | AE37: 3.571428571
C38: Percento Suma volieb 2 | D38: =(D35/$B$3)*100 -> 0 | E38: 0 | F38: 0 | G38: 0 | H38: 0 | I38: 0 | J38: 3.571428571 | K38: 0 | L38: 10.71428571 | M38: 0 | N38: 0 | O38: 0 | P38: 0 | Q38: 0 | R38: 3.571428571 | S38: 0 | T38: 0 | U38: 0 | V38: 0 | W38: 7.142857143 | X38: 0 | Y38: 0 | Z38: 14.28571429 | AA38: 0 | AB38: 21.42857143 | AC38: 21.42857143 | AD38: 0 | AE38: 14.28571429
C39: Percento Suma volieb 3 | D39: =(D36/$B$3)*100 -> 0 | E39: 0 | F39: 0 | G39: 0 | H39: 7.142857143 | I39: 0 | J39: 3.571428571 | K39: 3.571428571 | L39: 17.85714286 | M39: 0 | N39: 0 | O39: 0 | P39: 0 | Q39: 0 | R39: 10.71428571 | S39: 0 | T39: 0 | U39: 3.571428571 | V39: 0 | W39: 3.571428571 | X39: 0 | Y39: 0 | Z39: 14.28571429 | AA39: 0 | AB39: 14.28571429 | AC39: 7.142857143 | AD39: 0 | AE39: 10.71428571
C40: Percento Suma volieb 1 + 2 + 3 spolu | D40: =(D33/$B$3)*100 -> 0 | E40: 0 | F40: 0 | G40: 0 | H40: 7.142857143 | I40: 0 | J40: 7.142857143 | K40: 3.571428571 | L40: 35.71428571 | M40: 0 | N40: 0 | O40: 0 | P40: 0 | Q40: 0 | R40: 28.57142857 | S40: 0 | T40: 0 | U40: 7.142857143 | V40: 0 | W40: 10.71428571 | X40: 0 | Y40: 0 | Z40: 89.28571429 | AA40: 0 | AB40: 42.85714286 | AC40: 28.57142857 | AD40: 0 | AE40: 28.57142857
D42: 1 | E42: 2 | F42: 3 | G42: 4 | H42: 5 | I42: 6 | J42: 7 | K42: 8 | L42: 9 | M42: 10 | N42: 11 | O42: 12 | P42: 13 | Q42: 14 | R42: 15 | S42: 16 | T42: 17 | U42: 18 | V42: 19 | W42: 20 | X42: 21 | Y42: 22 | Z42: 23 | AA42: 24 | AB42: 25 | AC42: 26 | AD42: 27 | AE42: 28
D43: "01_Oso m" | E43: "02_Oso m" | F43: "03_Oso m" | G43: "04_Oso m" | H43: "05_Oso m" | I43: "*06_Oso m" | J43: "07_Oso m" | K43: "08_Oso m" | L43: "09_Oso f" | M43: "**10_Oso m" | N43: "11_Oso m" | O43: "12_Oso m" | P43: "13_Oso m" | Q43: "14_Oso m" | R43: "15_Oso f" | S43: "16_Oso f" | T43: "17_Oso f" | U43: "18_Oso f" | V43: "19_Oso f" | W43: "20_Oso f" | X43: "21_Oso f" | Y43: "22_Oso f" | Z43: "23_Oso f" | AA43: "24_Oso f" | AB43: "25_Oso f" | AC43: "26_Oso f" | AD43: "27_Oso f" | AE43: "28_Oso f"
B44: 1 | C44: "01_Oso m" | D44: =IF(D5<>0,D$3,"") ->  | R44: 15 | Z44: 23 | AC44: 26 | AG44: 15, 23, 26, | AK44: 15 | AL44: 23 | AM44: 26 | AN44: 0
B45: 2 | C45: "02_Oso m" | J45: 7 | Z45: 23 | AB45: 25 | AG45: 7, 23, 25, | AK45: 7 | AL45: 23 | AM45: 25 | AN45: 0
B46: 3 | C46: "03_Oso m" | Z46: 23 | AC46: 26 | AE46: 28 | AG46: 23, 26, 28, | AK46: 23 | AL46: 26 | AM46: 28 | AN46: 0
B47: 4 | C47: "04_Oso m" | L47: 9 | R47: 15 | Z47: 23 | AG47: 9, 15, 23, | AK47: 9 | AL47: 15 | AM47: 23 | AN47: 0
B48: 5 | C48: "05_Oso m" | L48: 9 | Z48: 23 | AE48: 28 | AG48: 9, 23, 28, | AK48: 9 | AL48: 23 | AM48: 28 | AN48: 1
B49: 6 | C49: "*06_Oso m" | K49: 8 | Z49: 23 | AC49: 26 | AG49: 8, 23, 26, | AK49: 8 | AL49: 23 | AM49: 26 | AN49: 0
B50: 7 | C50: "07_Oso m" | R50: 15 | Z50: 23 | AC50: 26 | AG50: 15, 23, 26, | AK50: 15 | AL50: 23 | AM50: 26 | AN50: 0
B51: 8 | C51: "08_Oso m" | L51: 9 | Z51: 23 | AC51: 26 | AG51: 9, 23, 26, | AK51: 9 | AL51: 23 | AM51: 26 | AN51: 0
B52: 9 | C52: "09_Oso f" | Z52: 23 | AB52: 25 | AE52: 28 | AG52: 23, 25, 28, | AK52: 23 | AL52: 25 | AM52: 28 | AN52: 0
B53: 10 | C53: "**10_Oso m" | G53: =IF(G14<>0,G$3,"") ->  | L53: 9 | Z53: 23 | AE53: 28 | AG53: 9, 23, 28, | AK53: 9 | AL53: 23 | AM53: 28 | AN53: 0
B54: 11 | C54: "11_Oso m" | D54: =IF(D15<>0,D$3,"") ->  | J54: 7 | L54: 9 | AE54: 28 | AG54: 7, 9, 28, | AK54: 7 | AL54: 9 | AM54: 28 | AN54: 0
B55: 12 | C55: "12_Oso m" | L55: 9 | Z55: 23 | AE55: 28 | AG55: 9, 23, 28, | AK55: 9 | AL55: 23 | AM55: 28 | AN55: 0
B56: 13 | C56: "13_Oso m" | Z56: 23 | AB56: 25 | AE56: 28 | AG56: 23, 25, 28, | AK56: 23 | AL56: 25 | AM56: 28 | AN56: 0
B57: 14 | C57: "14_Oso m" | L57: 9 | Z57: 23 | AE57: 28 | AG57: 9, 23, 28, | AK57: 9 | AL57: 23 | AM57: 28 | AN57: 0
B58: 15 | C58: "15_Oso f" | H58: 5 | Z58: 23 | AB58: 25 | AG58: 5, 23, 25, | AK58: 5 | AL58: 23 | AM58: 25 | AN58: 1
B59: 16 | C59: "16_Oso f" | R59: 15 | Z59: 23 | AB59: 25 | AG59: 15, 23, 25, | AK59: 15 | AL59: 23 | AM59: 25 | AN59: 0
B60: 17 | C60: "17_Oso f" | R60: 15 | Z60: 23 | AC60: 26 | AG60: 15, 23, 26, | AK60: 15 | AL60: 23 | AM60: 26 | AN60: 0
B61: 18 | C61: "18_Oso f" | W61: 20 | Z61: 23 | AB61: 25 | AG61: 20, 23, 25, | AK61: 20 | AL61: 23 | AM61: 25 | AN61: 2
B62: 19 | C62: "19_Oso f" | L62: 9 | Z62: 23 | AB62: 25 | AG62: 9, 23, 25, | AK62: 9 | AL62: 23 | AM62: 25 | AN62: 0
B63: 20 | C63: "20_Oso f" | G63: =IF(G24<>0,G$3,"") ->  | L63: 9 | U63: 18 | Z63: 23 | AG63: 9, 18, 23, | AK63: 9 | AL63: 18 | AM63: 23 | AN63: 2
B64: 21 | C64: "21_Oso f" | D64: =IF(D25<>0,D$3,"") ->  | L64: 9 | Z64: 23 | AB64: 25 | AG64: 9, 23, 25, | AK64: 9 | AL64: 23 | AM64: 25 | AN64: 0
B65: 22 | C65: "22_Oso f" | Z65: 23 | AB65: 25 | AC65: 26 | AG65: 23, 25, 26, | AK65: 23 | AL65: 25 | AM65: 26 | AN65: 0
B66: 23 | C66: "23_Oso f" | H66: 5 | U66: 18 | W66: 20 | AG66: 5, 18, 20, | AK66: 5 | AL66: 18 | AM66: 20 | AN66: 3
B67: 24 | C67: "24_Oso f" | R67: 15 | Z67: 23 | AB67: 25 | AG67: 15, 23, 25, | AK67: 15 | AL67: 23 | AM67: 25 | AN67: 0
B68: 25 | C68: "25_Oso f" | R68: 15 | Z68: 23 | AC68: 26 | AG68: 15, 23, 26, | AK68: 15 | AL68: 23 | AM68: 26 | AN68: 2
B69: 26 | C69: "26_Oso f" | R69: 15 | Z69: 23 | AB69: 25 | AG69: 15, 23, 25, | AK69: 15 | AL69: 23 | AM69: 25 | AN69: 1
B70: 27 | C70: "27_Oso f" | W70: 20 | Z70: 23 | AB70: 25 | AG70: 20, 23, 25, | AK70: 20 | AL70: 23 | AM70: 25 | AN70: 0
B71: 28 | C71: "28_Oso f" | AG71: 0, 0, 0, | AK71: 0 | AL71: 0 | AM71: 0 | AN71: 0
AN72: =SUM($AN$44:$AN$71) -> 12

Sheet Q_5
A1: "5. Komu z triedy by si zveril svoje tajomstvo?"
B2: 3
B3: 28 | D3: 1 | E3: 2 | F3: 3 | G3: 4 | H3: 5 | I3: 6 | J3: 7 | K3: 8 | L3: 9 | M3: 10 | N3: 11 | O3: 12 | P3: 13 | Q3: 14 | R3: 15 | S3: 16 | T3: 17 | U3: 18 | V3: 19 | W3: 20 | X3: 21 | Y3: 22 | Z3: 23 | AA3: 24 | AB3: 25 | AC3: 26 | AD3: 27 | AE3: 28
D4: "01_Oso m" | E4: "02_Oso m" | F4: "03_Oso m" | G4: "04_Oso m" | H4: "05_Oso m" | I4: "*06_Oso m" | J4: "07_Oso m" | K4: "08_Oso m" | L4: "09_Oso f" | M4: "**10_Oso m" | N4: "11_Oso m" | O4: "12_Oso m" | P4: "13_Oso m" | Q4: "14_Oso m" | R4: "15_Oso f" | S4: "16_Oso f" | T4: "17_Oso f" | U4: "18_Oso f" | V4: "19_Oso f" | W4: "20_Oso f" | X4: "21_Oso f" | Y4: "22_Oso f" | Z4: "23_Oso f" | AA4: "24_Oso f" | AB4: "25_Oso f" | AC4: "26_Oso f" | AD4: "27_Oso f" | AE4: "28_Oso f"
A5: → | B5: 1 | C5: "01_Oso m" | H5: 1 | J5: 3 | N5: 2 | AF5: 3 | AQ5: 2 | AR5: 0 | AS5: 1 | AT5: 1 | AU5: 2 | AV5: 1 | AW5: 5 | AX5: 3 | AY5: 3 | AZ5: 1 | BA5: 4 | BB5: 2 | BC5: 2 | BD5: 3 | BE5: 0 | BF5: 0 | BG5: 0 | BH5: 5 | BI5: 4 | BJ5: 2 | BK5: 3 | BL5: 3 | BM5: 11 | BN5: 2 | BO5: 6 | BP5: 2 | BQ5: 6 | BR5: 5
B6: 2 | C6: "02_Oso m" | J6: 2 | L6: 3 | Z6: 1 | AF6: 3 | AQ6: 1 | AR6: 0 | AS6: 0 | AT6: 0 | AU6: 1 | AV6: 0 | AW6: 1 | AX6: 1 | AY6: 1 | AZ6: 1 | BA6: 1 | BB6: 0 | BC6: 1 | BD6: 2 | BE6: 0 | BF6: 0 | BG6: 0 | BH6: 3 | BI6: 0 | BJ6: 0 | BK6: 1 | BL6: 1 | BM6: 3 | BN6: 2 | BO6: 2 | BP6: 0 | BQ6: 2 | BR6: 3
B7: 3 | C7: "03_Oso m" | J7: 3 | L7: 2 | AE7: 1 | AF7: 3 | AQ7: 1 | AR7: 0 | AS7: 1 | AT7: 1 | AU7: 1 | AV7: 0 | AW7: 1 | AX7: 1 | AY7: 1 | AZ7: 0 | BA7: 3 | BB7: 0 | BC7: 1 | BD7: 0 | BE7: 0 | BF7: 0 | BG7: 0 | BH7: 2 | BI7: 2 | BJ7: 0 | BK7: 1 | BL7: 0 | BM7: 3 | BN7: 0 | BO7: 2 | BP7: 2 | BQ7: 2 | BR7: 1
B8: 4 | C8: "04_Oso m" | N8: 2 | Z8: 3 | AE8: 1 | AF8: 3 | AQ8: 0 | AR8: 0 | AS8: 0 | AT8: 0 | AU8: 0 | AV8: 1 | AW8: 3 | AX8: 1 | AY8: 1 | AZ8: 0 | BA8: 0 | BB8: 2 | BC8: 0 | BD8: 1 | BE8: 0 | BF8: 0 | BG8: 0 | BH8: 0 | BI8: 2 | BJ8: 2 | BK8: 1 | BL8: 2 | BM8: 5 | BN8: 0 | BO8: 2 | BP8: 0 | BQ8: 2 | BR8: 1
B9: 5 | C9: "05_Oso m" | D9: 2 | M9: 1 | AE9: 3 | AF9: 3 | AQ9: 3.571428571 | AR9: 0 | AS9: 0 | AT9: 0 | AU9: 3.571428571 | AV9: 0 | AW9: 3.571428571 | AX9: 3.571428571 | AY9: 3.571428571 | AZ9: 3.571428571 | BA9: 3.571428571 | BB9: 0 | BC9: 3.571428571 | BD9: 7.142857143 | BE9: 0 | BF9: 0 | BG9: 0 | BH9: 10.71428571 | BI9: 0 | BJ9: 0 | BK9: 3.571428571 | BL9: 3.571428571 | BM9: 10.71428571 | BN9: 7.142857143 | BO9: 7.142857143 | BP9: 0 | BQ9: 7.142857143 | BR9: 10.71428571
B10: 6 | C10: "*06_Oso m" | N10: 1 | AF10: 1 | AQ10: 3.571428571 | AR10: 0 | AS10: 3.571428571 | AT10: 3.571428571 | AU10: 3.571428571 | AV10: 0 | AW10: 3.571428571 | AX10: 3.571428571 | AY10: 3.571428571 | AZ10: 0 | BA10: 10.71428571 | BB10: 0 | BC10: 3.571428571 | BD10: 0 | BE10: 0 | BF10: 0 | BG10: 0 | BH10: 7.142857143 | BI10: 7.142857143 | BJ10: 0 | BK10: 3.571428571 | BL10: 0 | BM10: 10.71428571 | BN10: 0 | BO10: 7.142857143 | BP10: 7.142857143 | BQ10: 7.142857143 | BR10: 3.571428571
B11: 7 | C11: "07_Oso m" | K11: 1 | N11: 2 | Q11: 3 | AF11: 3 | AQ11: 0 | AR11: 0 | AS11: 0 | AT11: 0 | AU11: 0 | AV11: 3.571428571 | AW11: 10.71428571 | AX11: 3.571428571 | AY11: 3.571428571 | AZ11: 0 | BA11: 0 | BB11: 7.142857143 | BC11: 0 | BD11: 3.571428571 | BE11: 0 | BF11: 0 | BG11: 0 | BH11: 0 | BI11: 7.142857143 | BJ11: 7.142857143 | BK11: 3.571428571 | BL11: 7.142857143 | BM11: 17.85714286 | BN11: 0 | BO11: 7.142857143 | BP11: 0 | BQ11: 7.142857143 | BR11: 3.571428571
B12: 8 | C12: "08_Oso m" | L12: 1 | Z12: 3 | AC12: 2 | AF12: 3 | AQ12: 7.142857143 | AR12: 0 | AS12: 3.571428571 | AT12: 3.571428571 | AU12: 7.142857143 | AV12: 3.571428571 | AW12: 17.85714286 | AX12: 10.71428571 | AY12: 10.71428571 | AZ12: 3.571428571 | BA12: 14.28571429 | BB12: 7.142857143 | BC12: 7.142857143 | BD12: 10.71428571 | BE12: 0 | BF12: 0 | BG12: 0 | BH12: 17.85714286 | BI12: 14.28571429 | BJ12: 7.142857143 | BK12: 10.71428571 | BL12: 10.71428571 | BM12: 39.28571429 | BN12: 7.142857143 | BO12: 21.42857143 | BP12: 7.142857143 | BQ12: 21.42857143 | BR12: 17.85714286
B13: 9 | C13: "09_Oso f" | F13: 2 | J13: 3 | AE13: 1 | AF13: 3
B14: 10 | C14: "**10_Oso m" | D14: 1 | H14: 2 | I14: 3 | AF14: 3
B15: 11 | C15: "11_Oso m" | J15: 1 | K15: 3 | AE15: 2 | AF15: 3
B16: 12 | C16: "12_Oso m" | P16: 2 | Q16: 1 | W16: 3 | AF16: 3
B17: 13 | C17: "13_Oso m" | G17: 2 | O17: 3 | Q17: 1 | AF17: 3
B18: 14 | C18: "14_Oso m" | K18: 2 | O18: 3 | P18: 1 | AF18: 3
B19: 15 | C19: "15_Oso f" | Y19: 3 | Z19: 1 | AB19: 2 | AF19: 3
B20: 16 | C20: "16_Oso f" | Z20: 3 | AB20: 2 | AD20: 1 | AF20: 3
B21: 17 | C21: "17_Oso f" | X21: 3 | Y21: 1 | AD21: 2 | AF21: 3
B22: 18 | C22: "18_Oso f" | V22: 2 | Z22: 3 | AD22: 1 | AF22: 3
B23: 19 | C23: "19_Oso f" | U23: 1 | Z23: 2 | AD23: 3 | AF23: 3
B24: 20 | C24: "20_Oso f" | U24: 1 | Z24: 2 | AB24: 3 | AF24: 3
B25: 21 | C25: "21_Oso f" | U25: 2 | Y25: 3 | AA25: 1 | AF25: 3
B26: 22 | C26: "22_Oso f" | Z26: 3 | AB26: 1 | AD26: 2 | AF26: 3
B27: 23 | C27: "23_Oso f" | U27: 2 | AB27: 1 | AD27: 3 | AF27: 3
B28: 24 | C28: "24_Oso f" | V28: 3 | X28: 1 | AC28: 2 | AF28: 3
B29: 25 | C29: "25_Oso f" | W29: 3 | X29: 2 | Z29: 1 | AF29: 3
B30: 26 | C30: "26_Oso f" | V30: 2 | AA30: 1 | AB30: 3 | AF30: 3
B31: 27 | C31: "27_Oso f" | U31: 1 | V31: 3 | Z31: 2 | AF31: 3
B32: 28 | C32: "28_Oso f" | AF32: 0
C33: Suma volieb 1 + 2 + 3 spolu | D33: 2 | E33: 0 | F33: 1 | G33: 1 | H33: 2 | I33: 1 | J33: 5 | K33: 3 | L33: 3 | M33: 1 | N33: 4 | O33: 2 | P33: 2 | Q33: 3 | R33: 0 | S33: 0 | T33: 0 | U33: 5 | V33: 4 | W33: 2 | X33: 3 | Y33: 3 | Z33: 11 | AA33: 2 | AB33: 6 | AC33: 2 | AD33: 6 | AE33: 5 | AF33: =SUM($D$33:$AE$33) -> 79
C34: Suma volieb 1 | D34: =COUNTIF(D5:D32,1) -> 1 | E34: 0 | F34: 0 | G34: 0 | H34: 1 | I34: 0 | J34: 1 | K34: 1 | L34: 1 | M34: 1 | N34: 1 | O34: 0 | P34: 1 | Q34: 2 | R34: 0 | S34: 0 | T34: 0 | U34: 3 | V34: 0 | W34: 0 | X34: 1 | Y34: 1 | Z34: 3 | AA34: 2 | AB34: 2 | AC34: 0 | AD34: 2 | AE34: 3
C35: Suma volieb 2 | D35: =COUNTIF(D5:D32,2) -> 1 | E35: 0 | F35: 1 | G35: 1 | H35: 1 | I35: 0 | J35: 1 | K35: 1 | L35: 1 | M35: 0 | N35: 3 | O35: 0 | P35: 1 | Q35: 0 | R35: 0 | S35: 0 | T35: 0 | U35: 2 | V35: 2 | W35: 0 | X35: 1 | Y35: 0 | Z35: 3 | AA35: 0 | AB35: 2 | AC35: 2 | AD35: 2 | AE35: 1
C36: Suma volieb 3 | D36: =COUNTIF(D5:D32,3) -> 0 | E36: 0 | F36: 0 | G36: 0 | H36: 0 | I36: 1 | J36: 3 | K36: 1 | L36: 1 | M36: 0 | N36: 0 | O36: 2 | P36: 0 | Q36: 1 | R36: 0 | S36: 0 | T36: 0 | U36: 0 | V36: 2 | W36: 2 | X36: 1 | Y36: 2 | Z36: 5 | AA36: 0 | AB36: 2 | AC36: 0 | AD36: 2 | AE36: 1
C37: Percento Suma volieb 1 | D37: =(D34/$B$3)*100 -> 3.571428571 | E37: 0 | F37: 0 | G37: 0 | H37: 3.571428571 | I37: 0 | J37: 3.571428571 | K37: 3.571428571 | L37: 3.571428571 | M37: 3.571428571 | N37: 3.571428571 | O37: 0 | P37: 3.571428571 | Q37: 7.142857143 | R37: 0 | S37: 0 | T37: 0 | U37: 10.71428571 | V37: 0 | W37: 0 | X37: 3.571428571 | Y37: 3.571428571 | Z37: 10.71428571 | AA37: 7.142857143 | AB37: 7.142857143 | AC37: 0 | AD37: 7.142857143 | AE37: 10.71428571
C38: Percento Suma volieb 2 | D38: =(D35/$B$3)*100 -> 3.571428571 | E38: 0 | F38: 3.571428571 | G38: 3.571428571 | H38: 3.571428571 | I38: 0 | J38: 3.571428571 | K38: 3.571428571 | L38: 3.571428571 | M38: 0 | N38: 10.71428571 | O38: 0 | P38: 3.571428571 | Q38: 0 | R38: 0 | S38: 0 | T38: 0 | U38: 7.142857143 | V38: 7.142857143 | W38: 0 | X38: 3.571428571 | Y38: 0 | Z38: 10.71428571 | AA38: 0 | AB38: 7.142857143 | AC38: 7.142857143 | AD38: 7.142857143 | AE38: 3.571428571
C39: Percento Suma volieb 3 | D39: =(D36/$B$3)*100 -> 0 | E39: 0 | F39: 0 | G39: 0 | H39: 0 | I39: 3.571428571 | J39: 10.71428571 | K39: 3.571428571 | L39: 3.571428571 | M39: 0 | N39: 0 | O39: 7.142857143 | P39: 0 | Q39: 3.571428571 | R39: 0 | S39: 0 | T39: 0 | U39: 0 | V39: 7.142857143 | W39: 7.142857143 | X39: 3.571428571 | Y39: 7.142857143 | Z39: 17.85714286 | AA39: 0 | AB39: 7.142857143 | AC39: 0 | AD39: 7.142857143 | AE39: 3.571428571
C40: Percento Suma volieb 1 + 2 + 3 spolu | D40: =(D33/$B$3)*100 -> 7.142857143 | E40: 0 | F40: 3.571428571 | G40: 3.571428571 | H40: 7.142857143 | I40: 3.571428571 | J40: 17.85714286 | K40: 10.71428571 | L40: 10.71428571 | M40: 3.571428571 | N40: 14.28571429 | O40: 7.142857143 | P40: 7.142857143 | Q40: 10.71428571 | R40: 0 | S40: 0 | T40: 0 | U40: 17.85714286 | V40: 14.28571429 | W40: 7.142857143 | X40: 10.71428571 | Y40: 10.71428571 | Z40: 39.28571429 | AA40: 7.142857143 | AB40: 21.42857143 | AC40: 7.142857143 | AD40: 21.42857143 | AE40: 17.85714286
D42: 1 | E42: 2 | F42: 3 | G42: 4 | H42: 5 | I42: 6 | J42: 7 | K42: 8 | L42: 9 | M42: 10 | N42: 11 | O42: 12 | P42: 13 | Q42: 14 | R42: 15 | S42: 16 | T42: 17 | U42: 18 | V42: 19 | W42: 20 | X42: 21 | Y42: 22 | Z42: 23 | AA42: 24 | AB42: 25 | AC42: 26 | AD42: 27 | AE42: 28
D43: "01_Oso m" | E43: "02_Oso m" | F43: "03_Oso m" | G43: "04_Oso m" | H43: "05_Oso m" | I43: "*06_Oso m" | J43: "07_Oso m" | K43: "08_Oso m" | L43: "09_Oso f" | M43: "**10_Oso m" | N43: "11_Oso m" | O43: "12_Oso m" | P43: "13_Oso m" | Q43: "14_Oso m" | R43: "15_Oso f" | S43: "16_Oso f" | T43: "17_Oso f" | U43: "18_Oso f" | V43: "19_Oso f" | W43: "20_Oso f" | X43: "21_Oso f" | Y43: "22_Oso f" | Z43: "23_Oso f" | AA43: "24_Oso f" | AB43: "25_Oso f" | AC43: "26_Oso f" | AD43: "27_Oso f" | AE43: "28_Oso f"
B44: 1 | C44: "01_Oso m" | D44: =IF(D5<>0,D$3,"") ->  | H44: 5 | J44: 7 | N44: 11 | AG44: 5, 7, 11, | AK44: 5 | AL44: 7 | AM44: 11 | AN44: 1
B45: 2 | C45: "02_Oso m" | J45: 7 | L45: 9 | Z45: 23 | AG45: 7, 9, 23, | AK45: 7 | AL45: 9 | AM45: 23 | AN45: 0
B46: 3 | C46: "03_Oso m" | J46: 7 | L46: 9 | AE46: 28 | AG46: 7, 9, 28, | AK46: 7 | AL46: 9 | AM46: 28 | AN46: 1
B47: 4 | C47: "04_Oso m" | N47: 11 | Z47: 23 | AE47: 28 | AG47: 11, 23, 28, | AK47: 11 | AL47: 23 | AM47: 28 | AN47: 0
B48: 5 | C48: "05_Oso m" | D48: 1 | M48: 10 | AE48: 28 | AG48: 1, 10, 28, | AK48: 1 | AL48: 10 | AM48: 28 | AN48: 2
B49: 6 | C49: "*06_Oso m" | N49: 11 | AG49: 11, 0, 0, | AK49: 11 | AL49: 0 | AM49: 0 | AN49: 0
B50: 7 | C50: "07_Oso m" | K50: 8 | N50: 11 | Q50: 14 | AG50: 8, 11, 14, | AK50: 8 | AL50: 11 | AM50: 14 | AN50: 1
B51: 8 | C51: "08_Oso m" | L51: 9 | Z51: 23 | AC51: 26 | AG51: 9, 23, 26, | AK51: 9 | AL51: 23 | AM51: 26 | AN51: 0
B52: 9 | C52: "09_Oso f" | F52: 3 | J52: 7 | AE52: 28 | AG52: 3, 7, 28, | AK52: 3 | AL52: 7 | AM52: 28 | AN52: 1
B53: 10 | C53: "**10_Oso m" | D53: 1 | G53: =IF(G14<>0,G$3,"") ->  | H53: 5 | I53: 6 | AG53: 1, 5, 6, | AK53: 1 | AL53: 5 | AM53: 6 | AN53: 1
B54: 11 | C54: "11_Oso m" | D54: =IF(D15<>0,D$3,"") ->  | J54: 7 | K54: 8 | AE54: 28 | AG54: 7, 8, 28, | AK54: 7 | AL54: 8 | AM54: 28 | AN54: 1
B55: 12 | C55: "12_Oso m" | P55: 13 | Q55: 14 | W55: 20 | AG55: 13, 14, 20, | AK55: 13 | AL55: 14 | AM55: 20 | AN55: 2
B56: 13 | C56: "13_Oso m" | G56: 4 | O56: 12 | Q56: 14 | AG56: 4, 12, 14, | AK56: 4 | AL56: 12 | AM56: 14 | AN56: 2
B57: 14 | C57: "14_Oso m" | K57: 8 | O57: 12 | P57: 13 | AG57: 8, 12, 13, | AK57: 8 | AL57: 12 | AM57: 13 | AN57: 2
B58: 15 | C58: "15_Oso f" | Y58: 22 | Z58: 23 | AB58: 25 | AG58: 22, 23, 25, | AK58: 22 | AL58: 23 | AM58: 25 | AN58: 0
B59: 16 | C59: "16_Oso f" | Z59: 23 | AB59: 25 | AD59: 27 | AG59: 23, 25, 27, | AK59: 23 | AL59: 25 | AM59: 27 | AN59: 0
B60: 17 | C60: "17_Oso f" | X60: 21 | Y60: 22 | AD60: 27 | AG60: 21, 22, 27, | AK60: 21 | AL60: 22 | AM60: 27 | AN60: 0
B61: 18 | C61: "18_Oso f" | V61: 19 | Z61: 23 | AD61: 27 | AG61: 19, 23, 27, | AK61: 19 | AL61: 23 | AM61: 27 | AN61: 3
B62: 19 | C62: "19_Oso f" | U62: 18 | Z62: 23 | AD62: 27 | AG62: 18, 23, 27, | AK62: 18 | AL62: 23 | AM62: 27 | AN62: 2
B63: 20 | C63: "20_Oso f" | G63: =IF(G24<>0,G$3,"") ->  | U63: 18 | Z63: 23 | AB63: 25 | AG63: 18, 23, 25, | AK63: 18 | AL63: 23 | AM63: 25 | AN63: 1
B64: 21 | C64: "21_Oso f" | D64: =IF(D25<>0,D$3,"") ->  | U64: 18 | Y64: 22 | AA64: 24 | AG64: 18, 22, 24, | AK64: 18 | AL64: 22 | AM64: 24 | AN64: 1
B65: 22 | C65: "22_Oso f" | Z65: 23 | AB65: 25 | AD65: 27 | AG65: 23, 25, 27, | AK65: 23 | AL65: 25 | AM65: 27 | AN65: 0
B66: 23 | C66: "23_Oso f" | U66: 18 | AB66: 25 | AD66: 27 | AG66: 18, 25, 27, | AK66: 18 | AL66: 25 | AM66: 27 | AN66: 3
B67: 24 | C67: "24_Oso f" | V67: 19 | X67: 21 | AC67: 26 | AG67: 19, 21, 26, | AK67: 19 | AL67: 21 | AM67: 26 | AN67: 2
B68: 25 | C68: "25_Oso f" | W68: 20 | X68: 21 | Z68: 23 | AG68: 20, 21, 23, | AK68: 20 | AL68: 21 | AM68: 23 | AN68: 2
B69: 26 | C69: "26_Oso f" | V69: 19 | AA69: 24 | AB69: 25 | AG69: 19, 24, 25, | AK69: 19 | AL69: 24 | AM69: 25 | AN69: 1
B70: 27 | C70: "27_Oso f" | U70: 18 | V70: 19 | Z70: 23 | AG70: 18, 19, 23, | AK70: 18 | AL70: 19 | AM70: 23 | AN70: 3
B71: 28 | C71: "28_Oso f" | AG71: 0, 0, 0, | AK71: 0 | AL71: 0 | AM71: 0 | AN71: 0
AN72: =SUM($AN$44:$AN$71) -> 32

Sheet Q_6
A1: "6. S kým z triedy by si nechcel sedieť v jednej lavici?"
B2: 3
B3: 28 | D3: 1 | E3: 2 | F3: 3 | G3: 4 | H3: 5 | I3: 6 | J3: 7 | K3: 8 | L3: 9 | M3: 10 | N3: 11 | O3: 12 | P3: 13 | Q3: 14 | R3: 15 | S3: 16 | T3: 17 | U3: 18 | V3: 19 | W3: 20 | X3: 21 | Y3: 22 | Z3: 23 | AA3: 24 | AB3: 25 | AC3: 26 | AD3: 27 | AE3: 28
D4: "01_Oso m" | E4: "02_Oso m" | F4: "03_Oso m" | G4: "04_Oso m" | H4: "05_Oso m" | I4: "*06_Oso m" | J4: "07_Oso m" | K4: "08_Oso m" | L4: "09_Oso f" | M4: "**10_Oso m" | N4: "11_Oso m" | O4: "12_Oso m" | P4: "13_Oso m" | Q4: "14_Oso m" | R4: "15_Oso f" | S4: "16_Oso f" | T4: "17_Oso f" | U4: "18_Oso f" | V4: "19_Oso f" | W4: "20_Oso f" | X4: "21_Oso f" | Y4: "22_Oso f" | Z4: "23_Oso f" | AA4: "24_Oso f" | AB4: "25_Oso f" | AC4: "26_Oso f" | AD4: "27_Oso f" | AE4: "28_Oso f"
A5: → | B5: 1 | C5: "01_Oso m" | S5: 2 | T5: 1 | Z5: 3 | AF5: 3 | AQ5: 0 | AR5: 12 | AS5: 0 | AT5: 6 | AU5: 2 | AV5: 19 | AW5: 0 | AX5: 1 | AY5: 0 | AZ5: 20 | BA5: 0 | BB5: 3 | BC5: 0 | BD5: 0 | BE5: 1 | BF5: 2 | BG5: 2 | BH5: 1 | BI5: 0 | BJ5: 1 | BK5: 2 | BL5: 2 | BM5: 2 | BN5: 2 | BO5: 1 | BP5: 0 | BQ5: 1 | BR5: 0
B6: 2 | C6: "02_Oso m" | G6: 3 | I6: 2 | M6: 1 | AF6: 3 | AQ6: 0 | AR6: 5 | AS6: 0 | AT6: 0 | AU6: 0 | AV6: 9 | AW6: 0 | AX6: 0 | AY6: 0 | AZ6: 5 | BA6: 0 | BB6: 0 | BC6: 0 | BD6: 0 | BE6: 0 | BF6: 1 | BG6: 2 | BH6: 0 | BI6: 0 | BJ6: 0 | BK6: 1 | BL6: 1 | BM6: 1 | BN6: 1 | BO6: 0 | BP6: 0 | BQ6: 1 | BR6: 0
B7: 3 | C7: "03_Oso m" | H7: 2 | I7: 3 | M7: 1 | AF7: 3 | AQ7: 0 | AR7: 1 | AS7: 0 | AT7: 3 | AU7: 2 | AV7: 7 | AW7: 0 | AX7: 0 | AY7: 0 | AZ7: 9 | BA7: 0 | BB7: 1 | BC7: 0 | BD7: 0 | BE7: 0 | BF7: 1 | BG7: 0 | BH7: 0 | BI7: 0 | BJ7: 1 | BK7: 1 | BL7: 0 | BM7: 0 | BN7: 0 | BO7: 1 | BP7: 0 | BQ7: 0 | BR7: 0
B8: 4 | C8: "04_Oso m" | M8: 2 | X8: 1 | AA8: 3 | AF8: 3 | AQ8: 0 | AR8: 6 | AS8: 0 | AT8: 3 | AU8: 0 | AV8: 3 | AW8: 0 | AX8: 1 | AY8: 0 | AZ8: 6 | BA8: 0 | BB8: 2 | BC8: 0 | BD8: 0 | BE8: 1 | BF8: 0 | BG8: 0 | BH8: 1 | BI8: 0 | BJ8: 0 | BK8: 0 | BL8: 1 | BM8: 1 | BN8: 1 | BO8: 0 | BP8: 0 | BQ8: 0 | BR8: 0
B9: 5 | C9: "05_Oso m" | G9: 2 | O9: 3 | AD9: 1 | AF9: 3 | AQ9: 0 | AR9: 17.85714286 | AS9: 0 | AT9: 0 | AU9: 0 | AV9: 32.14285714 | AW9: 0 | AX9: 0 | AY9: 0 | AZ9: 17.85714286 | BA9: 0 | BB9: 0 | BC9: 0 | BD9: 0 | BE9: 0 | BF9: 3.571428571 | BG9: 7.142857143 | BH9: 0 | BI9: 0 | BJ9: 0 | BK9: 3.571428571 | BL9: 3.571428571 | BM9: 3.571428571 | BN9: 3.571428571 | BO9: 0 | BP9: 0 | BQ9: 3.571428571 | BR9: 0
B10: 6 | C10: "*06_Oso m" | T10: 1 | W10: 2 | Y10: 3 | AF10: 3 | AQ10: 0 | AR10: 3.571428571 | AS10: 0 | AT10: 10.71428571 | AU10: 7.142857143 | AV10: 25 | AW10: 0 | AX10: 0 | AY10: 0 | AZ10: 32.14285714 | BA10: 0 | BB10: 3.571428571 | BC10: 0 | BD10: 0 | BE10: 0 | BF10: 3.571428571 | BG10: 0 | BH10: 0 | BI10: 0 | BJ10: 3.571428571 | BK10: 3.571428571 | BL10: 0 | BM10: 0 | BN10: 0 | BO10: 3.571428571 | BP10: 0 | BQ10: 0 | BR10: 0
B11: 7 | C11: "07_Oso m" | E11: 3 | I11: 1 | M11: 2 | AF11: 3 | AQ11: 0 | AR11: 21.42857143 | AS11: 0 | AT11: 10.71428571 | AU11: 0 | AV11: 10.71428571 | AW11: 0 | AX11: 3.571428571 | AY11: 0 | AZ11: 21.42857143 | BA11: 0 | BB11: 7.142857143 | BC11: 0 | BD11: 0 | BE11: 3.571428571 | BF11: 0 | BG11: 0 | BH11: 3.571428571 | BI11: 0 | BJ11: 0 | BK11: 0 | BL11: 3.571428571 | BM11: 3.571428571 | BN11: 3.571428571 | BO11: 0 | BP11: 0 | BQ11: 0 | BR11: 0
B12: 8 | C12: "08_Oso m" | I12: 2 | M12: 3 | AA12: 1 | AF12: 3 | AQ12: 0 | AR12: 42.85714286 | AS12: 0 | AT12: 21.42857143 | AU12: 7.142857143 | AV12: 67.85714286 | AW12: 0 | AX12: 3.571428571 | AY12: 0 | AZ12: 71.42857143 | BA12: 0 | BB12: 10.71428571 | BC12: 0 | BD12: 0 | BE12: 3.571428571 | BF12: 7.142857143 | BG12: 7.142857143 | BH12: 3.571428571 | BI12: 0 | BJ12: 3.571428571 | BK12: 7.142857143 | BL12: 7.142857143 | BM12: 7.142857143 | BN12: 7.142857143 | BO12: 3.571428571 | BP12: 0 | BQ12: 3.571428571 | BR12: 0
B13: 9 | C13: "09_Oso f" | R13: 3 | Z13: 1 | AB13: 2 | AF13: 3
B14: 10 | C14: "**10_Oso m" | G14: 2 | S14: 1 | U14: 3 | AF14: 3
B15: 11 | C15: "11_Oso m" | E15: 1 | G15: 2 | M15: 3 | AF15: 3
B16: 12 | C16: "12_Oso m" | E16: 3 | H16: 2 | Y16: 1 | AF16: 3
B17: 13 | C17: "13_Oso m" | I17: 1 | X17: 2 | AF17: 2
B18: 14 | C18: "14_Oso m" | E18: 1 | I18: 3 | M18: 2 | AF18: 3
B19: 15 | C19: "15_Oso f" | G19: 3 | I19: 1 | M19: 2 | AF19: 3
B20: 16 | C20: "16_Oso f" | E20: 3 | I20: 2 | M20: 1 | AF20: 3
B21: 17 | C21: "17_Oso f" | I21: 1 | K21: 3 | M21: 2 | AF21: 3
B22: 18 | C22: "18_Oso f" | E22: 3 | I22: 2 | M22: 1 | AF22: 3
B23: 19 | C23: "19_Oso f" | E23: 1 | I23: 2 | M23: 3 | AF23: 3
B24: 20 | C24: "20_Oso f" | G24: 3 | I24: 1 | M24: 2 | AF24: 3
B25: 21 | C25: "21_Oso f" | E25: 1 | I25: 3 | M25: 2 | AF25: 3
B26: 22 | C26: "22_Oso f" | E26: 3 | I26: 2 | M26: 1 | AF26: 3
B27: 23 | C27: "23_Oso f" | E27: 2 | I27: 1 | M27: 3 | AF27: 3
B28: 24 | C28: "24_Oso f" | I28: 1 | M28: 3 | O28: 2 | AF28: 3
B29: 25 | C29: "25_Oso f" | E29: 3 | I29: 1 | M29: 2 | AF29: 3
B30: 26 | C30: "26_Oso f" | E30: 1 | I30: 2 | M30: 3 | AF30: 3
B31: 27 | C31: "27_Oso f" | I31: 1 | M31: 2 | O31: 3 | AF31: 3
B32: 28 | C32: "28_Oso f" | AF32: 0
C33: Suma volieb 1 + 2 + 3 spolu | D33: 0 | E33: 12 | F33: 0 | G33: 6 | H33: 2 | I33: 19 | J33: 0 | K33: 1 | L33: 0 | M33: 20 | N33: 0 | O33: 3 | P33: 0 | Q33: 0 | R33: 1 | S33: 2 | T33: 2 | U33: 1 | V33: 0 | W33: 1 | X33: 2 | Y33: 2 | Z33: 2 | AA33: 2 | AB33: 1 | AC33: 0 | AD33: 1 | AE33: 0 | AF33: =SUM($D$33:$AE$33) -> 80
C34: Suma volieb 1 | D34: =COUNTIF(D5:D32,1) -> 0 | E34: 5 | F34: 0 | G34: 0 | H34: 0 | I34: 9 | J34: 0 | K34: 0 | L34: 0 | M34: 5 | N34: 0 | O34: 0 | P34: 0 | Q34: 0 | R34: 0 | S34: 1 | T34: 2 | U34: 0 | V34: 0 | W34: 0 | X34: 1 | Y34: 1 | Z34: 1 | AA34: 1 | AB34: 0 | AC34: 0 | AD34: 1 | AE34: 0
C35: Suma volieb 2 | D35: =COUNTIF(D5:D32,2) -> 0 | E35: 1 | F35: 0 | G35: 3 | H35: 2 | I35: 7 | J35: 0 | K35: 0 | L35: 0 | M35: 9 | N35: 0 | O35: 1 | P35: 0 | Q35: 0 | R35: 0 | S35: 1 | T35: 0 | U35: 0 | V35: 0 | W35: 1 | X35: 1 | Y35: 0 | Z35: 0 | AA35: 0 | AB35: 1 | AC35: 0 | AD35: 0 | AE35: 0
C36: Suma volieb 3 | D36: =COUNTIF(D5:D32,3) -> 0 | E36: 6 | F36: 0 | G36: 3 | H36: 0 | I36: 3 | J36: 0 | K36: 1 | L36: 0 | M36: 6 | N36: 0 | O36: 2 | P36: 0 | Q36: 0 | R36: 1 | S36: 0 | T36: 0 | U36: 1 | V36: 0 | W36: 0 | X36: 0 | Y36: 1 | Z36: 1 | AA36: 1 | AB36: 0 | AC36: 0 | AD36: 0 | AE36: 0
C37: Percento Suma volieb 1 | D37: =(D34/$B$3)*100 -> 0 | E37: 17.85714286 | F37: 0 | G37: 0 | H37: 0 | I37: 32.14285714 | J37: 0 | K37: 0 | L37: 0 | M37: 17.85714286 | N37: 0 | O37: 0 | P37: 0 | Q37: 0 | R37: 0 | S37: 3.571428571 | T37: 7.142857143 | U37: 0 | V37: 0 | W37: 0 | X37: 3.571428571 | Y37: 3.571428571 | Z37: 3.571428571 | AA37: 3.571428571 | AB37: 0 | AC37: 0 | AD37: 3.571428571 | AE37: 0
C38: Percento Suma volieb 2 | D38: =(D35/$B$3)*100 -> 0 | E38: 3.571428571 | F38: 0 | G38: 10.71428571 | H38: 7.142857143 | I38: 25 | J38: 0 | K38: 0 | L38: 0 | M38: 32.14285714 | N38: 0 | O38: 3.571428571 | P38: 0 | Q38: 0 | R38: 0 | S38: 3.571428571 | T38: 0 | U38: 0 | V38: 0 | W38: 3.571428571 | X38: 3.571428571 | Y38: 0 | Z38: 0 | AA38: 0 | AB38: 3.571428571 | AC38: 0 | AD38: 0 | AE38: 0
C39: Percento Suma volieb 3 | D39: =(D36/$B$3)*100 -> 0 | E39: 21.42857143 | F39: 0 | G39: 10.71428571 | H39: 0 | I39: 10.71428571 | J39: 0 | K39: 3.571428571 | L39: 0 | M39: 21.42857143 | N39: 0 | O39: 7.142857143 | P39: 0 | Q39: 0 | R39: 3.571428571 | S39: 0 | T39: 0 | U39: 3.571428571 | V39: 0 | W39: 0 | X39: 0 | Y39: 3.571428571 | Z39: 3.571428571 | AA39: 3.571428571 | AB39: 0 | AC39: 0 | AD39: 0 | AE39: 0
C40: Percento Suma volieb 1 + 2 + 3 spolu | D40: =(D33/$B$3)*100 -> 0 | E40: 42.85714286 | F40: 0 | G40: 21.42857143 | H40: 7.142857143 | I40: 67.85714286 | J40: 0 | K40: 3.571428571 | L40: 0 | M40: 71.42857143 | N40: 0 | O40: 10.71428571 | P40: 0 | Q40: 0 | R40: 3.571428571 | S40: 7.142857143 | T40: 7.142857143 | U40: 3.571428571 | V40: 0 | W40: 3.571428571 | X40: 7.142857143 | Y40: 7.142857143 | Z40: 7.142857143 | AA40: 7.142857143 | AB40: 3.571428571 | AC40: 0 | AD40: 3.571428571 | AE40: 0
D42: 1 | E42: 2 | F42: 3 | G42: 4 | H42: 5 | I42: 6 | J42: 7 | K42: 8 | L42: 9 | M42: 10 | N42: 11 | O42: 12 | P42: 13 | Q42: 14 | R42: 15 | S42: 16 | T42: 17 | U42: 18 | V42: 19 | W42: 20 | X42: 21 | Y42: 22 | Z42: 23 | AA42: 24 | AB42: 25 | AC42: 26 | AD42: 27 | AE42: 28
D43: "01_Oso m" | E43: "02_Oso m" | F43: "03_Oso m" | G43: "04_Oso m" | H43: "05_Oso m" | I43: "*06_Oso m" | J43: "07_Oso m" | K43: "08_Oso m" | L43: "09_Oso f" | M43: "**10_Oso m" | N43: "11_Oso m" | O43: "12_Oso m" | P43: "13_Oso m" | Q43: "14_Oso m" | R43: "15_Oso f" | S43: "16_Oso f" | T43: "17_Oso f" | U43: "18_Oso f" | V43: "19_Oso f" | W43: "20_Oso f" | X43: "21_Oso f" | Y43: "22_Oso f" | Z43: "23_Oso f" | AA43: "24_Oso f" | AB43: "25_Oso f" | AC43: "26_Oso f" | AD43: "27_Oso f" | AE43: "28_Oso f"
B44: 1 | C44: "01_Oso m" | D44: =IF(D5<>0,D$3,"") ->  | S44: 16 | T44: 17 | Z44: 23 | AG44: 16, 17, 23, | AK44: 16 | AL44: 17 | AM44: 23 | AN44: 0
B45: 2 | C45: "02_Oso m" | G45: 4 | I45: 6 | M45: 10 | AG45: 4, 6, 10, | AK45: 4 | AL45: 6 | AM45: 10 | AN45: 0
B46: 3 | C46: "03_Oso m" | H46: 5 | I46: 6 | M46: 10 | AG46: 5, 6, 10, | AK46: 5 | AL46: 6 | AM46: 10 | AN46: 0
B47: 4 | C47: "04_Oso m" | M47: 10 | X47: 21 | AA47: 24 | AG47: 10, 21, 24, | AK47: 10 | AL47: 21 | AM47: 24 | AN47: 1
B48: 5 | C48: "05_Oso m" | G48: 4 | O48: 12 | AD48: 27 | AG48: 4, 12, 27, | AK48: 4 | AL48: 12 | AM48: 27 | AN48: 1
B49: 6 | C49: "*06_Oso m" | T49: 17 | W49: 20 | Y49: 22 | AG49: 17, 20, 22, | AK49: 17 | AL49: 20 | AM49: 22 | AN49: 3
B50: 7 | C50: "07_Oso m" | E50: 2 | I50: 6 | M50: 10 | AG50: 2, 6, 10, | AK50: 2 | AL50: 6 | AM50: 10 | AN50: 0
B51: 8 | C51: "08_Oso m" | I51: 6 | M51: 10 | AA51: 24 | AG51: 6, 10, 24, | AK51: 6 | AL51: 10 | AM51: 24 | AN51: 0
B52: 9 | C52: "09_Oso f" | R52: 15 | Z52: 23 | AB52: 25 | AG52: 15, 23, 25, | AK52: 15 | AL52: 23 | AM52: 25 | AN52: 0
B53: 10 | C53: "**10_Oso m" | G53: =IF(G14<>0,G$3,"") -> 4 | S53: 16 | U53: 18 | AG53: 4, 16, 18, | AK53: 4 | AL53: 16 | AM53: 18 | AN53: 3
B54: 11 | C54: "11_Oso m" | D54: =IF(D15<>0,D$3,"") ->  | E54: 2 | G54: 4 | M54: 10 | AG54: 2, 4, 10, | AK54: 2 | AL54: 4 | AM54: 10 | AN54: 0
B55: 12 | C55: "12_Oso m" | E55: 2 | H55: 5 | Y55: 22 | AG55: 2, 5, 22, | AK55: 2 | AL55: 5 | AM55: 22 | AN55: 1
B56: 13 | C56: "13_Oso m" | I56: 6 | X56: 21 | AG56: 6, 21, 0, | AK56: 6 | AL56: 21 | AM56: 0 | AN56: 0
B57: 14 | C57: "14_Oso m" | E57: 2 | I57: 6 | M57: 10 | AG57: 2, 6, 10, | AK57: 2 | AL57: 6 | AM57: 10 | AN57: 0
B58: 15 | C58: "15_Oso f" | G58: 4 | I58: 6 | M58: 10 | AG58: 4, 6, 10, | AK58: 4 | AL58: 6 | AM58: 10 | AN58: 0
B59: 16 | C59: "16_Oso f" | E59: 2 | I59: 6 | M59: 10 | AG59: 2, 6, 10, | AK59: 2 | AL59: 6 | AM59: 10 | AN59: 1
B60: 17 | C60: "17_Oso f" | I60: 6 | K60: 8 | M60: 10 | AG60: 6, 8, 10, | AK60: 6 | AL60: 8 | AM60: 10 | AN60: 1
B61: 18 | C61: "18_Oso f" | E61: 2 | I61: 6 | M61: 10 | AG61: 2, 6, 10, | AK61: 2 | AL61: 6 | AM61: 10 | AN61: 1
B62: 19 | C62: "19_Oso f" | E62: 2 | I62: 6 | M62: 10 | AG62: 2, 6, 10, | AK62: 2 | AL62: 6 | AM62: 10 | AN62: 0
B63: 20 | C63: "20_Oso f" | G63: =IF(G24<>0,G$3,"") -> 4 | I63: 6 | M63: 10 | AG63: 4, 6, 10, | AK63: 4 | AL63: 6 | AM63: 10 | AN63: 1
B64: 21 | C64: "21_Oso f" | D64: =IF(D25<>0,D$3,"") ->  | E64: 2 | I64: 6 | M64: 10 | AG64: 2, 6, 10, | AK64: 2 | AL64: 6 | AM64: 10 | AN64: 0
B65: 22 | C65: "22_Oso f" | E65: 2 | I65: 6 | M65: 10 | AG65: 2, 6, 10, | AK65: 2 | AL65: 6 | AM65: 10 | AN65: 1
B66: 23 | C66: "23_Oso f" | E66: 2 | I66: 6 | M66: 10 | AG66: 2, 6, 10, | AK66: 2 | AL66: 6 | AM66: 10 | AN66: 0
B67: 24 | C67: "24_Oso f" | I67: 6 | M67: 10 | O67: 12 | AG67: 6, 10, 12, | AK67: 6 | AL67: 10 | AM67: 12 | AN67: 0
B68: 25 | C68: "25_Oso f" | E68: 2 | I68: 6 | M68: 10 | AG68: 2, 6, 10, | AK68: 2 | AL68: 6 | AM68: 10 | AN68: 0
B69: 26 | C69: "26_Oso f" | E69: 2 | I69: 6 | M69: 10 | AG69: 2, 6, 10, | AK69: 2 | AL69: 6 | AM69: 10 | AN69: 0
B70: 27 | C70: "27_Oso f" | I70: 6 | M70: 10 | O70: 12 | AG70: 6, 10, 12, | AK70: 6 | AL70: 10 | AM70: 12 | AN70: 0
B71: 28 | C71: "28_Oso f" | AG71: 0, 0, 0, | AK71: 0 | AL71: 0 | AM71: 0 | AN71: 0
AN72: =SUM($AN$44:$AN$71) -> 14

Sheet Q_7
A1: "7. S kým z triedy by si v žiadnom prípade nechcel písavať úlohy a učievať sa?"
B2: 3
B3: 28 | D3: 1 | E3: 2 | F3: 3 | G3: 4 | H3: 5 | I3: 6 | J3: 7 | K3: 8 | L3: 9 | M3: 10 | N3: 11 | O3: 12 | P3: 13 | Q3: 14 | R3: 15 | S3: 16 | T3: 17 | U3: 18 | V3: 19 | W3: 20 | X3: 21 | Y3: 22 | Z3: 23 | AA3: 24 | AB3: 25 | AC3: 26 | AD3: 27 | AE3: 28
D4: "01_Oso m" | E4: "02_Oso m" | F4: "03_Oso m" | G4: "04_Oso m" | H4: "05_Oso m" | I4: "*06_Oso m" | J4: "07_Oso m" | K4: "08_Oso m" | L4: "09_Oso f" | M4: "**10_Oso m" | N4: "11_Oso m" | O4: "12_Oso m" | P4: "13_Oso m" | Q4: "14_Oso m" | R4: "15_Oso f" | S4: "16_Oso f" | T4: "17_Oso f" | U4: "18_Oso f" | V4: "19_Oso f" | W4: "20_Oso f" | X4: "21_Oso f" | Y4: "22_Oso f" | Z4: "23_Oso f" | AA4: "24_Oso f" | AB4: "25_Oso f" | AC4: "26_Oso f" | AD4: "27_Oso f" | AE4: "28_Oso f"
A5: → | B5: 1 | C5: "01_Oso m" | T5: 1 | Z5: 3 | AD5: 2 | AF5: 3 | AQ5: 1 | AR5: 13 | AS5: 0 | AT5: 10 | AU5: 3 | AV5: 20 | AW5: 0 | AX5: 1 | AY5: 0 | AZ5: 18 | BA5: 0 | BB5: 4 | BC5: 0 | BD5: 0 | BE5: 1 | BF5: 1 | BG5: 3 | BH5: 0 | BI5: 0 | BJ5: 1 | BK5: 0 | BL5: 0 | BM5: 2 | BN5: 1 | BO5: 0 | BP5: 0 | BQ5: 2 | BR5: 0
B6: 2 | C6: "02_Oso m" | G6: 3 | I6: 2 | M6: 1 | AF6: 3 | AQ6: 0 | AR6: 7 | AS6: 0 | AT6: 1 | AU6: 1 | AV6: 11 | AW6: 0 | AX6: 0 | AY6: 0 | AZ6: 4 | BA6: 0 | BB6: 0 | BC6: 0 | BD6: 0 | BE6: 0 | BF6: 0 | BG6: 1 | BH6: 0 | BI6: 0 | BJ6: 0 | BK6: 0 | BL6: 0 | BM6: 1 | BN6: 1 | BO6: 0 | BP6: 0 | BQ6: 0 | BR6: 0
B7: 3 | C7: "03_Oso m" | G7: 2 | I7: 3 | M7: 1 | AF7: 3 | AQ7: 0 | AR7: 1 | AS7: 0 | AT7: 5 | AU7: 1 | AV7: 6 | AW7: 0 | AX7: 1 | AY7: 0 | AZ7: 8 | BA7: 0 | BB7: 2 | BC7: 0 | BD7: 0 | BE7: 1 | BF7: 1 | BG7: 0 | BH7: 0 | BI7: 0 | BJ7: 0 | BK7: 0 | BL7: 0 | BM7: 0 | BN7: 0 | BO7: 0 | BP7: 0 | BQ7: 1 | BR7: 0
B8: 4 | C8: "04_Oso m" | E8: 1 | I8: 3 | M8: 2 | AF8: 3 | AQ8: 1 | AR8: 5 | AS8: 0 | AT8: 4 | AU8: 1 | AV8: 3 | AW8: 0 | AX8: 0 | AY8: 0 | AZ8: 6 | BA8: 0 | BB8: 2 | BC8: 0 | BD8: 0 | BE8: 0 | BF8: 0 | BG8: 2 | BH8: 0 | BI8: 0 | BJ8: 1 | BK8: 0 | BL8: 0 | BM8: 1 | BN8: 0 | BO8: 0 | BP8: 0 | BQ8: 1 | BR8: 0
B9: 5 | C9: "05_Oso m" | G9: 3 | I9: 1 | M9: 2 | AF9: 3 | AQ9: 0 | AR9: 25 | AS9: 0 | AT9: 3.571428571 | AU9: 3.571428571 | AV9: 39.28571429 | AW9: 0 | AX9: 0 | AY9: 0 | AZ9: 14.28571429 | BA9: 0 | BB9: 0 | BC9: 0 | BD9: 0 | BE9: 0 | BF9: 0 | BG9: 3.571428571 | BH9: 0 | BI9: 0 | BJ9: 0 | BK9: 0 | BL9: 0 | BM9: 3.571428571 | BN9: 3.571428571 | BO9: 0 | BP9: 0 | BQ9: 0 | BR9: 0
B10: 6 | C10: "*06_Oso m" | E10: 2 | G10: 3 | AA10: 1 | AF10: 3 | AQ10: 0 | AR10: 3.571428571 | AS10: 0 | AT10: 17.85714286 | AU10: 3.571428571 | AV10: 21.42857143 | AW10: 0 | AX10: 3.571428571 | AY10: 0 | AZ10: 28.57142857 | BA10: 0 | BB10: 7.142857143 | BC10: 0 | BD10: 0 | BE10: 3.571428571 | BF10: 3.571428571 | BG10: 0 | BH10: 0 | BI10: 0 | BJ10: 0 | BK10: 0 | BL10: 0 | BM10: 0 | BN10: 0 | BO10: 0 | BP10: 0 | BQ10: 3.571428571 | BR10: 0
B11: 7 | C11: "07_Oso m" | E11: 3 | I11: 1 | M11: 2 | AF11: 3 | AQ11: 3.571428571 | AR11: 17.85714286 | AS11: 0 | AT11: 14.28571429 | AU11: 3.571428571 | AV11: 10.71428571 | AW11: 0 | AX11: 0 | AY11: 0 | AZ11: 21.42857143 | BA11: 0 | BB11: 7.142857143 | BC11: 0 | BD11: 0 | BE11: 0 | BF11: 0 | BG11: 7.142857143 | BH11: 0 | BI11: 0 | BJ11: 3.571428571 | BK11: 0 | BL11: 0 | BM11: 3.571428571 | BN11: 0 | BO11: 0 | BP11: 0 | BQ11: 3.571428571 | BR11: 0
B12: 8 | C12: "08_Oso m" | G12: 3 | I12: 1 | M12: 2 | AF12: 3 | AQ12: 3.571428571 | AR12: 46.42857143 | AS12: 0 | AT12: 35.71428571 | AU12: 10.71428571 | AV12: 71.42857143 | AW12: 0 | AX12: 3.571428571 | AY12: 0 | AZ12: 64.28571429 | BA12: 0 | BB12: 14.28571429 | BC12: 0 | BD12: 0 | BE12: 3.571428571 | BF12: 3.571428571 | BG12: 10.71428571 | BH12: 0 | BI12: 0 | BJ12: 3.571428571 | BK12: 0 | BL12: 0 | BM12: 7.142857143 | BN12: 3.571428571 | BO12: 0 | BP12: 0 | BQ12: 7.142857143 | BR12: 0
B13: 9 | C13: "09_Oso f" | R13: 2 | T13: 3 | Z13: 1 | AF13: 3
B14: 10 | C14: "**10_Oso m" | E14: 3 | I14: 1 | O14: 2 | AF14: 3
B15: 11 | C15: "11_Oso m" | E15: 1 | G15: 2 | M15: 3 | AF15: 3
B16: 12 | C16: "12_Oso m" | H16: 1 | I16: 2 | M16: 3 | AF16: 3
B17: 13 | C17: "13_Oso m" | I17: 2 | M17: 1 | O17: 3 | AF17: 3
B18: 14 | C18: "14_Oso m" | E18: 1 | I18: 3 | M18: 2 | AF18: 3
B19: 15 | C19: "15_Oso f" | E19: 3 | I19: 1 | M19: 2 | AF19: 3
B20: 16 | C20: "16_Oso f" | E20: 3 | I20: 2 | M20: 1 | AF20: 3
B21: 17 | C21: "17_Oso f" | D21: 3 | I21: 1 | K21: 2 | AF21: 3
B22: 18 | C22: "18_Oso f" | E22: 3 | I22: 1 | M22: 2 | AF22: 3
B23: 19 | C23: "19_Oso f" | E23: 1 | I23: 2 | M23: 3 | AF23: 3
B24: 20 | C24: "20_Oso f" | I24: 1 | M24: 2 | O24: 3 | AF24: 3
B25: 21 | C25: "21_Oso f" | E25: 1 | I25: 2 | M25: 3 | AF25: 3
B26: 22 | C26: "22_Oso f" | H26: 2 | I26: 1 | M26: 3 | AF26: 3
B27: 23 | C27: "23_Oso f" | I27: 1 | O27: 2 | AD27: 3 | AF27: 3
B28: 24 | C28: "24_Oso f" | E28: 1 | G28: 2 | W28: 3 | AF28: 3
B29: 25 | C29: "25_Oso f" | G29: 2 | H29: 3 | I29: 1 | AF29: 3
B30: 26 | C30: "26_Oso f" | G30: 1 | S30: 2 | T30: 3 | AF30: 3
B31: 27 | C31: "27_Oso f" | E31: 1 | G31: 2 | M31: 3 | AF31: 3
B32: 28 | C32: "28_Oso f" | AF32: 0
C33: Suma volieb 1 + 2 + 3 spolu | D33: 1 | E33: 13 | F33: 0 | G33: 10 | H33: 3 | I33: 20 | J33: 0 | K33: 1 | L33: 0 | M33: 18 | N33: 0 | O33: 4 | P33: 0 | Q33: 0 | R33: 1 | S33: 1 | T33: 3 | U33: 0 | V33: 0 | W33: 1 | X33: 0 | Y33: 0 | Z33: 2 | AA33: 1 | AB33: 0 | AC33: 0 | AD33: 2 | AE33: 0 | AF33: =SUM($D$33:$AE$33) -> 81
C34: Suma volieb 1 | D34: =COUNTIF(D5:D32,1) -> 0 | E34: 7 | F34: 0 | G34: 1 | H34: 1 | I34: 11 | J34: 0 | K34: 0 | L34: 0 | M34: 4 | N34: 0 | O34: 0 | P34: 0 | Q34: 0 | R34: 0 | S34: 0 | T34: 1 | U34: 0 | V34: 0 | W34: 0 | X34: 0 | Y34: 0 | Z34: 1 | AA34: 1 | AB34: 0 | AC34: 0 | AD34: 0 | AE34: 0
C35: Suma volieb 2 | D35: =COUNTIF(D5:D32,2) -> 0 | E35: 1 | F35: 0 | G35: 5 | H35: 1 | I35: 6 | J35: 0 | K35: 1 | L35: 0 | M35: 8 | N35: 0 | O35: 2 | P35: 0 | Q35: 0 | R35: 1 | S35: 1 | T35: 0 | U35: 0 | V35: 0 | W35: 0 | X35: 0 | Y35: 0 | Z35: 0 | AA35: 0 | AB35: 0 | AC35: 0 | AD35: 1 | AE35: 0
C36: Suma volieb 3 | D36: =COUNTIF(D5:D32,3) -> 1 | E36: 5 | F36: 0 | G36: 4 | H36: 1 | I36: 3 | J36: 0 | K36: 0 | L36: 0 | M36: 6 | N36: 0 | O36: 2 | P36: 0 | Q36: 0 | R36: 0 | S36: 0 | T36: 2 | U36: 0 | V36: 0 | W36: 1 | X36: 0 | Y36: 0 | Z36: 1 | AA36: 0 | AB36: 0 | AC36: 0 | AD36: 1 | AE36: 0
C37: Percento Suma volieb 1 | D37: =(D34/$B$3)*100 -> 0 | E37: 25 | F37: 0 | G37: 3.571428571 | H37: 3.571428571 | I37: 39.28571429 | J37: 0 | K37: 0 | L37: 0 | M37: 14.28571429 | N37: 0 | O37: 0 | P37: 0 | Q37: 0 | R37: 0 | S37: 0 | T37: 3.571428571 | U37: 0 | V37: 0 | W37: 0 | X37: 0 | Y37: 0 | Z37: 3.571428571 | AA37: 3.571428571 | AB37: 0 | AC37: 0 | AD37: 0 | AE37: 0
C38: Percento Suma volieb 2 | D38: =(D35/$B$3)*100 -> 0 | E38: 3.571428571 | F38: 0 | G38: 17.85714286 | H38: 3.571428571 | I38: 21.42857143 | J38: 0 | K38: 3.571428571 | L38: 0 | M38: 28.57142857 | N38: 0 | O38: 7.142857143 | P38: 0 | Q38: 0 | R38: 3.571428571 | S38: 3.571428571 | T38: 0 | U38: 0 | V38: 0 | W38: 0 | X38: 0 | Y38: 0 | Z38: 0 | AA38: 0 | AB38: 0 | AC38: 0 | AD38: 3.571428571 | AE38: 0
C39: Percento Suma volieb 3 | D39: =(D36/$B$3)*100 -> 3.571428571 | E39: 17.85714286 | F39: 0 | G39: 14.28571429 | H39: 3.571428571 | I39: 10.71428571 | J39: 0 | K39: 0 | L39: 0 | M39: 21.42857143 | N39: 0 | O39: 7.142857143 | P39: 0 | Q39: 0 | R39: 0 | S39: 0 | T39: 7.142857143 | U39: 0 | V39: 0 | W39: 3.571428571 | X39: 0 | Y39: 0 | Z39: 3.571428571 | AA39: 0 | AB39: 0 | AC39: 0 | AD39: 3.571428571 | AE39: 0
C40: Percento Suma volieb 1 + 2 + 3 spolu | D40: =(D33/$B$3)*100 -> 3.571428571 | E40: 46.42857143 | F40: 0 | G40: 35.71428571 | H40: 10.71428571 | I40: 71.42857143 | J40: 0 | K40: 3.571428571 | L40: 0 | M40: 64.28571429 | N40: 0 | O40: 14.28571429 | P40: 0 | Q40: 0 | R40: 3.571428571 | S40: 3.571428571 | T40: 10.71428571 | U40: 0 | V40: 0 | W40: 3.571428571 | X40: 0 | Y40: 0 | Z40: 7.142857143 | AA40: 3.571428571 | AB40: 0 | AC40: 0 | AD40: 7.142857143 | AE40: 0
D42: 1 | E42: 2 | F42: 3 | G42: 4 | H42: 5 | I42: 6 | J42: 7 | K42: 8 | L42: 9 | M42: 10 | N42: 11 | O42: 12 | P42: 13 | Q42: 14 | R42: 15 | S42: 16 | T42: 17 | U42: 18 | V42: 19 | W42: 20 | X42: 21 | Y42: 22 | Z42: 23 | AA42: 24 | AB42: 25 | AC42: 26 | AD42: 27 | AE42: 28
D43: "01_Oso m" | E43: "02_Oso m" | F43: "03_Oso m" | G43: "04_Oso m" | H43: "05_Oso m" | I43: "*06_Oso m" | J43: "07_Oso m" | K43: "08_Oso m" | L43: "09_Oso f" | M43: "**10_Oso m" | N43: "11_Oso m" | O43: "12_Oso m" | P43: "13_Oso m" | Q43: "14_Oso m" | R43: "15_Oso f" | S43: "16_Oso f" | T43: "17_Oso f" | U43: "18_Oso f" | V43: "19_Oso f" | W43: "20_Oso f" | X43: "21_Oso f" | Y43: "22_Oso f" | Z43: "23_Oso f" | AA43: "24_Oso f" | AB43: "25_Oso f" | AC43: "26_Oso f" | AD43: "27_Oso f" | AE43: "28_Oso f"
B44: 1 | C44: "01_Oso m" | D44: =IF(D5<>0,D$3,"") ->  | T44: 17 | Z44: 23 | AD44: 27 | AG44: 17, 23, 27, | AK44: 17 | AL44: 23 | AM44: 27 | AN44: 1
B45: 2 | C45: "02_Oso m" | G45: 4 | I45: 6 | M45: 10 | AG45: 4, 6, 10, | AK45: 4 | AL45: 6 | AM45: 10 | AN45: 3
B46: 3 | C46: "03_Oso m" | G46: 4 | I46: 6 | M46: 10 | AG46: 4, 6, 10, | AK46: 4 | AL46: 6 | AM46: 10 | AN46: 0
B47: 4 | C47: "04_Oso m" | E47: 2 | I47: 6 | M47: 10 | AG47: 2, 6, 10, | AK47: 2 | AL47: 6 | AM47: 10 | AN47: 2
B48: 5 | C48: "05_Oso m" | G48: 4 | I48: 6 | M48: 10 | AG48: 4, 6, 10, | AK48: 4 | AL48: 6 | AM48: 10 | AN48: 0
B49: 6 | C49: "*06_Oso m" | E49: 2 | G49: 4 | AA49: 24 | AG49: 2, 4, 24, | AK49: 2 | AL49: 4 | AM49: 24 | AN49: 2
B50: 7 | C50: "07_Oso m" | E50: 2 | I50: 6 | M50: 10 | AG50: 2, 6, 10, | AK50: 2 | AL50: 6 | AM50: 10 | AN50: 0
B51: 8 | C51: "08_Oso m" | G51: 4 | I51: 6 | M51: 10 | AG51: 4, 6, 10, | AK51: 4 | AL51: 6 | AM51: 10 | AN51: 0
B52: 9 | C52: "09_Oso f" | R52: 15 | T52: 17 | Z52: 23 | AG52: 15, 17, 23, | AK52: 15 | AL52: 17 | AM52: 23 | AN52: 0
B53: 10 | C53: "**10_Oso m" | E53: 2 | G53: =IF(G14<>0,G$3,"") ->  | I53: 6 | O53: 12 | AG53: 2, 6, 12, | AK53: 2 | AL53: 6 | AM53: 12 | AN53: 2
B54: 11 | C54: "11_Oso m" | D54: =IF(D15<>0,D$3,"") ->  | E54: 2 | G54: 4 | M54: 10 | AG54: 2, 4, 10, | AK54: 2 | AL54: 4 | AM54: 10 | AN54: 0
B55: 12 | C55: "12_Oso m" | H55: 5 | I55: 6 | M55: 10 | AG55: 5, 6, 10, | AK55: 5 | AL55: 6 | AM55: 10 | AN55: 1
B56: 13 | C56: "13_Oso m" | I56: 6 | M56: 10 | O56: 12 | AG56: 6, 10, 12, | AK56: 6 | AL56: 10 | AM56: 12 | AN56: 0
B57: 14 | C57: "14_Oso m" | E57: 2 | I57: 6 | M57: 10 | AG57: 2, 6, 10, | AK57: 2 | AL57: 6 | AM57: 10 | AN57: 0
B58: 15 | C58: "15_Oso f" | E58: 2 | I58: 6 | M58: 10 | AG58: 2, 6, 10, | AK58: 2 | AL58: 6 | AM58: 10 | AN58: 0
B59: 16 | C59: "16_Oso f" | E59: 2 | I59: 6 | M59: 10 | AG59: 2, 6, 10, | AK59: 2 | AL59: 6 | AM59: 10 | AN59: 0
B60: 17 | C60: "17_Oso f" | D60: 1 | I60: 6 | K60: 8 | AG60: 1, 6, 8, | AK60: 1 | AL60: 6 | AM60: 8 | AN60: 1
B61: 18 | C61: "18_Oso f" | E61: 2 | I61: 6 | M61: 10 | AG61: 2, 6, 10, | AK61: 2 | AL61: 6 | AM61: 10 | AN61: 0
B62: 19 | C62: "19_Oso f" | E62: 2 | I62: 6 | M62: 10 | AG62: 2, 6, 10, | AK62: 2 | AL62: 6 | AM62: 10 | AN62: 0
B63: 20 | C63: "20_Oso f" | G63: =IF(G24<>0,G$3,"") ->  | I63: 6 | M63: 10 | O63: 12 | AG63: 6, 10, 12, | AK63: 6 | AL63: 10 | AM63: 12 | AN63: 0
B64: 21 | C64: "21_Oso f" | D64: =IF(D25<>0,D$3,"") ->  | E64: 2 | I64: 6 | M64: 10 | AG64: 2, 6, 10, | AK64: 2 | AL64: 6 | AM64: 10 | AN64: 0
B65: 22 | C65: "22_Oso f" | H65: 5 | I65: 6 | M65: 10 | AG65: 5, 6, 10, | AK65: 5 | AL65: 6 | AM65: 10 | AN65: 0
B66: 23 | C66: "23_Oso f" | I66: 6 | O66: 12 | AD66: 27 | AG66: 6, 12, 27, | AK66: 6 | AL66: 12 | AM66: 27 | AN66: 0
B67: 24 | C67: "24_Oso f" | E67: 2 | G67: 4 | W67: 20 | AG67: 2, 4, 20, | AK67: 2 | AL67: 4 | AM67: 20 | AN67: 0
B68: 25 | C68: "25_Oso f" | G68: 4 | H68: 5 | I68: 6 | AG68: 4, 5, 6, | AK68: 4 | AL68: 5 | AM68: 6 | AN68: 0
B69: 26 | C69: "26_Oso f" | G69: 4 | S69: 16 | T69: 17 | AG69: 4, 16, 17, | AK69: 4 | AL69: 16 | AM69: 17 | AN69: 0
B70: 27 | C70: "27_Oso f" | E70: 2 | G70: 4 | M70: 10 | AG70: 2, 4, 10, | AK70: 2 | AL70: 4 | AM70: 10 | AN70: 0
B71: 28 | C71: "28_Oso f" | AG71: 0, 0, 0, | AK71: 0 | AL71: 0 | AM71: 0 | AN71: 0
AN72: =SUM($AN$44:$AN$71) -> 12

Sheet Q_8
A1: "8. S kým z triedy by si nechcel stráviť prázdniny na pustom ostrove?"
B2: 3
B3: 28 | D3: 1 | E3: 2 | F3: 3 | G3: 4 | H3: 5 | I3: 6 | J3: 7 | K3: 8 | L3: 9 | M3: 10 | N3: 11 | O3: 12 | P3: 13 | Q3: 14 | R3: 15 | S3: 16 | T3: 17 | U3: 18 | V3: 19 | W3: 20 | X3: 21 | Y3: 22 | Z3: 23 | AA3: 24 | AB3: 25 | AC3: 26 | AD3: 27 | AE3: 28
D4: "01_Oso m" | E4: "02_Oso m" | F4: "03_Oso m" | G4: "04_Oso m" | H4: "05_Oso m" | I4: "*06_Oso m" | J4: "07_Oso m" | K4: "08_Oso m" | L4: "09_Oso f" | M4: "**10_Oso m" | N4: "11_Oso m" | O4: "12_Oso m" | P4: "13_Oso m" | Q4: "14_Oso m" | R4: "15_Oso f" | S4: "16_Oso f" | T4: "17_Oso f" | U4: "18_Oso f" | V4: "19_Oso f" | W4: "20_Oso f" | X4: "21_Oso f" | Y4: "22_Oso f" | Z4: "23_Oso f" | AA4: "24_Oso f" | AB4: "25_Oso f" | AC4: "26_Oso f" | AD4: "27_Oso f" | AE4: "28_Oso f"
A5: → | B5: 1 | C5: "01_Oso m" | T5: 2 | W5: 3 | AD5: 1 | AF5: 3 | AQ5: 1 | AR5: 12 | AS5: 0 | AT5: 6 | AU5: 2 | AV5: 15 | AW5: 2 | AX5: 1 | AY5: 0 | AZ5: 16 | BA5: 1 | BB5: 1 | BC5: 0 | BD5: 0 | BE5: 2 | BF5: 2 | BG5: 2 | BH5: 2 | BI5: 1 | BJ5: 2 | BK5: 1 | BL5: 1 | BM5: 1 | BN5: 2 | BO5: 2 | BP5: 0 | BQ5: 6 | BR5: 0
B6: 2 | C6: "02_Oso m" | G6: 3 | M6: 1 | N6: 2 | AF6: 3 | AQ6: 0 | AR6: 5 | AS6: 0 | AT6: 2 | AU6: 1 | AV6: 7 | AW6: 0 | AX6: 0 | AY6: 0 | AZ6: 4 | BA6: 0 | BB6: 0 | BC6: 0 | BD6: 0 | BE6: 0 | BF6: 0 | BG6: 1 | BH6: 0 | BI6: 0 | BJ6: 0 | BK6: 0 | BL6: 1 | BM6: 1 | BN6: 2 | BO6: 0 | BP6: 0 | BQ6: 3 | BR6: 0
B7: 3 | C7: "03_Oso m" | E7: 3 | H7: 1 | AD7: 2 | AF7: 3 | AQ7: 1 | AR7: 3 | AS7: 0 | AT7: 1 | AU7: 0 | AV7: 6 | AW7: 0 | AX7: 0 | AY7: 0 | AZ7: 6 | BA7: 1 | BB7: 0 | BC7: 0 | BD7: 0 | BE7: 1 | BF7: 0 | BG7: 1 | BH7: 1 | BI7: 0 | BJ7: 1 | BK7: 1 | BL7: 0 | BM7: 0 | BN7: 0 | BO7: 2 | BP7: 0 | BQ7: 2 | BR7: 0
B8: 4 | C8: "04_Oso m" | X8: 2 | AA8: 1 | AD8: 3 | AF8: 3 | AQ8: 0 | AR8: 4 | AS8: 0 | AT8: 3 | AU8: 1 | AV8: 2 | AW8: 2 | AX8: 1 | AY8: 0 | AZ8: 6 | BA8: 0 | BB8: 1 | BC8: 0 | BD8: 0 | BE8: 1 | BF8: 2 | BG8: 0 | BH8: 1 | BI8: 1 | BJ8: 1 | BK8: 0 | BL8: 0 | BM8: 0 | BN8: 0 | BO8: 0 | BP8: 0 | BQ8: 1 | BR8: 0
B9: 5 | C9: "05_Oso m" | G9: 2 | V9: 3 | AA9: 1 | AF9: 3 | AQ9: 0 | AR9: 17.85714286 | AS9: 0 | AT9: 7.142857143 | AU9: 3.571428571 | AV9: 25 | AW9: 0 | AX9: 0 | AY9: 0 | AZ9: 14.28571429 | BA9: 0 | BB9: 0 | BC9: 0 | BD9: 0 | BE9: 0 | BF9: 0 | BG9: 3.571428571 | BH9: 0 | BI9: 0 | BJ9: 0 | BK9: 0 | BL9: 3.571428571 | BM9: 3.571428571 | BN9: 7.142857143 | BO9: 0 | BP9: 0 | BQ9: 10.71428571 | BR9: 0
B10: 6 | C10: "*06_Oso m" | R10: 2 | S10: 3 | T10: 1 | AF10: 3 | AQ10: 3.571428571 | AR10: 10.71428571 | AS10: 0 | AT10: 3.571428571 | AU10: 0 | AV10: 21.42857143 | AW10: 0 | AX10: 0 | AY10: 0 | AZ10: 21.42857143 | BA10: 3.571428571 | BB10: 0 | BC10: 0 | BD10: 0 | BE10: 3.571428571 | BF10: 0 | BG10: 3.571428571 | BH10: 3.571428571 | BI10: 0 | BJ10: 3.571428571 | BK10: 3.571428571 | BL10: 0 | BM10: 0 | BN10: 0 | BO10: 7.142857143 | BP10: 0 | BQ10: 7.142857143 | BR10: 0
B11: 7 | C11: "07_Oso m" | E11: 2 | H11: 3 | AD11: 1 | AF11: 3 | AQ11: 0 | AR11: 14.28571429 | AS11: 0 | AT11: 10.71428571 | AU11: 3.571428571 | AV11: 7.142857143 | AW11: 7.142857143 | AX11: 3.571428571 | AY11: 0 | AZ11: 21.42857143 | BA11: 0 | BB11: 3.571428571 | BC11: 0 | BD11: 0 | BE11: 3.571428571 | BF11: 7.142857143 | BG11: 0 | BH11: 3.571428571 | BI11: 3.571428571 | BJ11: 3.571428571 | BK11: 0 | BL11: 0 | BM11: 0 | BN11: 0 | BO11: 0 | BP11: 0 | BQ11: 3.571428571 | BR11: 0
B12: 8 | C12: "08_Oso m" | G12: 3 | I12: 1 | M12: 2 | AF12: 3 | AQ12: 3.571428571 | AR12: 42.85714286 | AS12: 0 | AT12: 21.42857143 | AU12: 7.142857143 | AV12: 53.57142857 | AW12: 7.142857143 | AX12: 3.571428571 | AY12: 0 | AZ12: 57.14285714 | BA12: 3.571428571 | BB12: 3.571428571 | BC12: 0 | BD12: 0 | BE12: 7.142857143 | BF12: 7.142857143 | BG12: 7.142857143 | BH12: 7.142857143 | BI12: 3.571428571 | BJ12: 7.142857143 | BK12: 3.571428571 | BL12: 3.571428571 | BM12: 3.571428571 | BN12: 7.142857143 | BO12: 7.142857143 | BP12: 0 | BQ12: 21.42857143 | BR12: 0
B13: 9 | C13: "09_Oso f" | R13: 3 | Z13: 1 | AB13: 2 | AF13: 3
B14: 10 | C14: "**10_Oso m" | U14: 3 | AB14: 2 | AD14: 1 | AF14: 3
B15: 11 | C15: "11_Oso m" | E15: 2 | G15: 1 | M15: 3 | AF15: 3
B16: 12 | C16: "12_Oso m" | E16: 1 | K16: 3 | U16: 2 | AF16: 3
B17: 13 | C17: "13_Oso m" | I17: 1 | M17: 3 | AD17: 2 | AF17: 3
B18: 14 | C18: "14_Oso m" | E18: 1 | I18: 3 | M18: 2 | AF18: 3
B19: 15 | C19: "15_Oso f" | E19: 3 | I19: 1 | M19: 2 | AF19: 3
B20: 16 | C20: "16_Oso f" | E20: 3 | I20: 2 | M20: 1 | AF20: 3
B21: 17 | C21: "17_Oso f" | D21: 2 | I21: 1 | M21: 3 | AF21: 3
B22: 18 | C22: "18_Oso f" | E22: 3 | I22: 2 | M22: 1 | AF22: 3
B23: 19 | C23: "19_Oso f" | E23: 1 | I23: 2 | M23: 3 | AF23: 3
B24: 20 | C24: "20_Oso f" | G24: 1 | I24: 2 | J24: 3 | AF24: 3
B25: 21 | C25: "21_Oso f" | E25: 1 | I25: 3 | M25: 2 | AF25: 3
B26: 22 | C26: "22_Oso f" | G26: 3 | I26: 1 | M26: 2 | AF26: 3
B27: 23 | C27: "23_Oso f" | I27: 2 | J27: 3 | M27: 1 | AF27: 3
B28: 24 | C28: "24_Oso f" | S28: 3 | W28: 2 | Y28: 1 | AF28: 3
B29: 25 | C29: "25_Oso f" | I29: 1 | M29: 2 | O29: 3 | AF29: 3
B30: 26 | C30: "26_Oso f" | E30: 2 | I30: 1 | M30: 3 | AF30: 3
B31: 27 | C31: "27_Oso f" | E31: 1 | I31: 2 | M31: 3 | AF31: 3
B32: 28 | C32: "28_Oso f" | AF32: 0
C33: Suma volieb 1 + 2 + 3 spolu | D33: 1 | E33: 12 | F33: 0 | G33: 6 | H33: 2 | I33: 15 | J33: 2 | K33: 1 | L33: 0 | M33: 16 | N33: 1 | O33: 1 | P33: 0 | Q33: 0 | R33: 2 | S33: 2 | T33: 2 | U33: 2 | V33: 1 | W33: 2 | X33: 1 | Y33: 1 | Z33: 1 | AA33: 2 | AB33: 2 | AC33: 0 | AD33: 6 | AE33: 0 | AF33: =SUM($D$33:$AE$33) -> 81
C34: Suma volieb 1 | D34: =COUNTIF(D5:D32,1) -> 0 | E34: 5 | F34: 0 | G34: 2 | H34: 1 | I34: 7 | J34: 0 | K34: 0 | L34: 0 | M34: 4 | N34: 0 | O34: 0 | P34: 0 | Q34: 0 | R34: 0 | S34: 0 | T34: 1 | U34: 0 | V34: 0 | W34: 0 | X34: 0 | Y34: 1 | Z34: 1 | AA34: 2 | AB34: 0 | AC34: 0 | AD34: 3 | AE34: 0
C35: Suma volieb 2 | D35: =COUNTIF(D5:D32,2) -> 1 | E35: 3 | F35: 0 | G35: 1 | H35: 0 | I35: 6 | J35: 0 | K35: 0 | L35: 0 | M35: 6 | N35: 1 | O35: 0 | P35: 0 | Q35: 0 | R35: 1 | S35: 0 | T35: 1 | U35: 1 | V35: 0 | W35: 1 | X35: 1 | Y35: 0 | Z35: 0 | AA35: 0 | AB35: 2 | AC35: 0 | AD35: 2 | AE35: 0
C36: Suma volieb 3 | D36: =COUNTIF(D5:D32,3) -> 0 | E36: 4 | F36: 0 | G36: 3 | H36: 1 | I36: 2 | J36: 2 | K36: 1 | L36: 0 | M36: 6 | N36: 0 | O36: 1 | P36: 0 | Q36: 0 | R36: 1 | S36: 2 | T36: 0 | U36: 1 | V36: 1 | W36: 1 | X36: 0 | Y36: 0 | Z36: 0 | AA36: 0 | AB36: 0 | AC36: 0 | AD36: 1 | AE36: 0
C37: Percento Suma volieb 1 | D37: =(D34/$B$3)*100 -> 0 | E37: 17.85714286 | F37: 0 | G37: 7.142857143 | H37: 3.571428571 | I37: 25 | J37: 0 | K37: 0 | L37: 0 | M37: 14.28571429 | N37: 0 | O37: 0 | P37: 0 | Q37: 0 | R37: 0 | S37: 0 | T37: 3.571428571 | U37: 0 | V37: 0 | W37: 0 | X37: 0 | Y37: 3.571428571 | Z37: 3.571428571 | AA37: 7.142857143 | AB37: 0 | AC37: 0 | AD37: 10.71428571 | AE37: 0
C38: Percento Suma volieb 2 | D38: =(D35/$B$3)*100 -> 3.571428571 | E38: 10.71428571 | F38: 0 | G38: 3.571428571 | H38: 0 | I38: 21.42857143 | J38: 0 | K38: 0 | L38: 0 | M38: 21.42857143 | N38: 3.571428571 | O38: 0 | P38: 0 | Q38: 0 | R38: 3.571428571 | S38: 0 | T38: 3.571428571 | U38: 3.571428571 | V38: 0 | W38: 3.571428571 | X38: 3.571428571 | Y38: 0 | Z38: 0 | AA38: 0 | AB38: 7.142857143 | AC38: 0 | AD38: 7.142857143 | AE38: 0
C39: Percento Suma volieb 3 | D39: =(D36/$B$3)*100 -> 0 | E39: 14.28571429 | F39: 0 | G39: 10.71428571 | H39: 3.571428571 | I39: 7.142857143 | J39: 7.142857143 | K39: 3.571428571 | L39: 0 | M39: 21.42857143 | N39: 0 | O39: 3.571428571 | P39: 0 | Q39: 0 | R39: 3.571428571 | S39: 7.142857143 | T39: 0 | U39: 3.571428571 | V39: 3.571428571 | W39: 3.571428571 | X39: 0 | Y39: 0 | Z39: 0 | AA39: 0 | AB39: 0 | AC39: 0 | AD39: 3.571428571 | AE39: 0
C40: Percento Suma volieb 1 + 2 + 3 spolu | D40: =(D33/$B$3)*100 -> 3.571428571 | E40: 42.85714286 | F40: 0 | G40: 21.42857143 | H40: 7.142857143 | I40: 53.57142857 | J40: 7.142857143 | K40: 3.571428571 | L40: 0 | M40: 57.14285714 | N40: 3.571428571 | O40: 3.571428571 | P40: 0 | Q40: 0 | R40: 7.142857143 | S40: 7.142857143 | T40: 7.142857143 | U40: 7.142857143 | V40: 3.571428571 | W40: 7.142857143 | X40: 3.571428571 | Y40: 3.571428571 | Z40: 3.571428571 | AA40: 7.142857143 | AB40: 7.142857143 | AC40: 0 | AD40: 21.42857143 | AE40: 0
D42: 1 | E42: 2 | F42: 3 | G42: 4 | H42: 5 | I42: 6 | J42: 7 | K42: 8 | L42: 9 | M42: 10 | N42: 11 | O42: 12 | P42: 13 | Q42: 14 | R42: 15 | S42: 16 | T42: 17 | U42: 18 | V42: 19 | W42: 20 | X42: 21 | Y42: 22 | Z42: 23 | AA42: 24 | AB42: 25 | AC42: 26 | AD42: 27 | AE42: 28
D43: "01_Oso m" | E43: "02_Oso m" | F43: "03_Oso m" | G43: "04_Oso m" | H43: "05_Oso m" | I43: "*06_Oso m" | J43: "07_Oso m" | K43: "08_Oso m" | L43: "09_Oso f" | M43: "**10_Oso m" | N43: "11_Oso m" | O43: "12_Oso m" | P43: "13_Oso m" | Q43: "14_Oso m" | R43: "15_Oso f" | S43: "16_Oso f" | T43: "17_Oso f" | U43: "18_Oso f" | V43: "19_Oso f" | W43: "20_Oso f" | X43: "21_Oso f" | Y43: "22_Oso f" | Z43: "23_Oso f" | AA43: "24_Oso f" | AB43: "25_Oso f" | AC43: "26_Oso f" | AD43: "27_Oso f" | AE43: "28_Oso f"
B44: 1 | C44: "01_Oso m" | D44: =IF(D5<>0,D$3,"") ->  | T44: 17 | W44: 20 | AD44: 27 | AG44: 17, 20, 27, | AK44: 17 | AL44: 20 | AM44: 27 | AN44: 1
B45: 2 | C45: "02_Oso m" | G45: 4 | M45: 10 | N45: 11 | AG45: 4, 10, 11, | AK45: 4 | AL45: 10 | AM45: 11 | AN45: 1
B46: 3 | C46: "03_Oso m" | E46: 2 | H46: 5 | AD46: 27 | AG46: 2, 5, 27, | AK46: 2 | AL46: 5 | AM46: 27 | AN46: 0
B47: 4 | C47: "04_Oso m" | X47: 21 | AA47: 24 | AD47: 27 | AG47: 21, 24, 27, | AK47: 21 | AL47: 24 | AM47: 27 | AN47: 0
B48: 5 | C48: "05_Oso m" | G48: 4 | V48: 19 | AA48: 24 | AG48: 4, 19, 24, | AK48: 4 | AL48: 19 | AM48: 24 | AN48: 0
B49: 6 | C49: "*06_Oso m" | R49: 15 | S49: 16 | T49: 17 | AG49: 15, 16, 17, | AK49: 15 | AL49: 16 | AM49: 17 | AN49: 3
B50: 7 | C50: "07_Oso m" | E50: 2 | H50: 5 | AD50: 27 | AG50: 2, 5, 27, | AK50: 2 | AL50: 5 | AM50: 27 | AN50: 0
B51: 8 | C51: "08_Oso m" | G51: 4 | I51: 6 | M51: 10 | AG51: 4, 6, 10, | AK51: 4 | AL51: 6 | AM51: 10 | AN51: 0
B52: 9 | C52: "09_Oso f" | R52: 15 | Z52: 23 | AB52: 25 | AG52: 15, 23, 25, | AK52: 15 | AL52: 23 | AM52: 25 | AN52: 0
B53: 10 | C53: "**10_Oso m" | G53: =IF(G14<>0,G$3,"") ->  | U53: 18 | AB53: 25 | AD53: 27 | AG53: 18, 25, 27, | AK53: 18 | AL53: 25 | AM53: 27 | AN53: 3
B54: 11 | C54: "11_Oso m" | D54: =IF(D15<>0,D$3,"") ->  | E54: 2 | G54: 4 | M54: 10 | AG54: 2, 4, 10, | AK54: 2 | AL54: 4 | AM54: 10 | AN54: 1
B55: 12 | C55: "12_Oso m" | E55: 2 | K55: 8 | U55: 18 | AG55: 2, 8, 18, | AK55: 2 | AL55: 8 | AM55: 18 | AN55: 0
B56: 13 | C56: "13_Oso m" | I56: 6 | M56: 10 | AD56: 27 | AG56: 6, 10, 27, | AK56: 6 | AL56: 10 | AM56: 27 | AN56: 0
B57: 14 | C57: "14_Oso m" | E57: 2 | I57: 6 | M57: 10 | AG57: 2, 6, 10, | AK57: 2 | AL57: 6 | AM57: 10 | AN57: 0
B58: 15 | C58: "15_Oso f" | E58: 2 | I58: 6 | M58: 10 | AG58: 2, 6, 10, | AK58: 2 | AL58: 6 | AM58: 10 | AN58: 1
B59: 16 | C59: "16_Oso f" | E59: 2 | I59: 6 | M59: 10 | AG59: 2, 6, 10, | AK59: 2 | AL59: 6 | AM59: 10 | AN59: 1
B60: 17 | C60: "17_Oso f" | D60: 1 | I60: 6 | M60: 10 | AG60: 1, 6, 10, | AK60: 1 | AL60: 6 | AM60: 10 | AN60: 2
B61: 18 | C61: "18_Oso f" | E61: 2 | I61: 6 | M61: 10 | AG61: 2, 6, 10, | AK61: 2 | AL61: 6 | AM61: 10 | AN61: 1
B62: 19 | C62: "19_Oso f" | E62: 2 | I62: 6 | M62: 10 | AG62: 2, 6, 10, | AK62: 2 | AL62: 6 | AM62: 10 | AN62: 0
B63: 20 | C63: "20_Oso f" | G63: =IF(G24<>0,G$3,"") -> 4 | I63: 6 | J63: 7 | AG63: 4, 6, 7, | AK63: 4 | AL63: 6 | AM63: 7 | AN63: 0
B64: 21 | C64: "21_Oso f" | D64: =IF(D25<>0,D$3,"") ->  | E64: 2 | I64: 6 | M64: 10 | AG64: 2, 6, 10, | AK64: 2 | AL64: 6 | AM64: 10 | AN64: 0
B65: 22 | C65: "22_Oso f" | G65: 4 | I65: 6 | M65: 10 | AG65: 4, 6, 10, | AK65: 4 | AL65: 6 | AM65: 10 | AN65: 0
B66: 23 | C66: "23_Oso f" | I66: 6 | J66: 7 | M66: 10 | AG66: 6, 7, 10, | AK66: 6 | AL66: 7 | AM66: 10 | AN66: 0
B67: 24 | C67: "24_Oso f" | S67: 16 | W67: 20 | Y67: 22 | AG67: 16, 20, 22, | AK67: 16 | AL67: 20 | AM67: 22 | AN67: 0
B68: 25 | C68: "25_Oso f" | I68: 6 | M68: 10 | O68: 12 | AG68: 6, 10, 12, | AK68: 6 | AL68: 10 | AM68: 12 | AN68: 1
B69: 26 | C69: "26_Oso f" | E69: 2 | I69: 6 | M69: 10 | AG69: 2, 6, 10, | AK69: 2 | AL69: 6 | AM69: 10 | AN69: 0
B70: 27 | C70: "27_Oso f" | E70: 2 | I70: 6 | M70: 10 | AG70: 2, 6, 10, | AK70: 2 | AL70: 6 | AM70: 10 | AN70: 1
B71: 28 | C71: "28_Oso f" | AG71: 0, 0, 0, | AK71: 0 | AL71: 0 | AM71: 0 | AN71: 0
AN72: =SUM($AN$44:$AN$71) -> 16

Sheet Q_9
A1: "9. Koho by si vôbec nevybral na hájenie záujmov triedy?"
B2: 3
B3: 28 | D3: 1 | E3: 2 | F3: 3 | G3: 4 | H3: 5 | I3: 6 | J3: 7 | K3: 8 | L3: 9 | M3: 10 | N3: 11 | O3: 12 | P3: 13 | Q3: 14 | R3: 15 | S3: 16 | T3: 17 | U3: 18 | V3: 19 | W3: 20 | X3: 21 | Y3: 22 | Z3: 23 | AA3: 24 | AB3: 25 | AC3: 26 | AD3: 27 | AE3: 28
D4: "01_Oso m" | E4: "02_Oso m" | F4: "03_Oso m" | G4: "04_Oso m" | H4: "05_Oso m" | I4: "*06_Oso m" | J4: "07_Oso m" | K4: "08_Oso m" | L4: "09_Oso f" | M4: "**10_Oso m" | N4: "11_Oso m" | O4: "12_Oso m" | P4: "13_Oso m" | Q4: "14_Oso m" | R4: "15_Oso f" | S4: "16_Oso f" | T4: "17_Oso f" | U4: "18_Oso f" | V4: "19_Oso f" | W4: "20_Oso f" | X4: "21_Oso f" | Y4: "22_Oso f" | Z4: "23_Oso f" | AA4: "24_Oso f" | AB4: "25_Oso f" | AC4: "26_Oso f" | AD4: "27_Oso f" | AE4: "28_Oso f"
A5: → | B5: 1 | C5: "01_Oso m" | I5: 2 | K5: 3 | M5: 1 | AF5: 3 | AQ5: 0 | AR5: 20 | AS5: 0 | AT5: 5 | AU5: 1 | AV5: 18 | AW5: 0 | AX5: 3 | AY5: 0 | AZ5: 20 | BA5: 1 | BB5: 2 | BC5: 1 | BD5: 0 | BE5: 0 | BF5: 1 | BG5: 1 | BH5: 1 | BI5: 0 | BJ5: 0 | BK5: 0 | BL5: 0 | BM5: 0 | BN5: 4 | BO5: 1 | BP5: 0 | BQ5: 2 | BR5: 0
B6: 2 | C6: "02_Oso m" | G6: 2 | I6: 3 | M6: 1 | AF6: 3 | AQ6: 0 | AR6: 7 | AS6: 0 | AT6: 0 | AU6: 0 | AV6: 6 | AW6: 0 | AX6: 1 | AY6: 0 | AZ6: 9 | BA6: 0 | BB6: 1 | BC6: 0 | BD6: 0 | BE6: 0 | BF6: 1 | BG6: 0 | BH6: 0 | BI6: 0 | BJ6: 0 | BK6: 0 | BL6: 0 | BM6: 0 | BN6: 1 | BO6: 0 | BP6: 0 | BQ6: 1 | BR6: 0
B7: 3 | C7: "03_Oso m" | G7: 3 | I7: 1 | M7: 2 | AF7: 3 | AQ7: 0 | AR7: 5 | AS7: 0 | AT7: 1 | AU7: 1 | AV7: 7 | AW7: 0 | AX7: 1 | AY7: 0 | AZ7: 8 | BA7: 0 | BB7: 0 | BC7: 1 | BD7: 0 | BE7: 0 | BF7: 0 | BG7: 0 | BH7: 1 | BI7: 0 | BJ7: 0 | BK7: 0 | BL7: 0 | BM7: 0 | BN7: 1 | BO7: 0 | BP7: 0 | BQ7: 1 | BR7: 0
B8: 4 | C8: "04_Oso m" | E8: 3 | I8: 2 | M8: 1 | AF8: 3 | AQ8: 0 | AR8: 8 | AS8: 0 | AT8: 4 | AU8: 0 | AV8: 5 | AW8: 0 | AX8: 1 | AY8: 0 | AZ8: 3 | BA8: 1 | BB8: 1 | BC8: 0 | BD8: 0 | BE8: 0 | BF8: 0 | BG8: 1 | BH8: 0 | BI8: 0 | BJ8: 0 | BK8: 0 | BL8: 0 | BM8: 0 | BN8: 2 | BO8: 1 | BP8: 0 | BQ8: 0 | BR8: 0
B9: 5 | C9: "05_Oso m" | E9: 3 | AA9: 2 | AD9: 1 | AF9: 3 | AQ9: 0 | AR9: 25 | AS9: 0 | AT9: 0 | AU9: 0 | AV9: 21.42857143 | AW9: 0 | AX9: 3.571428571 | AY9: 0 | AZ9: 32.14285714 | BA9: 0 | BB9: 3.571428571 | BC9: 0 | BD9: 0 | BE9: 0 | BF9: 3.571428571 | BG9: 0 | BH9: 0 | BI9: 0 | BJ9: 0 | BK9: 0 | BL9: 0 | BM9: 0 | BN9: 3.571428571 | BO9: 0 | BP9: 0 | BQ9: 3.571428571 | BR9: 0
B10: 6 | C10: "*06_Oso m" | E10: 2 | G10: 3 | AA10: 1 | AF10: 3 | AQ10: 0 | AR10: 17.85714286 | AS10: 0 | AT10: 3.571428571 | AU10: 3.571428571 | AV10: 25 | AW10: 0 | AX10: 3.571428571 | AY10: 0 | AZ10: 28.57142857 | BA10: 0 | BB10: 0 | BC10: 3.571428571 | BD10: 0 | BE10: 0 | BF10: 0 | BG10: 0 | BH10: 3.571428571 | BI10: 0 | BJ10: 0 | BK10: 0 | BL10: 0 | BM10: 0 | BN10: 3.571428571 | BO10: 0 | BP10: 0 | BQ10: 3.571428571 | BR10: 0
B11: 7 | C11: "07_Oso m" | E11: 2 | I11: 1 | M11: 3 | AF11: 3 | AQ11: 0 | AR11: 28.57142857 | AS11: 0 | AT11: 14.28571429 | AU11: 0 | AV11: 17.85714286 | AW11: 0 | AX11: 3.571428571 | AY11: 0 | AZ11: 10.71428571 | BA11: 3.571428571 | BB11: 3.571428571 | BC11: 0 | BD11: 0 | BE11: 0 | BF11: 0 | BG11: 3.571428571 | BH11: 0 | BI11: 0 | BJ11: 0 | BK11: 0 | BL11: 0 | BM11: 0 | BN11: 7.142857143 | BO11: 3.571428571 | BP11: 0 | BQ11: 0 | BR11: 0
B12: 8 | C12: "08_Oso m" | G12: 3 | I12: 2 | M12: 1 | AF12: 3 | AQ12: 0 | AR12: 71.42857143 | AS12: 0 | AT12: 17.85714286 | AU12: 3.571428571 | AV12: 64.28571429 | AW12: 0 | AX12: 10.71428571 | AY12: 0 | AZ12: 71.42857143 | BA12: 3.571428571 | BB12: 7.142857143 | BC12: 3.571428571 | BD12: 0 | BE12: 0 | BF12: 3.571428571 | BG12: 3.571428571 | BH12: 3.571428571 | BI12: 0 | BJ12: 0 | BK12: 0 | BL12: 0 | BM12: 0 | BN12: 14.28571429 | BO12: 3.571428571 | BP12: 0 | BQ12: 7.142857143 | BR12: 0
B13: 9 | C13: "09_Oso f" | E13: 1 | I13: 3 | M13: 2 | AF13: 3
B14: 10 | C14: "**10_Oso m" | E14: 1 | U14: 2 | AB14: 3 | AF14: 3
B15: 11 | C15: "11_Oso m" | E15: 2 | G15: 3 | M15: 1 | AF15: 3
B16: 12 | C16: "12_Oso m" | E16: 3 | I16: 1 | M16: 2 | AF16: 3
B17: 13 | C17: "13_Oso m" | E17: 3 | I17: 1 | M17: 2 | AF17: 3
B18: 14 | C18: "14_Oso m" | E18: 1 | I18: 3 | M18: 2 | AF18: 3
B19: 15 | C19: "15_Oso f" | E19: 3 | I19: 1 | M19: 2 | AF19: 3
B20: 16 | C20: "16_Oso f" | E20: 3 | I20: 2 | M20: 1 | AF20: 3
B21: 17 | C21: "17_Oso f" | M21: 3 | S21: 1 | AD21: 2 | AF21: 3
B22: 18 | C22: "18_Oso f" | E22: 2 | I22: 3 | M22: 1 | AF22: 3
B23: 19 | C23: "19_Oso f" | E23: 1 | I23: 2 | M23: 3 | AF23: 3
B24: 20 | C24: "20_Oso f" | E24: 2 | K24: 1 | AA24: 3 | AF24: 3
B25: 21 | C25: "21_Oso f" | E25: 1 | I25: 3 | M25: 2 | AF25: 3
B26: 22 | C26: "22_Oso f" | E26: 3 | I26: 2 | M26: 1 | AF26: 3
B27: 23 | C27: "23_Oso f" | E27: 1 | K27: 2 | AA27: 3 | AF27: 3
B28: 24 | C28: "24_Oso f" | E28: 1 | H28: 2 | T28: 3 | AF28: 3
B29: 25 | C29: "25_Oso f" | I29: 1 | M29: 2 | O29: 3 | AF29: 3
B30: 26 | C30: "26_Oso f" | N30: 3 | O30: 1 | P30: 2 | AF30: 3
B31: 27 | C31: "27_Oso f" | E31: 3 | I31: 2 | M31: 1 | AF31: 3
B32: 28 | C32: "28_Oso f" | AF32: 0
C33: Suma volieb 1 + 2 + 3 spolu | D33: 0 | E33: 20 | F33: 0 | G33: 5 | H33: 1 | I33: 18 | J33: 0 | K33: 3 | L33: 0 | M33: 20 | N33: 1 | O33: 2 | P33: 1 | Q33: 0 | R33: 0 | S33: 1 | T33: 1 | U33: 1 | V33: 0 | W33: 0 | X33: 0 | Y33: 0 | Z33: 0 | AA33: 4 | AB33: 1 | AC33: 0 | AD33: 2 | AE33: 0 | AF33: =SUM($D$33:$AE$33) -> 81
C34: Suma volieb 1 | D34: =COUNTIF(D5:D32,1) -> 0 | E34: 7 | F34: 0 | G34: 0 | H34: 0 | I34: 6 | J34: 0 | K34: 1 | L34: 0 | M34: 9 | N34: 0 | O34: 1 | P34: 0 | Q34: 0 | R34: 0 | S34: 1 | T34: 0 | U34: 0 | V34: 0 | W34: 0 | X34: 0 | Y34: 0 | Z34: 0 | AA34: 1 | AB34: 0 | AC34: 0 | AD34: 1 | AE34: 0
C35: Suma volieb 2 | D35: =COUNTIF(D5:D32,2) -> 0 | E35: 5 | F35: 0 | G35: 1 | H35: 1 | I35: 7 | J35: 0 | K35: 1 | L35: 0 | M35: 8 | N35: 0 | O35: 0 | P35: 1 | Q35: 0 | R35: 0 | S35: 0 | T35: 0 | U35: 1 | V35: 0 | W35: 0 | X35: 0 | Y35: 0 | Z35: 0 | AA35: 1 | AB35: 0 | AC35: 0 | AD35: 1 | AE35: 0
C36: Suma volieb 3 | D36: =COUNTIF(D5:D32,3) -> 0 | E36: 8 | F36: 0 | G36: 4 | H36: 0 | I36: 5 | J36: 0 | K36: 1 | L36: 0 | M36: 3 | N36: 1 | O36: 1 | P36: 0 | Q36: 0 | R36: 0 | S36: 0 | T36: 1 | U36: 0 | V36: 0 | W36: 0 | X36: 0 | Y36: 0 | Z36: 0 | AA36: 2 | AB36: 1 | AC36: 0 | AD36: 0 | AE36: 0
C37: Percento Suma volieb 1 | D37: =(D34/$B$3)*100 -> 0 | E37: 25 | F37: 0 | G37: 0 | H37: 0 | I37: 21.42857143 | J37: 0 | K37: 3.571428571 | L37: 0 | M37: 32.14285714 | N37: 0 | O37: 3.571428571 | P37: 0 | Q37: 0 | R37: 0 | S37: 3.571428571 | T37: 0 | U37: 0 | V37: 0 | W37: 0 | X37: 0 | Y37: 0 | Z37: 0 | AA37: 3.571428571 | AB37: 0 | AC37: 0 | AD37: 3.571428571 | AE37: 0
C38: Percento Suma volieb 2 | D38: =(D35/$B$3)*100 -> 0 | E38: 17.85714286 | F38: 0 | G38: 3.571428571 | H38: 3.571428571 | I38: 25 | J38: 0 | K38: 3.571428571 | L38: 0 | M38: 28.57142857 | N38: 0 | O38: 0 | P38: 3.571428571 | Q38: 0 | R38: 0 | S38: 0 | T38: 0 | U38: 3.571428571 | V38: 0 | W38: 0 | X38: 0 | Y38: 0 | Z38: 0 | AA38: 3.571428571 | AB38: 0 | AC38: 0 | AD38: 3.571428571 | AE38: 0
C39: Percento Suma volieb 3 | D39: =(D36/$B$3)*100 -> 0 | E39: 28.57142857 | F39: 0 | G39: 14.28571429 | H39: 0 | I39: 17.85714286 | J39: 0 | K39: 3.571428571 | L39: 0 | M39: 10.71428571 | N39: 3.571428571 | O39: 3.571428571 | P39: 0 | Q39: 0 | R39: 0 | S39: 0 | T39: 3.571428571 | U39: 0 | V39: 0 | W39: 0 | X39: 0 | Y39: 0 | Z39: 0 | AA39: 7.142857143 | AB39: 3.571428571 | AC39: 0 | AD39: 0 | AE39: 0
C40: Percento Suma volieb 1 + 2 + 3 spolu | D40: =(D33/$B$3)*100 -> 0 | E40: 71.42857143 | F40: 0 | G40: 17.85714286 | H40: 3.571428571 | I40: 64.28571429 | J40: 0 | K40: 10.71428571 | L40: 0 | M40: 71.42857143 | N40: 3.571428571 | O40: 7.142857143 | P40: 3.571428571 | Q40: 0 | R40: 0 | S40: 3.571428571 | T40: 3.571428571 | U40: 3.571428571 | V40: 0 | W40: 0 | X40: 0 | Y40: 0 | Z40: 0 | AA40: 14.28571429 | AB40: 3.571428571 | AC40: 0 | AD40: 7.142857143 | AE40: 0
D42: 1 | E42: 2 | F42: 3 | G42: 4 | H42: 5 | I42: 6 | J42: 7 | K42: 8 | L42: 9 | M42: 10 | N42: 11 | O42: 12 | P42: 13 | Q42: 14 | R42: 15 | S42: 16 | T42: 17 | U42: 18 | V42: 19 | W42: 20 | X42: 21 | Y42: 22 | Z42: 23 | AA42: 24 | AB42: 25 | AC42: 26 | AD42: 27 | AE42: 28
D43: "01_Oso m" | E43: "02_Oso m" | F43: "03_Oso m" | G43: "04_Oso m" | H43: "05_Oso m" | I43: "*06_Oso m" | J43: "07_Oso m" | K43: "08_Oso m" | L43: "09_Oso f" | M43: "**10_Oso m" | N43: "11_Oso m" | O43: "12_Oso m" | P43: "13_Oso m" | Q43: "14_Oso m" | R43: "15_Oso f" | S43: "16_Oso f" | T43: "17_Oso f" | U43: "18_Oso f" | V43: "19_Oso f" | W43: "20_Oso f" | X43: "21_Oso f" | Y43: "22_Oso f" | Z43: "23_Oso f" | AA43: "24_Oso f" | AB43: "25_Oso f" | AC43: "26_Oso f" | AD43: "27_Oso f" | AE43: "28_Oso f"
B44: 1 | C44: "01_Oso m" | D44: =IF(D5<>0,D$3,"") ->  | I44: 6 | K44: 8 | M44: 10 | AG44: 6, 8, 10, | AK44: 6 | AL44: 8 | AM44: 10 | AN44: 0
B45: 2 | C45: "02_Oso m" | G45: 4 | I45: 6 | M45: 10 | AG45: 4, 6, 10, | AK45: 4 | AL45: 6 | AM45: 10 | AN45: 3
B46: 3 | C46: "03_Oso m" | G46: 4 | I46: 6 | M46: 10 | AG46: 4, 6, 10, | AK46: 4 | AL46: 6 | AM46: 10 | AN46: 0
B47: 4 | C47: "04_Oso m" | E47: 2 | I47: 6 | M47: 10 | AG47: 2, 6, 10, | AK47: 2 | AL47: 6 | AM47: 10 | AN47: 2
B48: 5 | C48: "05_Oso m" | E48: 2 | AA48: 24 | AD48: 27 | AG48: 2, 24, 27, | AK48: 2 | AL48: 24 | AM48: 27 | AN48: 1
B49: 6 | C49: "*06_Oso m" | E49: 2 | G49: 4 | AA49: 24 | AG49: 2, 4, 24, | AK49: 2 | AL49: 4 | AM49: 24 | AN49: 2
B50: 7 | C50: "07_Oso m" | E50: 2 | I50: 6 | M50: 10 | AG50: 2, 6, 10, | AK50: 2 | AL50: 6 | AM50: 10 | AN50: 0
B51: 8 | C51: "08_Oso m" | G51: 4 | I51: 6 | M51: 10 | AG51: 4, 6, 10, | AK51: 4 | AL51: 6 | AM51: 10 | AN51: 0
B52: 9 | C52: "09_Oso f" | E52: 2 | I52: 6 | M52: 10 | AG52: 2, 6, 10, | AK52: 2 | AL52: 6 | AM52: 10 | AN52: 0
B53: 10 | C53: "**10_Oso m" | E53: 2 | G53: =IF(G14<>0,G$3,"") ->  | U53: 18 | AB53: 25 | AG53: 2, 18, 25, | AK53: 2 | AL53: 18 | AM53: 25 | AN53: 3
B54: 11 | C54: "11_Oso m" | D54: =IF(D15<>0,D$3,"") ->  | E54: 2 | G54: 4 | M54: 10 | AG54: 2, 4, 10, | AK54: 2 | AL54: 4 | AM54: 10 | AN54: 0
B55: 12 | C55: "12_Oso m" | E55: 2 | I55: 6 | M55: 10 | AG55: 2, 6, 10, | AK55: 2 | AL55: 6 | AM55: 10 | AN55: 0
B56: 13 | C56: "13_Oso m" | E56: 2 | I56: 6 | M56: 10 | AG56: 2, 6, 10, | AK56: 2 | AL56: 6 | AM56: 10 | AN56: 0
B57: 14 | C57: "14_Oso m" | E57: 2 | I57: 6 | M57: 10 | AG57: 2, 6, 10, | AK57: 2 | AL57: 6 | AM57: 10 | AN57: 0
B58: 15 | C58: "15_Oso f" | E58: 2 | I58: 6 | M58: 10 | AG58: 2, 6, 10, | AK58: 2 | AL58: 6 | AM58: 10 | AN58: 0
B59: 16 | C59: "16_Oso f" | E59: 2 | I59: 6 | M59: 10 | AG59: 2, 6, 10, | AK59: 2 | AL59: 6 | AM59: 10 | AN59: 0
B60: 17 | C60: "17_Oso f" | M60: 10 | S60: 16 | AD60: 27 | AG60: 10, 16, 27, | AK60: 10 | AL60: 16 | AM60: 27 | AN60: 0
B61: 18 | C61: "18_Oso f" | E61: 2 | I61: 6 | M61: 10 | AG61: 2, 6, 10, | AK61: 2 | AL61: 6 | AM61: 10 | AN61: 1
B62: 19 | C62: "19_Oso f" | E62: 2 | I62: 6 | M62: 10 | AG62: 2, 6, 10, | AK62: 2 | AL62: 6 | AM62: 10 | AN62: 0
B63: 20 | C63: "20_Oso f" | E63: 2 | G63: =IF(G24<>0,G$3,"") ->  | K63: 8 | AA63: 24 | AG63: 2, 8, 24, | AK63: 2 | AL63: 8 | AM63: 24 | AN63: 0
B64: 21 | C64: "21_Oso f" | D64: =IF(D25<>0,D$3,"") ->  | E64: 2 | I64: 6 | M64: 10 | AG64: 2, 6, 10, | AK64: 2 | AL64: 6 | AM64: 10 | AN64: 0
B65: 22 | C65: "22_Oso f" | E65: 2 | I65: 6 | M65: 10 | AG65: 2, 6, 10, | AK65: 2 | AL65: 6 | AM65: 10 | AN65: 0
B66: 23 | C66: "23_Oso f" | E66: 2 | K66: 8 | AA66: 24 | AG66: 2, 8, 24, | AK66: 2 | AL66: 8 | AM66: 24 | AN66: 0
B67: 24 | C67: "24_Oso f" | E67: 2 | H67: 5 | T67: 17 | AG67: 2, 5, 17, | AK67: 2 | AL67: 5 | AM67: 17 | AN67: 1
B68: 25 | C68: "25_Oso f" | I68: 6 | M68: 10 | O68: 12 | AG68: 6, 10, 12, | AK68: 6 | AL68: 10 | AM68: 12 | AN68: 1
B69: 26 | C69: "26_Oso f" | N69: 11 | O69: 12 | P69: 13 | AG69: 11, 12, 13, | AK69: 11 | AL69: 12 | AM69: 13 | AN69: 0
B70: 27 | C70: "27_Oso f" | E70: 2 | I70: 6 | M70: 10 | AG70: 2, 6, 10, | AK70: 2 | AL70: 6 | AM70: 10 | AN70: 0
B71: 28 | C71: "28_Oso f" | AG71: 0, 0, 0, | AK71: 0 | AL71: 0 | AM71: 0 | AN71: 0
AN72: =SUM($AN$44:$AN$71) -> 14

Sheet Q_10
A1: "10. Komu z triedy by si nikdy nezveril svoje tajomstvo?"
B2: 3
B3: 28 | D3: 1 | E3: 2 | F3: 3 | G3: 4 | H3: 5 | I3: 6 | J3: 7 | K3: 8 | L3: 9 | M3: 10 | N3: 11 | O3: 12 | P3: 13 | Q3: 14 | R3: 15 | S3: 16 | T3: 17 | U3: 18 | V3: 19 | W3: 20 | X3: 21 | Y3: 22 | Z3: 23 | AA3: 24 | AB3: 25 | AC3: 26 | AD3: 27 | AE3: 28
D4: "01_Oso m" | E4: "02_Oso m" | F4: "03_Oso m" | G4: "04_Oso m" | H4: "05_Oso m" | I4: "*06_Oso m" | J4: "07_Oso m" | K4: "08_Oso m" | L4: "09_Oso f" | M4: "**10_Oso m" | N4: "11_Oso m" | O4: "12_Oso m" | P4: "13_Oso m" | Q4: "14_Oso m" | R4: "15_Oso f" | S4: "16_Oso f" | T4: "17_Oso f" | U4: "18_Oso f" | V4: "19_Oso f" | W4: "20_Oso f" | X4: "21_Oso f" | Y4: "22_Oso f" | Z4: "23_Oso f" | AA4: "24_Oso f" | AB4: "25_Oso f" | AC4: "26_Oso f" | AD4: "27_Oso f" | AE4: "28_Oso f"
A5: → | B5: 1 | C5: "01_Oso m" | G5: 2 | O5: 3 | AD5: 1 | AF5: 3 | AQ5: 1 | AR5: 8 | AS5: 2 | AT5: 7 | AU5: 7 | AV5: 13 | AW5: 2 | AX5: 0 | AY5: 0 | AZ5: 15 | BA5: 0 | BB5: 2 | BC5: 0 | BD5: 0 | BE5: 1 | BF5: 2 | BG5: 1 | BH5: 0 | BI5: 2 | BJ5: 2 | BK5: 1 | BL5: 3 | BM5: 3 | BN5: 2 | BO5: 3 | BP5: 0 | BQ5: 4 | BR5: 0
B6: 2 | C6: "02_Oso m" | G6: 1 | I6: 2 | M6: 3 | AF6: 3 | AQ6: 0 | AR6: 4 | AS6: 1 | AT6: 3 | AU6: 3 | AV6: 5 | AW6: 0 | AX6: 0 | AY6: 0 | AZ6: 2 | BA6: 0 | BB6: 0 | BC6: 0 | BD6: 0 | BE6: 0 | BF6: 1 | BG6: 0 | BH6: 0 | BI6: 1 | BJ6: 0 | BK6: 1 | BL6: 3 | BM6: 1 | BN6: 0 | BO6: 0 | BP6: 0 | BQ6: 2 | BR6: 0
B7: 3 | C7: "03_Oso m" | D7: 3 | G7: 1 | H7: 2 | AF7: 3 | AQ7: 0 | AR7: 1 | AS7: 1 | AT7: 4 | AU7: 1 | AV7: 4 | AW7: 2 | AX7: 0 | AY7: 0 | AZ7: 8 | BA7: 0 | BB7: 0 | BC7: 0 | BD7: 0 | BE7: 0 | BF7: 0 | BG7: 0 | BH7: 0 | BI7: 1 | BJ7: 1 | BK7: 0 | BL7: 0 | BM7: 0 | BN7: 0 | BO7: 2 | BP7: 0 | BQ7: 2 | BR7: 0
B8: 4 | C8: "04_Oso m" | F8: 2 | V8: 1 | AA8: 3 | AF8: 3 | AQ8: 1 | AR8: 3 | AS8: 0 | AT8: 0 | AU8: 3 | AV8: 4 | AW8: 0 | AX8: 0 | AY8: 0 | AZ8: 5 | BA8: 0 | BB8: 2 | BC8: 0 | BD8: 0 | BE8: 1 | BF8: 1 | BG8: 1 | BH8: 0 | BI8: 0 | BJ8: 1 | BK8: 0 | BL8: 0 | BM8: 2 | BN8: 2 | BO8: 1 | BP8: 0 | BQ8: 0 | BR8: 0
B9: 5 | C9: "05_Oso m" | E9: 3 | G9: 1 | V9: 2 | AF9: 3 | AQ9: 0 | AR9: 14.28571429 | AS9: 3.571428571 | AT9: 10.71428571 | AU9: 10.71428571 | AV9: 17.85714286 | AW9: 0 | AX9: 0 | AY9: 0 | AZ9: 7.142857143 | BA9: 0 | BB9: 0 | BC9: 0 | BD9: 0 | BE9: 0 | BF9: 3.571428571 | BG9: 0 | BH9: 0 | BI9: 3.571428571 | BJ9: 0 | BK9: 3.571428571 | BL9: 10.71428571 | BM9: 3.571428571 | BN9: 0 | BO9: 0 | BP9: 0 | BQ9: 7.142857143 | BR9: 0
B10: 6 | C10: "*06_Oso m" | W10: 3 | Z10: 1 | AB10: 2 | AF10: 3 | AQ10: 0 | AR10: 3.571428571 | AS10: 3.571428571 | AT10: 14.28571429 | AU10: 3.571428571 | AV10: 14.28571429 | AW10: 7.142857143 | AX10: 0 | AY10: 0 | AZ10: 28.57142857 | BA10: 0 | BB10: 0 | BC10: 0 | BD10: 0 | BE10: 0 | BF10: 0 | BG10: 0 | BH10: 0 | BI10: 3.571428571 | BJ10: 3.571428571 | BK10: 0 | BL10: 0 | BM10: 0 | BN10: 0 | BO10: 7.142857143 | BP10: 0 | BQ10: 7.142857143 | BR10: 0
B11: 7 | C11: "07_Oso m" | X11: 1 | Z11: 3 | AD11: 2 | AF11: 3 | AQ11: 3.571428571 | AR11: 10.71428571 | AS11: 0 | AT11: 0 | AU11: 10.71428571 | AV11: 14.28571429 | AW11: 0 | AX11: 0 | AY11: 0 | AZ11: 17.85714286 | BA11: 0 | BB11: 7.142857143 | BC11: 0 | BD11: 0 | BE11: 3.571428571 | BF11: 3.571428571 | BG11: 3.571428571 | BH11: 0 | BI11: 0 | BJ11: 3.571428571 | BK11: 0 | BL11: 0 | BM11: 7.142857143 | BN11: 7.142857143 | BO11: 3.571428571 | BP11: 0 | BQ11: 0 | BR11: 0
B12: 8 | C12: "08_Oso m" | F12: 1 | I12: 3 | M12: 2 | AF12: 3 | AQ12: 3.571428571 | AR12: 28.57142857 | AS12: 7.142857143 | AT12: 25 | AU12: 25 | AV12: 46.42857143 | AW12: 7.142857143 | AX12: 0 | AY12: 0 | AZ12: 53.57142857 | BA12: 0 | BB12: 7.142857143 | BC12: 0 | BD12: 0 | BE12: 3.571428571 | BF12: 7.142857143 | BG12: 3.571428571 | BH12: 0 | BI12: 7.142857143 | BJ12: 7.142857143 | BK12: 3.571428571 | BL12: 10.71428571 | BM12: 10.71428571 | BN12: 7.142857143 | BO12: 10.71428571 | BP12: 0 | BQ12: 14.28571429 | BR12: 0
B13: 9 | C13: "09_Oso f" | I13: 1 | M13: 2 | R13: 3 | AF13: 3
B14: 10 | C14: "**10_Oso m" | Z14: 3 | AB14: 2 | AD14: 1 | AF14: 3
B15: 11 | C15: "11_Oso m" | E15: 1 | G15: 2 | M15: 3 | AF15: 3
B16: 12 | C16: "12_Oso m" | E16: 2 | H16: 1 | M16: 3 | AF16: 3
B17: 13 | C17: "13_Oso m" | I17: 1 | M17: 2 | AB17: 3 | AF17: 3
B18: 14 | C18: "14_Oso m" | E18: 1 | H18: 3 | M18: 2 | AF18: 3
B19: 15 | C19: "15_Oso f" | S19: 1 | AA19: 3 | AD19: 2 | AF19: 3
B20: 16 | C20: "16_Oso f" | E20: 3 | I20: 2 | M20: 1 | AF20: 3
B21: 17 | C21: "17_Oso f" | I21: 1 | M21: 2 | S21: 3 | AF21: 3
B22: 18 | C22: "18_Oso f" | E22: 3 | I22: 2 | M22: 1 | AF22: 3
B23: 19 | C23: "19_Oso f" | E23: 1 | I23: 2 | M23: 3 | AF23: 3
B24: 20 | C24: "20_Oso f" | G24: 2 | I24: 3 | Y24: 1 | AF24: 3
B25: 21 | C25: "21_Oso f" | E25: 1 | I25: 3 | M25: 2 | AF25: 3
B26: 22 | C26: "22_Oso f" | G26: 2 | H26: 1 | O26: 3 | AF26: 3
B27: 23 | C27: "23_Oso f" | J27: 2 | M27: 3 | Y27: 1 | AF27: 3
B28: 24 | C28: "24_Oso f" | T28: 3 | W28: 2 | Y28: 1 | AF28: 3
B29: 25 | C29: "25_Oso f" | H29: 3 | I29: 1 | M29: 2 | AF29: 3
B30: 26 | C30: "26_Oso f" | H30: 1 | I30: 3 | J30: 2 | AF30: 3
B31: 27 | C31: "27_Oso f" | H31: 3 | I31: 1 | M31: 2 | AF31: 3
B32: 28 | C32: "28_Oso f" | AF32: 0
C33: Suma volieb 1 + 2 + 3 spolu | D33: 1 | E33: 8 | F33: 2 | G33: 7 | H33: 7 | I33: 13 | J33: 2 | K33: 0 | L33: 0 | M33: 15 | N33: 0 | O33: 2 | P33: 0 | Q33: 0 | R33: 1 | S33: 2 | T33: 1 | U33: 0 | V33: 2 | W33: 2 | X33: 1 | Y33: 3 | Z33: 3 | AA33: 2 | AB33: 3 | AC33: 0 | AD33: 4 | AE33: 0 | AF33: =SUM($D$33:$AE$33) -> 81
C34: Suma volieb 1 | D34: =COUNTIF(D5:D32,1) -> 0 | E34: 4 | F34: 1 | G34: 3 | H34: 3 | I34: 5 | J34: 0 | K34: 0 | L34: 0 | M34: 2 | N34: 0 | O34: 0 | P34: 0 | Q34: 0 | R34: 0 | S34: 1 | T34: 0 | U34: 0 | V34: 1 | W34: 0 | X34: 1 | Y34: 3 | Z34: 1 | AA34: 0 | AB34: 0 | AC34: 0 | AD34: 2 | AE34: 0
C35: Suma volieb 2 | D35: =COUNTIF(D5:D32,2) -> 0 | E35: 1 | F35: 1 | G35: 4 | H35: 1 | I35: 4 | J35: 2 | K35: 0 | L35: 0 | M35: 8 | N35: 0 | O35: 0 | P35: 0 | Q35: 0 | R35: 0 | S35: 0 | T35: 0 | U35: 0 | V35: 1 | W35: 1 | X35: 0 | Y35: 0 | Z35: 0 | AA35: 0 | AB35: 2 | AC35: 0 | AD35: 2 | AE35: 0
C36: Suma volieb 3 | D36: =COUNTIF(D5:D32,3) -> 1 | E36: 3 | F36: 0 | G36: 0 | H36: 3 | I36: 4 | J36: 0 | K36: 0 | L36: 0 | M36: 5 | N36: 0 | O36: 2 | P36: 0 | Q36: 0 | R36: 1 | S36: 1 | T36: 1 | U36: 0 | V36: 0 | W36: 1 | X36: 0 | Y36: 0 | Z36: 2 | AA36: 2 | AB36: 1 | AC36: 0 | AD36: 0 | AE36: 0
C37: Percento Suma volieb 1 | D37: =(D34/$B$3)*100 -> 0 | E37: 14.28571429 | F37: 3.571428571 | G37: 10.71428571 | H37: 10.71428571 | I37: 17.85714286 | J37: 0 | K37: 0 | L37: 0 | M37: 7.142857143 | N37: 0 | O37: 0 | P37: 0 | Q37: 0 | R37: 0 | S37: 3.571428571 | T37: 0 | U37: 0 | V37: 3.571428571 | W37: 0 | X37: 3.571428571 | Y37: 10.71428571 | Z37: 3.571428571 | AA37: 0 | AB37: 0 | AC37: 0 | AD37: 7.142857143 | AE37: 0
C38: Percento Suma volieb 2 | D38: =(D35/$B$3)*100 -> 0 | E38: 3.571428571 | F38: 3.571428571 | G38: 14.28571429 | H38: 3.571428571 | I38: 14.28571429 | J38: 7.142857143 | K38: 0 | L38: 0 | M38: 28.57142857 | N38: 0 | O38: 0 | P38: 0 | Q38: 0 | R38: 0 | S38: 0 | T38: 0 | U38: 0 | V38: 3.571428571 | W38: 3.571428571 | X38: 0 | Y38: 0 | Z38: 0 | AA38: 0 | AB38: 7.142857143 | AC38: 0 | AD38: 7.142857143 | AE38: 0
C39: Percento Suma volieb 3 | D39: =(D36/$B$3)*100 -> 3.571428571 | E39: 10.71428571 | F39: 0 | G39: 0 | H39: 10.71428571 | I39: 14.28571429 | J39: 0 | K39: 0 | L39: 0 | M39: 17.85714286 | N39: 0 | O39: 7.142857143 | P39: 0 | Q39: 0 | R39: 3.571428571 | S39: 3.571428571 | T39: 3.571428571 | U39: 0 | V39: 0 | W39: 3.571428571 | X39: 0 | Y39: 0 | Z39: 7.142857143 | AA39: 7.142857143 | AB39: 3.571428571 | AC39: 0 | AD39: 0 | AE39: 0
C40: Percento Suma volieb 1 + 2 + 3 spolu | D40: =(D33/$B$3)*100 -> 3.571428571 | E40: 28.57142857 | F40: 7.142857143 | G40: 25 | H40: 25 | I40: 46.42857143 | J40: 7.142857143 | K40: 0 | L40: 0 | M40: 53.57142857 | N40: 0 | O40: 7.142857143 | P40: 0 | Q40: 0 | R40: 3.571428571 | S40: 7.142857143 | T40: 3.571428571 | U40: 0 | V40: 7.142857143 | W40: 7.142857143 | X40: 3.571428571 | Y40: 10.71428571 | Z40: 10.71428571 | AA40: 7.142857143 | AB40: 10.71428571 | AC40: 0 | AD40: 14.28571429 | AE40: 0
D42: 1 | E42: 2 | F42: 3 | G42: 4 | H42: 5 | I42: 6 | J42: 7 | K42: 8 | L42: 9 | M42: 10 | N42: 11 | O42: 12 | P42: 13 | Q42: 14 | R42: 15 | S42: 16 | T42: 17 | U42: 18 | V42: 19 | W42: 20 | X42: 21 | Y42: 22 | Z42: 23 | AA42: 24 | AB42: 25 | AC42: 26 | AD42: 27 | AE42: 28
D43: "01_Oso m" | E43: "02_Oso m" | F43: "03_Oso m" | G43: "04_Oso m" | H43: "05_Oso m" | I43: "*06_Oso m" | J43: "07_Oso m" | K43: "08_Oso m" | L43: "09_Oso f" | M43: "**10_Oso m" | N43: "11_Oso m" | O43: "12_Oso m" | P43: "13_Oso m" | Q43: "14_Oso m" | R43: "15_Oso f" | S43: "16_Oso f" | T43: "17_Oso f" | U43: "18_Oso f" | V43: "19_Oso f" | W43: "20_Oso f" | X43: "21_Oso f" | Y43: "22_Oso f" | Z43: "23_Oso f" | AA43: "24_Oso f" | AB43: "25_Oso f" | AC43: "26_Oso f" | AD43: "27_Oso f" | AE43: "28_Oso f"
B44: 1 | C44: "01_Oso m" | D44: =IF(D5<>0,D$3,"") ->  | G44: 4 | O44: 12 | AD44: 27 | AG44: 4, 12, 27, | AK44: 4 | AL44: 12 | AM44: 27 | AN44: 0
B45: 2 | C45: "02_Oso m" | G45: 4 | I45: 6 | M45: 10 | AG45: 4, 6, 10, | AK45: 4 | AL45: 6 | AM45: 10 | AN45: 0
B46: 3 | C46: "03_Oso m" | D46: 1 | G46: 4 | H46: 5 | AG46: 1, 4, 5, | AK46: 1 | AL46: 4 | AM46: 5 | AN46: 1
B47: 4 | C47: "04_Oso m" | F47: 3 | V47: 19 | AA47: 24 | AG47: 3, 19, 24, | AK47: 3 | AL47: 19 | AM47: 24 | AN47: 1
B48: 5 | C48: "05_Oso m" | E48: 2 | G48: 4 | V48: 19 | AG48: 2, 4, 19, | AK48: 2 | AL48: 4 | AM48: 19 | AN48: 0
B49: 6 | C49: "*06_Oso m" | W49: 20 | Z49: 23 | AB49: 25 | AG49: 20, 23, 25, | AK49: 20 | AL49: 23 | AM49: 25 | AN49: 2
B50: 7 | C50: "07_Oso m" | X50: 21 | Z50: 23 | AD50: 27 | AG50: 21, 23, 27, | AK50: 21 | AL50: 23 | AM50: 27 | AN50: 1
B51: 8 | C51: "08_Oso m" | F51: 3 | I51: 6 | M51: 10 | AG51: 3, 6, 10, | AK51: 3 | AL51: 6 | AM51: 10 | AN51: 0
B52: 9 | C52: "09_Oso f" | I52: 6 | M52: 10 | R52: 15 | AG52: 6, 10, 15, | AK52: 6 | AL52: 10 | AM52: 15 | AN52: 0
B53: 10 | C53: "**10_Oso m" | G53: =IF(G14<>0,G$3,"") ->  | Z53: 23 | AB53: 25 | AD53: 27 | AG53: 23, 25, 27, | AK53: 23 | AL53: 25 | AM53: 27 | AN53: 3
B54: 11 | C54: "11_Oso m" | D54: =IF(D15<>0,D$3,"") ->  | E54: 2 | G54: 4 | M54: 10 | AG54: 2, 4, 10, | AK54: 2 | AL54: 4 | AM54: 10 | AN54: 0
B55: 12 | C55: "12_Oso m" | E55: 2 | H55: 5 | M55: 10 | AG55: 2, 5, 10, | AK55: 2 | AL55: 5 | AM55: 10 | AN55: 0
B56: 13 | C56: "13_Oso m" | I56: 6 | M56: 10 | AB56: 25 | AG56: 6, 10, 25, | AK56: 6 | AL56: 10 | AM56: 25 | AN56: 0
B57: 14 | C57: "14_Oso m" | E57: 2 | H57: 5 | M57: 10 | AG57: 2, 5, 10, | AK57: 2 | AL57: 5 | AM57: 10 | AN57: 0
B58: 15 | C58: "15_Oso f" | S58: 16 | AA58: 24 | AD58: 27 | AG58: 16, 24, 27, | AK58: 16 | AL58: 24 | AM58: 27 | AN58: 0
B59: 16 | C59: "16_Oso f" | E59: 2 | I59: 6 | M59: 10 | AG59: 2, 6, 10, | AK59: 2 | AL59: 6 | AM59: 10 | AN59: 0
B60: 17 | C60: "17_Oso f" | I60: 6 | M60: 10 | S60: 16 | AG60: 6, 10, 16, | AK60: 6 | AL60: 10 | AM60: 16 | AN60: 0
B61: 18 | C61: "18_Oso f" | E61: 2 | I61: 6 | M61: 10 | AG61: 2, 6, 10, | AK61: 2 | AL61: 6 | AM61: 10 | AN61: 0
B62: 19 | C62: "19_Oso f" | E62: 2 | I62: 6 | M62: 10 | AG62: 2, 6, 10, | AK62: 2 | AL62: 6 | AM62: 10 | AN62: 0
B63: 20 | C63: "20_Oso f" | G63: =IF(G24<>0,G$3,"") -> 4 | I63: 6 | Y63: 22 | AG63: 4, 6, 22, | AK63: 4 | AL63: 6 | AM63: 22 | AN63: 1
B64: 21 | C64: "21_Oso f" | D64: =IF(D25<>0,D$3,"") ->  | E64: 2 | I64: 6 | M64: 10 | AG64: 2, 6, 10, | AK64: 2 | AL64: 6 | AM64: 10 | AN64: 0
B65: 22 | C65: "22_Oso f" | G65: 4 | H65: 5 | O65: 12 | AG65: 4, 5, 12, | AK65: 4 | AL65: 5 | AM65: 12 | AN65: 0
B66: 23 | C66: "23_Oso f" | J66: 7 | M66: 10 | Y66: 22 | AG66: 7, 10, 22, | AK66: 7 | AL66: 10 | AM66: 22 | AN66: 2
B67: 24 | C67: "24_Oso f" | T67: 17 | W67: 20 | Y67: 22 | AG67: 17, 20, 22, | AK67: 17 | AL67: 20 | AM67: 22 | AN67: 0
B68: 25 | C68: "25_Oso f" | H68: 5 | I68: 6 | M68: 10 | AG68: 5, 6, 10, | AK68: 5 | AL68: 6 | AM68: 10 | AN68: 2
B69: 26 | C69: "26_Oso f" | H69: 5 | I69: 6 | J69: 7 | AG69: 5, 6, 7, | AK69: 5 | AL69: 6 | AM69: 7 | AN69: 0
B70: 27 | C70: "27_Oso f" | H70: 5 | I70: 6 | M70: 10 | AG70: 5, 6, 10, | AK70: 5 | AL70: 6 | AM70: 10 | AN70: 1
B71: 28 | C71: "28_Oso f" | AG71: 0, 0, 0, | AK71: 0 | AL71: 0 | AM71: 0 | AN71: 0
AN72: =SUM($AN$44:$AN$71) -> 14

Sheet Q_11
A1: "11. Nezadaná"
B2: 3
B3: 28 | D3: 1 | E3: 2 | F3: 3 | G3: 4 | H3: 5 | I3: 6 | J3: 7 | K3: 8 | L3: 9 | M3: 10 | N3: 11 | O3: 12 | P3: 13 | Q3: 14 | R3: 15 | S3: 16 | T3: 17 | U3: 18 | V3: 19 | W3: 20 | X3: 21 | Y3: 22 | Z3: 23 | AA3: 24 | AB3: 25 | AC3: 26 | AD3: 27 | AE3: 28
D4: "01_Oso m" | E4: "02_Oso m" | F4: "03_Oso m" | G4: "04_Oso m" | H4: "05_Oso m" | I4: "*06_Oso m" | J4: "07_Oso m" | K4: "08_Oso m" | L4: "09_Oso f" | M4: "**10_Oso m" | N4: "11_Oso m" | O4: "12_Oso m" | P4: "13_Oso m" | Q4: "14_Oso m" | R4: "15_Oso f" | S4: "16_Oso f" | T4: "17_Oso f" | U4: "18_Oso f" | V4: "19_Oso f" | W4: "20_Oso f" | X4: "21_Oso f" | Y4: "22_Oso f" | Z4: "23_Oso f" | AA4: "24_Oso f" | AB4: "25_Oso f" | AC4: "26_Oso f" | AD4: "27_Oso f" | AE4: "28_Oso f"
A5: → | B5: 1 | C5: "01_Oso m"
B6: 2 | C6: "02_Oso m"
B7: 3 | C7: "03_Oso m"
B8: 4 | C8: "04_Oso m"
B9: 5 | C9: "05_Oso m"
B10: 6 | C10: "*06_Oso m"
B11: 7 | C11: "07_Oso m"
B12: 8 | C12: "08_Oso m"
B13: 9 | C13: "09_Oso f"
B14: 10 | C14: "**10_Oso m"
B15: 11 | C15: "11_Oso m"
B16: 12 | C16: "12_Oso m"
B17: 13 | C17: "13_Oso m"
B18: 14 | C18: "14_Oso m"
B19: 15 | C19: "15_Oso f"
B20: 16 | C20: "16_Oso f"
B21: 17 | C21: "17_Oso f"
B22: 18 | C22: "18_Oso f"
B23: 19 | C23: "19_Oso f"
B24: 20 | C24: "20_Oso f"
B25: 21 | C25: "21_Oso f"
B26: 22 | C26: "22_Oso f"
B27: 23 | C27: "23_Oso f"
B28: 24 | C28: "24_Oso f"
B29: 25 | C29: "25_Oso f"
B30: 26 | C30: "26_Oso f"
B31: 27 | C31: "27_Oso f"
B32: 28 | C32: "28_Oso f"
D42: 1 | E42: 2 | F42: 3 | G42: 4 | H42: 5 | I42: 6 | J42: 7 | K42: 8 | L42: 9 | M42: 10 | N42: 11 | O42: 12 | P42: 13 | Q42: 14 | R42: 15 | S42: 16 | T42: 17 | U42: 18 | V42: 19 | W42: 20 | X42: 21 | Y42: 22 | Z42: 23 | AA42: 24 | AB42: 25 | AC42: 26 | AD42: 27 | AE42: 28
D43: "01_Oso m" | E43: "02_Oso m" | F43: "03_Oso m" | G43: "04_Oso m" | H43: "05_Oso m" | I43: "*06_Oso m" | J43: "07_Oso m" | K43: "08_Oso m" | L43: "09_Oso f" | M43: "**10_Oso m" | N43: "11_Oso m" | O43: "12_Oso m" | P43: "13_Oso m" | Q43: "14_Oso m" | R43: "15_Oso f" | S43: "16_Oso f" | T43: "17_Oso f" | U43: "18_Oso f" | V43: "19_Oso f" | W43: "20_Oso f" | X43: "21_Oso f" | Y43: "22_Oso f" | Z43: "23_Oso f" | AA43: "24_Oso f" | AB43: "25_Oso f" | AC43: "26_Oso f" | AD43: "27_Oso f" | AE43: "28_Oso f"
B44: 1 | C44: "01_Oso m" | D44: =IF(D5<>0,D$3,"") -> 
B45: 2 | C45: "02_Oso m"
B46: 3 | C46: "03_Oso m"
B47: 4 | C47: "04_Oso m"
B48: 5 | C48: "05_Oso m"
B49: 6 | C49: "*06_Oso m"
B50: 7 | C50: "07_Oso m"
B51: 8 | C51: "08_Oso m"
B52: 9 | C52: "09_Oso f"
B53: 10 | C53: "**10_Oso m" | G53: =IF(G14<>0,G$3,"") -> 
B54: 11 | C54: "11_Oso m" | D54: =IF(D15<>0,D$3,"") -> 
B55: 12 | C55: "12_Oso m"
B56: 13 | C56: "13_Oso m"
B57: 14 | C57: "14_Oso m"
B58: 15 | C58: "15_Oso f"
B59: 16 | C59: "16_Oso f"
B60: 17 | C60: "17_Oso f"
B61: 18 | C61: "18_Oso f"
B62: 19 | C62: "19_Oso f"
B63: 20 | C63: "20_Oso f" | G63: =IF(G24<>0,G$3,"") -> 
B64: 21 | C64: "21_Oso f" | D64: =IF(D25<>0,D$3,"") -> 
B65: 22 | C65: "22_Oso f"
B66: 23 | C66: "23_Oso f"
B67: 24 | C67: "24_Oso f"
B68: 25 | C68: "25_Oso f"
B69: 26 | C69: "26_Oso f"
B70: 27 | C70: "27_Oso f"
B71: 28 | C71: "28_Oso f"

Sheet Q_12
A1: "12. Nezadaná"
B2: 3
B3: 28 | D3: 1 | E3: 2 | F3: 3 | G3: 4 | H3: 5 | I3: 6 | J3: 7 | K3: 8 | L3: 9 | M3: 10 | N3: 11 | O3: 12 | P3: 13 | Q3: 14 | R3: 15 | S3: 16 | T3: 17 | U3: 18 | V3: 19 | W3: 20 | X3: 21 | Y3: 22 | Z3: 23 | AA3: 24 | AB3: 25 | AC3: 26 | AD3: 27 | AE3: 28
D4: "01_Oso m" | E4: "02_Oso m" | F4: "03_Oso m" | G4: "04_Oso m" | H4: "05_Oso m" | I4: "*06_Oso m" | J4: "07_Oso m" | K4: "08_Oso m" | L4: "09_Oso f" | M4: "**10_Oso m" | N4: "11_Oso m" | O4: "12_Oso m" | P4: "13_Oso m" | Q4: "14_Oso m" | R4: "15_Oso f" | S4: "16_Oso f" | T4: "17_Oso f" | U4: "18_Oso f" | V4: "19_Oso f" | W4: "20_Oso f" | X4: "21_Oso f" | Y4: "22_Oso f" | Z4: "23_Oso f" | AA4: "24_Oso f" | AB4: "25_Oso f" | AC4: "26_Oso f" | AD4: "27_Oso f" | AE4: "28_Oso f"
A5: → | B5: 1 | C5: "01_Oso m"
B6: 2 | C6: "02_Oso m"
B7: 3 | C7: "03_Oso m"
B8: 4 | C8: "04_Oso m"
B9: 5 | C9: "05_Oso m"
B10: 6 | C10: "*06_Oso m"
B11: 7 | C11: "07_Oso m"
B12: 8 | C12: "08_Oso m"
B13: 9 | C13: "09_Oso f"
B14: 10 | C14: "**10_Oso m"
B15: 11 | C15: "11_Oso m"
B16: 12 | C16: "12_Oso m"
B17: 13 | C17: "13_Oso m"
B18: 14 | C18: "14_Oso m"
B19: 15 | C19: "15_Oso f"
B20: 16 | C20: "16_Oso f"
B21: 17 | C21: "17_Oso f"
B22: 18 | C22: "18_Oso f"
B23: 19 | C23: "19_Oso f"
B24: 20 | C24: "20_Oso f"
B25: 21 | C25: "21_Oso f"
B26: 22 | C26: "22_Oso f"
B27: 23 | C27: "23_Oso f"
B28: 24 | C28: "24_Oso f"
B29: 25 | C29: "25_Oso f"
B30: 26 | C30: "26_Oso f"
B31: 27 | C31: "27_Oso f"
B32: 28 | C32: "28_Oso f"
D42: 1 | E42: 2 | F42: 3 | G42: 4 | H42: 5 | I42: 6 | J42: 7 | K42: 8 | L42: 9 | M42: 10 | N42: 11 | O42: 12 | P42: 13 | Q42: 14 | R42: 15 | S42: 16 | T42: 17 | U42: 18 | V42: 19 | W42: 20 | X42: 21 | Y42: 22 | Z42: 23 | AA42: 24 | AB42: 25 | AC42: 26 | AD42: 27 | AE42: 28
D43: "01_Oso m" | E43: "02_Oso m" | F43: "03_Oso m" | G43: "04_Oso m" | H43: "05_Oso m" | I43: "*06_Oso m" | J43: "07_Oso m" | K43: "08_Oso m" | L43: "09_Oso f" | M43: "**10_Oso m" | N43: "11_Oso m" | O43: "12_Oso m" | P43: "13_Oso m" | Q43: "14_Oso m" | R43: "15_Oso f" | S43: "16_Oso f" | T43: "17_Oso f" | U43: "18_Oso f" | V43: "19_Oso f" | W43: "20_Oso f" | X43: "21_Oso f" | Y43: "22_Oso f" | Z43: "23_Oso f" | AA43: "24_Oso f" | AB43: "25_Oso f" | AC43: "26_Oso f" | AD43: "27_Oso f" | AE43: "28_Oso f"
B44: 1 | C44: "01_Oso m" | D44: =IF(D5<>0,D$3,"") -> 
B45: 2 | C45: "02_Oso m"
B46: 3 | C46: "03_Oso m"
B47: 4 | C47: "04_Oso m"
B48: 5 | C48: "05_Oso m"
B49: 6 | C49: "*06_Oso m"
B50: 7 | C50: "07_Oso m"
B51: 8 | C51: "08_Oso m"
B52: 9 | C52: "09_Oso f"
B53: 10 | C53: "**10_Oso m" | G53: =IF(G14<>0,G$3,"") -> 
B54: 11 | C54: "11_Oso m" | D54: =IF(D15<>0,D$3,"") -> 
B55: 12 | C55: "12_Oso m"
B56: 13 | C56: "13_Oso m"
B57: 14 | C57: "14_Oso m"
B58: 15 | C58: "15_Oso f"
B59: 16 | C59: "16_Oso f"
B60: 17 | C60: "17_Oso f"
B61: 18 | C61: "18_Oso f"
B62: 19 | C62: "19_Oso f"
B63: 20 | C63: "20_Oso f" | G63: =IF(G24<>0,G$3,"") -> 
B64: 21 | C64: "21_Oso f" | D64: =IF(D25<>0,D$3,"") -> 
B65: 22 | C65: "22_Oso f"
B66: 23 | C66: "23_Oso f"
B67: 24 | C67: "24_Oso f"
B68: 25 | C68: "25_Oso f"
B69: 26 | C69: "26_Oso f"
B70: 27 | C70: "27_Oso f"
B71: 28 | C71: "28_Oso f"

Sheet Q_13
A1: "13. Nezadaná"
B2: 3
B3: 28 | D3: 1 | E3: 2 | F3: 3 | G3: 4 | H3: 5 | I3: 6 | J3: 7 | K3: 8 | L3: 9 | M3: 10 | N3: 11 | O3: 12 | P3: 13 | Q3: 14 | R3: 15 | S3: 16 | T3: 17 | U3: 18 | V3: 19 | W3: 20 | X3: 21 | Y3: 22 | Z3: 23 | AA3: 24 | AB3: 25 | AC3: 26 | AD3: 27 | AE3: 28
D4: "01_Oso m" | E4: "02_Oso m" | F4: "03_Oso m" | G4: "04_Oso m" | H4: "05_Oso m" | I4: "*06_Oso m" | J4: "07_Oso m" | K4: "08_Oso m" | L4: "09_Oso f" | M4: "**10_Oso m" | N4: "11_Oso m" | O4: "12_Oso m" | P4: "13_Oso m" | Q4: "14_Oso m" | R4: "15_Oso f" | S4: "16_Oso f" | T4: "17_Oso f" | U4: "18_Oso f" | V4: "19_Oso f" | W4: "20_Oso f" | X4: "21_Oso f" | Y4: "22_Oso f" | Z4: "23_Oso f" | AA4: "24_Oso f" | AB4: "25_Oso f" | AC4: "26_Oso f" | AD4: "27_Oso f" | AE4: "28_Oso f"
A5: → | B5: 1 | C5: "01_Oso m"
B6: 2 | C6: "02_Oso m"
B7: 3 | C7: "03_Oso m"
B8: 4 | C8: "04_Oso m"
B9: 5 | C9: "05_Oso m"
B10: 6 | C10: "*06_Oso m"
B11: 7 | C11: "07_Oso m"
B12: 8 | C12: "08_Oso m"
B13: 9 | C13: "09_Oso f"
B14: 10 | C14: "**10_Oso m"
B15: 11 | C15: "11_Oso m"
B16: 12 | C16: "12_Oso m"
B17: 13 | C17: "13_Oso m"
B18: 14 | C18: "14_Oso m"
B19: 15 | C19: "15_Oso f"
B20: 16 | C20: "16_Oso f"
B21: 17 | C21: "17_Oso f"
B22: 18 | C22: "18_Oso f"
B23: 19 | C23: "19_Oso f"
B24: 20 | C24: "20_Oso f"
B25: 21 | C25: "21_Oso f"
B26: 22 | C26: "22_Oso f"
B27: 23 | C27: "23_Oso f"
B28: 24 | C28: "24_Oso f"
B29: 25 | C29: "25_Oso f"
B30: 26 | C30: "26_Oso f"
B31: 27 | C31: "27_Oso f"
B32: 28 | C32: "28_Oso f"
D42: 1 | E42: 2 | F42: 3 | G42: 4 | H42: 5 | I42: 6 | J42: 7 | K42: 8 | L42: 9 | M42: 10 | N42: 11 | O42: 12 | P42: 13 | Q42: 14 | R42: 15 | S42: 16 | T42: 17 | U42: 18 | V42: 19 | W42: 20 | X42: 21 | Y42: 22 | Z42: 23 | AA42: 24 | AB42: 25 | AC42: 26 | AD42: 27 | AE42: 28
D43: "01_Oso m" | E43: "02_Oso m" | F43: "03_Oso m" | G43: "04_Oso m" | H43: "05_Oso m" | I43: "*06_Oso m" | J43: "07_Oso m" | K43: "08_Oso m" | L43: "09_Oso f" | M43: "**10_Oso m" | N43: "11_Oso m" | O43: "12_Oso m" | P43: "13_Oso m" | Q43: "14_Oso m" | R43: "15_Oso f" | S43: "16_Oso f" | T43: "17_Oso f" | U43: "18_Oso f" | V43: "19_Oso f" | W43: "20_Oso f" | X43: "21_Oso f" | Y43: "22_Oso f" | Z43: "23_Oso f" | AA43: "24_Oso f" | AB43: "25_Oso f" | AC43: "26_Oso f" | AD43: "27_Oso f" | AE43: "28_Oso f"
B44: 1 | C44: "01_Oso m" | D44: =IF(D5<>0,D$3,"") -> 
B45: 2 | C45: "02_Oso m"
B46: 3 | C46: "03_Oso m"
B47: 4 | C47: "04_Oso m"
B48: 5 | C48: "05_Oso m"
B49: 6 | C49: "*06_Oso m"
B50: 7 | C50: "07_Oso m"
B51: 8 | C51: "08_Oso m"
B52: 9 | C52: "09_Oso f"
B53: 10 | C53: "**10_Oso m" | G53: =IF(G14<>0,G$3,"") -> 
B54: 11 | C54: "11_Oso m" | D54: =IF(D15<>0,D$3,"") -> 
B55: 12 | C55: "12_Oso m"
B56: 13 | C56: "13_Oso m"
B57: 14 | C57: "14_Oso m"
B58: 15 | C58: "15_Oso f"
B59: 16 | C59: "16_Oso f"
B60: 17 | C60: "17_Oso f"
B61: 18 | C61: "18_Oso f"
B62: 19 | C62: "19_Oso f"
B63: 20 | C63: "20_Oso f" | G63: =IF(G24<>0,G$3,"") -> 
B64: 21 | C64: "21_Oso f" | D64: =IF(D25<>0,D$3,"") -> 
B65: 22 | C65: "22_Oso f"
B66: 23 | C66: "23_Oso f"
B67: 24 | C67: "24_Oso f"
B68: 25 | C68: "25_Oso f"
B69: 26 | C69: "26_Oso f"
B70: 27 | C70: "27_Oso f"
B71: 28 | C71: "28_Oso f"

Sheet Q_14
A1: "14. Nezadaná"
B2: 3
B3: 28 | D3: 1 | E3: 2 | F3: 3 | G3: 4 | H3: 5 | I3: 6 | J3: 7 | K3: 8 | L3: 9 | M3: 10 | N3: 11 | O3: 12 | P3: 13 | Q3: 14 | R3: 15 | S3: 16 | T3: 17 | U3: 18 | V3: 19 | W3: 20 | X3: 21 | Y3: 22 | Z3: 23 | AA3: 24 | AB3: 25 | AC3: 26 | AD3: 27 | AE3: 28
D4: "01_Oso m" | E4: "02_Oso m" | F4: "03_Oso m" | G4: "04_Oso m" | H4: "05_Oso m" | I4: "*06_Oso m" | J4: "07_Oso m" | K4: "08_Oso m" | L4: "09_Oso f" | M4: "**10_Oso m" | N4: "11_Oso m" | O4: "12_Oso m" | P4: "13_Oso m" | Q4: "14_Oso m" | R4: "15_Oso f" | S4: "16_Oso f" | T4: "17_Oso f" | U4: "18_Oso f" | V4: "19_Oso f" | W4: "20_Oso f" | X4: "21_Oso f" | Y4: "22_Oso f" | Z4: "23_Oso f" | AA4: "24_Oso f" | AB4: "25_Oso f" | AC4: "26_Oso f" | AD4: "27_Oso f" | AE4: "28_Oso f"
A5: → | B5: 1 | C5: "01_Oso m"
B6: 2 | C6: "02_Oso m"
B7: 3 | C7: "03_Oso m"
B8: 4 | C8: "04_Oso m"
B9: 5 | C9: "05_Oso m"
B10: 6 | C10: "*06_Oso m"
B11: 7 | C11: "07_Oso m"
B12: 8 | C12: "08_Oso m"
B13: 9 | C13: "09_Oso f"
B14: 10 | C14: "**10_Oso m"
B15: 11 | C15: "11_Oso m"
B16: 12 | C16: "12_Oso m"
B17: 13 | C17: "13_Oso m"
B18: 14 | C18: "14_Oso m"
B19: 15 | C19: "15_Oso f"
B20: 16 | C20: "16_Oso f"
B21: 17 | C21: "17_Oso f"
B22: 18 | C22: "18_Oso f"
B23: 19 | C23: "19_Oso f"
B24: 20 | C24: "20_Oso f"
B25: 21 | C25: "21_Oso f"
B26: 22 | C26: "22_Oso f"
B27: 23 | C27: "23_Oso f"
B28: 24 | C28: "24_Oso f"
B29: 25 | C29: "25_Oso f"
B30: 26 | C30: "26_Oso f"
B31: 27 | C31: "27_Oso f"
B32: 28 | C32: "28_Oso f"
D42: 1 | E42: 2 | F42: 3 | G42: 4 | H42: 5 | I42: 6 | J42: 7 | K42: 8 | L42: 9 | M42: 10 | N42: 11 | O42: 12 | P42: 13 | Q42: 14 | R42: 15 | S42: 16 | T42: 17 | U42: 18 | V42: 19 | W42: 20 | X42: 21 | Y42: 22 | Z42: 23 | AA42: 24 | AB42: 25 | AC42: 26 | AD42: 27 | AE42: 28
D43: "01_Oso m" | E43: "02_Oso m" | F43: "03_Oso m" | G43: "04_Oso m" | H43: "05_Oso m" | I43: "*06_Oso m" | J43: "07_Oso m" | K43: "08_Oso m" | L43: "09_Oso f" | M43: "**10_Oso m" | N43: "11_Oso m" | O43: "12_Oso m" | P43: "13_Oso m" | Q43: "14_Oso m" | R43: "15_Oso f" | S43: "16_Oso f" | T43: "17_Oso f" | U43: "18_Oso f" | V43: "19_Oso f" | W43: "20_Oso f" | X43: "21_Oso f" | Y43: "22_Oso f" | Z43: "23_Oso f" | AA43: "24_Oso f" | AB43: "25_Oso f" | AC43: "26_Oso f" | AD43: "27_Oso f" | AE43: "28_Oso f"
B44: 1 | C44: "01_Oso m" | D44: =IF(D5<>0,D$3,"") -> 
B45: 2 | C45: "02_Oso m"
B46: 3 | C46: "03_Oso m"
B47: 4 | C47: "04_Oso m"
B48: 5 | C48: "05_Oso m"
B49: 6 | C49: "*06_Oso m"
B50: 7 | C50: "07_Oso m"
B51: 8 | C51: "08_Oso m"
B52: 9 | C52: "09_Oso f"
B53: 10 | C53: "**10_Oso m" | G53: =IF(G14<>0,G$3,"") -> 
B54: 11 | C54: "11_Oso m" | D54: =IF(D15<>0,D$3,"") -> 
B55: 12 | C55: "12_Oso m"
B56: 13 | C56: "13_Oso m"
B57: 14 | C57: "14_Oso m"
B58: 15 | C58: "15_Oso f"
B59: 16 | C59: "16_Oso f"
B60: 17 | C60: "17_Oso f"
B61: 18 | C61: "18_Oso f"
B62: 19 | C62: "19_Oso f"
B63: 20 | C63: "20_Oso f" | G63: =IF(G24<>0,G$3,"") -> 
B64: 21 | C64: "21_Oso f" | D64: =IF(D25<>0,D$3,"") -> 
B65: 22 | C65: "22_Oso f"
B66: 23 | C66: "23_Oso f"
B67: 24 | C67: "24_Oso f"
B68: 25 | C68: "25_Oso f"
B69: 26 | C69: "26_Oso f"
B70: 27 | C70: "27_Oso f"
B71: 28 | C71: "28_Oso f"

Sheet Q_15
A1: "15. Nezadaná"
B2: 3
B3: 28 | D3: 1 | E3: 2 | F3: 3 | G3: 4 | H3: 5 | I3: 6 | J3: 7 | K3: 8 | L3: 9 | M3: 10 | N3: 11 | O3: 12 | P3: 13 | Q3: 14 | R3: 15 | S3: 16 | T3: 17 | U3: 18 | V3: 19 | W3: 20 | X3: 21 | Y3: 22 | Z3: 23 | AA3: 24 | AB3: 25 | AC3: 26 | AD3: 27 | AE3: 28
D4: "01_Oso m" | E4: "02_Oso m" | F4: "03_Oso m" | G4: "04_Oso m" | H4: "05_Oso m" | I4: "*06_Oso m" | J4: "07_Oso m" | K4: "08_Oso m" | L4: "09_Oso f" | M4: "**10_Oso m" | N4: "11_Oso m" | O4: "12_Oso m" | P4: "13_Oso m" | Q4: "14_Oso m" | R4: "15_Oso f" | S4: "16_Oso f" | T4: "17_Oso f" | U4: "18_Oso f" | V4: "19_Oso f" | W4: "20_Oso f" | X4: "21_Oso f" | Y4: "22_Oso f" | Z4: "23_Oso f" | AA4: "24_Oso f" | AB4: "25_Oso f" | AC4: "26_Oso f" | AD4: "27_Oso f" | AE4: "28_Oso f"
A5: → | B5: 1 | C5: "01_Oso m"
B6: 2 | C6: "02_Oso m"
B7: 3 | C7: "03_Oso m"
B8: 4 | C8: "04_Oso m"
B9: 5 | C9: "05_Oso m"
B10: 6 | C10: "*06_Oso m"
B11: 7 | C11: "07_Oso m"
B12: 8 | C12: "08_Oso m"
B13: 9 | C13: "09_Oso f"
B14: 10 | C14: "**10_Oso m"
B15: 11 | C15: "11_Oso m"
B16: 12 | C16: "12_Oso m"
B17: 13 | C17: "13_Oso m"
B18: 14 | C18: "14_Oso m"
B19: 15 | C19: "15_Oso f"
B20: 16 | C20: "16_Oso f"
B21: 17 | C21: "17_Oso f"
B22: 18 | C22: "18_Oso f"
B23: 19 | C23: "19_Oso f"
B24: 20 | C24: "20_Oso f"
B25: 21 | C25: "21_Oso f"
B26: 22 | C26: "22_Oso f"
B27: 23 | C27: "23_Oso f"
B28: 24 | C28: "24_Oso f"
B29: 25 | C29: "25_Oso f"
B30: 26 | C30: "26_Oso f"
B31: 27 | C31: "27_Oso f"
B32: 28 | C32: "28_Oso f"
D42: 1 | E42: 2 | F42: 3 | G42: 4 | H42: 5 | I42: 6 | J42: 7 | K42: 8 | L42: 9 | M42: 10 | N42: 11 | O42: 12 | P42: 13 | Q42: 14 | R42: 15 | S42: 16 | T42: 17 | U42: 18 | V42: 19 | W42: 20 | X42: 21 | Y42: 22 | Z42: 23 | AA42: 24 | AB42: 25 | AC42: 26 | AD42: 27 | AE42: 28
D43: "01_Oso m" | E43: "02_Oso m" | F43: "03_Oso m" | G43: "04_Oso m" | H43: "05_Oso m" | I43: "*06_Oso m" | J43: "07_Oso m" | K43: "08_Oso m" | L43: "09_Oso f" | M43: "**10_Oso m" | N43: "11_Oso m" | O43: "12_Oso m" | P43: "13_Oso m" | Q43: "14_Oso m" | R43: "15_Oso f" | S43: "16_Oso f" | T43: "17_Oso f" | U43: "18_Oso f" | V43: "19_Oso f" | W43: "20_Oso f" | X43: "21_Oso f" | Y43: "22_Oso f" | Z43: "23_Oso f" | AA43: "24_Oso f" | AB43: "25_Oso f" | AC43: "26_Oso f" | AD43: "27_Oso f" | AE43: "28_Oso f"
B44: 1 | C44: "01_Oso m" | D44: =IF(D5<>0,D$3,"") -> 
B45: 2 | C45: "02_Oso m"
B46: 3 | C46: "03_Oso m"
B47: 4 | C47: "04_Oso m"
B48: 5 | C48: "05_Oso m"
B49: 6 | C49: "*06_Oso m"
B50: 7 | C50: "07_Oso m"
B51: 8 | C51: "08_Oso m"
B52: 9 | C52: "09_Oso f"
B53: 10 | C53: "**10_Oso m" | G53: =IF(G14<>0,G$3,"") -> 
B54: 11 | C54: "11_Oso m" | D54: =IF(D15<>0,D$3,"") -> 
B55: 12 | C55: "12_Oso m"
B56: 13 | C56: "13_Oso m"
B57: 14 | C57: "14_Oso m"
B58: 15 | C58: "15_Oso f"
B59: 16 | C59: "16_Oso f"
B60: 17 | C60: "17_Oso f"
B61: 18 | C61: "18_Oso f"
B62: 19 | C62: "19_Oso f"
B63: 20 | C63: "20_Oso f" | G63: =IF(G24<>0,G$3,"") -> 
B64: 21 | C64: "21_Oso f" | D64: =IF(D25<>0,D$3,"") -> 
B65: 22 | C65: "22_Oso f"
B66: 23 | C66: "23_Oso f"
B67: 24 | C67: "24_Oso f"
B68: 25 | C68: "25_Oso f"
B69: 26 | C69: "26_Oso f"
B70: 27 | C70: "27_Oso f"
B71: 28 | C71: "28_Oso f"

Sheet Q_16
A1: "16. Nezadaná"
B2: 3
B3: 28 | D3: 1 | E3: 2 | F3: 3 | G3: 4 | H3: 5 | I3: 6 | J3: 7 | K3: 8 | L3: 9 | M3: 10 | N3: 11 | O3: 12 | P3: 13 | Q3: 14 | R3: 15 | S3: 16 | T3: 17 | U3: 18 | V3: 19 | W3: 20 | X3: 21 | Y3: 22 | Z3: 23 | AA3: 24 | AB3: 25 | AC3: 26 | AD3: 27 | AE3: 28
D4: "01_Oso m" | E4: "02_Oso m" | F4: "03_Oso m" | G4: "04_Oso m" | H4: "05_Oso m" | I4: "*06_Oso m" | J4: "07_Oso m" | K4: "08_Oso m" | L4: "09_Oso f" | M4: "**10_Oso m" | N4: "11_Oso m" | O4: "12_Oso m" | P4: "13_Oso m" | Q4: "14_Oso m" | R4: "15_Oso f" | S4: "16_Oso f" | T4: "17_Oso f" | U4: "18_Oso f" | V4: "19_Oso f" | W4: "20_Oso f" | X4: "21_Oso f" | Y4: "22_Oso f" | Z4: "23_Oso f" | AA4: "24_Oso f" | AB4: "25_Oso f" | AC4: "26_Oso f" | AD4: "27_Oso f" | AE4: "28_Oso f"
A5: → | B5: 1 | C5: "01_Oso m"
B6: 2 | C6: "02_Oso m"
B7: 3 | C7: "03_Oso m"
B8: 4 | C8: "04_Oso m"
B9: 5 | C9: "05_Oso m"
B10: 6 | C10: "*06_Oso m"
B11: 7 | C11: "07_Oso m"
B12: 8 | C12: "08_Oso m"
B13: 9 | C13: "09_Oso f"
B14: 10 | C14: "**10_Oso m"
B15: 11 | C15: "11_Oso m"
B16: 12 | C16: "12_Oso m"
B17: 13 | C17: "13_Oso m"
B18: 14 | C18: "14_Oso m"
B19: 15 | C19: "15_Oso f"
B20: 16 | C20: "16_Oso f"
B21: 17 | C21: "17_Oso f"
B22: 18 | C22: "18_Oso f"
B23: 19 | C23: "19_Oso f"
B24: 20 | C24: "20_Oso f"
B25: 21 | C25: "21_Oso f"
B26: 22 | C26: "22_Oso f"
B27: 23 | C27: "23_Oso f"
B28: 24 | C28: "24_Oso f"
B29: 25 | C29: "25_Oso f"
B30: 26 | C30: "26_Oso f"
B31: 27 | C31: "27_Oso f"
B32: 28 | C32: "28_Oso f"
D42: 1 | E42: 2 | F42: 3 | G42: 4 | H42: 5 | I42: 6 | J42: 7 | K42: 8 | L42: 9 | M42: 10 | N42: 11 | O42: 12 | P42: 13 | Q42: 14 | R42: 15 | S42: 16 | T42: 17 | U42: 18 | V42: 19 | W42: 20 | X42: 21 | Y42: 22 | Z42: 23 | AA42: 24 | AB42: 25 | AC42: 26 | AD42: 27 | AE42: 28
D43: "01_Oso m" | E43: "02_Oso m" | F43: "03_Oso m" | G43: "04_Oso m" | H43: "05_Oso m" | I43: "*06_Oso m" | J43: "07_Oso m" | K43: "08_Oso m" | L43: "09_Oso f" | M43: "**10_Oso m" | N43: "11_Oso m" | O43: "12_Oso m" | P43: "13_Oso m" | Q43: "14_Oso m" | R43: "15_Oso f" | S43: "16_Oso f" | T43: "17_Oso f" | U43: "18_Oso f" | V43: "19_Oso f" | W43: "20_Oso f" | X43: "21_Oso f" | Y43: "22_Oso f" | Z43: "23_Oso f" | AA43: "24_Oso f" | AB43: "25_Oso f" | AC43: "26_Oso f" | AD43: "27_Oso f" | AE43: "28_Oso f"
B44: 1 | C44: "01_Oso m" | D44: =IF(D5<>0,D$3,"") -> 
B45: 2 | C45: "02_Oso m"
B46: 3 | C46: "03_Oso m"
B47: 4 | C47: "04_Oso m"
B48: 5 | C48: "05_Oso m"
B49: 6 | C49: "*06_Oso m"
B50: 7 | C50: "07_Oso m"
B51: 8 | C51: "08_Oso m"
B52: 9 | C52: "09_Oso f"
B53: 10 | C53: "**10_Oso m" | G53: =IF(G14<>0,G$3,"") -> 
B54: 11 | C54: "11_Oso m" | D54: =IF(D15<>0,D$3,"") -> 
B55: 12 | C55: "12_Oso m"
B56: 13 | C56: "13_Oso m"
B57: 14 | C57: "14_Oso m"
B58: 15 | C58: "15_Oso f"
B59: 16 | C59: "16_Oso f"
B60: 17 | C60: "17_Oso f"
B61: 18 | C61: "18_Oso f"
B62: 19 | C62: "19_Oso f"
B63: 20 | C63: "20_Oso f" | G63: =IF(G24<>0,G$3,"") -> 
B64: 21 | C64: "21_Oso f" | D64: =IF(D25<>0,D$3,"") -> 
B65: 22 | C65: "22_Oso f"
B66: 23 | C66: "23_Oso f"
B67: 24 | C67: "24_Oso f"
B68: 25 | C68: "25_Oso f"
B69: 26 | C69: "26_Oso f"
B70: 27 | C70: "27_Oso f"
B71: 28 | C71: "28_Oso f"

Sheet Q_17
A1: "17. Nezadaná"
B2: 3
B3: 28 | D3: 1 | E3: 2 | F3: 3 | G3: 4 | H3: 5 | I3: 6 | J3: 7 | K3: 8 | L3: 9 | M3: 10 | N3: 11 | O3: 12 | P3: 13 | Q3: 14 | R3: 15 | S3: 16 | T3: 17 | U3: 18 | V3: 19 | W3: 20 | X3: 21 | Y3: 22 | Z3: 23 | AA3: 24 | AB3: 25 | AC3: 26 | AD3: 27 | AE3: 28
D4: "01_Oso m" | E4: "02_Oso m" | F4: "03_Oso m" | G4: "04_Oso m" | H4: "05_Oso m" | I4: "*06_Oso m" | J4: "07_Oso m" | K4: "08_Oso m" | L4: "09_Oso f" | M4: "**10_Oso m" | N4: "11_Oso m" | O4: "12_Oso m" | P4: "13_Oso m" | Q4: "14_Oso m" | R4: "15_Oso f" | S4: "16_Oso f" | T4: "17_Oso f" | U4: "18_Oso f" | V4: "19_Oso f" | W4: "20_Oso f" | X4: "21_Oso f" | Y4: "22_Oso f" | Z4: "23_Oso f" | AA4: "24_Oso f" | AB4: "25_Oso f" | AC4: "26_Oso f" | AD4: "27_Oso f" | AE4: "28_Oso f"
A5: → | B5: 1 | C5: "01_Oso m"
B6: 2 | C6: "02_Oso m"
B7: 3 | C7: "03_Oso m"
B8: 4 | C8: "04_Oso m"
B9: 5 | C9: "05_Oso m"
B10: 6 | C10: "*06_Oso m"
B11: 7 | C11: "07_Oso m"
B12: 8 | C12: "08_Oso m"
B13: 9 | C13: "09_Oso f"
B14: 10 | C14: "**10_Oso m"
B15: 11 | C15: "11_Oso m"
B16: 12 | C16: "12_Oso m"
B17: 13 | C17: "13_Oso m"
B18: 14 | C18: "14_Oso m"
B19: 15 | C19: "15_Oso f"
B20: 16 | C20: "16_Oso f"
B21: 17 | C21: "17_Oso f"
B22: 18 | C22: "18_Oso f"
B23: 19 | C23: "19_Oso f"
B24: 20 | C24: "20_Oso f"
B25: 21 | C25: "21_Oso f"
B26: 22 | C26: "22_Oso f"
B27: 23 | C27: "23_Oso f"
B28: 24 | C28: "24_Oso f"
B29: 25 | C29: "25_Oso f"
B30: 26 | C30: "26_Oso f"
B31: 27 | C31: "27_Oso f"
B32: 28 | C32: "28_Oso f"
D42: 1 | E42: 2 | F42: 3 | G42: 4 | H42: 5 | I42: 6 | J42: 7 | K42: 8 | L42: 9 | M42: 10 | N42: 11 | O42: 12 | P42: 13 | Q42: 14 | R42: 15 | S42: 16 | T42: 17 | U42: 18 | V42: 19 | W42: 20 | X42: 21 | Y42: 22 | Z42: 23 | AA42: 24 | AB42: 25 | AC42: 26 | AD42: 27 | AE42: 28
D43: "01_Oso m" | E43: "02_Oso m" | F43: "03_Oso m" | G43: "04_Oso m" | H43: "05_Oso m" | I43: "*06_Oso m" | J43: "07_Oso m" | K43: "08_Oso m" | L43: "09_Oso f" | M43: "**10_Oso m" | N43: "11_Oso m" | O43: "12_Oso m" | P43: "13_Oso m" | Q43: "14_Oso m" | R43: "15_Oso f" | S43: "16_Oso f" | T43: "17_Oso f" | U43: "18_Oso f" | V43: "19_Oso f" | W43: "20_Oso f" | X43: "21_Oso f" | Y43: "22_Oso f" | Z43: "23_Oso f" | AA43: "24_Oso f" | AB43: "25_Oso f" | AC43: "26_Oso f" | AD43: "27_Oso f" | AE43: "28_Oso f"
B44: 1 | C44: "01_Oso m" | D44: =IF(D5<>0,D$3,"") -> 
B45: 2 | C45: "02_Oso m"
B46: 3 | C46: "03_Oso m"
B47: 4 | C47: "04_Oso m"
B48: 5 | C48: "05_Oso m"
B49: 6 | C49: "*06_Oso m"
B50: 7 | C50: "07_Oso m"
B51: 8 | C51: "08_Oso m"
B52: 9 | C52: "09_Oso f"
B53: 10 | C53: "**10_Oso m" | G53: =IF(G14<>0,G$3,"") -> 
B54: 11 | C54: "11_Oso m" | D54: =IF(D15<>0,D$3,"") -> 
B55: 12 | C55: "12_Oso m"
B56: 13 | C56: "13_Oso m"
B57: 14 | C57: "14_Oso m"
B58: 15 | C58: "15_Oso f"
B59: 16 | C59: "16_Oso f"
B60: 17 | C60: "17_Oso f"
B61: 18 | C61: "18_Oso f"
B62: 19 | C62: "19_Oso f"
B63: 20 | C63: "20_Oso f" | G63: =IF(G24<>0,G$3,"") -> 
B64: 21 | C64: "21_Oso f" | D64: =IF(D25<>0,D$3,"") -> 
B65: 22 | C65: "22_Oso f"
B66: 23 | C66: "23_Oso f"
B67: 24 | C67: "24_Oso f"
B68: 25 | C68: "25_Oso f"
B69: 26 | C69: "26_Oso f"
B70: 27 | C70: "27_Oso f"
B71: 28 | C71: "28_Oso f"

Sheet Q_18
A1: "18. Nezadaná"
B2: 3
B3: 28 | D3: 1 | E3: 2 | F3: 3 | G3: 4 | H3: 5 | I3: 6 | J3: 7 | K3: 8 | L3: 9 | M3: 10 | N3: 11 | O3: 12 | P3: 13 | Q3: 14 | R3: 15 | S3: 16 | T3: 17 | U3: 18 | V3: 19 | W3: 20 | X3: 21 | Y3: 22 | Z3: 23 | AA3: 24 | AB3: 25 | AC3: 26 | AD3: 27 | AE3: 28
D4: "01_Oso m" | E4: "02_Oso m" | F4: "03_Oso m" | G4: "04_Oso m" | H4: "05_Oso m" | I4: "*06_Oso m" | J4: "07_Oso m" | K4: "08_Oso m" | L4: "09_Oso f" | M4: "**10_Oso m" | N4: "11_Oso m" | O4: "12_Oso m" | P4: "13_Oso m" | Q4: "14_Oso m" | R4: "15_Oso f" | S4: "16_Oso f" | T4: "17_Oso f" | U4: "18_Oso f" | V4: "19_Oso f" | W4: "20_Oso f" | X4: "21_Oso f" | Y4: "22_Oso f" | Z4: "23_Oso f" | AA4: "24_Oso f" | AB4: "25_Oso f" | AC4: "26_Oso f" | AD4: "27_Oso f" | AE4: "28_Oso f"
A5: → | B5: 1 | C5: "01_Oso m"
B6: 2 | C6: "02_Oso m"
B7: 3 | C7: "03_Oso m"
B8: 4 | C8: "04_Oso m"
B9: 5 | C9: "05_Oso m"
B10: 6 | C10: "*06_Oso m"
B11: 7 | C11: "07_Oso m"
B12: 8 | C12: "08_Oso m"
B13: 9 | C13: "09_Oso f"
B14: 10 | C14: "**10_Oso m"
B15: 11 | C15: "11_Oso m"
B16: 12 | C16: "12_Oso m"
B17: 13 | C17: "13_Oso m"
B18: 14 | C18: "14_Oso m"
B19: 15 | C19: "15_Oso f"
B20: 16 | C20: "16_Oso f"
B21: 17 | C21: "17_Oso f"
B22: 18 | C22: "18_Oso f"
B23: 19 | C23: "19_Oso f"
B24: 20 | C24: "20_Oso f"
B25: 21 | C25: "21_Oso f"
B26: 22 | C26: "22_Oso f"
B27: 23 | C27: "23_Oso f"
B28: 24 | C28: "24_Oso f"
B29: 25 | C29: "25_Oso f"
B30: 26 | C30: "26_Oso f"
B31: 27 | C31: "27_Oso f"
B32: 28 | C32: "28_Oso f"
D42: 1 | E42: 2 | F42: 3 | G42: 4 | H42: 5 | I42: 6 | J42: 7 | K42: 8 | L42: 9 | M42: 10 | N42: 11 | O42: 12 | P42: 13 | Q42: 14 | R42: 15 | S42: 16 | T42: 17 | U42: 18 | V42: 19 | W42: 20 | X42: 21 | Y42: 22 | Z42: 23 | AA42: 24 | AB42: 25 | AC42: 26 | AD42: 27 | AE42: 28
D43: "01_Oso m" | E43: "02_Oso m" | F43: "03_Oso m" | G43: "04_Oso m" | H43: "05_Oso m" | I43: "*06_Oso m" | J43: "07_Oso m" | K43: "08_Oso m" | L43: "09_Oso f" | M43: "**10_Oso m" | N43: "11_Oso m" | O43: "12_Oso m" | P43: "13_Oso m" | Q43: "14_Oso m" | R43: "15_Oso f" | S43: "16_Oso f" | T43: "17_Oso f" | U43: "18_Oso f" | V43: "19_Oso f" | W43: "20_Oso f" | X43: "21_Oso f" | Y43: "22_Oso f" | Z43: "23_Oso f" | AA43: "24_Oso f" | AB43: "25_Oso f" | AC43: "26_Oso f" | AD43: "27_Oso f" | AE43: "28_Oso f"
B44: 1 | C44: "01_Oso m" | D44: =IF(D5<>0,D$3,"") -> 
B45: 2 | C45: "02_Oso m"
B46: 3 | C46: "03_Oso m"
B47: 4 | C47: "04_Oso m"
B48: 5 | C48: "05_Oso m"
B49: 6 | C49: "*06_Oso m"
B50: 7 | C50: "07_Oso m"
B51: 8 | C51: "08_Oso m"
B52: 9 | C52: "09_Oso f"
B53: 10 | C53: "**10_Oso m" | G53: =IF(G14<>0,G$3,"") -> 
B54: 11 | C54: "11_Oso m" | D54: =IF(D15<>0,D$3,"") -> 
B55: 12 | C55: "12_Oso m"
B56: 13 | C56: "13_Oso m"
B57: 14 | C57: "14_Oso m"
B58: 15 | C58: "15_Oso f"
B59: 16 | C59: "16_Oso f"
B60: 17 | C60: "17_Oso f"
B61: 18 | C61: "18_Oso f"
B62: 19 | C62: "19_Oso f"
B63: 20 | C63: "20_Oso f" | G63: =IF(G24<>0,G$3,"") -> 
B64: 21 | C64: "21_Oso f" | D64: =IF(D25<>0,D$3,"") -> 
B65: 22 | C65: "22_Oso f"
B66: 23 | C66: "23_Oso f"
B67: 24 | C67: "24_Oso f"
B68: 25 | C68: "25_Oso f"
B69: 26 | C69: "26_Oso f"
B70: 27 | C70: "27_Oso f"
B71: 28 | C71: "28_Oso f"

Sheet Q_19
A1: "19. Nezadaná"
B2: 3
B3: 28 | D3: 1 | E3: 2 | F3: 3 | G3: 4 | H3: 5 | I3: 6 | J3: 7 | K3: 8 | L3: 9 | M3: 10 | N3: 11 | O3: 12 | P3: 13 | Q3: 14 | R3: 15 | S3: 16 | T3: 17 | U3: 18 | V3: 19 | W3: 20 | X3: 21 | Y3: 22 | Z3: 23 | AA3: 24 | AB3: 25 | AC3: 26 | AD3: 27 | AE3: 28
D4: "01_Oso m" | E4: "02_Oso m" | F4: "03_Oso m" | G4: "04_Oso m" | H4: "05_Oso m" | I4: "*06_Oso m" | J4: "07_Oso m" | K4: "08_Oso m" | L4: "09_Oso f" | M4: "**10_Oso m" | N4: "11_Oso m" | O4: "12_Oso m" | P4: "13_Oso m" | Q4: "14_Oso m" | R4: "15_Oso f" | S4: "16_Oso f" | T4: "17_Oso f" | U4: "18_Oso f" | V4: "19_Oso f" | W4: "20_Oso f" | X4: "21_Oso f" | Y4: "22_Oso f" | Z4: "23_Oso f" | AA4: "24_Oso f" | AB4: "25_Oso f" | AC4: "26_Oso f" | AD4: "27_Oso f" | AE4: "28_Oso f"
A5: → | B5: 1 | C5: "01_Oso m"
B6: 2 | C6: "02_Oso m"
B7: 3 | C7: "03_Oso m"
B8: 4 | C8: "04_Oso m"
B9: 5 | C9: "05_Oso m"
B10: 6 | C10: "*06_Oso m"
B11: 7 | C11: "07_Oso m"
B12: 8 | C12: "08_Oso m"
B13: 9 | C13: "09_Oso f"
B14: 10 | C14: "**10_Oso m"
B15: 11 | C15: "11_Oso m"
B16: 12 | C16: "12_Oso m"
B17: 13 | C17: "13_Oso m"
B18: 14 | C18: "14_Oso m"
B19: 15 | C19: "15_Oso f"
B20: 16 | C20: "16_Oso f"
B21: 17 | C21: "17_Oso f"
B22: 18 | C22: "18_Oso f"
B23: 19 | C23: "19_Oso f"
B24: 20 | C24: "20_Oso f"
B25: 21 | C25: "21_Oso f"
B26: 22 | C26: "22_Oso f"
B27: 23 | C27: "23_Oso f"
B28: 24 | C28: "24_Oso f"
B29: 25 | C29: "25_Oso f"
B30: 26 | C30: "26_Oso f"
B31: 27 | C31: "27_Oso f"
B32: 28 | C32: "28_Oso f"
D42: 1 | E42: 2 | F42: 3 | G42: 4 | H42: 5 | I42: 6 | J42: 7 | K42: 8 | L42: 9 | M42: 10 | N42: 11 | O42: 12 | P42: 13 | Q42: 14 | R42: 15 | S42: 16 | T42: 17 | U42: 18 | V42: 19 | W42: 20 | X42: 21 | Y42: 22 | Z42: 23 | AA42: 24 | AB42: 25 | AC42: 26 | AD42: 27 | AE42: 28
D43: "01_Oso m" | E43: "02_Oso m" | F43: "03_Oso m" | G43: "04_Oso m" | H43: "05_Oso m" | I43: "*06_Oso m" | J43: "07_Oso m" | K43: "08_Oso m" | L43: "09_Oso f" | M43: "**10_Oso m" | N43: "11_Oso m" | O43: "12_Oso m" | P43: "13_Oso m" | Q43: "14_Oso m" | R43: "15_Oso f" | S43: "16_Oso f" | T43: "17_Oso f" | U43: "18_Oso f" | V43: "19_Oso f" | W43: "20_Oso f" | X43: "21_Oso f" | Y43: "22_Oso f" | Z43: "23_Oso f" | AA43: "24_Oso f" | AB43: "25_Oso f" | AC43: "26_Oso f" | AD43: "27_Oso f" | AE43: "28_Oso f"
B44: 1 | C44: "01_Oso m" | D44: =IF(D5<>0,D$3,"") -> 
B45: 2 | C45: "02_Oso m"
B46: 3 | C46: "03_Oso m"
B47: 4 | C47: "04_Oso m"
B48: 5 | C48: "05_Oso m"
B49: 6 | C49: "*06_Oso m"
B50: 7 | C50: "07_Oso m"
B51: 8 | C51: "08_Oso m"
B52: 9 | C52: "09_Oso f"
B53: 10 | C53: "**10_Oso m" | G53: =IF(G14<>0,G$3,"") -> 
B54: 11 | C54: "11_Oso m" | D54: =IF(D15<>0,D$3,"") -> 
B55: 12 | C55: "12_Oso m"
B56: 13 | C56: "13_Oso m"
B57: 14 | C57: "14_Oso m"
B58: 15 | C58: "15_Oso f"
B59: 16 | C59: "16_Oso f"
B60: 17 | C60: "17_Oso f"
B61: 18 | C61: "18_Oso f"
B62: 19 | C62: "19_Oso f"
B63: 20 | C63: "20_Oso f" | G63: =IF(G24<>0,G$3,"") -> 
B64: 21 | C64: "21_Oso f" | D64: =IF(D25<>0,D$3,"") -> 
B65: 22 | C65: "22_Oso f"
B66: 23 | C66: "23_Oso f"
B67: 24 | C67: "24_Oso f"
B68: 25 | C68: "25_Oso f"
B69: 26 | C69: "26_Oso f"
B70: 27 | C70: "27_Oso f"
B71: 28 | C71: "28_Oso f"

Sheet Q_20
A1: "20. Nezadaná"
B2: 3
B3: 28 | D3: 1 | E3: 2 | F3: 3 | G3: 4 | H3: 5 | I3: 6 | J3: 7 | K3: 8 | L3: 9 | M3: 10 | N3: 11 | O3: 12 | P3: 13 | Q3: 14 | R3: 15 | S3: 16 | T3: 17 | U3: 18 | V3: 19 | W3: 20 | X3: 21 | Y3: 22 | Z3: 23 | AA3: 24 | AB3: 25 | AC3: 26 | AD3: 27 | AE3: 28
D4: "01_Oso m" | E4: "02_Oso m" | F4: "03_Oso m" | G4: "04_Oso m" | H4: "05_Oso m" | I4: "*06_Oso m" | J4: "07_Oso m" | K4: "08_Oso m" | L4: "09_Oso f" | M4: "**10_Oso m" | N4: "11_Oso m" | O4: "12_Oso m" | P4: "13_Oso m" | Q4: "14_Oso m" | R4: "15_Oso f" | S4: "16_Oso f" | T4: "17_Oso f" | U4: "18_Oso f" | V4: "19_Oso f" | W4: "20_Oso f" | X4: "21_Oso f" | Y4: "22_Oso f" | Z4: "23_Oso f" | AA4: "24_Oso f" | AB4: "25_Oso f" | AC4: "26_Oso f" | AD4: "27_Oso f" | AE4: "28_Oso f"
A5: → | B5: 1 | C5: "01_Oso m"
B6: 2 | C6: "02_Oso m"
B7: 3 | C7: "03_Oso m"
B8: 4 | C8: "04_Oso m"
B9: 5 | C9: "05_Oso m"
B10: 6 | C10: "*06_Oso m"
B11: 7 | C11: "07_Oso m"
B12: 8 | C12: "08_Oso m"
B13: 9 | C13: "09_Oso f"
B14: 10 | C14: "**10_Oso m"
B15: 11 | C15: "11_Oso m"
B16: 12 | C16: "12_Oso m"
B17: 13 | C17: "13_Oso m"
B18: 14 | C18: "14_Oso m"
B19: 15 | C19: "15_Oso f"
B20: 16 | C20: "16_Oso f"
B21: 17 | C21: "17_Oso f"
B22: 18 | C22: "18_Oso f"
B23: 19 | C23: "19_Oso f"
B24: 20 | C24: "20_Oso f"
B25: 21 | C25: "21_Oso f"
B26: 22 | C26: "22_Oso f"
B27: 23 | C27: "23_Oso f"
B28: 24 | C28: "24_Oso f"
B29: 25 | C29: "25_Oso f"
B30: 26 | C30: "26_Oso f"
B31: 27 | C31: "27_Oso f"
B32: 28 | C32: "28_Oso f"
D42: 1 | E42: 2 | F42: 3 | G42: 4 | H42: 5 | I42: 6 | J42: 7 | K42: 8 | L42: 9 | M42: 10 | N42: 11 | O42: 12 | P42: 13 | Q42: 14 | R42: 15 | S42: 16 | T42: 17 | U42: 18 | V42: 19 | W42: 20 | X42: 21 | Y42: 22 | Z42: 23 | AA42: 24 | AB42: 25 | AC42: 26 | AD42: 27 | AE42: 28
D43: "01_Oso m" | E43: "02_Oso m" | F43: "03_Oso m" | G43: "04_Oso m" | H43: "05_Oso m" | I43: "*06_Oso m" | J43: "07_Oso m" | K43: "08_Oso m" | L43: "09_Oso f" | M43: "**10_Oso m" | N43: "11_Oso m" | O43: "12_Oso m" | P43: "13_Oso m" | Q43: "14_Oso m" | R43: "15_Oso f" | S43: "16_Oso f" | T43: "17_Oso f" | U43: "18_Oso f" | V43: "19_Oso f" | W43: "20_Oso f" | X43: "21_Oso f" | Y43: "22_Oso f" | Z43: "23_Oso f" | AA43: "24_Oso f" | AB43: "25_Oso f" | AC43: "26_Oso f" | AD43: "27_Oso f" | AE43: "28_Oso f"
B44: 1 | C44: "01_Oso m" | D44: =IF(D5<>0,D$3,"") -> 
B45: 2 | C45: "02_Oso m"
B46: 3 | C46: "03_Oso m"
B47: 4 | C47: "04_Oso m"
B48: 5 | C48: "05_Oso m"
B49: 6 | C49: "*06_Oso m"
B50: 7 | C50: "07_Oso m"
B51: 8 | C51: "08_Oso m"
B52: 9 | C52: "09_Oso f"
B53: 10 | C53: "**10_Oso m" | G53: =IF(G14<>0,G$3,"") -> 
B54: 11 | C54: "11_Oso m" | D54: =IF(D15<>0,D$3,"") -> 
B55: 12 | C55: "12_Oso m"
B56: 13 | C56: "13_Oso m"
B57: 14 | C57: "14_Oso m"
B58: 15 | C58: "15_Oso f"
B59: 16 | C59: "16_Oso f"
B60: 17 | C60: "17_Oso f"
B61: 18 | C61: "18_Oso f"
B62: 19 | C62: "19_Oso f"
B63: 20 | C63: "20_Oso f" | G63: =IF(G24<>0,G$3,"") -> 
B64: 21 | C64: "21_Oso f" | D64: =IF(D25<>0,D$3,"") -> 
B65: 22 | C65: "22_Oso f"
B66: 23 | C66: "23_Oso f"
B67: 24 | C67: "24_Oso f"
B68: 25 | C68: "25_Oso f"
B69: 26 | C69: "26_Oso f"
B70: 27 | C70: "27_Oso f"
B71: 28 | C71: "28_Oso f"

Sheet SG_1
B2: 28
A3: 1 | B3: "01_Oso m"
A4: 2 | B4: "02_Oso m"
A5: 3 | B5: "03_Oso m"
A6: 4 | B6: "04_Oso m"
A7: 5 | B7: "05_Oso m"
A8: 6 | B8: "*06_Oso m"
A9: 7 | B9: "07_Oso m"
A10: 8 | B10: "08_Oso m"
A11: 9 | B11: "09_Oso f"
A12: 10 | B12: "**10_Oso m"
A13: 11 | B13: "11_Oso m"
A14: 12 | B14: "12_Oso m"
A15: 13 | B15: "13_Oso m"
A16: 14 | B16: "14_Oso m"
A17: 15 | B17: "15_Oso f"
A18: 16 | B18: "16_Oso f"
A19: 17 | B19: "17_Oso f"
A20: 18 | B20: "18_Oso f"
A21: 19 | B21: "19_Oso f"
A22: 20 | B22: "20_Oso f"
A23: 21 | B23: "21_Oso f"
A24: 22 | B24: "22_Oso f"
A25: 23 | B25: "23_Oso f"
A26: 24 | B26: "24_Oso f"
A27: 25 | B27: "25_Oso f"
A28: 26 | B28: "26_Oso f"
A29: 27 | B29: "27_Oso f"
A30: 28 | B30: "28_Oso f"
B31: 3 "",""
B32: "1. S kým z triedy by si chcel sedieť v jednej lavici?"
B33: ""
B34: ""
B35: ""
B36: 5, 10, 11,
B37: 8, 9, 11,
B38: 9, 12, 28,
B39: 23, 25, 28,
B40: 1, 7, 9,
B41: 10, 11, 12,
B42: 5, 9, 28,
B43: 7, 9, 28,
B44: 3, 7, 28,
B45: 1, 5, 8,
B46: 7, 8, 28,
B47: 20, 21, 23,
B48: 4, 12, 14,
B49: 8, 9, 13,
B50: 22, 23, 26,
B51: 22, 24, 27,
B52: 16, 22, 27,
B53: 20, 23, 27,
B54: 18, 23, 27,
B55: 18, 23, 27,
B56: 22, 24, 27,
B57: 23, 25, 27,
B58: 5, 18, 25,
B59: 19, 21, 26,
B60: 22, 23, 27,
B61: 14, 23, 24,
B62: 16, 18, 23,
B63: 0, 0, 0,

Sheet SG_2
B2: 28
A3: 1 | B3: "01_Oso m"
A4: 2 | B4: "02_Oso m"
A5: 3 | B5: "03_Oso m"
A6: 4 | B6: "04_Oso m"
A7: 5 | B7: "05_Oso m"
A8: 6 | B8: "*06_Oso m"
A9: 7 | B9: "07_Oso m"
A10: 8 | B10: "08_Oso m"
A11: 9 | B11: "09_Oso f"
A12: 10 | B12: "**10_Oso m"
A13: 11 | B13: "11_Oso m"
A14: 12 | B14: "12_Oso m"
A15: 13 | B15: "13_Oso m"
A16: 14 | B16: "14_Oso m"
A17: 15 | B17: "15_Oso f"
A18: 16 | B18: "16_Oso f"
A19: 17 | B19: "17_Oso f"
A20: 18 | B20: "18_Oso f"
A21: 19 | B21: "19_Oso f"
A22: 20 | B22: "20_Oso f"
A23: 21 | B23: "21_Oso f"
A24: 22 | B24: "22_Oso f"
A25: 23 | B25: "23_Oso f"
A26: 24 | B26: "24_Oso f"
A27: 25 | B27: "25_Oso f"
A28: 26 | B28: "26_Oso f"
A29: 27 | B29: "27_Oso f"
A30: 28 | B30: "28_Oso f"
B31: 3 "",""
B32: "2. S kým z triedy by si najradšej písaval úlohy a učieval sa?"
B33: ""
B34: ""
B35: ""
B36: 5, 7, 11,
B37: 7, 8, 9,
B38: 7, 23, 28,
B39: 9, 13, 14,
B40: 1, 9, 28,
B41: 23, 25, 26,
B42: 3, 9, 28,
B43: 7, 9, 28,
B44: 3, 7, 28,
B45: 3, 9, 23,
B46: 7, 8, 28,
B47: 8, 23, 27,
B48: 4, 14, 28,
B49: 8, 9, 28,
B50: 23, 25, 26,
B51: 23, 25, 27,
B52: 15, 26, 27,
B53: 19, 23, 27,
B54: 18, 23, 27,
B55: 18, 23, 25,
B56: 18, 23, 25,
B57: 23, 25, 26,
B58: 18, 20, 25,
B59: 19, 21, 26,
B60: 22, 23, 26,
B61: 15, 23, 25,
B62: 18, 23, 25,
B63: 0, 0, 0,

Sheet SG_3
B2: 28
A3: 1 | B3: "01_Oso m"
A4: 2 | B4: "02_Oso m"
A5: 3 | B5: "03_Oso m"
A6: 4 | B6: "04_Oso m"
A7: 5 | B7: "05_Oso m"
A8: 6 | B8: "*06_Oso m"
A9: 7 | B9: "07_Oso m"
A10: 8 | B10: "08_Oso m"
A11: 9 | B11: "09_Oso f"
A12: 10 | B12: "**10_Oso m"
A13: 11 | B13: "11_Oso m"
A14: 12 | B14: "12_Oso m"
A15: 13 | B15: "13_Oso m"
A16: 14 | B16: "14_Oso m"
A17: 15 | B17: "15_Oso f"
A18: 16 | B18: "16_Oso f"
A19: 17 | B19: "17_Oso f"
A20: 18 | B20: "18_Oso f"
A21: 19 | B21: "19_Oso f"
A22: 20 | B22: "20_Oso f"
A23: 21 | B23: "21_Oso f"
A24: 22 | B24: "22_Oso f"
A25: 23 | B25: "23_Oso f"
A26: 24 | B26: "24_Oso f"
A27: 25 | B27: "25_Oso f"
A28: 26 | B28: "26_Oso f"
A29: 27 | B29: "27_Oso f"
A30: 28 | B30: "28_Oso f"
B31: 3 "",""
B32: "3. S kým z triedy by si chcel stráviť prázdniny na pustom ostrove?"
B33: ""
B34: ""
B35: ""
B36: 5, 10, 11,
B37: 7, 8, 9,
B38: 7, 9, 28,
B39: 5, 9, 12,
B40: 6, 10, 28,
B41: 10, 11, 12,
B42: 3, 8, 11,
B43: 9, 11, 12,
B44: 3, 7, 28,
B45: 1, 5, 6,
B46: 7, 8, 28,
B47: 20, 23, 27,
B48: 9, 12, 14,
B49: 8, 23, 26,
B50: 22, 23, 25,
B51: 18, 20, 27,
B52: 16, 21, 22,
B53: 16, 23, 27,
B54: 17, 23, 27,
B55: 18, 23, 27,
B56: 18, 19, 24,
B57: 16, 21, 23,
B58: 5, 18, 25,
B59: 15, 21, 25,
B60: 16, 23, 27,
B61: 20, 21, 22,
B62: 18, 19, 23,
B63: 0, 0, 0,

Sheet SG_4
B2: 28
A3: 1 | B3: "01_Oso m"
A4: 2 | B4: "02_Oso m"
A5: 3 | B5: "03_Oso m"
A6: 4 | B6: "04_Oso m"
A7: 5 | B7: "05_Oso m"
A8: 6 | B8: "*06_Oso m"
A9: 7 | B9: "07_Oso m"
A10: 8 | B10: "08_Oso m"
A11: 9 | B11: "09_Oso f"
A12: 10 | B12: "**10_Oso m"
A13: 11 | B13: "11_Oso m"
A14: 12 | B14: "12_Oso m"
A15: 13 | B15: "13_Oso m"
A16: 14 | B16: "14_Oso m"
A17: 15 | B17: "15_Oso f"
A18: 16 | B18: "16_Oso f"
A19: 17 | B19: "17_Oso f"
A20: 18 | B20: "18_Oso f"
A21: 19 | B21: "19_Oso f"
A22: 20 | B22: "20_Oso f"
A23: 21 | B23: "21_Oso f"
A24: 22 | B24: "22_Oso f"
A25: 23 | B25: "23_Oso f"
A26: 24 | B26: "24_Oso f"
A27: 25 | B27: "25_Oso f"
A28: 26 | B28: "26_Oso f"
A29: 27 | B29: "27_Oso f"
A30: 28 | B30: "28_Oso f"
B31: 3 "",""
B32: "4. Kto by najlepšie dokázal hájiť záujmy triedy?"
B33: ""
B34: ""
B35: ""
B36: 15, 23, 26,
B37: 7, 23, 25,
B38: 23, 26, 28,
B39: 9, 15, 23,
B40: 9, 23, 28,
B41: 8, 23, 26,
B42: 15, 23, 26,
B43: 9, 23, 26,
B44: 23, 25, 28,
B45: 9, 23, 28,
B46: 7, 9, 28,
B47: 9, 23, 28,
B48: 23, 25, 28,
B49: 9, 23, 28,
B50: 5, 23, 25,
B51: 15, 23, 25,
B52: 15, 23, 26,
B53: 20, 23, 25,
B54: 9, 23, 25,
B55: 9, 18, 23,
B56: 9, 23, 25,
B57: 23, 25, 26,
B58: 5, 18, 20,
B59: 15, 23, 25,
B60: 15, 23, 26,
B61: 15, 23, 25,
B62: 20, 23, 25,
B63: 0, 0, 0,

Sheet SG_5
B2: 28
A3: 1 | B3: "01_Oso m"
A4: 2 | B4: "02_Oso m"
A5: 3 | B5: "03_Oso m"
A6: 4 | B6: "04_Oso m"
A7: 5 | B7: "05_Oso m"
A8: 6 | B8: "*06_Oso m"
A9: 7 | B9: "07_Oso m"
A10: 8 | B10: "08_Oso m"
A11: 9 | B11: "09_Oso f"
A12: 10 | B12: "**10_Oso m"
A13: 11 | B13: "11_Oso m"
A14: 12 | B14: "12_Oso m"
A15: 13 | B15: "13_Oso m"
A16: 14 | B16: "14_Oso m"
A17: 15 | B17: "15_Oso f"
A18: 16 | B18: "16_Oso f"
A19: 17 | B19: "17_Oso f"
A20: 18 | B20: "18_Oso f"
A21: 19 | B21: "19_Oso f"
A22: 20 | B22: "20_Oso f"
A23: 21 | B23: "21_Oso f"
A24: 22 | B24: "22_Oso f"
A25: 23 | B25: "23_Oso f"
A26: 24 | B26: "24_Oso f"
A27: 25 | B27: "25_Oso f"
A28: 26 | B28: "26_Oso f"
A29: 27 | B29: "27_Oso f"
A30: 28 | B30: "28_Oso f"
B31: 3 "",""
B32: "5. Komu z triedy by si zveril svoje tajomstvo?"
B33: ""
B34: ""
B35: ""
B36: 5, 7, 11,
B37: 7, 9, 23,
B38: 7, 9, 28,
B39: 11, 23, 28,
B40: 1, 10, 28,
B41: 11, 0, 0,
B42: 8, 11, 14,
B43: 9, 23, 26,
B44: 3, 7, 28,
B45: 1, 5, 6,
B46: 7, 8, 28,
B47: 13, 14, 20,
B48: 4, 12, 14,
B49: 8, 12, 13,
B50: 22, 23, 25,
B51: 23, 25, 27,
B52: 21, 22, 27,
B53: 19, 23, 27,
B54: 18, 23, 27,
B55: 18, 23, 25,
B56: 18, 22, 24,
B57: 23, 25, 27,
B58: 18, 25, 27,
B59: 19, 21, 26,
B60: 20, 21, 23,
B61: 19, 24, 25,
B62: 18, 19, 23,
B63: 0, 0, 0,

Sheet SG_6
B2: 28
A3: 1 | B3: "01_Oso m"
A4: 2 | B4: "02_Oso m"
A5: 3 | B5: "03_Oso m"
A6: 4 | B6: "04_Oso m"
A7: 5 | B7: "05_Oso m"
A8: 6 | B8: "*06_Oso m"
A9: 7 | B9: "07_Oso m"
A10: 8 | B10: "08_Oso m"
A11: 9 | B11: "09_Oso f"
A12: 10 | B12: "**10_Oso m"
A13: 11 | B13: "11_Oso m"
A14: 12 | B14: "12_Oso m"
A15: 13 | B15: "13_Oso m"
A16: 14 | B16: "14_Oso m"
A17: 15 | B17: "15_Oso f"
A18: 16 | B18: "16_Oso f"
A19: 17 | B19: "17_Oso f"
A20: 18 | B20: "18_Oso f"
A21: 19 | B21: "19_Oso f"
A22: 20 | B22: "20_Oso f"
A23: 21 | B23: "21_Oso f"
A24: 22 | B24: "22_Oso f"
A25: 23 | B25: "23_Oso f"
A26: 24 | B26: "24_Oso f"
A27: 25 | B27: "25_Oso f"
A28: 26 | B28: "26_Oso f"
A29: 27 | B29: "27_Oso f"
A30: 28 | B30: "28_Oso f"
B31: 3 "",""
B32: "6. S kým z triedy by si nechcel sedieť v jednej lavici?"
B33: ""
B34: ""
B35: ""
B36: 16, 17, 23,
B37: 4, 6, 10,
B38: 5, 6, 10,
B39: 10, 21, 24,
B40: 4, 12, 27,
B41: 17, 20, 22,
B42: 2, 6, 10,
B43: 6, 10, 24,
B44: 15, 23, 25,
B45: 4, 16, 18,
B46: 2, 4, 10,
B47: 2, 5, 22,
B48: 6, 21, 0,
B49: 2, 6, 10,
B50: 4, 6, 10,
B51: 2, 6, 10,
B52: 6, 8, 10,
B53: 2, 6, 10,
B54: 2, 6, 10,
B55: 4, 6, 10,
B56: 2, 6, 10,
B57: 2, 6, 10,
B58: 2, 6, 10,
B59: 6, 10, 12,
B60: 2, 6, 10,
B61: 2, 6, 10,
B62: 6, 10, 12,
B63: 0, 0, 0,

Sheet SG_7
B2: 28
A3: 1 | B3: "01_Oso m"
A4: 2 | B4: "02_Oso m"
A5: 3 | B5: "03_Oso m"
A6: 4 | B6: "04_Oso m"
A7: 5 | B7: "05_Oso m"
A8: 6 | B8: "*06_Oso m"
A9: 7 | B9: "07_Oso m"
A10: 8 | B10: "08_Oso m"
A11: 9 | B11: "09_Oso f"
A12: 10 | B12: "**10_Oso m"
A13: 11 | B13: "11_Oso m"
A14: 12 | B14: "12_Oso m"
A15: 13 | B15: "13_Oso m"
A16: 14 | B16: "14_Oso m"
A17: 15 | B17: "15_Oso f"
A18: 16 | B18: "16_Oso f"
A19: 17 | B19: "17_Oso f"
A20: 18 | B20: "18_Oso f"
A21: 19 | B21: "19_Oso f"
A22: 20 | B22: "20_Oso f"
A23: 21 | B23: "21_Oso f"
A24: 22 | B24: "22_Oso f"
A25: 23 | B25: "23_Oso f"
A26: 24 | B26: "24_Oso f"
A27: 25 | B27: "25_Oso f"
A28: 26 | B28: "26_Oso f"
A29: 27 | B29: "27_Oso f"
A30: 28 | B30: "28_Oso f"
B31: 3 "",""
B32: "7. S kým z triedy by si v žiadnom prípade nechcel písavať úlohy a učievať sa?"
B33: ""
B34: ""
B35: ""
B36: 17, 23, 27,
B37: 4, 6, 10,
B38: 4, 6, 10,
B39: 2, 6, 10,
B40: 4, 6, 10,
B41: 2, 4, 24,
B42: 2, 6, 10,
B43: 4, 6, 10,
B44: 15, 17, 23,
B45: 2, 6, 12,
B46: 2, 4, 10,
B47: 5, 6, 10,
B48: 6, 10, 12,
B49: 2, 6, 10,
B50: 2, 6, 10,
B51: 2, 6, 10,
B52: 1, 6, 8,
B53: 2, 6, 10,
B54: 2, 6, 10,
B55: 6, 10, 12,
B56: 2, 6, 10,
B57: 5, 6, 10,
B58: 6, 12, 27,
B59: 2, 4, 20,
B60: 4, 5, 6,
B61: 4, 16, 17,
B62: 2, 4, 10,
B63: 0, 0, 0,

Sheet SG_8
B2: 28
A3: 1 | B3: "01_Oso m"
A4: 2 | B4: "02_Oso m"
A5: 3 | B5: "03_Oso m"
A6: 4 | B6: "04_Oso m"
A7: 5 | B7: "05_Oso m"
A8: 6 | B8: "*06_Oso m"
A9: 7 | B9: "07_Oso m"
A10: 8 | B10: "08_Oso m"
A11: 9 | B11: "09_Oso f"
A12: 10 | B12: "**10_Oso m"
A13: 11 | B13: "11_Oso m"
A14: 12 | B14: "12_Oso m"
A15: 13 | B15: "13_Oso m"
A16: 14 | B16: "14_Oso m"
A17: 15 | B17: "15_Oso f"
A18: 16 | B18: "16_Oso f"
A19: 17 | B19: "17_Oso f"
A20: 18 | B20: "18_Oso f"
A21: 19 | B21: "19_Oso f"
A22: 20 | B22: "20_Oso f"
A23: 21 | B23: "21_Oso f"
A24: 22 | B24: "22_Oso f"
A25: 23 | B25: "23_Oso f"
A26: 24 | B26: "24_Oso f"
A27: 25 | B27: "25_Oso f"
A28: 26 | B28: "26_Oso f"
A29: 27 | B29: "27_Oso f"
A30: 28 | B30: "28_Oso f"
B31: 3 "",""
B32: "8. S kým z triedy by si nechcel stráviť prázdniny na pustom ostrove?"
B33: ""
B34: ""
B35: ""
B36: 17, 20, 27,
B37: 4, 10, 11,
B38: 2, 5, 27,
B39: 21, 24, 27,
B40: 4, 19, 24,
B41: 15, 16, 17,
B42: 2, 5, 27,
B43: 4, 6, 10,
B44: 15, 23, 25,
B45: 18, 25, 27,
B46: 2, 4, 10,
B47: 2, 8, 18,
B48: 6, 10, 27,
B49: 2, 6, 10,
B50: 2, 6, 10,
B51: 2, 6, 10,
B52: 1, 6, 10,
B53: 2, 6, 10,
B54: 2, 6, 10,
B55: 4, 6, 7,
B56: 2, 6, 10,
B57: 4, 6, 10,
B58: 6, 7, 10,
B59: 16, 20, 22,
B60: 6, 10, 12,
B61: 2, 6, 10,
B62: 2, 6, 10,
B63: 0, 0, 0,

Sheet SG_9
B2: 28
A3: 1 | B3: "01_Oso m"
A4: 2 | B4: "02_Oso m"
A5: 3 | B5: "03_Oso m"
A6: 4 | B6: "04_Oso m"
A7: 5 | B7: "05_Oso m"
A8: 6 | B8: "*06_Oso m"
A9: 7 | B9: "07_Oso m"
A10: 8 | B10: "08_Oso m"
A11: 9 | B11: "09_Oso f"
A12: 10 | B12: "**10_Oso m"
A13: 11 | B13: "11_Oso m"
A14: 12 | B14: "12_Oso m"
A15: 13 | B15: "13_Oso m"
A16: 14 | B16: "14_Oso m"
A17: 15 | B17: "15_Oso f"
A18: 16 | B18: "16_Oso f"
A19: 17 | B19: "17_Oso f"
A20: 18 | B20: "18_Oso f"
A21: 19 | B21: "19_Oso f"
A22: 20 | B22: "20_Oso f"
A23: 21 | B23: "21_Oso f"
A24: 22 | B24: "22_Oso f"
A25: 23 | B25: "23_Oso f"
A26: 24 | B26: "24_Oso f"
A27: 25 | B27: "25_Oso f"
A28: 26 | B28: "26_Oso f"
A29: 27 | B29: "27_Oso f"
A30: 28 | B30: "28_Oso f"
B31: 3 "",""
B32: "9. Koho by si vôbec nevybral na hájenie záujmov triedy?"
B33: ""
B34: ""
B35: ""
B36: 6, 8, 10,
B37: 4, 6, 10,
B38: 4, 6, 10,
B39: 2, 6, 10,
B40: 2, 24, 27,
B41: 2, 4, 24,
B42: 2, 6, 10,
B43: 4, 6, 10,
B44: 2, 6, 10,
B45: 2, 18, 25,
B46: 2, 4, 10,
B47: 2, 6, 10,
B48: 2, 6, 10,
B49: 2, 6, 10,
B50: 2, 6, 10,
B51: 2, 6, 10,
B52: 10, 16, 27,
B53: 2, 6, 10,
B54: 2, 6, 10,
B55: 2, 8, 24,
B56: 2, 6, 10,
B57: 2, 6, 10,
B58: 2, 8, 24,
B59: 2, 5, 17,
B60: 6, 10, 12,
B61: 11, 12, 13,
B62: 2, 6, 10,
B63: 0, 0, 0,

Sheet SG_10
B1: "Version 01.00","Škola","Psychológ","Obdobie","Dátum","Trieda"
B2: 28
A3: 1 | B3: "01_Oso m"
A4: 2 | B4: "02_Oso m"
A5: 3 | B5: "03_Oso m"
A6: 4 | B6: "04_Oso m"
A7: 5 | B7: "05_Oso m"
A8: 6 | B8: "*06_Oso m"
A9: 7 | B9: "07_Oso m"
A10: 8 | B10: "08_Oso m"
A11: 9 | B11: "09_Oso f"
A12: 10 | B12: "**10_Oso m"
A13: 11 | B13: "11_Oso m"
A14: 12 | B14: "12_Oso m"
A15: 13 | B15: "13_Oso m"
A16: 14 | B16: "14_Oso m"
A17: 15 | B17: "15_Oso f"
A18: 16 | B18: "16_Oso f"
A19: 17 | B19: "17_Oso f"
A20: 18 | B20: "18_Oso f"
A21: 19 | B21: "19_Oso f"
A22: 20 | B22: "20_Oso f"
A23: 21 | B23: "21_Oso f"
A24: 22 | B24: "22_Oso f"
A25: 23 | B25: "23_Oso f"
A26: 24 | B26: "24_Oso f"
A27: 25 | B27: "25_Oso f"
A28: 26 | B28: "26_Oso f"
A29: 27 | B29: "27_Oso f"
A30: 28 | B30: "28_Oso f"
B31: 3 "",""
B32: "10. Komu z triedy by si nikdy nezveril svoje tajomstvo?"
B33: ""
B34: ""
B35: ""
B36: 4, 12, 27,
B37: 4, 6, 10,
B38: 1, 4, 5,
B39: 3, 19, 24,
B40: 2, 4, 19,
B41: 20, 23, 25,
B42: 21, 23, 27,
B43: 3, 6, 10,
B44: 6, 10, 15,
B45: 23, 25, 27,
B46: 2, 4, 10,
B47: 2, 5, 10,
B48: 6, 10, 25,
B49: 2, 5, 10,
B50: 16, 24, 27,
B51: 2, 6, 10,
B52: 6, 10, 16,
B53: 2, 6, 10,
B54: 2, 6, 10,
B55: 4, 6, 22,
B56: 2, 6, 10,
B57: 4, 5, 12,
B58: 7, 10, 22,
B59: 17, 20, 22,
B60: 5, 6, 10,
B61: 5, 6, 7,
B62: 5, 6, 10,
B63: 0, 0, 0,

Sheet SG_11

Sheet SG_12

Sheet SG_13

Sheet SG_14

Sheet SG_15

Sheet SG_16

Sheet SG_17

Sheet SG_18

Sheet SG_19

Sheet SG_20

Sheet Sumy_All_Q
D1: 1 | E1: 2 | F1: 3 | G1: 4 | H1: 5 | I1: 6 | J1: 7 | K1: 8 | L1: 9 | M1: 10 | N1: 11 | O1: 12 | P1: 13 | Q1: 14 | R1: 15 | S1: 16 | T1: 17 | U1: 18 | V1: 19 | W1: 20 | X1: 21 | Y1: 22 | Z1: 23 | AA1: 24 | AB1: 25 | AC1: 26 | AD1: 27 | AE1: 28 | AF1: 29 | AG1: 30 | AH1: 31 | AI1: 32 | AJ1: 33 | AK1: 34 | AL1: 35 | AM1: 36 | AN1: 37 | AO1: 38 | AP1: 39 | AQ1: 40
A2: Počet volieb | B2: 3
A3: Počet osôb | B3: 28
C4: Konotácia P +; N –; Q = nezadaná | D4: "01_Oso m" | E4: "02_Oso m" | F4: "03_Oso m" | G4: "04_Oso m" | H4: "05_Oso m" | I4: "*06_Oso m" | J4: "07_Oso m" | K4: "08_Oso m" | L4: "09_Oso f" | M4: "**10_Oso m" | N4: "11_Oso m" | O4: "12_Oso m" | P4: "13_Oso m" | Q4: "14_Oso m" | R4: "15_Oso f" | S4: "16_Oso f" | T4: "17_Oso f" | U4: "18_Oso f" | V4: "19_Oso f" | W4: "20_Oso f" | X4: "21_Oso f" | Y4: "22_Oso f" | Z4: "23_Oso f" | AA4: "24_Oso f" | AB4: "25_Oso f" | AC4: "26_Oso f" | AD4: "27_Oso f" | AE4: "28_Oso f" | AR4: Total | AS4: AM | AT4: SD | AU4: MAX
A5: Q_1 | B5: Voľby spolu n | C5: P | D5: 2 | E5: 0 | F5: 1 | G5: 1 | H5: 4 | I5: 0 | J5: 4 | K5: 4 | L5: 6 | M5: 2 | N5: 3 | O5: 3 | P5: 1 | Q5: 2 | R5: 0 | S5: 2 | T5: 0 | U5: 4 | V5: 1 | W5: 2 | X5: 2 | Y5: 5 | Z5: 10 | AA5: 3 | AB5: 3 | AC5: 2 | AD5: 8 | AE5: 6 | AR5: =SUM(D5:AQ5) -> 81 | AS5: =IF(AR5>0,AVERAGE(D5:AQ5),"") -> 2.892857143 | AT5: =IF(AR5>0,STDEV(D5:AQ5),"") -> 2.424249188 | AU5: =MAX(D5:AQ5) -> 10
B6: Prvá voľba n | C6: 0 | D6: 2 | E6: 0 | F6: 0 | G6: 0 | H6: 1 | I6: 0 | J6: 0 | K6: 2 | L6: 1 | M6: 0 | N6: 1 | O6: 0 | P6: 1 | Q6: 2 | R6: 0 | S6: 0 | T6: 0 | U6: 3 | V6: 1 | W6: 0 | X6: 0 | Y6: 1 | Z6: 2 | AA6: 1 | AB6: 2 | AC6: 1 | AD6: 3 | AE6: 3 | AR6: =SUM(D6:AQ6) -> 27 | AS6: =IF(AR5>0,AVERAGE(D6:AQ6),"") -> 0.9642857143 | AT6: =IF(AR5>0,STDEV(D6:AQ6),"") -> 1.035737092
B7: Druhá voľba n | C7: 0 | D7: 0 | E7: 0 | F7: 1 | G7: 1 | H7: 1 | I7: 0 | J7: 2 | K7: 0 | L7: 3 | M7: 0 | N7: 2 | O7: 1 | P7: 0 | Q7: 0 | R7: 0 | S7: 2 | T7: 0 | U7: 1 | V7: 0 | W7: 2 | X7: 1 | Y7: 1 | Z7: 2 | AA7: 2 | AB7: 1 | AC7: 0 | AD7: 2 | AE7: 2 | AR7: =SUM(D7:AQ7) -> 27 | AS7: =IF(AR5>0,AVERAGE(D7:AQ7),"") -> 0.9642857143 | AT7: =IF(AR5>0,STDEV(D7:AQ7),"") -> 0.9222413461
B8: Tretia voľba n | C8: 0 | D8: 0 | E8: 0 | F8: 0 | G8: 0 | H8: 2 | I8: 0 | J8: 2 | K8: 2 | L8: 2 | M8: 2 | N8: 0 | O8: 2 | P8: 0 | Q8: 0 | R8: 0 | S8: 0 | T8: 0 | U8: 0 | V8: 0 | W8: 0 | X8: 1 | Y8: 3 | Z8: 6 | AA8: 0 | AB8: 0 | AC8: 1 | AD8: 3 | AE8: 1 | AR8: =SUM(D8:AQ8) -> 27 | AS8: =IF(AR5>0,AVERAGE(D8:AQ8),"") -> 0.9642857143 | AT8: =IF(AR5>0,STDEV(D8:AQ8),"") -> 1.426784597 | AU8: =MAX(D8:AQ8) -> 6
B9: Voľby spolu % | C9: 0 | D9: 7.142857143 | E9: 0 | F9: 0 | G9: 0 | H9: 3.571428571 | I9: 0 | J9: 0 | K9: 7.142857143 | L9: 3.571428571 | M9: 0 | N9: 3.571428571 | O9: 0 | P9: 3.571428571 | Q9: 7.142857143 | R9: 0 | S9: 0 | T9: 0 | U9: 10.71428571 | V9: 3.571428571 | W9: 0 | X9: 0 | Y9: 3.571428571 | Z9: 7.142857143 | AA9: 3.571428571 | AB9: 7.142857143 | AC9: 3.571428571 | AD9: 10.71428571 | AE9: 10.71428571
B10: Prvá voľba % | C10: 0 | D10: 0 | E10: 0 | F10: 3.571428571 | G10: 3.571428571 | H10: 3.571428571 | I10: 0 | J10: 7.142857143 | K10: 0 | L10: 10.71428571 | M10: 0 | N10: 7.142857143 | O10: 3.571428571 | P10: 0 | Q10: 0 | R10: 0 | S10: 7.142857143 | T10: 0 | U10: 3.571428571 | V10: 0 | W10: 7.142857143 | X10: 3.571428571 | Y10: 3.571428571 | Z10: 7.142857143 | AA10: 7.142857143 | AB10: 3.571428571 | AC10: 0 | AD10: 7.142857143 | AE10: 7.142857143
B11: Druhá voľba % | C11: 0 | D11: 0 | E11: 0 | F11: 0 | G11: 0 | H11: 7.142857143 | I11: 0 | J11: 7.142857143 | K11: 7.142857143 | L11: 7.142857143 | M11: 7.142857143 | N11: 0 | O11: 7.142857143 | P11: 0 | Q11: 0 | R11: 0 | S11: 0 | T11: 0 | U11: 0 | V11: 0 | W11: 0 | X11: 3.571428571 | Y11: 10.71428571 | Z11: 21.42857143 | AA11: 0 | AB11: 0 | AC11: 3.571428571 | AD11: 10.71428571 | AE11: 3.571428571
B12: Tretia voľba % | C12: 0 | D12: 7.142857143 | E12: 0 | F12: 3.571428571 | G12: 3.571428571 | H12: 14.28571429 | I12: 0 | J12: 14.28571429 | K12: 14.28571429 | L12: 21.42857143 | M12: 7.142857143 | N12: 10.71428571 | O12: 10.71428571 | P12: 3.571428571 | Q12: 7.142857143 | R12: 0 | S12: 7.142857143 | T12: 0 | U12: 14.28571429 | V12: 3.571428571 | W12: 7.142857143 | X12: 7.142857143 | Y12: 17.85714286 | Z12: 35.71428571 | AA12: 10.71428571 | AB12: 10.71428571 | AC12: 7.142857143 | AD12: 28.57142857 | AE12: 21.42857143
A13: * | B13: Voľby spolu z-skóre | C13: P | D13: =IF(D5<>"",IF($AT$5<>"",IF($AT$5>0,(D5-$AS$5)/$AT$5,""),""),"") -> -0.3683025438 | E13: =IF(E5<>"",IF($AT$5<>"",IF($AT$5>0,(E5-$AS$5)/$AT$5,""),""),"") -> -1.193300242 | F13: -0.7808013929 | G13: -0.7808013929 | H13: 0.4566951543 | I13: -1.193300242 | J13: 0.4566951543 | K13: 0.4566951543 | L13: 1.281692852 | M13: -0.3683025438 | N13: 0.04419630526 | O13: 0.04419630526 | P13: -0.7808013929 | Q13: -0.3683025438 | R13: -1.193300242 | S13: -0.3683025438 | T13: -1.193300242 | U13: 0.4566951543 | V13: -0.7808013929 | W13: -0.3683025438 | X13: -0.3683025438 | Y13: 0.8691940034 | Z13: 2.931688249 | AA13: 0.04419630526 | AB13: 0.04419630526 | AC13: -0.3683025438 | AD13: 2.106690551 | AE13: 1.281692852
B14: Prvá voľba z-skóre | D14: =IF(D6<>"",IF($AT$6<>"",IF($AT$6>0,(D6-$AS$6)/$AT$6,""),""),"") -> 0.9999779811 | E14: =IF(E6<>"",IF($AT$6<>"",IF($AT$6>0,(E6-$AS$6)/$AT$6,""),""),"") -> -0.9310139824 | F14: -0.9310139824 | G14: -0.9310139824 | H14: 0.03448199935 | I14: -0.9310139824 | J14: -0.9310139824 | K14: 0.9999779811 | L14: 0.03448199935 | M14: -0.9310139824 | N14: 0.03448199935 | O14: -0.9310139824 | P14: 0.03448199935 | Q14: 0.9999779811 | R14: -0.9310139824 | S14: -0.9310139824 | T14: -0.9310139824 | U14: 1.965473963 | V14: 0.03448199935 | W14: -0.9310139824 | X14: -0.9310139824 | Y14: 0.03448199935 | Z14: 0.9999779811 | AA14: 0.03448199935 | AB14: 0.9999779811 | AC14: 0.03448199935 | AD14: 1.965473963 | AE14: 1.965473963
B15: Druhá voľba z-skóre | D15: =IF(D7<>"",IF($AT$7<>"",IF($AT$7>0,(D7-$AS$7)/$AT$7,""),""),"") -> -1.045589333 | E15: =IF(E7<>"",IF($AT$7<>"",IF($AT$7>0,(E7-$AS$7)/$AT$7,""),""),"") -> -1.045589333 | F15: 0.03872553086 | G15: 0.03872553086 | H15: 0.03872553086 | I15: -1.045589333 | J15: 1.123040395 | K15: -1.045589333 | L15: 2.207355259 | M15: -1.045589333 | N15: 1.123040395 | O15: 0.03872553086 | P15: -1.045589333 | Q15: -1.045589333 | R15: -1.045589333 | S15: 1.123040395 | T15: -1.045589333 | U15: 0.03872553086 | V15: -1.045589333 | W15: 1.123040395 | X15: 0.03872553086 | Y15: 0.03872553086 | Z15: 1.123040395 | AA15: 1.123040395 | AB15: 0.03872553086 | AC15: -1.045589333 | AD15: 1.123040395 | AE15: 1.123040395
B16: Tretia voľba z-skóre | D16: =IF(D8<>"",IF($AT$8<>"",IF($AT$8>0,(D8-$AS$8)/$AT$8,""),""),"") -> -0.6758453353 | E16: =IF(E8<>"",IF($AT$8<>"",IF($AT$8>0,(E8-$AS$8)/$AT$8,""),""),"") -> -0.6758453353 | F16: -0.6758453353 | G16: -0.6758453353 | H16: 0.7259079528 | I16: -0.6758453353 | J16: 0.7259079528 | K16: 0.7259079528 | L16: 0.7259079528 | M16: 0.7259079528 | N16: -0.6758453353 | O16: 0.7259079528 | P16: -0.6758453353 | Q16: -0.6758453353 | R16: -0.6758453353 | S16: -0.6758453353 | T16: -0.6758453353 | U16: -0.6758453353 | V16: -0.6758453353 | W16: -0.6758453353 | X16: 0.02503130872 | Y16: 1.426784597 | Z16: 3.529414529 | AA16: -0.6758453353 | AB16: -0.6758453353 | AC16: 0.02503130872 | AD16: 1.426784597 | AE16: 0.02503130872
A17: Q_2 | B17: Voľby spolu n | C17: P | D17: 1 | E17: 0 | F17: 3 | G17: 1 | H17: 1 | I17: 0 | J17: 6 | K17: 4 | L17: 7 | M17: 0 | N17: 1 | O17: 0 | P17: 1 | Q17: 2 | R17: 2 | S17: 0 | T17: 0 | U17: 5 | V17: 2 | W17: 1 | X17: 1 | Y17: 1 | Z17: 14 | AA17: 0 | AB17: 9 | AC17: 6 | AD17: 5 | AE17: 8 | AR17: =SUM(D17:AQ17) -> 81 | AS17: =IF(AR17>0,AVERAGE(D17:AQ17),"") -> 2.892857143 | AT17: =IF(AR17>0,STDEV(D17:AQ17),"") -> 3.457030257 | AU17: =MAX(D17:AQ17) -> 14
B18: Prvá voľba n | C18: 0 | D18: 1 | E18: 0 | F18: 1 | G18: 0 | H18: 1 | I18: 0 | J18: 3 | K18: 2 | L18: 2 | M18: 0 | N18: 0 | O18: 0 | P18: 0 | Q18: 1 | R18: 1 | S18: 0 | T18: 0 | U18: 2 | V18: 0 | W18: 0 | X18: 1 | Y18: 0 | Z18: 5 | AA18: 0 | AB18: 3 | AC18: 3 | AD18: 1 | AE18: 0 | AR18: =SUM(D18:AQ18) -> 27 | AS18: =IF(AR17>0,AVERAGE(D18:AQ18),"") -> 0.9642857143 | AT18: =IF(AR17>0,STDEV(D18:AQ18),"") -> 1.290482048
B19: Druhá voľba n | C19: 0 | D19: 0 | E19: 0 | F19: 2 | G19: 0 | H19: 0 | I19: 0 | J19: 0 | K19: 1 | L19: 4 | M19: 0 | N19: 1 | O19: 0 | P19: 0 | Q19: 1 | R19: 0 | S19: 0 | T19: 0 | U19: 1 | V19: 1 | W19: 1 | X19: 0 | Y19: 0 | Z19: 5 | AA19: 0 | AB19: 4 | AC19: 3 | AD19: 1 | AE19: 2 | AR19: =SUM(D19:AQ19) -> 27 | AS19: =IF(AR17>0,AVERAGE(D19:AQ19),"") -> 0.9642857143 | AT19: =IF(AR17>0,STDEV(D19:AQ19),"") -> 1.426784597
B20: Tretia voľba n | C20: 0 | D20: 0 | E20: 0 | F20: 0 | G20: 1 | H20: 0 | I20: 0 | J20: 3 | K20: 1 | L20: 1 | M20: 0 | N20: 0 | O20: 0 | P20: 1 | Q20: 0 | R20: 1 | S20: 0 | T20: 0 | U20: 2 | V20: 1 | W20: 0 | X20: 0 | Y20: 1 | Z20: 4 | AA20: 0 | AB20: 2 | AC20: 0 | AD20: 3 | AE20: 6 | AR20: =SUM(D20:AQ20) -> 27 | AS20: =IF(AR17>0,AVERAGE(D20:AQ20),"") -> 0.9642857143 | AT20: =IF(AR17>0,STDEV(D20:AQ20),"") -> 1.477789712 | AU20: =MAX(D20:AQ20) -> 6
B21: Voľby spolu % | C21: 0 | D21: 3.571428571 | E21: 0 | F21: 3.571428571 | G21: 0 | H21: 3.571428571 | I21: 0 | J21: 10.71428571 | K21: 7.142857143 | L21: 7.142857143 | M21: 0 | N21: 0 | O21: 0 | P21: 0 | Q21: 3.571428571 | R21: 3.571428571 | S21: 0 | T21: 0 | U21: 7.142857143 | V21: 0 | W21: 0 | X21: 3.571428571 | Y21: 0 | Z21: 17.85714286 | AA21: 0 | AB21: 10.71428571 | AC21: 10.71428571 | AD21: 3.571428571 | AE21: 0
B22: Prvá voľba % | C22: 0 | D22: 0 | E22: 0 | F22: 7.142857143 | G22: 0 | H22: 0 | I22: 0 | J22: 0 | K22: 3.571428571 | L22: 14.28571429 | M22: 0 | N22: 3.571428571 | O22: 0 | P22: 0 | Q22: 3.571428571 | R22: 0 | S22: 0 | T22: 0 | U22: 3.571428571 | V22: 3.571428571 | W22: 3.571428571 | X22: 0 | Y22: 0 | Z22: 17.85714286 | AA22: 0 | AB22: 14.28571429 | AC22: 10.71428571 | AD22: 3.571428571 | AE22: 7.142857143
B23: Druhá voľba % | C23: 0 | D23: 0 | E23: 0 | F23: 0 | G23: 3.571428571 | H23: 0 | I23: 0 | J23: 10.71428571 | K23: 3.571428571 | L23: 3.571428571 | M23: 0 | N23: 0 | O23: 0 | P23: 3.571428571 | Q23: 0 | R23: 3.571428571 | S23: 0 | T23: 0 | U23: 7.142857143 | V23: 3.571428571 | W23: 0 | X23: 0 | Y23: 3.571428571 | Z23: 14.28571429 | AA23: 0 | AB23: 7.142857143 | AC23: 0 | AD23: 10.71428571 | AE23: 21.42857143
B24: Tretia voľba % | C24: 0 | D24: 3.571428571 | E24: 0 | F24: 10.71428571 | G24: 3.571428571 | H24: 3.571428571 | I24: 0 | J24: 21.42857143 | K24: 14.28571429 | L24: 25 | M24: 0 | N24: 3.571428571 | O24: 0 | P24: 3.571428571 | Q24: 7.142857143 | R24: 7.142857143 | S24: 0 | T24: 0 | U24: 17.85714286 | V24: 7.142857143 | W24: 3.571428571 | X24: 3.571428571 | Y24: 3.571428571 | Z24: 50 | AA24: 0 | AB24: 32.14285714 | AC24: 21.42857143 | AD24: 17.85714286 | AE24: 28.57142857
A25: * | B25: Voľby spolu z-skóre | C25: P | D25: =IF(D17<>"",IF($AT$17<>"",IF($AT$17>0,(D17-$AS$17)/$AT$17,""),""),"") -> -0.5475384946 | E25: =IF(E17<>"",IF($AT$17<>"",IF($AT$17>0,(E17-$AS$17)/$AT$17,""),""),"") -> -0.8368041143 | F25: 0.03099274498 | G25: -0.5475384946 | H25: -0.5475384946 | I25: -0.8368041143 | J25: 0.8987896043 | K25: 0.3202583647 | L25: 1.188055224 | M25: -0.8368041143 | N25: -0.5475384946 | O25: -0.8368041143 | P25: -0.5475384946 | Q25: -0.2582728748 | R25: -0.2582728748 | S25: -0.8368041143 | T25: -0.8368041143 | U25: 0.6095239845 | V25: -0.2582728748 | W25: -0.5475384946 | X25: -0.5475384946 | Y25: -0.5475384946 | Z25: 3.212914562 | AA25: -0.8368041143 | AB25: 1.766586464 | AC25: 0.8987896043 | AD25: 0.6095239845 | AE25: 1.477320844
B26: Prvá voľba z-skóre | D26: =IF(D18<>"",IF($AT$18<>"",IF($AT$18>0,(D18-$AS$18)/$AT$18,""),""),"") -> 0.02767515114 | E26: =IF(E18<>"",IF($AT$18<>"",IF($AT$18>0,(E18-$AS$18)/$AT$18,""),""),"") -> -0.7472290808 | F26: 0.02767515114 | G26: -0.7472290808 | H26: 0.02767515114 | I26: -0.7472290808 | J26: 1.577483615 | K26: 0.8025793831 | L26: 0.8025793831 | M26: -0.7472290808 | N26: -0.7472290808 | O26: -0.7472290808 | P26: -0.7472290808 | Q26: 0.02767515114 | R26: 0.02767515114 | S26: -0.7472290808 | T26: -0.7472290808 | U26: 0.8025793831 | V26: -0.7472290808 | W26: -0.7472290808 | X26: 0.02767515114 | Y26: -0.7472290808 | Z26: 3.127292079 | AA26: -0.7472290808 | AB26: 1.577483615 | AC26: 1.577483615 | AD26: 0.02767515114 | AE26: -0.7472290808
B27: Druhá voľba z-skóre | D27: =IF(D19<>"",IF($AT$19<>"",IF($AT$19>0,(D19-$AS$19)/$AT$19,""),""),"") -> -0.6758453353 | E27: =IF(E19<>"",IF($AT$19<>"",IF($AT$19>0,(E19-$AS$19)/$AT$19,""),""),"") -> -0.6758453353 | F27: 0.7259079528 | G27: -0.6758453353 | H27: -0.6758453353 | I27: -0.6758453353 | J27: -0.6758453353 | K27: 0.02503130872 | L27: 2.127661241 | M27: -0.6758453353 | N27: 0.02503130872 | O27: -0.6758453353 | P27: -0.6758453353 | Q27: 0.02503130872 | R27: -0.6758453353 | S27: -0.6758453353 | T27: -0.6758453353 | U27: 0.02503130872 | V27: 0.02503130872 | W27: 0.02503130872 | X27: -0.6758453353 | Y27: -0.6758453353 | Z27: 2.828537885 | AA27: -0.6758453353 | AB27: 2.127661241 | AC27: 1.426784597 | AD27: 0.02503130872 | AE27: 0.7259079528
B28: Tretia voľba z-skóre | D28: =IF(D20<>"",IF($AT$20<>"",IF($AT$20>0,(D20-$AS$20)/$AT$20,""),""),"") -> -0.6525188978 | E28: =IF(E20<>"",IF($AT$20<>"",IF($AT$20>0,(E20-$AS$20)/$AT$20,""),""),"") -> -0.6525188978 | F28: -0.6525188978 | G28: 0.02416736659 | H28: -0.6525188978 | I28: -0.6525188978 | J28: 1.377539895 | K28: 0.02416736659 | L28: 0.02416736659 | M28: -0.6525188978 | N28: -0.6525188978 | O28: -0.6525188978 | P28: 0.02416736659 | Q28: -0.6525188978 | R28: 0.02416736659 | S28: -0.6525188978 | T28: -0.6525188978 | U28: 0.700853631 | V28: 0.02416736659 | W28: -0.6525188978 | X28: -0.6525188978 | Y28: 0.02416736659 | Z28: 2.05422616 | AA28: -0.6525188978 | AB28: 0.700853631 | AC28: -0.6525188978 | AD28: 1.377539895 | AE28: 3.407598689
A29: Q_3 | B29: Voľby spolu n | C29: P | D29: 1 | E29: 0 | F29: 2 | G29: 0 | H29: 4 | I29: 2 | J29: 4 | K29: 4 | L29: 5 | M29: 3 | N29: 4 | O29: 4 | P29: 0 | Q29: 1 | R29: 1 | S29: 4 | T29: 1 | U29: 5 | V29: 2 | W29: 3 | X29: 4 | Y29: 3 | Z29: 9 | AA29: 1 | AB29: 3 | AC29: 1 | AD29: 6 | AE29: 4 | AR29: =SUM(D29:AQ29) -> 81 | AS29: =IF(AR29>0,AVERAGE(D29:AQ29),"") -> 2.892857143 | AT29: =IF(AR29>0,STDEV(D29:AQ29),"") -> 2.060911084 | AU29: =MAX(D29:AQ29) -> 9
B30: Prvá voľba n | C30: 0 | D30: 0 | E30: 0 | F30: 0 | G30: 0 | H30: 2 | I30: 1 | J30: 0 | K30: 3 | L30: 1 | M30: 1 | N30: 2 | O30: 0 | P30: 0 | Q30: 1 | R30: 0 | S30: 1 | T30: 1 | U30: 0 | V30: 1 | W30: 2 | X30: 1 | Y30: 1 | Z30: 2 | AA30: 1 | AB30: 2 | AC30: 0 | AD30: 2 | AE30: 2 | AR30: =SUM(D30:AQ30) -> 27 | AS30: =IF(AR29>0,AVERAGE(D30:AQ30),"") -> 0.9642857143 | AT30: =IF(AR29>0,STDEV(D30:AQ30),"") -> 0.8811668551
B31: Druhá voľba n | C31: 0 | D31: 0 | E31: 0 | F31: 0 | G31: 0 | H31: 1 | I31: 1 | J31: 2 | K31: 1 | L31: 2 | M31: 1 | N31: 1 | O31: 3 | P31: 0 | Q31: 0 | R31: 1 | S31: 1 | T31: 0 | U31: 2 | V31: 0 | W31: 1 | X31: 1 | Y31: 1 | Z31: 4 | AA31: 0 | AB31: 1 | AC31: 0 | AD31: 3 | AE31: 0 | AR31: =SUM(D31:AQ31) -> 27 | AS31: =IF(AR29>0,AVERAGE(D31:AQ31),"") -> 0.9642857143 | AT31: =IF(AR29>0,STDEV(D31:AQ31),"") -> 1.07089934
B32: Tretia voľba n | C32: 0 | D32: 1 | E32: 0 | F32: 2 | G32: 0 | H32: 1 | I32: 0 | J32: 2 | K32: 0 | L32: 2 | M32: 1 | N32: 1 | O32: 1 | P32: 0 | Q32: 0 | R32: 0 | S32: 2 | T32: 0 | U32: 3 | V32: 1 | W32: 0 | X32: 2 | Y32: 1 | Z32: 3 | AA32: 0 | AB32: 0 | AC32: 1 | AD32: 1 | AE32: 2 | AR32: =SUM(D32:AQ32) -> 27 | AS32: =IF(AR29>0,AVERAGE(D32:AQ32),"") -> 0.9642857143 | AT32: =IF(AR29>0,STDEV(D32:AQ32),"") -> 0.9615628813 | AU32: =MAX(D32:AQ32) -> 3
B33: Voľby spolu % | C33: 0 | D33: 0 | E33: 0 | F33: 0 | G33: 0 | H33: 7.142857143 | I33: 3.571428571 | J33: 0 | K33: 10.71428571 | L33: 3.571428571 | M33: 3.571428571 | N33: 7.142857143 | O33: 0 | P33: 0 | Q33: 3.571428571 | R33: 0 | S33: 3.571428571 | T33: 3.571428571 | U33: 0 | V33: 3.571428571 | W33: 7.142857143 | X33: 3.571428571 | Y33: 3.571428571 | Z33: 7.142857143 | AA33: 3.571428571 | AB33: 7.142857143 | AC33: 0 | AD33: 7.142857143 | AE33: 7.142857143
B34: Prvá voľba % | C34: 0 | D34: 0 | E34: 0 | F34: 0 | G34: 0 | H34: 3.571428571 | I34: 3.571428571 | J34: 7.142857143 | K34: 3.571428571 | L34: 7.142857143 | M34: 3.571428571 | N34: 3.571428571 | O34: 10.71428571 | P34: 0 | Q34: 0 | R34: 3.571428571 | S34: 3.571428571 | T34: 0 | U34: 7.142857143 | V34: 0 | W34: 3.571428571 | X34: 3.571428571 | Y34: 3.571428571 | Z34: 14.28571429 | AA34: 0 | AB34: 3.571428571 | AC34: 0 | AD34: 10.71428571 | AE34: 0
B35: Druhá voľba % | C35: 0 | D35: 3.571428571 | E35: 0 | F35: 7.142857143 | G35: 0 | H35: 3.571428571 | I35: 0 | J35: 7.142857143 | K35: 0 | L35: 7.142857143 | M35: 3.571428571 | N35: 3.571428571 | O35: 3.571428571 | P35: 0 | Q35: 0 | R35: 0 | S35: 7.142857143 | T35: 0 | U35: 10.71428571 | V35: 3.571428571 | W35: 0 | X35: 7.142857143 | Y35: 3.571428571 | Z35: 10.71428571 | AA35: 0 | AB35: 0 | AC35: 3.571428571 | AD35: 3.571428571 | AE35: 7.142857143
B36: Tretia voľba % | C36: 0 | D36: 3.571428571 | E36: 0 | F36: 7.142857143 | G36: 0 | H36: 14.28571429 | I36: 7.142857143 | J36: 14.28571429 | K36: 14.28571429 | L36: 17.85714286 | M36: 10.71428571 | N36: 14.28571429 | O36: 14.28571429 | P36: 0 | Q36: 3.571428571 | R36: 3.571428571 | S36: 14.28571429 | T36: 3.571428571 | U36: 17.85714286 | V36: 7.142857143 | W36: 10.71428571 | X36: 14.28571429 | Y36: 10.71428571 | Z36: 32.14285714 | AA36: 3.571428571 | AB36: 10.71428571 | AC36: 3.571428571 | AD36: 21.42857143 | AE36: 14.28571429
A37: * | B37: Voľby spolu z-skóre | C37: P | D37: =IF(D29<>"",IF($AT$29<>"",IF($AT$29>0,(D29-$AS$29)/$AT$29,""),""),"") -> -0.9184564814 | E37: =IF(E29<>"",IF($AT$29<>"",IF($AT$29>0,(E29-$AS$29)/$AT$29,""),""),"") -> -1.403678773 | F37: -0.4332341893 | G37: -1.403678773 | H37: 0.5372103948 | I37: -0.4332341893 | J37: 0.5372103948 | K37: 0.5372103948 | L37: 1.022432687 | M37: 0.05198810272 | N37: 0.5372103948 | O37: 0.5372103948 | P37: -1.403678773 | Q37: -0.9184564814 | R37: -0.9184564814 | S37: 0.5372103948 | T37: -0.9184564814 | U37: 1.022432687 | V37: -0.4332341893 | W37: 0.05198810272 | X37: 0.5372103948 | Y37: 0.05198810272 | Z37: 2.963321855 | AA37: -0.9184564814 | AB37: 0.05198810272 | AC37: -0.9184564814 | AD37: 1.507654979 | AE37: 0.5372103948
B38: Prvá voľba z-skóre | D38: =IF(D30<>"",IF($AT$30<>"",IF($AT$30>0,(D30-$AS$30)/$AT$30,""),""),"") -> -1.094328173 | E38: =IF(E30<>"",IF($AT$30<>"",IF($AT$30>0,(E30-$AS$30)/$AT$30,""),""),"") -> -1.094328173 | F38: -1.094328173 | G38: -1.094328173 | H38: 1.175389519 | I38: 0.04053067306 | J38: -1.094328173 | K38: 2.310248364 | L38: 0.04053067306 | M38: 0.04053067306 | N38: 1.175389519 | O38: -1.094328173 | P38: -1.094328173 | Q38: 0.04053067306 | R38: -1.094328173 | S38: 0.04053067306 | T38: 0.04053067306 | U38: -1.094328173 | V38: 0.04053067306 | W38: 1.175389519 | X38: 0.04053067306 | Y38: 0.04053067306 | Z38: 1.175389519 | AA38: 0.04053067306 | AB38: 1.175389519 | AC38: -1.094328173 | AD38: 1.175389519 | AE38: 1.175389519
B39: Druhá voľba z-skóre | D39: =IF(D31<>"",IF($AT$31<>"",IF($AT$31>0,(D31-$AS$31)/$AT$31,""),""),"") -> -0.9004447739 | E39: =IF(E31<>"",IF($AT$31<>"",IF($AT$31>0,(E31-$AS$31)/$AT$31,""),""),"") -> -0.9004447739 | F39: -0.9004447739 | G39: -0.9004447739 | H39: 0.03334980644 | I39: 0.03334980644 | J39: 0.9671443868 | K39: 0.03334980644 | L39: 0.9671443868 | M39: 0.03334980644 | N39: 0.03334980644 | O39: 1.900938967 | P39: -0.9004447739 | Q39: -0.9004447739 | R39: 0.03334980644 | S39: 0.03334980644 | T39: -0.9004447739 | U39: 0.9671443868 | V39: -0.9004447739 | W39: 0.03334980644 | X39: 0.03334980644 | Y39: 0.03334980644 | Z39: 2.834733548 | AA39: -0.9004447739 | AB39: 0.03334980644 | AC39: -0.9004447739 | AD39: 1.900938967 | AE39: -0.9004447739
B40: Tretia voľba z-skóre | D40: =IF(D32<>"",IF($AT$32<>"",IF($AT$32>0,(D32-$AS$32)/$AT$32,""),""),"") -> 0.03714191387 | E40: =IF(E32<>"",IF($AT$32<>"",IF($AT$32>0,(E32-$AS$32)/$AT$32,""),""),"") -> -1.002831674 | F40: 1.077115502 | G40: -1.002831674 | H40: 0.03714191387 | I40: -1.002831674 | J40: 1.077115502 | K40: -1.002831674 | L40: 1.077115502 | M40: 0.03714191387 | N40: 0.03714191387 | O40: 0.03714191387 | P40: -1.002831674 | Q40: -1.002831674 | R40: -1.002831674 | S40: 1.077115502 | T40: -1.002831674 | U40: 2.11708909 | V40: 0.03714191387 | W40: -1.002831674 | X40: 1.077115502 | Y40: 0.03714191387 | Z40: 2.11708909 | AA40: -1.002831674 | AB40: -1.002831674 | AC40: 0.03714191387 | AD40: 0.03714191387 | AE40: 1.077115502
A41: Q_4 | B41: Voľby spolu n | C41: P | D41: 0 | E41: 0 | F41: 0 | G41: 0 | H41: 2 | I41: 0 | J41: 2 | K41: 1 | L41: 10 | M41: 0 | N41: 0 | O41: 0 | P41: 0 | Q41: 0 | R41: 8 | S41: 0 | T41: 0 | U41: 2 | V41: 0 | W41: 3 | X41: 0 | Y41: 0 | Z41: 25 | AA41: 0 | AB41: 12 | AC41: 8 | AD41: 0 | AE41: 8 | AR41: =SUM(D41:AQ41) -> 81 | AS41: =IF(AR41>0,AVERAGE(D41:AQ41),"") -> 2.892857143 | AT41: =IF(AR41>0,STDEV(D41:AQ41),"") -> 5.606473016 | AU41: =MAX(D41:AQ41) -> 25
B42: Prvá voľba n | C42: 0 | D42: 0 | E42: 0 | F42: 0 | G42: 0 | H42: 0 | I42: 0 | J42: 0 | K42: 0 | L42: 2 | M42: 0 | N42: 0 | O42: 0 | P42: 0 | Q42: 0 | R42: 4 | S42: 0 | T42: 0 | U42: 1 | V42: 0 | W42: 0 | X42: 0 | Y42: 0 | Z42: 17 | AA42: 0 | AB42: 2 | AC42: 0 | AD42: 0 | AE42: 1 | AR42: =SUM(D42:AQ42) -> 27 | AS42: =IF(AR41>0,AVERAGE(D42:AQ42),"") -> 0.9642857143 | AT42: =IF(AR41>0,STDEV(D42:AQ42),"") -> 3.271449366
B43: Druhá voľba n | C43: 0 | D43: 0 | E43: 0 | F43: 0 | G43: 0 | H43: 0 | I43: 0 | J43: 1 | K43: 0 | L43: 3 | M43: 0 | N43: 0 | O43: 0 | P43: 0 | Q43: 0 | R43: 1 | S43: 0 | T43: 0 | U43: 0 | V43: 0 | W43: 2 | X43: 0 | Y43: 0 | Z43: 4 | AA43: 0 | AB43: 6 | AC43: 6 | AD43: 0 | AE43: 4 | AR43: =SUM(D43:AQ43) -> 27 | AS43: =IF(AR41>0,AVERAGE(D43:AQ43),"") -> 0.9642857143 | AT43: =IF(AR41>0,STDEV(D43:AQ43),"") -> 1.85556506
B44: Tretia voľba n | C44: 0 | D44: 0 | E44: 0 | F44: 0 | G44: 0 | H44: 2 | I44: 0 | J44: 1 | K44: 1 | L44: 5 | M44: 0 | N44: 0 | O44: 0 | P44: 0 | Q44: 0 | R44: 3 | S44: 0 | T44: 0 | U44: 1 | V44: 0 | W44: 1 | X44: 0 | Y44: 0 | Z44: 4 | AA44: 0 | AB44: 4 | AC44: 2 | AD44: 0 | AE44: 3 | AR44: =SUM(D44:AQ44) -> 27 | AS44: =IF(AR41>0,AVERAGE(D44:AQ44),"") -> 0.9642857143 | AT44: =IF(AR41>0,STDEV(D44:AQ44),"") -> 1.502643174 | AU44: =MAX(D44:AQ44) -> 5
B45: Voľby spolu % | C45: 0 | D45: 0 | E45: 0 | F45: 0 | G45: 0 | H45: 0 | I45: 0 | J45: 0 | K45: 0 | L45: 7.142857143 | M45: 0 | N45: 0 | O45: 0 | P45: 0 | Q45: 0 | R45: 14.28571429 | S45: 0 | T45: 0 | U45: 3.571428571 | V45: 0 | W45: 0 | X45: 0 | Y45: 0 | Z45: 60.71428571 | AA45: 0 | AB45: 7.142857143 | AC45: 0 | AD45: 0 | AE45: 3.571428571
B46: Prvá voľba % | C46: 0 | D46: 0 | E46: 0 | F46: 0 | G46: 0 | H46: 0 | I46: 0 | J46: 3.571428571 | K46: 0 | L46: 10.71428571 | M46: 0 | N46: 0 | O46: 0 | P46: 0 | Q46: 0 | R46: 3.571428571 | S46: 0 | T46: 0 | U46: 0 | V46: 0 | W46: 7.142857143 | X46: 0 | Y46: 0 | Z46: 14.28571429 | AA46: 0 | AB46: 21.42857143 | AC46: 21.42857143 | AD46: 0 | AE46: 14.28571429
B47: Druhá voľba % | C47: 0 | D47: 0 | E47: 0 | F47: 0 | G47: 0 | H47: 7.142857143 | I47: 0 | J47: 3.571428571 | K47: 3.571428571 | L47: 17.85714286 | M47: 0 | N47: 0 | O47: 0 | P47: 0 | Q47: 0 | R47: 10.71428571 | S47: 0 | T47: 0 | U47: 3.571428571 | V47: 0 | W47: 3.571428571 | X47: 0 | Y47: 0 | Z47: 14.28571429 | AA47: 0 | AB47: 14.28571429 | AC47: 7.142857143 | AD47: 0 | AE47: 10.71428571
B48: Tretia voľba % | C48: 0 | D48: 0 | E48: 0 | F48: 0 | G48: 0 | H48: 7.142857143 | I48: 0 | J48: 7.142857143 | K48: 3.571428571 | L48: 35.71428571 | M48: 0 | N48: 0 | O48: 0 | P48: 0 | Q48: 0 | R48: 28.57142857 | S48: 0 | T48: 0 | U48: 7.142857143 | V48: 0 | W48: 10.71428571 | X48: 0 | Y48: 0 | Z48: 89.28571429 | AA48: 0 | AB48: 42.85714286 | AC48: 28.57142857 | AD48: 0 | AE48: 28.57142857
A49: * | B49: Voľby spolu z-skóre | C49: P | D49: =IF(D41<>"",IF($AT41<>"",IF($AT41>0,(D41-$AS41)/$AT41,""),""),"") -> -0.5159852075 | E49: =IF(E41<>"",IF($AT$41<>"",IF($AT$41>0,(E41-$AS$41)/$AT$41,""),""),"") -> -0.5159852075 | F49: -0.5159852075 | G49: -0.5159852075 | H49: -0.1592546937 | I49: -0.5159852075 | J49: -0.1592546937 | K49: -0.3376199506 | L49: 1.267667362 | M49: -0.5159852075 | N49: -0.5159852075 | O49: -0.5159852075 | P49: -0.5159852075 | Q49: -0.5159852075 | R49: 0.9109368479 | S49: -0.5159852075 | T49: -0.5159852075 | U49: -0.1592546937 | V49: -0.5159852075 | W49: 0.01911056324 | X49: -0.5159852075 | Y49: -0.5159852075 | Z49: 3.943146216 | AA49: -0.5159852075 | AB49: 1.624397876 | AC49: 0.9109368479 | AD49: -0.5159852075 | AE49: 0.9109368479
B50: Prvá voľba z-skóre | D50: =IF(D42<>"",IF($AT42<>"",IF($AT42>0,(D42-$AS42)/$AT42,""),""),"") -> -0.2947579517 | E50: =IF(E42<>"",IF($AT$42<>"",IF($AT$42>0,(E42-$AS$42)/$AT$42,""),""),"") -> -0.2947579517 | F50: -0.2947579517 | G50: -0.2947579517 | H50: -0.2947579517 | I50: -0.2947579517 | J50: -0.2947579517 | K50: -0.2947579517 | L50: 0.3165918741 | M50: -0.2947579517 | N50: -0.2947579517 | O50: -0.2947579517 | P50: -0.2947579517 | Q50: -0.2947579517 | R50: 0.9279417 | S50: -0.2947579517 | T50: -0.2947579517 | U50: 0.01091696118 | V50: -0.2947579517 | W50: -0.2947579517 | X50: -0.2947579517 | Y50: -0.2947579517 | Z50: 4.901715568 | AA50: -0.2947579517 | AB50: 0.3165918741 | AC50: -0.2947579517 | AD50: -0.2947579517 | AE50: 0.01091696118
B51: Druhá voľba z-skóre | D51: =IF(D43<>"",IF($AT43<>"",IF($AT43>0,(D43-$AS43)/$AT43,""),""),"") -> -0.5196722739 | E51: =IF(E43<>"",IF($AT$43<>"",IF($AT$43>0,(E43-$AS$43)/$AT$43,""),""),"") -> -0.5196722739 | F51: -0.5196722739 | G51: -0.5196722739 | H51: -0.5196722739 | I51: -0.5196722739 | J51: 0.01924712126 | K51: -0.5196722739 | L51: 1.097085912 | M51: -0.5196722739 | N51: -0.5196722739 | O51: -0.5196722739 | P51: -0.5196722739 | Q51: -0.5196722739 | R51: 0.01924712126 | S51: -0.5196722739 | T51: -0.5196722739 | U51: -0.5196722739 | V51: -0.5196722739 | W51: 0.5581665164 | X51: -0.5196722739 | Y51: -0.5196722739 | Z51: 1.636005307 | AA51: -0.5196722739 | AB51: 2.713844097 | AC51: 2.713844097 | AD51: -0.5196722739 | AE51: 1.636005307
B52: Tretia voľba z-skóre | D52: =IF(D44<>"",IF($AT44<>"",IF($AT44>0,(D44-$AS44)/$AT44,""),""),"") -> -0.6417263467 | E52: =IF(E44<>"",IF($AT$44<>"",IF($AT$44>0,(E44-$AS$44)/$AT$44,""),""),"") -> -0.6417263467 | F52: -0.6417263467 | G52: -0.6417263467 | H52: 0.6892616316 | I52: -0.6417263467 | J52: 0.02376764247 | K52: 0.02376764247 | L52: 2.685743599 | M52: -0.6417263467 | N52: -0.6417263467 | O52: -0.6417263467 | P52: -0.6417263467 | Q52: -0.6417263467 | R52: 1.354755621 | S52: -0.6417263467 | T52: -0.6417263467 | U52: 0.02376764247 | V52: -0.6417263467 | W52: 0.02376764247 | X52: -0.6417263467 | Y52: -0.6417263467 | Z52: 2.02024961 | AA52: -0.6417263467 | AB52: 2.02024961 | AC52: 0.6892616316 | AD52: -0.6417263467 | AE52: 1.354755621
A53: Q_5 | B53: Voľby spolu n | C53: P | D53: 2 | E53: 0 | F53: 1 | G53: 1 | H53: 2 | I53: 1 | J53: 5 | K53: 3 | L53: 3 | M53: 1 | N53: 4 | O53: 2 | P53: 2 | Q53: 3 | R53: 0 | S53: 0 | T53: 0 | U53: 5 | V53: 4 | W53: 2 | X53: 3 | Y53: 3 | Z53: 11 | AA53: 2 | AB53: 6 | AC53: 2 | AD53: 6 | AE53: 5 | AR53: =SUM(D53:AQ53) -> 79 | AS53: =IF(AR53>0,AVERAGE(D53:AQ53),"") -> 2.821428571 | AT53: =IF(AR53>0,STDEV(D53:AQ53),"") -> 2.389073452 | AU53: =MAX(D53:AQ53) -> 11
B54: Prvá voľba n | C54: 0 | D54: 1 | E54: 0 | F54: 0 | G54: 0 | H54: 1 | I54: 0 | J54: 1 | K54: 1 | L54: 1 | M54: 1 | N54: 1 | O54: 0 | P54: 1 | Q54: 2 | R54: 0 | S54: 0 | T54: 0 | U54: 3 | V54: 0 | W54: 0 | X54: 1 | Y54: 1 | Z54: 3 | AA54: 2 | AB54: 2 | AC54: 0 | AD54: 2 | AE54: 3 | AR54: =SUM(D54:AQ54) -> 27 | AS54: =IF(AR53>0,AVERAGE(D54:AQ54),"") -> 0.9642857143 | AT54: =IF(AR53>0,STDEV(D54:AQ54),"") -> 0.9993384055
B55: Druhá voľba n | C55: 0 | D55: 1 | E55: 0 | F55: 1 | G55: 1 | H55: 1 | I55: 0 | J55: 1 | K55: 1 | L55: 1 | M55: 0 | N55: 3 | O55: 0 | P55: 1 | Q55: 0 | R55: 0 | S55: 0 | T55: 0 | U55: 2 | V55: 2 | W55: 0 | X55: 1 | Y55: 0 | Z55: 3 | AA55: 0 | AB55: 2 | AC55: 2 | AD55: 2 | AE55: 1 | AR55: =SUM(D55:AQ55) -> 26 | AS55: =IF(AR53>0,AVERAGE(D55:AQ55),"") -> 0.9285714286 | AT55: =IF(AR53>0,STDEV(D55:AQ55),"") -> 0.9399988743
B56: Tretia voľba n | C56: 0 | D56: 0 | E56: 0 | F56: 0 | G56: 0 | H56: 0 | I56: 1 | J56: 3 | K56: 1 | L56: 1 | M56: 0 | N56: 0 | O56: 2 | P56: 0 | Q56: 1 | R56: 0 | S56: 0 | T56: 0 | U56: 0 | V56: 2 | W56: 2 | X56: 1 | Y56: 2 | Z56: 5 | AA56: 0 | AB56: 2 | AC56: 0 | AD56: 2 | AE56: 1 | AR56: =SUM(D56:AQ56) -> 26 | AS56: =IF(AR53>0,AVERAGE(D56:AQ56),"") -> 0.9285714286 | AT56: =IF(AR53>0,STDEV(D56:AQ56),"") -> 1.214985793 | AU56: =MAX(D56:AQ56) -> 5
B57: Voľby spolu % | C57: 0 | D57: 3.571428571 | E57: 0 | F57: 0 | G57: 0 | H57: 3.571428571 | I57: 0 | J57: 3.571428571 | K57: 3.571428571 | L57: 3.571428571 | M57: 3.571428571 | N57: 3.571428571 | O57: 0 | P57: 3.571428571 | Q57: 7.142857143 | R57: 0 | S57: 0 | T57: 0 | U57: 10.71428571 | V57: 0 | W57: 0 | X57: 3.571428571 | Y57: 3.571428571 | Z57: 10.71428571 | AA57: 7.142857143 | AB57: 7.142857143 | AC57: 0 | AD57: 7.142857143 | AE57: 10.71428571
B58: Prvá voľba % | C58: 0 | D58: 3.571428571 | E58: 0 | F58: 3.571428571 | G58: 3.571428571 | H58: 3.571428571 | I58: 0 | J58: 3.571428571 | K58: 3.571428571 | L58: 3.571428571 | M58: 0 | N58: 10.71428571 | O58: 0 | P58: 3.571428571 | Q58: 0 | R58: 0 | S58: 0 | T58: 0 | U58: 7.142857143 | V58: 7.142857143 | W58: 0 | X58: 3.571428571 | Y58: 0 | Z58: 10.71428571 | AA58: 0 | AB58: 7.142857143 | AC58: 7.142857143 | AD58: 7.142857143 | AE58: 3.571428571
B59: Druhá voľba % | C59: 0 | D59: 0 | E59: 0 | F59: 0 | G59: 0 | H59: 0 | I59: 3.571428571 | J59: 10.71428571 | K59: 3.571428571 | L59: 3.571428571 | M59: 0 | N59: 0 | O59: 7.142857143 | P59: 0 | Q59: 3.571428571 | R59: 0 | S59: 0 | T59: 0 | U59: 0 | V59: 7.142857143 | W59: 7.142857143 | X59: 3.571428571 | Y59: 7.142857143 | Z59: 17.85714286 | AA59: 0 | AB59: 7.142857143 | AC59: 0 | AD59: 7.142857143 | AE59: 3.571428571
B60: Tretia voľba % | C60: 0 | D60: 7.142857143 | E60: 0 | F60: 3.571428571 | G60: 3.571428571 | H60: 7.142857143 | I60: 3.571428571 | J60: 17.85714286 | K60: 10.71428571 | L60: 10.71428571 | M60: 3.571428571 | N60: 14.28571429 | O60: 7.142857143 | P60: 7.142857143 | Q60: 10.71428571 | R60: 0 | S60: 0 | T60: 0 | U60: 17.85714286 | V60: 14.28571429 | W60: 7.142857143 | X60: 10.71428571 | Y60: 10.71428571 | Z60: 39.28571429 | AA60: 7.142857143 | AB60: 21.42857143 | AC60: 7.142857143 | AD60: 21.42857143 | AE60: 17.85714286
A61: * | B61: Voľby spolu z-skóre | C61: P | D61: =IF(D53<>"",IF($AT$53<>"",IF($AT$53>0,(D53-$AS$53)/$AT$53,""),""),"") -> -0.3438272569 | E61: =IF(E53<>"",IF($AT$53<>"",IF($AT$53>0,(E53-$AS$53)/$AT$53,""),""),"") -> -1.180971882 | F61: -0.7623995696 | G61: -0.7623995696 | H61: -0.3438272569 | I61: -0.7623995696 | J61: 0.9118896813 | K61: 0.07474505585 | L61: 0.07474505585 | M61: -0.7623995696 | N61: 0.4933173686 | O61: -0.3438272569 | P61: -0.3438272569 | Q61: 0.07474505585 | R61: -1.180971882 | S61: -1.180971882 | T61: -1.180971882 | U61: 0.9118896813 | V61: 0.4933173686 | W61: -0.3438272569 | X61: 0.07474505585 | Y61: 0.07474505585 | Z61: 3.423323558 | AA61: -0.3438272569 | AB61: 1.330461994 | AC61: -0.3438272569 | AD61: 1.330461994 | AE61: 0.9118896813
B62: Prvá voľba z-skóre | D62: =IF(D54<>"",IF($AT$54<>"",IF($AT$54>0,(D54-$AS$54)/$AT$54,""),""),"") -> 0.03573792973 | E62: =IF(E54<>"",IF($AT$54<>"",IF($AT$54>0,(E54-$AS$54)/$AT$54,""),""),"") -> -0.9649241028 | F62: -0.9649241028 | G62: -0.9649241028 | H62: 0.03573792973 | I62: -0.9649241028 | J62: 0.03573792973 | K62: 0.03573792973 | L62: 0.03573792973 | M62: 0.03573792973 | N62: 0.03573792973 | O62: -0.9649241028 | P62: 0.03573792973 | Q62: 1.036399962 | R62: -0.9649241028 | S62: -0.9649241028 | T62: -0.9649241028 | U62: 2.037061995 | V62: -0.9649241028 | W62: -0.9649241028 | X62: 0.03573792973 | Y62: 0.03573792973 | Z62: 2.037061995 | AA62: 1.036399962 | AB62: 1.036399962 | AC62: -0.9649241028 | AD62: 1.036399962 | AE62: 2.037061995
B63: Druhá voľba z-skóre | D63: =IF(D55<>"",IF($AT$55<>"",IF($AT$55>0,(D55-$AS$55)/$AT$55,""),""),"") -> 0.07598793295 | E63: =IF(E55<>"",IF($AT$55<>"",IF($AT$55>0,(E55-$AS$55)/$AT$55,""),""),"") -> -0.9878431283 | F63: 0.07598793295 | G63: 0.07598793295 | H63: 0.07598793295 | I63: -0.9878431283 | J63: 0.07598793295 | K63: 0.07598793295 | L63: 0.07598793295 | M63: -0.9878431283 | N63: 2.203650056 | O63: -0.9878431283 | P63: 0.07598793295 | Q63: -0.9878431283 | R63: -0.9878431283 | S63: -0.9878431283 | T63: -0.9878431283 | U63: 1.139818994 | V63: 1.139818994 | W63: -0.9878431283 | X63: 0.07598793295 | Y63: -0.9878431283 | Z63: 2.203650056 | AA63: -0.9878431283 | AB63: 1.139818994 | AC63: 1.139818994 | AD63: 1.139818994 | AE63: 0.07598793295
B64: Tretia voľba z-skóre | D64: =IF(D56<>"",IF($AT$56<>"",IF($AT$56>0,(D56-$AS$56)/$AT$56,""),""),"") -> -0.7642652566 | E64: =IF(E56<>"",IF($AT$56<>"",IF($AT$56>0,(E56-$AS$56)/$AT$56,""),""),"") -> -0.7642652566 | F64: -0.7642652566 | G64: -0.7642652566 | H64: -0.7642652566 | I64: 0.05878963513 | J64: 1.704899419 | K64: 0.05878963513 | L64: 0.05878963513 | M64: -0.7642652566 | N64: -0.7642652566 | O64: 0.8818445269 | P64: -0.7642652566 | Q64: 0.05878963513 | R64: -0.7642652566 | S64: -0.7642652566 | T64: -0.7642652566 | U64: -0.7642652566 | V64: 0.8818445269 | W64: 0.8818445269 | X64: 0.05878963513 | Y64: 0.8818445269 | Z64: 3.351009202 | AA64: -0.7642652566 | AB64: 0.8818445269 | AC64: -0.7642652566 | AD64: 0.8818445269 | AE64: 0.05878963513
A65: Q_6 | B65: Voľby spolu n | C65: N | D65: 0 | E65: 12 | F65: 0 | G65: 6 | H65: 2 | I65: 19 | J65: 0 | K65: 1 | L65: 0 | M65: 20 | N65: 0 | O65: 3 | P65: 0 | Q65: 0 | R65: 1 | S65: 2 | T65: 2 | U65: 1 | V65: 0 | W65: 1 | X65: 2 | Y65: 2 | Z65: 2 | AA65: 2 | AB65: 1 | AC65: 0 | AD65: 1 | AE65: 0 | AR65: =SUM(D65:AQ65) -> 80 | AS65: =IF(AR65>0,AVERAGE(D65:AQ65),"") -> 2.857142857 | AT65: =IF(AR65>0,STDEV(D65:AQ65),"") -> 5.289502432 | AU65: =MAX(D65:AQ65) -> 20
B66: Prvá voľba n | C66: 0 | D66: 0 | E66: 5 | F66: 0 | G66: 0 | H66: 0 | I66: 9 | J66: 0 | K66: 0 | L66: 0 | M66: 5 | N66: 0 | O66: 0 | P66: 0 | Q66: 0 | R66: 0 | S66: 1 | T66: 2 | U66: 0 | V66: 0 | W66: 0 | X66: 1 | Y66: 1 | Z66: 1 | AA66: 1 | AB66: 0 | AC66: 0 | AD66: 1 | AE66: 0 | AR66: =SUM(D66:AQ66) -> 27 | AS66: =IF(AR65>0,AVERAGE(D66:AQ66),"") -> 0.9642857143 | AT66: =IF(AR65>0,STDEV(D66:AQ66),"") -> 2.063476801
B67: Druhá voľba n | C67: 0 | D67: 0 | E67: 1 | F67: 0 | G67: 3 | H67: 2 | I67: 7 | J67: 0 | K67: 0 | L67: 0 | M67: 9 | N67: 0 | O67: 1 | P67: 0 | Q67: 0 | R67: 0 | S67: 1 | T67: 0 | U67: 0 | V67: 0 | W67: 1 | X67: 1 | Y67: 0 | Z67: 0 | AA67: 0 | AB67: 1 | AC67: 0 | AD67: 0 | AE67: 0 | AR67: =SUM(D67:AQ67) -> 27 | AS67: =IF(AR65>0,AVERAGE(D67:AQ67),"") -> 0.9642857143 | AT67: =IF(AR65>0,STDEV(D67:AQ67),"") -> 2.134064855
B68: Tretia voľba n | C68: 0 | D68: 0 | E68: 6 | F68: 0 | G68: 3 | H68: 0 | I68: 3 | J68: 0 | K68: 1 | L68: 0 | M68: 6 | N68: 0 | O68: 2 | P68: 0 | Q68: 0 | R68: 1 | S68: 0 | T68: 0 | U68: 1 | V68: 0 | W68: 0 | X68: 0 | Y68: 1 | Z68: 1 | AA68: 1 | AB68: 0 | AC68: 0 | AD68: 0 | AE68: 0 | AR68: =SUM(D68:AQ68) -> 26 | AS68: =IF(AR65>0,AVERAGE(D68:AQ68),"") -> 0.9285714286 | AT68: =IF(AR65>0,STDEV(D68:AQ68),"") -> 1.67616342 | AU68: =MAX(D68:AQ68) -> 6
B69: Voľby spolu % | C69: 0 | D69: 0 | E69: 17.85714286 | F69: 0 | G69: 0 | H69: 0 | I69: 32.14285714 | J69: 0 | K69: 0 | L69: 0 | M69: 17.85714286 | N69: 0 | O69: 0 | P69: 0 | Q69: 0 | R69: 0 | S69: 3.571428571 | T69: 7.142857143 | U69: 0 | V69: 0 | W69: 0 | X69: 3.571428571 | Y69: 3.571428571 | Z69: 3.571428571 | AA69: 3.571428571 | AB69: 0 | AC69: 0 | AD69: 3.571428571 | AE69: 0
B70: Prvá voľba % | C70: 0 | D70: 0 | E70: 3.571428571 | F70: 0 | G70: 10.71428571 | H70: 7.142857143 | I70: 25 | J70: 0 | K70: 0 | L70: 0 | M70: 32.14285714 | N70: 0 | O70: 3.571428571 | P70: 0 | Q70: 0 | R70: 0 | S70: 3.571428571 | T70: 0 | U70: 0 | V70: 0 | W70: 3.571428571 | X70: 3.571428571 | Y70: 0 | Z70: 0 | AA70: 0 | AB70: 3.571428571 | AC70: 0 | AD70: 0 | AE70: 0
B71: Druhá voľba % | C71: 0 | D71: 0 | E71: 21.42857143 | F71: 0 | G71: 10.71428571 | H71: 0 | I71: 10.71428571 | J71: 0 | K71: 3.571428571 | L71: 0 | M71: 21.42857143 | N71: 0 | O71: 7.142857143 | P71: 0 | Q71: 0 | R71: 3.571428571 | S71: 0 | T71: 0 | U71: 3.571428571 | V71: 0 | W71: 0 | X71: 0 | Y71: 3.571428571 | Z71: 3.571428571 | AA71: 3.571428571 | AB71: 0 | AC71: 0 | AD71: 0 | AE71: 0
B72: Tretia voľba % | C72: 0 | D72: 0 | E72: 42.85714286 | F72: 0 | G72: 21.42857143 | H72: 7.142857143 | I72: 67.85714286 | J72: 0 | K72: 3.571428571 | L72: 0 | M72: 71.42857143 | N72: 0 | O72: 10.71428571 | P72: 0 | Q72: 0 | R72: 3.571428571 | S72: 7.142857143 | T72: 7.142857143 | U72: 3.571428571 | V72: 0 | W72: 3.571428571 | X72: 7.142857143 | Y72: 7.142857143 | Z72: 7.142857143 | AA72: 7.142857143 | AB72: 3.571428571 | AC72: 0 | AD72: 3.571428571 | AE72: 0
A73: * | B73: Voľby spolu z-skóre | C73: N | D73: =IF(D65<>"",IF($AT$65<>"",IF($AT$65>0,(D65-$AS$65)/$AT$65,""),""),"") -> -0.5401534254 | E73: =IF(E65<>"",IF($AT$65<>"",IF($AT$65>0,(E65-$AS$65)/$AT$65,""),""),"") -> 1.728490961 | F73: -0.5401534254 | G73: 0.5941687679 | H73: -0.1620460276 | I73: 3.051866853 | J73: -0.5401534254 | K73: -0.3510997265 | L73: -0.5401534254 | M73: 3.240920552 | N73: -0.5401534254 | O73: 0.02700767127 | P73: -0.5401534254 | Q73: -0.5401534254 | R73: -0.3510997265 | S73: -0.1620460276 | T73: -0.1620460276 | U73: -0.3510997265 | V73: -0.5401534254 | W73: -0.3510997265 | X73: -0.1620460276 | Y73: -0.1620460276 | Z73: -0.1620460276 | AA73: -0.1620460276 | AB73: -0.3510997265 | AC73: -0.5401534254 | AD73: -0.3510997265 | AE73: -0.5401534254
B74: Prvá voľba z-skóre | D74: =IF(D66<>"",IF($AT$66<>"",IF($AT$66>0,(D66-$AS$66)/$AT$66,""),""),"") -> -0.4673111488 | E74: =IF(E66<>"",IF($AT$66<>"",IF($AT$66>0,(E66-$AS$66)/$AT$66,""),""),"") -> 1.955783697 | F74: -0.4673111488 | G74: -0.4673111488 | H74: -0.4673111488 | I74: 3.894259573 | J74: -0.4673111488 | K74: -0.4673111488 | L74: -0.4673111488 | M74: 1.955783697 | N74: -0.4673111488 | O74: -0.4673111488 | P74: -0.4673111488 | Q74: -0.4673111488 | R74: -0.4673111488 | S74: 0.01730782032 | T74: 0.5019267894 | U74: -0.4673111488 | V74: -0.4673111488 | W74: -0.4673111488 | X74: 0.01730782032 | Y74: 0.01730782032 | Z74: 0.01730782032 | AA74: 0.01730782032 | AB74: -0.4673111488 | AC74: -0.4673111488 | AD74: 0.01730782032 | AE74: -0.4673111488
B75: Druhá voľba z-skóre | D75: =IF(D67<>"",IF($AT$67<>"",IF($AT$67>0,(D67-$AS$67)/$AT$67,""),""),"") -> -0.4518539875 | E75: =IF(E67<>"",IF($AT$67<>"",IF($AT$67>0,(E67-$AS$67)/$AT$67,""),""),"") -> 0.01673533287 | F75: -0.4518539875 | G75: 0.9539139737 | H75: 0.4853246533 | I75: 2.828271255 | J75: -0.4518539875 | K75: -0.4518539875 | L75: -0.4518539875 | M75: 3.765449896 | N75: -0.4518539875 | O75: 0.01673533287 | P75: -0.4518539875 | Q75: -0.4518539875 | R75: -0.4518539875 | S75: 0.01673533287 | T75: -0.4518539875 | U75: -0.4518539875 | V75: -0.4518539875 | W75: 0.01673533287 | X75: 0.01673533287 | Y75: -0.4518539875 | Z75: -0.4518539875 | AA75: -0.4518539875 | AB75: 0.01673533287 | AC75: -0.4518539875 | AD75: -0.4518539875 | AE75: -0.4518539875
B76: Tretia voľba z-skóre | D76: =IF(D68<>"",IF($AT$68<>"",IF($AT$68>0,(D68-$AS$68)/$AT$68,""),""),"") -> -0.553986215 | E76: =IF(E68<>"",IF($AT$68<>"",IF($AT$68>0,(E68-$AS$68)/$AT$68,""),""),"") -> 3.02561702 | F76: -0.553986215 | G76: 1.235815403 | H76: -0.553986215 | I76: 1.235815403 | J76: -0.553986215 | K76: 0.04261432423 | L76: -0.553986215 | M76: 3.02561702 | N76: -0.553986215 | O76: 0.6392148634 | P76: -0.553986215 | Q76: -0.553986215 | R76: 0.04261432423 | S76: -0.553986215 | T76: -0.553986215 | U76: 0.04261432423 | V76: -0.553986215 | W76: -0.553986215 | X76: -0.553986215 | Y76: 0.04261432423 | Z76: 0.04261432423 | AA76: 0.04261432423 | AB76: -0.553986215 | AC76: -0.553986215 | AD76: -0.553986215 | AE76: -0.553986215
A77: Q_7 | B77: Voľby spolu n | C77: N | D77: 1 | E77: 13 | F77: 0 | G77: 10 | H77: 3 | I77: 20 | J77: 0 | K77: 1 | L77: 0 | M77: 18 | N77: 0 | O77: 4 | P77: 0 | Q77: 0 | R77: 1 | S77: 1 | T77: 3 | U77: 0 | V77: 0 | W77: 1 | X77: 0 | Y77: 0 | Z77: 2 | AA77: 1 | AB77: 0 | AC77: 0 | AD77: 2 | AE77: 0 | AR77: =SUM(D77:AQ77) -> 81 | AS77: =IF(AR77>0,AVERAGE(D77:AQ77),"") -> 2.892857143 | AT77: =IF(AR77>0,STDEV(D77:AQ77),"") -> 5.465984278 | AU77: =MAX(D77:AQ77) -> 20
B78: Prvá voľba n | C78: 0 | D78: 0 | E78: 7 | F78: 0 | G78: 1 | H78: 1 | I78: 11 | J78: 0 | K78: 0 | L78: 0 | M78: 4 | N78: 0 | O78: 0 | P78: 0 | Q78: 0 | R78: 0 | S78: 0 | T78: 1 | U78: 0 | V78: 0 | W78: 0 | X78: 0 | Y78: 0 | Z78: 1 | AA78: 1 | AB78: 0 | AC78: 0 | AD78: 0 | AE78: 0 | AR78: =SUM(D78:AQ78) -> 27 | AS78: =IF(AR77>0,AVERAGE(D78:AQ78),"") -> 0.9642857143 | AT78: =IF(AR77>0,STDEV(D78:AQ78),"") -> 2.471798608
B79: Druhá voľba n | C79: 0 | D79: 0 | E79: 1 | F79: 0 | G79: 5 | H79: 1 | I79: 6 | J79: 0 | K79: 1 | L79: 0 | M79: 8 | N79: 0 | O79: 2 | P79: 0 | Q79: 0 | R79: 1 | S79: 1 | T79: 0 | U79: 0 | V79: 0 | W79: 0 | X79: 0 | Y79: 0 | Z79: 0 | AA79: 0 | AB79: 0 | AC79: 0 | AD79: 1 | AE79: 0 | AR79: =SUM(D79:AQ79) -> 27 | AS79: =IF(AR77>0,AVERAGE(D79:AQ79),"") -> 0.9642857143 | AT79: =IF(AR77>0,STDEV(D79:AQ79),"") -> 2.00890873
B80: Tretia voľba n | C80: 0 | D80: 1 | E80: 5 | F80: 0 | G80: 4 | H80: 1 | I80: 3 | J80: 0 | K80: 0 | L80: 0 | M80: 6 | N80: 0 | O80: 2 | P80: 0 | Q80: 0 | R80: 0 | S80: 0 | T80: 2 | U80: 0 | V80: 0 | W80: 1 | X80: 0 | Y80: 0 | Z80: 1 | AA80: 0 | AB80: 0 | AC80: 0 | AD80: 1 | AE80: 0 | AR80: =SUM(D80:AQ80) -> 27 | AS80: =IF(AR77>0,AVERAGE(D80:AQ80),"") -> 0.9642857143 | AT80: =IF(AR77>0,STDEV(D80:AQ80),"") -> 1.643892014 | AU80: =MAX(D80:AQ80) -> 6
B81: Voľby spolu % | C81: 0 | D81: 0 | E81: 25 | F81: 0 | G81: 3.571428571 | H81: 3.571428571 | I81: 39.28571429 | J81: 0 | K81: 0 | L81: 0 | M81: 14.28571429 | N81: 0 | O81: 0 | P81: 0 | Q81: 0 | R81: 0 | S81: 0 | T81: 3.571428571 | U81: 0 | V81: 0 | W81: 0 | X81: 0 | Y81: 0 | Z81: 3.571428571 | AA81: 3.571428571 | AB81: 0 | AC81: 0 | AD81: 0 | AE81: 0
B82: Prvá voľba % | C82: 0 | D82: 0 | E82: 3.571428571 | F82: 0 | G82: 17.85714286 | H82: 3.571428571 | I82: 21.42857143 | J82: 0 | K82: 3.571428571 | L82: 0 | M82: 28.57142857 | N82: 0 | O82: 7.142857143 | P82: 0 | Q82: 0 | R82: 3.571428571 | S82: 3.571428571 | T82: 0 | U82: 0 | V82: 0 | W82: 0 | X82: 0 | Y82: 0 | Z82: 0 | AA82: 0 | AB82: 0 | AC82: 0 | AD82: 3.571428571 | AE82: 0
B83: Druhá voľba % | C83: 0 | D83: 3.571428571 | E83: 17.85714286 | F83: 0 | G83: 14.28571429 | H83: 3.571428571 | I83: 10.71428571 | J83: 0 | K83: 0 | L83: 0 | M83: 21.42857143 | N83: 0 | O83: 7.142857143 | P83: 0 | Q83: 0 | R83: 0 | S83: 0 | T83: 7.142857143 | U83: 0 | V83: 0 | W83: 3.571428571 | X83: 0 | Y83: 0 | Z83: 3.571428571 | AA83: 0 | AB83: 0 | AC83: 0 | AD83: 3.571428571 | AE83: 0
B84: Tretia voľba % | C84: 0 | D84: 3.571428571 | E84: 46.42857143 | F84: 0 | G84: 35.71428571 | H84: 10.71428571 | I84: 71.42857143 | J84: 0 | K84: 3.571428571 | L84: 0 | M84: 64.28571429 | N84: 0 | O84: 14.28571429 | P84: 0 | Q84: 0 | R84: 3.571428571 | S84: 3.571428571 | T84: 10.71428571 | U84: 0 | V84: 0 | W84: 3.571428571 | X84: 0 | Y84: 0 | Z84: 7.142857143 | AA84: 3.571428571 | AB84: 0 | AC84: 0 | AD84: 7.142857143 | AE84: 0
A85: * | B85: Voľby spolu z-skóre | C85: N | D85: =IF(D77<>"",IF($AT$77<>"",IF($AT$77>0,(D77-$AS$77)/$AT$77,""),""),"") -> -0.3462975828 | E85: =IF(E77<>"",IF($AT$77<>"",IF($AT$77>0,(E77-$AS$77)/$AT$77,""),""),"") -> 1.849098414 | F85: -0.5292472491 | G85: 1.300249415 | H85: 0.01960174997 | I85: 3.129746078 | J85: -0.5292472491 | K85: -0.3462975828 | L85: -0.5292472491 | M85: 2.763846745 | N85: -0.5292472491 | O85: 0.2025514163 | P85: -0.5292472491 | Q85: -0.5292472491 | R85: -0.3462975828 | S85: -0.3462975828 | T85: 0.01960174997 | U85: -0.5292472491 | V85: -0.5292472491 | W85: -0.3462975828 | X85: -0.5292472491 | Y85: -0.5292472491 | Z85: -0.1633479164 | AA85: -0.3462975828 | AB85: -0.5292472491 | AC85: -0.5292472491 | AD85: -0.1633479164 | AE85: -0.5292472491
B86: Prvá voľba z-skóre | D86: =IF(D78<>"",IF($AT$78<>"",IF($AT$78>0,(D78-$AS$78)/$AT$78,""),""),"") -> -0.3901150001 | E86: =IF(E78<>"",IF($AT$78<>"",IF($AT$78>0,(E78-$AS$78)/$AT$78,""),""),"") -> 2.441830926 | F86: -0.3901150001 | G86: 0.01444870371 | H86: 0.01444870371 | I86: 4.060085742 | J86: -0.3901150001 | K86: -0.3901150001 | L86: -0.3901150001 | M86: 1.228139815 | N86: -0.3901150001 | O86: -0.3901150001 | P86: -0.3901150001 | Q86: -0.3901150001 | R86: -0.3901150001 | S86: -0.3901150001 | T86: 0.01444870371 | U86: -0.3901150001 | V86: -0.3901150001 | W86: -0.3901150001 | X86: -0.3901150001 | Y86: -0.3901150001 | Z86: 0.01444870371 | AA86: 0.01444870371 | AB86: -0.3901150001 | AC86: -0.3901150001 | AD86: -0.3901150001 | AE86: -0.3901150001
B87: Druhá voľba z-skóre | D87: =IF(D79<>"",IF($AT$79<>"",IF($AT$79>0,(D79-$AS$79)/$AT$79,""),""),"") -> -0.4800047408 | E87: =IF(E79<>"",IF($AT$79<>"",IF($AT$79>0,(E79-$AS$79)/$AT$79,""),""),"") -> 0.01777795336 | F87: -0.4800047408 | G87: 2.00890873 | H87: 0.01777795336 | I87: 2.506691424 | J87: -0.4800047408 | K87: 0.01777795336 | L87: -0.4800047408 | M87: 3.502256813 | N87: -0.4800047408 | O87: 0.5155606475 | P87: -0.4800047408 | Q87: -0.4800047408 | R87: 0.01777795336 | S87: 0.01777795336 | T87: -0.4800047408 | U87: -0.4800047408 | V87: -0.4800047408 | W87: -0.4800047408 | X87: -0.4800047408 | Y87: -0.4800047408 | Z87: -0.4800047408 | AA87: -0.4800047408 | AB87: -0.4800047408 | AC87: -0.4800047408 | AD87: 0.01777795336 | AE87: -0.4800047408
B88: Tretia voľba z-skóre | D88: =IF(D80<>"",IF($AT$80<>"",IF($AT$80>0,(D80-$AS$80)/$AT$80,""),""),"") -> 0.02172544511 | E88: =IF(E80<>"",IF($AT$80<>"",IF($AT$80>0,(E80-$AS$80)/$AT$80,""),""),"") -> 2.454975298 | F88: -0.5865870181 | G88: 1.846662835 | H88: 0.02172544511 | I88: 1.238350371 | J88: -0.5865870181 | K88: -0.5865870181 | L88: -0.5865870181 | M88: 3.063287761 | N88: -0.5865870181 | O88: 0.6300379083 | P88: -0.5865870181 | Q88: -0.5865870181 | R88: -0.5865870181 | S88: -0.5865870181 | T88: 0.6300379083 | U88: -0.5865870181 | V88: -0.5865870181 | W88: 0.02172544511 | X88: -0.5865870181 | Y88: -0.5865870181 | Z88: 0.02172544511 | AA88: -0.5865870181 | AB88: -0.5865870181 | AC88: -0.5865870181 | AD88: 0.02172544511 | AE88: -0.5865870181
A89: Q_8 | B89: Voľby spolu n | C89: N | D89: 1 | E89: 12 | F89: 0 | G89: 6 | H89: 2 | I89: 15 | J89: 2 | K89: 1 | L89: 0 | M89: 16 | N89: 1 | O89: 1 | P89: 0 | Q89: 0 | R89: 2 | S89: 2 | T89: 2 | U89: 2 | V89: 1 | W89: 2 | X89: 1 | Y89: 1 | Z89: 1 | AA89: 2 | AB89: 2 | AC89: 0 | AD89: 6 | AE89: 0 | AR89: =SUM(D89:AQ89) -> 81 | AS89: =IF(AR89>0,AVERAGE(D89:AQ89),"") -> 2.892857143 | AT89: =IF(AR89>0,STDEV(D89:AQ89),"") -> 4.331959489 | AU89: =MAX(D89:AQ89) -> 16
B90: Prvá voľba n | C90: 0 | D90: 0 | E90: 5 | F90: 0 | G90: 2 | H90: 1 | I90: 7 | J90: 0 | K90: 0 | L90: 0 | M90: 4 | N90: 0 | O90: 0 | P90: 0 | Q90: 0 | R90: 0 | S90: 0 | T90: 1 | U90: 0 | V90: 0 | W90: 0 | X90: 0 | Y90: 1 | Z90: 1 | AA90: 2 | AB90: 0 | AC90: 0 | AD90: 3 | AE90: 0 | AR90: =SUM(D90:AQ90) -> 27 | AS90: =IF(AR89>0,AVERAGE(D90:AQ90),"") -> 0.9642857143 | AT90: =IF(AR89>0,STDEV(D90:AQ90),"") -> 1.773929366
B91: Druhá voľba n | C91: 0 | D91: 1 | E91: 3 | F91: 0 | G91: 1 | H91: 0 | I91: 6 | J91: 0 | K91: 0 | L91: 0 | M91: 6 | N91: 1 | O91: 0 | P91: 0 | Q91: 0 | R91: 1 | S91: 0 | T91: 1 | U91: 1 | V91: 0 | W91: 1 | X91: 1 | Y91: 0 | Z91: 0 | AA91: 0 | AB91: 2 | AC91: 0 | AD91: 2 | AE91: 0 | AR91: =SUM(D91:AQ91) -> 27 | AS91: =IF(AR89>0,AVERAGE(D91:AQ91),"") -> 0.9642857143 | AT91: =IF(AR89>0,STDEV(D91:AQ91),"") -> 1.621205378
B92: Tretia voľba n | C92: 0 | D92: 0 | E92: 4 | F92: 0 | G92: 3 | H92: 1 | I92: 2 | J92: 2 | K92: 1 | L92: 0 | M92: 6 | N92: 0 | O92: 1 | P92: 0 | Q92: 0 | R92: 1 | S92: 2 | T92: 0 | U92: 1 | V92: 1 | W92: 1 | X92: 0 | Y92: 0 | Z92: 0 | AA92: 0 | AB92: 0 | AC92: 0 | AD92: 1 | AE92: 0 | AR92: =SUM(D92:AQ92) -> 27 | AS92: =IF(AR89>0,AVERAGE(D92:AQ92),"") -> 0.9642857143 | AT92: =IF(AR89>0,STDEV(D92:AQ92),"") -> 1.426784597 | AU92: =MAX(D92:AQ92) -> 6
B93: Voľby spolu % | C93: 0 | D93: 0 | E93: 17.85714286 | F93: 0 | G93: 7.142857143 | H93: 3.571428571 | I93: 25 | J93: 0 | K93: 0 | L93: 0 | M93: 14.28571429 | N93: 0 | O93: 0 | P93: 0 | Q93: 0 | R93: 0 | S93: 0 | T93: 3.571428571 | U93: 0 | V93: 0 | W93: 0 | X93: 0 | Y93: 3.571428571 | Z93: 3.571428571 | AA93: 7.142857143 | AB93: 0 | AC93: 0 | AD93: 10.71428571 | AE93: 0
B94: Prvá voľba % | C94: 0 | D94: 3.571428571 | E94: 10.71428571 | F94: 0 | G94: 3.571428571 | H94: 0 | I94: 21.42857143 | J94: 0 | K94: 0 | L94: 0 | M94: 21.42857143 | N94: 3.571428571 | O94: 0 | P94: 0 | Q94: 0 | R94: 3.571428571 | S94: 0 | T94: 3.571428571 | U94: 3.571428571 | V94: 0 | W94: 3.571428571 | X94: 3.571428571 | Y94: 0 | Z94: 0 | AA94: 0 | AB94: 7.142857143 | AC94: 0 | AD94: 7.142857143 | AE94: 0
B95: Druhá voľba % | C95: 0 | D95: 0 | E95: 14.28571429 | F95: 0 | G95: 10.71428571 | H95: 3.571428571 | I95: 7.142857143 | J95: 7.142857143 | K95: 3.571428571 | L95: 0 | M95: 21.42857143 | N95: 0 | O95: 3.571428571 | P95: 0 | Q95: 0 | R95: 3.571428571 | S95: 7.142857143 | T95: 0 | U95: 3.571428571 | V95: 3.571428571 | W95: 3.571428571 | X95: 0 | Y95: 0 | Z95: 0 | AA95: 0 | AB95: 0 | AC95: 0 | AD95: 3.571428571 | AE95: 0
B96: Tretia voľba % | C96: 0 | D96: 3.571428571 | E96: 42.85714286 | F96: 0 | G96: 21.42857143 | H96: 7.142857143 | I96: 53.57142857 | J96: 7.142857143 | K96: 3.571428571 | L96: 0 | M96: 57.14285714 | N96: 3.571428571 | O96: 3.571428571 | P96: 0 | Q96: 0 | R96: 7.142857143 | S96: 7.142857143 | T96: 7.142857143 | U96: 7.142857143 | V96: 3.571428571 | W96: 7.142857143 | X96: 3.571428571 | Y96: 3.571428571 | Z96: 3.571428571 | AA96: 7.142857143 | AB96: 7.142857143 | AC96: 0 | AD96: 21.42857143 | AE96: 0
A97: * | B97: Voľby spolu z-skóre | C97: N | D97: =IF(D89<>"",IF($AT$89<>"",IF($AT$89>0,(D89-$AS$89)/$AT$89,""),""),"") -> -0.4369517184 | E97: =IF(E89<>"",IF($AT$89<>"",IF($AT$89>0,(E89-$AS$89)/$AT$89,""),""),"") -> 2.102314872 | F97: -0.6677941357 | G97: 0.7172603679 | H97: -0.2061093011 | I97: 2.794842123 | J97: -0.2061093011 | K97: -0.4369517184 | L97: -0.6677941357 | M97: 3.025684541 | N97: -0.4369517184 | O97: -0.4369517184 | P97: -0.6677941357 | Q97: -0.6677941357 | R97: -0.2061093011 | S97: -0.2061093011 | T97: -0.2061093011 | U97: -0.2061093011 | V97: -0.4369517184 | W97: -0.2061093011 | X97: -0.4369517184 | Y97: -0.4369517184 | Z97: -0.4369517184 | AA97: -0.2061093011 | AB97: -0.2061093011 | AC97: -0.6677941357 | AD97: 0.7172603679 | AE97: -0.6677941357
B98: Prvá voľba z-skóre | D98: =IF(D90<>"",IF($AT$90<>"",IF($AT$90>0,(D90-$AS$90)/$AT$90,""),""),"") -> -0.5435874351 | E98: =IF(E90<>"",IF($AT$90<>"",IF($AT$90>0,(E90-$AS$90)/$AT$90,""),""),"") -> 2.27501408 | F98: -0.5435874351 | G98: 0.583853171 | H98: 0.02013286797 | I98: 3.402454686 | J98: -0.5435874351 | K98: -0.5435874351 | L98: -0.5435874351 | M98: 1.711293777 | N98: -0.5435874351 | O98: -0.5435874351 | P98: -0.5435874351 | Q98: -0.5435874351 | R98: -0.5435874351 | S98: -0.5435874351 | T98: 0.02013286797 | U98: -0.5435874351 | V98: -0.5435874351 | W98: -0.5435874351 | X98: -0.5435874351 | Y98: 0.02013286797 | Z98: 0.02013286797 | AA98: 0.583853171 | AB98: -0.5435874351 | AC98: -0.5435874351 | AD98: 1.147573474 | AE98: -0.5435874351
B99: Druhá voľba z-skóre | D99: =IF(D91<>"",IF($AT$91<>"",IF($AT$91>0,(D91-$AS$91)/$AT$91,""),""),"") -> 0.02202946412 | E99: =IF(E91<>"",IF($AT$91<>"",IF($AT$91>0,(E91-$AS$91)/$AT$91,""),""),"") -> 1.255679455 | F99: -0.5947955313 | G99: 0.02202946412 | H99: -0.5947955313 | I99: 3.106154441 | J99: -0.5947955313 | K99: -0.5947955313 | L99: -0.5947955313 | M99: 3.106154441 | N99: 0.02202946412 | O99: -0.5947955313 | P99: -0.5947955313 | Q99: -0.5947955313 | R99: 0.02202946412 | S99: -0.5947955313 | T99: 0.02202946412 | U99: 0.02202946412 | V99: -0.5947955313 | W99: 0.02202946412 | X99: 0.02202946412 | Y99: -0.5947955313 | Z99: -0.5947955313 | AA99: -0.5947955313 | AB99: 0.6388544596 | AC99: -0.5947955313 | AD99: 0.6388544596 | AE99: -0.5947955313
B100: Tretia voľba z-skóre | D100: =IF(D92<>"",IF($AT$92<>"",IF($AT$92>0,(D92-$AS$92)/$AT$92,""),""),"") -> -0.6758453353 | E100: =IF(E92<>"",IF($AT$92<>"",IF($AT$92>0,(E92-$AS$92)/$AT$92,""),""),"") -> 2.127661241 | F100: -0.6758453353 | G100: 1.426784597 | H100: 0.02503130872 | I100: 0.7259079528 | J100: 0.7259079528 | K100: 0.02503130872 | L100: -0.6758453353 | M100: 3.529414529 | N100: -0.6758453353 | O100: 0.02503130872 | P100: -0.6758453353 | Q100: -0.6758453353 | R100: 0.02503130872 | S100: 0.7259079528 | T100: -0.6758453353 | U100: 0.02503130872 | V100: 0.02503130872 | W100: 0.02503130872 | X100: -0.6758453353 | Y100: -0.6758453353 | Z100: -0.6758453353 | AA100: -0.6758453353 | AB100: -0.6758453353 | AC100: -0.6758453353 | AD100: 0.02503130872 | AE100: -0.6758453353
A101: Q_9 | B101: Voľby spolu n | C101: N | D101: 0 | E101: 20 | F101: 0 | G101: 5 | H101: 1 | I101: 18 | J101: 0 | K101: 3 | L101: 0 | M101: 20 | N101: 1 | O101: 2 | P101: 1 | Q101: 0 | R101: 0 | S101: 1 | T101: 1 | U101: 1 | V101: 0 | W101: 0 | X101: 0 | Y101: 0 | Z101: 0 | AA101: 4 | AB101: 1 | AC101: 0 | AD101: 2 | AE101: 0 | AR101: =SUM(D101:AQ101) -> 81 | AS101: =IF(AR101>0,AVERAGE(D101:AQ101),"") -> 2.892857143 | AT101: =IF(AR101>0,STDEV(D101:AQ101),"") -> 5.94629848 | AU101: =MAX(D101:AQ101) -> 20
B102: Prvá voľba n | C102: 0 | D102: 0 | E102: 7 | F102: 0 | G102: 0 | H102: 0 | I102: 6 | J102: 0 | K102: 1 | L102: 0 | M102: 9 | N102: 0 | O102: 1 | P102: 0 | Q102: 0 | R102: 0 | S102: 1 | T102: 0 | U102: 0 | V102: 0 | W102: 0 | X102: 0 | Y102: 0 | Z102: 0 | AA102: 1 | AB102: 0 | AC102: 0 | AD102: 1 | AE102: 0 | AR102: =SUM(D102:AQ102) -> 27 | AS102: =IF(AR101>0,AVERAGE(D102:AQ102),"") -> 0.9642857143 | AT102: =IF(AR101>0,STDEV(D102:AQ102),"") -> 2.317120545
B103: Druhá voľba n | C103: 0 | D103: 0 | E103: 5 | F103: 0 | G103: 1 | H103: 1 | I103: 7 | J103: 0 | K103: 1 | L103: 0 | M103: 8 | N103: 0 | O103: 0 | P103: 1 | Q103: 0 | R103: 0 | S103: 0 | T103: 0 | U103: 1 | V103: 0 | W103: 0 | X103: 0 | Y103: 0 | Z103: 0 | AA103: 1 | AB103: 0 | AC103: 0 | AD103: 1 | AE103: 0 | AR103: =SUM(D103:AQ103) -> 27 | AS103: =IF(AR101>0,AVERAGE(D103:AQ103),"") -> 0.9642857143 | AT103: =IF(AR101>0,STDEV(D103:AQ103),"") -> 2.099067568
B104: Tretia voľba n | C104: 0 | D104: 0 | E104: 8 | F104: 0 | G104: 4 | H104: 0 | I104: 5 | J104: 0 | K104: 1 | L104: 0 | M104: 3 | N104: 1 | O104: 1 | P104: 0 | Q104: 0 | R104: 0 | S104: 0 | T104: 1 | U104: 0 | V104: 0 | W104: 0 | X104: 0 | Y104: 0 | Z104: 0 | AA104: 2 | AB104: 1 | AC104: 0 | AD104: 0 | AE104: 0 | AR104: =SUM(D104:AQ104) -> 27 | AS104: =IF(AR101>0,AVERAGE(D104:AQ104),"") -> 0.9642857143 | AT104: =IF(AR101>0,STDEV(D104:AQ104),"") -> 1.895064601 | AU104: =MAX(D104:AQ104) -> 8
B105: Voľby spolu % | C105: 0 | D105: 0 | E105: 25 | F105: 0 | G105: 0 | H105: 0 | I105: 21.42857143 | J105: 0 | K105: 3.571428571 | L105: 0 | M105: 32.14285714 | N105: 0 | O105: 3.571428571 | P105: 0 | Q105: 0 | R105: 0 | S105: 3.571428571 | T105: 0 | U105: 0 | V105: 0 | W105: 0 | X105: 0 | Y105: 0 | Z105: 0 | AA105: 3.571428571 | AB105: 0 | AC105: 0 | AD105: 3.571428571 | AE105: 0
B106: Prvá voľba % | C106: 0 | D106: 0 | E106: 17.85714286 | F106: 0 | G106: 3.571428571 | H106: 3.571428571 | I106: 25 | J106: 0 | K106: 3.571428571 | L106: 0 | M106: 28.57142857 | N106: 0 | O106: 0 | P106: 3.571428571 | Q106: 0 | R106: 0 | S106: 0 | T106: 0 | U106: 3.571428571 | V106: 0 | W106: 0 | X106: 0 | Y106: 0 | Z106: 0 | AA106: 3.571428571 | AB106: 0 | AC106: 0 | AD106: 3.571428571 | AE106: 0
B107: Druhá voľba % | C107: 0 | D107: 0 | E107: 28.57142857 | F107: 0 | G107: 14.28571429 | H107: 0 | I107: 17.85714286 | J107: 0 | K107: 3.571428571 | L107: 0 | M107: 10.71428571 | N107: 3.571428571 | O107: 3.571428571 | P107: 0 | Q107: 0 | R107: 0 | S107: 0 | T107: 3.571428571 | U107: 0 | V107: 0 | W107: 0 | X107: 0 | Y107: 0 | Z107: 0 | AA107: 7.142857143 | AB107: 3.571428571 | AC107: 0 | AD107: 0 | AE107: 0
B108: Tretia voľba % | C108: 0 | D108: 0 | E108: 71.42857143 | F108: 0 | G108: 17.85714286 | H108: 3.571428571 | I108: 64.28571429 | J108: 0 | K108: 10.71428571 | L108: 0 | M108: 71.42857143 | N108: 3.571428571 | O108: 7.142857143 | P108: 3.571428571 | Q108: 0 | R108: 0 | S108: 3.571428571 | T108: 3.571428571 | U108: 3.571428571 | V108: 0 | W108: 0 | X108: 0 | Y108: 0 | Z108: 0 | AA108: 14.28571429 | AB108: 3.571428571 | AC108: 0 | AD108: 7.142857143 | AE108: 0
A109: * | B109: Voľby spolu z-skóre | C109: N | D109: =IF(D101<>"",IF($AT$101<>"",IF($AT$101>0,(D101-$AS$101)/$AT$101,""),""),"") -> -0.4864971297 | E109: =IF(E101<>"",IF($AT$101<>"",IF($AT$101>0,(E101-$AS$101)/$AT$101,""),""),"") -> 2.876939817 | F109: -0.4864971297 | G109: 0.3543621068 | H109: -0.3183252824 | I109: 2.540596122 | J109: -0.4864971297 | K109: 0.01801841221 | L109: -0.4864971297 | M109: 2.876939817 | N109: -0.3183252824 | O109: -0.1501534351 | P109: -0.3183252824 | Q109: -0.4864971297 | R109: -0.4864971297 | S109: -0.3183252824 | T109: -0.3183252824 | U109: -0.3183252824 | V109: -0.4864971297 | W109: -0.4864971297 | X109: -0.4864971297 | Y109: -0.4864971297 | Z109: -0.4864971297 | AA109: 0.1861902595 | AB109: -0.3183252824 | AC109: -0.4864971297 | AD109: -0.1501534351 | AE109: -0.4864971297
B110: Prvá voľba z-skóre | D110: =IF(D102<>"",IF($AT$102<>"",IF($AT$102>0,(D102-$AS$102)/$AT$102,""),""),"") -> -0.4161569049 | E110: =IF(E102<>"",IF($AT$102<>"",IF($AT$102>0,(E102-$AS$102)/$AT$102,""),""),"") -> 2.604833961 | F110: -0.4161569049 | G110: -0.4161569049 | H110: -0.4161569049 | I110: 2.173263837 | J110: -0.4161569049 | K110: 0.0154132187 | L110: -0.4161569049 | M110: 3.467974208 | N110: -0.4161569049 | O110: 0.0154132187 | P110: -0.4161569049 | Q110: -0.4161569049 | R110: -0.4161569049 | S110: 0.0154132187 | T110: -0.4161569049 | U110: -0.4161569049 | V110: -0.4161569049 | W110: -0.4161569049 | X110: -0.4161569049 | Y110: -0.4161569049 | Z110: -0.4161569049 | AA110: 0.0154132187 | AB110: -0.4161569049 | AC110: -0.4161569049 | AD110: 0.0154132187 | AE110: -0.4161569049
B111: Druhá voľba z-skóre | D111: =IF(D103<>"",IF($AT$103<>"",IF($AT$103>0,(D103-$AS$103)/$AT$103,""),""),"") -> -0.4593876485 | E111: =IF(E103<>"",IF($AT$103<>"",IF($AT$103>0,(E103-$AS$103)/$AT$103,""),""),"") -> 1.922622381 | F111: -0.4593876485 | G111: 0.01701435735 | H111: 0.01701435735 | I111: 2.875426393 | J111: -0.4593876485 | K111: 0.01701435735 | L111: -0.4593876485 | M111: 3.351828399 | N111: -0.4593876485 | O111: -0.4593876485 | P111: 0.01701435735 | Q111: -0.4593876485 | R111: -0.4593876485 | S111: -0.4593876485 | T111: -0.4593876485 | U111: 0.01701435735 | V111: -0.4593876485 | W111: -0.4593876485 | X111: -0.4593876485 | Y111: -0.4593876485 | Z111: -0.4593876485 | AA111: 0.01701435735 | AB111: -0.4593876485 | AC111: -0.4593876485 | AD111: 0.01701435735 | AE111: -0.4593876485
B112: Tretia voľba z-skóre | D112: =IF(D104<>"",IF($AT$104<>"",IF($AT$104>0,(D104-$AS$104)/$AT$104,""),""),"") -> -0.5088405503 | E112: =IF(E104<>"",IF($AT$104<>"",IF($AT$104>0,(E104-$AS$104)/$AT$104,""),""),"") -> 3.712651422 | F112: -0.5088405503 | G112: 1.601905436 | H112: -0.5088405503 | I112: 2.129591933 | J112: -0.5088405503 | K112: 0.01884594631 | L112: -0.5088405503 | M112: 1.074218939 | N112: 0.01884594631 | O112: 0.01884594631 | P112: -0.5088405503 | Q112: -0.5088405503 | R112: -0.5088405503 | S112: -0.5088405503 | T112: 0.01884594631 | U112: -0.5088405503 | V112: -0.5088405503 | W112: -0.5088405503 | X112: -0.5088405503 | Y112: -0.5088405503 | Z112: -0.5088405503 | AA112: 0.5465324429 | AB112: 0.01884594631 | AC112: -0.5088405503 | AD112: -0.5088405503 | AE112: -0.5088405503
A113: Q_10 | B113: Voľby spolu n | C113: N | D113: 1 | E113: 8 | F113: 2 | G113: 7 | H113: 7 | I113: 13 | J113: 2 | K113: 0 | L113: 0 | M113: 15 | N113: 0 | O113: 2 | P113: 0 | Q113: 0 | R113: 1 | S113: 2 | T113: 1 | U113: 0 | V113: 2 | W113: 2 | X113: 1 | Y113: 3 | Z113: 3 | AA113: 2 | AB113: 3 | AC113: 0 | AD113: 4 | AE113: 0 | AR113: =SUM(D113:AQ113) -> 81 | AS113: =IF(AR113>0,AVERAGE(D113:AQ113),"") -> 2.892857143 | AT113: =IF(AR113>0,STDEV(D113:AQ113),"") -> 3.832988252 | AU113: =MAX(D113:AQ113) -> 15
B114: Prvá voľba n | C114: 0 | D114: 0 | E114: 4 | F114: 1 | G114: 3 | H114: 3 | I114: 5 | J114: 0 | K114: 0 | L114: 0 | M114: 2 | N114: 0 | O114: 0 | P114: 0 | Q114: 0 | R114: 0 | S114: 1 | T114: 0 | U114: 0 | V114: 1 | W114: 0 | X114: 1 | Y114: 3 | Z114: 1 | AA114: 0 | AB114: 0 | AC114: 0 | AD114: 2 | AE114: 0 | AR114: =SUM(D114:AQ114) -> 27 | AS114: =IF(AR113>0,AVERAGE(D114:AQ114),"") -> 0.9642857143 | AT114: =IF(AR113>0,STDEV(D114:AQ114),"") -> 1.426784597
B115: Druhá voľba n | C115: 0 | D115: 0 | E115: 1 | F115: 1 | G115: 4 | H115: 1 | I115: 4 | J115: 2 | K115: 0 | L115: 0 | M115: 8 | N115: 0 | O115: 0 | P115: 0 | Q115: 0 | R115: 0 | S115: 0 | T115: 0 | U115: 0 | V115: 1 | W115: 1 | X115: 0 | Y115: 0 | Z115: 0 | AA115: 0 | AB115: 2 | AC115: 0 | AD115: 2 | AE115: 0 | AR115: =SUM(D115:AQ115) -> 27 | AS115: =IF(AR113>0,AVERAGE(D115:AQ115),"") -> 0.9642857143 | AT115: =IF(AR113>0,STDEV(D115:AQ115),"") -> 1.794686455
B116: Tretia voľba n | C116: 0 | D116: 1 | E116: 3 | F116: 0 | G116: 0 | H116: 3 | I116: 4 | J116: 0 | K116: 0 | L116: 0 | M116: 5 | N116: 0 | O116: 2 | P116: 0 | Q116: 0 | R116: 1 | S116: 1 | T116: 1 | U116: 0 | V116: 0 | W116: 1 | X116: 0 | Y116: 0 | Z116: 2 | AA116: 2 | AB116: 1 | AC116: 0 | AD116: 0 | AE116: 0 | AR116: =SUM(D116:AQ116) -> 27 | AS116: =IF(AR113>0,AVERAGE(D116:AQ116),"") -> 0.9642857143 | AT116: =IF(AR113>0,STDEV(D116:AQ116),"") -> 1.373887236 | AU116: =MAX(D116:AQ116) -> 5
B117: Voľby spolu % | C117: 0 | D117: 0 | E117: 14.28571429 | F117: 3.571428571 | G117: 10.71428571 | H117: 10.71428571 | I117: 17.85714286 | J117: 0 | K117: 0 | L117: 0 | M117: 7.142857143 | N117: 0 | O117: 0 | P117: 0 | Q117: 0 | R117: 0 | S117: 3.571428571 | T117: 0 | U117: 0 | V117: 3.571428571 | W117: 0 | X117: 3.571428571 | Y117: 10.71428571 | Z117: 3.571428571 | AA117: 0 | AB117: 0 | AC117: 0 | AD117: 7.142857143 | AE117: 0
B118: Prvá voľba % | C118: 0 | D118: 0 | E118: 3.571428571 | F118: 3.571428571 | G118: 14.28571429 | H118: 3.571428571 | I118: 14.28571429 | J118: 7.142857143 | K118: 0 | L118: 0 | M118: 28.57142857 | N118: 0 | O118: 0 | P118: 0 | Q118: 0 | R118: 0 | S118: 0 | T118: 0 | U118: 0 | V118: 3.571428571 | W118: 3.571428571 | X118: 0 | Y118: 0 | Z118: 0 | AA118: 0 | AB118: 7.142857143 | AC118: 0 | AD118: 7.142857143 | AE118: 0
B119: Druhá voľba % | C119: 0 | D119: 3.571428571 | E119: 10.71428571 | F119: 0 | G119: 0 | H119: 10.71428571 | I119: 14.28571429 | J119: 0 | K119: 0 | L119: 0 | M119: 17.85714286 | N119: 0 | O119: 7.142857143 | P119: 0 | Q119: 0 | R119: 3.571428571 | S119: 3.571428571 | T119: 3.571428571 | U119: 0 | V119: 0 | W119: 3.571428571 | X119: 0 | Y119: 0 | Z119: 7.142857143 | AA119: 7.142857143 | AB119: 3.571428571 | AC119: 0 | AD119: 0 | AE119: 0
B120: Tretia voľba % | C120: 0 | D120: 3.571428571 | E120: 28.57142857 | F120: 7.142857143 | G120: 25 | H120: 25 | I120: 46.42857143 | J120: 7.142857143 | K120: 0 | L120: 0 | M120: 53.57142857 | N120: 0 | O120: 7.142857143 | P120: 0 | Q120: 0 | R120: 3.571428571 | S120: 7.142857143 | T120: 3.571428571 | U120: 0 | V120: 7.142857143 | W120: 7.142857143 | X120: 3.571428571 | Y120: 10.71428571 | Z120: 10.71428571 | AA120: 7.142857143 | AB120: 10.71428571 | AC120: 0 | AD120: 14.28571429 | AE120: 0
A121: * | B121: Voľby spolu z-skóre | C121: N | D121: =IF(D113<>"",IF($AT$113<>"",IF($AT$113>0,(D113-$AS$113)/$AT$113,""),""),"") -> -0.4938332753 | E121: =IF(E113<>"",IF($AT$113<>"",IF($AT$113>0,(E113-$AS$113)/$AT$113,""),""),"") -> 1.332418082 | F121: -0.2329402242 | G121: 1.071525031 | H121: 1.071525031 | I121: 2.636883338 | J121: -0.2329402242 | K121: -0.7547263264 | L121: -0.7547263264 | M121: 3.15866944 | N121: -0.7547263264 | O121: -0.2329402242 | P121: -0.7547263264 | Q121: -0.7547263264 | R121: -0.4938332753 | S121: -0.2329402242 | T121: -0.4938332753 | U121: -0.7547263264 | V121: -0.2329402242 | W121: -0.2329402242 | X121: -0.4938332753 | Y121: 0.0279528269 | Z121: 0.0279528269 | AA121: -0.2329402242 | AB121: 0.0279528269 | AC121: -0.7547263264 | AD121: 0.288845878 | AE121: -0.7547263264
B122: Prvá voľba z-skóre | D122: =IF(D114<>"",IF($AT$114<>"",IF($AT$114>0,(D114-$AS$114)/$AT$114,""),""),"") -> -0.6758453353 | E122: =IF(E114<>"",IF($AT$114<>"",IF($AT$114>0,(E114-$AS$114)/$AT$114,""),""),"") -> 2.127661241 | F122: 0.02503130872 | G122: 1.426784597 | H122: 1.426784597 | I122: 2.828537885 | J122: -0.6758453353 | K122: -0.6758453353 | L122: -0.6758453353 | M122: 0.7259079528 | N122: -0.6758453353 | O122: -0.6758453353 | P122: -0.6758453353 | Q122: -0.6758453353 | R122: -0.6758453353 | S122: 0.02503130872 | T122: -0.6758453353 | U122: -0.6758453353 | V122: 0.02503130872 | W122: -0.6758453353 | X122: 0.02503130872 | Y122: 1.426784597 | Z122: 0.02503130872 | AA122: -0.6758453353 | AB122: -0.6758453353 | AC122: -0.6758453353 | AD122: 0.7259079528 | AE122: -0.6758453353
B123: Druhá voľba z-skóre | D123: =IF(D115<>"",IF($AT$115<>"",IF($AT$115>0,(D115-$AS$115)/$AT$115,""),""),"") -> -0.5373003801 | E123: =IF(E115<>"",IF($AT$115<>"",IF($AT$115>0,(E115-$AS$115)/$AT$115,""),""),"") -> 0.01990001408 | F123: 0.01990001408 | G123: 1.691501197 | H123: 0.01990001408 | I123: 1.691501197 | J123: 0.5771004082 | K123: -0.5373003801 | L123: -0.5373003801 | M123: 3.920302773 | N123: -0.5373003801 | O123: -0.5373003801 | P123: -0.5373003801 | Q123: -0.5373003801 | R123: -0.5373003801 | S123: -0.5373003801 | T123: -0.5373003801 | U123: -0.5373003801 | V123: 0.01990001408 | W123: 0.01990001408 | X123: -0.5373003801 | Y123: -0.5373003801 | Z123: -0.5373003801 | AA123: -0.5373003801 | AB123: 0.5771004082 | AC123: -0.5373003801 | AD123: 0.5771004082 | AE123: -0.5373003801
B124: Tretia voľba z-skóre | D124: =IF(D116<>"",IF($AT$116<>"",IF($AT$116>0,(D116-$AS$116)/$AT$116,""),""),"") -> 0.02599506333 | E124: =IF(E116<>"",IF($AT$116<>"",IF($AT$116>0,(E116-$AS$116)/$AT$116,""),""),"") -> 1.48171861 | F124: -0.70186671 | G124: -0.70186671 | H124: 1.48171861 | I124: 2.209580383 | J124: -0.70186671 | K124: -0.70186671 | L124: -0.70186671 | M124: 2.937442157 | N124: -0.70186671 | O124: 0.7538568366 | P124: -0.70186671 | Q124: -0.70186671 | R124: 0.02599506333 | S124: 0.02599506333 | T124: 0.02599506333 | U124: -0.70186671 | V124: -0.70186671 | W124: 0.02599506333 | X124: -0.70186671 | Y124: -0.70186671 | Z124: 0.7538568366 | AA124: 0.7538568366 | AB124: 0.02599506333 | AC124: -0.70186671 | AD124: -0.70186671 | AE124: -0.70186671
A125: Q_11 | B125: Voľby spolu n | C125: Q | D125: 0 | E125: 0 | F125: 0 | G125: 0 | H125: 0 | I125: 0 | J125: 0 | K125: 0 | L125: 0 | M125: 0 | N125: 0 | O125: 0 | P125: 0 | Q125: 0 | R125: 0 | S125: 0 | T125: 0 | U125: 0 | V125: 0 | W125: 0 | X125: 0 | Y125: 0 | Z125: 0 | AA125: 0 | AB125: 0 | AC125: 0 | AD125: 0 | AE125: 0 | AR125: =SUM(D125:AQ125) -> 0 | AS125: =IF(AR125>0,AVERAGE(D125:AQ125),"") ->  | AT125: =IF(AR125>0,STDEV(D125:AQ125),"") ->  | AU125: =MAX(D125:AQ125) -> 0
B126: Prvá voľba n | C126: 0 | D126: 0 | E126: 0 | F126: 0 | G126: 0 | H126: 0 | I126: 0 | J126: 0 | K126: 0 | L126: 0 | M126: 0 | N126: 0 | O126: 0 | P126: 0 | Q126: 0 | R126: 0 | S126: 0 | T126: 0 | U126: 0 | V126: 0 | W126: 0 | X126: 0 | Y126: 0 | Z126: 0 | AA126: 0 | AB126: 0 | AC126: 0 | AD126: 0 | AE126: 0 | AR126: =SUM(D126:AQ126) -> 0 | AS126: =IF(AR125>0,AVERAGE(D126:AQ126),"") ->  | AT126: =IF(AR125>0,STDEV(D126:AQ126),"") -> 
B127: Druhá voľba n | C127: 0 | D127: 0 | E127: 0 | F127: 0 | G127: 0 | H127: 0 | I127: 0 | J127: 0 | K127: 0 | L127: 0 | M127: 0 | N127: 0 | O127: 0 | P127: 0 | Q127: 0 | R127: 0 | S127: 0 | T127: 0 | U127: 0 | V127: 0 | W127: 0 | X127: 0 | Y127: 0 | Z127: 0 | AA127: 0 | AB127: 0 | AC127: 0 | AD127: 0 | AE127: 0 | AR127: =SUM(D127:AQ127) -> 0 | AS127: =IF(AR125>0,AVERAGE(D127:AQ127),"") ->  | AT127: =IF(AR125>0,STDEV(D127:AQ127),"") -> 
B128: Tretia voľba n | C128: 0 | D128: 0 | E128: 0 | F128: 0 | G128: 0 | H128: 0 | I128: 0 | J128: 0 | K128: 0 | L128: 0 | M128: 0 | N128: 0 | O128: 0 | P128: 0 | Q128: 0 | R128: 0 | S128: 0 | T128: 0 | U128: 0 | V128: 0 | W128: 0 | X128: 0 | Y128: 0 | Z128: 0 | AA128: 0 | AB128: 0 | AC128: 0 | AD128: 0 | AE128: 0 | AR128: =SUM(D128:AQ128) -> 0 | AS128: =IF(AR125>0,AVERAGE(D128:AQ128),"") ->  | AT128: =IF(AR125>0,STDEV(D128:AQ128),"") ->  | AU128: =MAX(D128:AQ128) -> 0
B129: Voľby spolu % | C129: 0 | D129: 0 | E129: 0 | F129: 0 | G129: 0 | H129: 0 | I129: 0 | J129: 0 | K129: 0 | L129: 0 | M129: 0 | N129: 0 | O129: 0 | P129: 0 | Q129: 0 | R129: 0 | S129: 0 | T129: 0 | U129: 0 | V129: 0 | W129: 0 | X129: 0 | Y129: 0 | Z129: 0 | AA129: 0 | AB129: 0 | AC129: 0 | AD129: 0 | AE129: 0
B130: Prvá voľba % | C130: 0 | D130: 0 | E130: 0 | F130: 0 | G130: 0 | H130: 0 | I130: 0 | J130: 0 | K130: 0 | L130: 0 | M130: 0 | N130: 0 | O130: 0 | P130: 0 | Q130: 0 | R130: 0 | S130: 0 | T130: 0 | U130: 0 | V130: 0 | W130: 0 | X130: 0 | Y130: 0 | Z130: 0 | AA130: 0 | AB130: 0 | AC130: 0 | AD130: 0 | AE130: 0
B131: Druhá voľba % | C131: 0 | D131: 0 | E131: 0 | F131: 0 | G131: 0 | H131: 0 | I131: 0 | J131: 0 | K131: 0 | L131: 0 | M131: 0 | N131: 0 | O131: 0 | P131: 0 | Q131: 0 | R131: 0 | S131: 0 | T131: 0 | U131: 0 | V131: 0 | W131: 0 | X131: 0 | Y131: 0 | Z131: 0 | AA131: 0 | AB131: 0 | AC131: 0 | AD131: 0 | AE131: 0
B132: Tretia voľba % | C132: 0 | D132: 0 | E132: 0 | F132: 0 | G132: 0 | H132: 0 | I132: 0 | J132: 0 | K132: 0 | L132: 0 | M132: 0 | N132: 0 | O132: 0 | P132: 0 | Q132: 0 | R132: 0 | S132: 0 | T132: 0 | U132: 0 | V132: 0 | W132: 0 | X132: 0 | Y132: 0 | Z132: 0 | AA132: 0 | AB132: 0 | AC132: 0 | AD132: 0 | AE132: 0
A133: * | B133: Voľby spolu z-skóre | C133: Q | D133: =IF(D125<>"",IF($AT$125<>"",IF($AT$125>0,(D125-$AS$125)/$AT$125,""),""),"") ->  | E133: =IF(E125<>"",IF($AT$125<>"",IF($AT$125>0,(E125-$AS$125)/$AT$125,""),""),"") -> 
B134: Prvá voľba z-skóre | D134: =IF(D126<>"",IF($AT$126<>"",IF($AT$126>0,(D126-$AS$126)/$AT$126,""),""),"") ->  | E134: =IF(E126<>"",IF($AT$126<>"",IF($AT$126>0,(E126-$AS$126)/$AT$126,""),""),"") -> 
B135: Druhá voľba z-skóre | D135: =IF(D127<>"",IF($AT$127<>"",IF($AT$127>0,(D127-$AS$127)/$AT$127,""),""),"") ->  | E135: =IF(E127<>"",IF($AT$127<>"",IF($AT$127>0,(E127-$AS$127)/$AT$127,""),""),"") -> 
B136: Tretia voľba z-skóre | D136: =IF(D128<>"",IF($AT$128<>"",IF($AT$128>0,(D128-$AS$128)/$AT$128,""),""),"") ->  | E136: =IF(E128<>"",IF($AT$128<>"",IF($AT$128>0,(E128-$AS$128)/$AT$128,""),""),"") -> 
A137: Q_12 | B137: Voľby spolu n | C137: Q | D137: 0 | E137: 0 | F137: 0 | G137: 0 | H137: 0 | I137: 0 | J137: 0 | K137: 0 | L137: 0 | M137: 0 | N137: 0 | O137: 0 | P137: 0 | Q137: 0 | R137: 0 | S137: 0 | T137: 0 | U137: 0 | V137: 0 | W137: 0 | X137: 0 | Y137: 0 | Z137: 0 | AA137: 0 | AB137: 0 | AC137: 0 | AD137: 0 | AE137: 0 | AR137: =SUM(D137:AQ137) -> 0 | AS137: =IF(AR137>0,AVERAGE(D137:AQ137),"") ->  | AT137: =IF(AR137>0,STDEV(D137:AQ137),"") ->  | AU137: =MAX(D137:AQ137) -> 0
B138: Prvá voľba n | C138: 0 | D138: 0 | E138: 0 | F138: 0 | G138: 0 | H138: 0 | I138: 0 | J138: 0 | K138: 0 | L138: 0 | M138: 0 | N138: 0 | O138: 0 | P138: 0 | Q138: 0 | R138: 0 | S138: 0 | T138: 0 | U138: 0 | V138: 0 | W138: 0 | X138: 0 | Y138: 0 | Z138: 0 | AA138: 0 | AB138: 0 | AC138: 0 | AD138: 0 | AE138: 0 | AR138: =SUM(D138:AQ138) -> 0 | AS138: =IF(AR137>0,AVERAGE(D138:AQ138),"") ->  | AT138: =IF(AR137>0,STDEV(D138:AQ138),"") -> 
B139: Druhá voľba n | C139: 0 | D139: 0 | E139: 0 | F139: 0 | G139: 0 | H139: 0 | I139: 0 | J139: 0 | K139: 0 | L139: 0 | M139: 0 | N139: 0 | O139: 0 | P139: 0 | Q139: 0 | R139: 0 | S139: 0 | T139: 0 | U139: 0 | V139: 0 | W139: 0 | X139: 0 | Y139: 0 | Z139: 0 | AA139: 0 | AB139: 0 | AC139: 0 | AD139: 0 | AE139: 0 | AR139: =SUM(D139:AQ139) -> 0 | AS139: =IF(AR137>0,AVERAGE(D139:AQ139),"") ->  | AT139: =IF(AR137>0,STDEV(D139:AQ139),"") -> 
B140: Tretia voľba n | C140: 0 | D140: 0 | E140: 0 | F140: 0 | G140: 0 | H140: 0 | I140: 0 | J140: 0 | K140: 0 | L140: 0 | M140: 0 | N140: 0 | O140: 0 | P140: 0 | Q140: 0 | R140: 0 | S140: 0 | T140: 0 | U140: 0 | V140: 0 | W140: 0 | X140: 0 | Y140: 0 | Z140: 0 | AA140: 0 | AB140: 0 | AC140: 0 | AD140: 0 | AE140: 0 | AR140: =SUM(D140:AQ140) -> 0 | AS140: =IF(AR137>0,AVERAGE(D140:AQ140),"") ->  | AT140: =IF(AR137>0,STDEV(D140:AQ140),"") ->  | AU140: =MAX(D140:AQ140) -> 0
B141: Voľby spolu % | C141: 0 | D141: 0 | E141: 0 | F141: 0 | G141: 0 | H141: 0 | I141: 0 | J141: 0 | K141: 0 | L141: 0 | M141: 0 | N141: 0 | O141: 0 | P141: 0 | Q141: 0 | R141: 0 | S141: 0 | T141: 0 | U141: 0 | V141: 0 | W141: 0 | X141: 0 | Y141: 0 | Z141: 0 | AA141: 0 | AB141: 0 | AC141: 0 | AD141: 0 | AE141: 0
B142: Prvá voľba % | C142: 0 | D142: 0 | E142: 0 | F142: 0 | G142: 0 | H142: 0 | I142: 0 | J142: 0 | K142: 0 | L142: 0 | M142: 0 | N142: 0 | O142: 0 | P142: 0 | Q142: 0 | R142: 0 | S142: 0 | T142: 0 | U142: 0 | V142: 0 | W142: 0 | X142: 0 | Y142: 0 | Z142: 0 | AA142: 0 | AB142: 0 | AC142: 0 | AD142: 0 | AE142: 0
B143: Druhá voľba % | C143: 0 | D143: 0 | E143: 0 | F143: 0 | G143: 0 | H143: 0 | I143: 0 | J143: 0 | K143: 0 | L143: 0 | M143: 0 | N143: 0 | O143: 0 | P143: 0 | Q143: 0 | R143: 0 | S143: 0 | T143: 0 | U143: 0 | V143: 0 | W143: 0 | X143: 0 | Y143: 0 | Z143: 0 | AA143: 0 | AB143: 0 | AC143: 0 | AD143: 0 | AE143: 0
B144: Tretia voľba % | C144: 0 | D144: 0 | E144: 0 | F144: 0 | G144: 0 | H144: 0 | I144: 0 | J144: 0 | K144: 0 | L144: 0 | M144: 0 | N144: 0 | O144: 0 | P144: 0 | Q144: 0 | R144: 0 | S144: 0 | T144: 0 | U144: 0 | V144: 0 | W144: 0 | X144: 0 | Y144: 0 | Z144: 0 | AA144: 0 | AB144: 0 | AC144: 0 | AD144: 0 | AE144: 0
A145: * | B145: Voľby spolu z-skóre | C145: Q | D145: =IF(D137<>"",IF($AT$137<>"",IF($AT$137>0,(D137-$AS$137)/$AT$137,""),""),"") ->  | E145: =IF(E137<>"",IF($AT$137<>"",IF($AT$137>0,(E137-$AS$137)/$AT$137,""),""),"") -> 
B146: Prvá voľba z-skóre | D146: =IF(D138<>"",IF($AT$138<>"",IF($AT$138>0,(D138-$AS$138)/$AT$138,""),""),"") ->  | E146: =IF(E138<>"",IF($AT$138<>"",IF($AT$138>0,(E138-$AS$138)/$AT$138,""),""),"") -> 
B147: Druhá voľba z-skóre | D147: =IF(D139<>"",IF($AT$139<>"",IF($AT$139>0,(D139-$AS$139)/$AT$139,""),""),"") ->  | E147: =IF(E139<>"",IF($AT$139<>"",IF($AT$139>0,(E139-$AS$139)/$AT$139,""),""),"") -> 
B148: Tretia voľba z-skóre | D148: =IF(D140<>"",IF($AT$140<>"",IF($AT$140>0,(D140-$AS$140)/$AT$140,""),""),"") ->  | E148: =IF(E140<>"",IF($AT$140<>"",IF($AT$140>0,(E140-$AS$140)/$AT$140,""),""),"") -> 
A149: Q_13 | B149: Voľby spolu n | C149: Q | D149: 0 | E149: 0 | F149: 0 | G149: 0 | H149: 0 | I149: 0 | J149: 0 | K149: 0 | L149: 0 | M149: 0 | N149: 0 | O149: 0 | P149: 0 | Q149: 0 | R149: 0 | S149: 0 | T149: 0 | U149: 0 | V149: 0 | W149: 0 | X149: 0 | Y149: 0 | Z149: 0 | AA149: 0 | AB149: 0 | AC149: 0 | AD149: 0 | AE149: 0 | AR149: =SUM(D149:AQ149) -> 0 | AS149: =IF(AR149>0,AVERAGE(D149:AQ149),"") ->  | AT149: =IF(AR149>0,STDEV(D149:AQ149),"") ->  | AU149: =MAX(D149:AQ149) -> 0
B150: Prvá voľba n | C150: 0 | D150: 0 | E150: 0 | F150: 0 | G150: 0 | H150: 0 | I150: 0 | J150: 0 | K150: 0 | L150: 0 | M150: 0 | N150: 0 | O150: 0 | P150: 0 | Q150: 0 | R150: 0 | S150: 0 | T150: 0 | U150: 0 | V150: 0 | W150: 0 | X150: 0 | Y150: 0 | Z150: 0 | AA150: 0 | AB150: 0 | AC150: 0 | AD150: 0 | AE150: 0 | AR150: =SUM(D150:AQ150) -> 0 | AS150: =IF(AR149>0,AVERAGE(D150:AQ150),"") ->  | AT150: =IF(AR149>0,STDEV(D150:AQ150),"") -> 
B151: Druhá voľba n | C151: 0 | D151: 0 | E151: 0 | F151: 0 | G151: 0 | H151: 0 | I151: 0 | J151: 0 | K151: 0 | L151: 0 | M151: 0 | N151: 0 | O151: 0 | P151: 0 | Q151: 0 | R151: 0 | S151: 0 | T151: 0 | U151: 0 | V151: 0 | W151: 0 | X151: 0 | Y151: 0 | Z151: 0 | AA151: 0 | AB151: 0 | AC151: 0 | AD151: 0 | AE151: 0 | AR151: =SUM(D151:AQ151) -> 0 | AS151: =IF(AR149>0,AVERAGE(D151:AQ151),"") ->  | AT151: =IF(AR149>0,STDEV(D151:AQ151),"") -> 
B152: Tretia voľba n | C152: 0 | D152: 0 | E152: 0 | F152: 0 | G152: 0 | H152: 0 | I152: 0 | J152: 0 | K152: 0 | L152: 0 | M152: 0 | N152: 0 | O152: 0 | P152: 0 | Q152: 0 | R152: 0 | S152: 0 | T152: 0 | U152: 0 | V152: 0 | W152: 0 | X152: 0 | Y152: 0 | Z152: 0 | AA152: 0 | AB152: 0 | AC152: 0 | AD152: 0 | AE152: 0 | AR152: =SUM(D152:AQ152) -> 0 | AS152: =IF(AR149>0,AVERAGE(D152:AQ152),"") ->  | AT152: =IF(AR149>0,STDEV(D152:AQ152),"") ->  | AU152: =MAX(D152:AQ152) -> 0
B153: Voľby spolu % | C153: 0 | D153: 0 | E153: 0 | F153: 0 | G153: 0 | H153: 0 | I153: 0 | J153: 0 | K153: 0 | L153: 0 | M153: 0 | N153: 0 | O153: 0 | P153: 0 | Q153: 0 | R153: 0 | S153: 0 | T153: 0 | U153: 0 | V153: 0 | W153: 0 | X153: 0 | Y153: 0 | Z153: 0 | AA153: 0 | AB153: 0 | AC153: 0 | AD153: 0 | AE153: 0
B154: Prvá voľba % | C154: 0 | D154: 0 | E154: 0 | F154: 0 | G154: 0 | H154: 0 | I154: 0 | J154: 0 | K154: 0 | L154: 0 | M154: 0 | N154: 0 | O154: 0 | P154: 0 | Q154: 0 | R154: 0 | S154: 0 | T154: 0 | U154: 0 | V154: 0 | W154: 0 | X154: 0 | Y154: 0 | Z154: 0 | AA154: 0 | AB154: 0 | AC154: 0 | AD154: 0 | AE154: 0
B155: Druhá voľba % | C155: 0 | D155: 0 | E155: 0 | F155: 0 | G155: 0 | H155: 0 | I155: 0 | J155: 0 | K155: 0 | L155: 0 | M155: 0 | N155: 0 | O155: 0 | P155: 0 | Q155: 0 | R155: 0 | S155: 0 | T155: 0 | U155: 0 | V155: 0 | W155: 0 | X155: 0 | Y155: 0 | Z155: 0 | AA155: 0 | AB155: 0 | AC155: 0 | AD155: 0 | AE155: 0
B156: Tretia voľba % | C156: 0 | D156: 0 | E156: 0 | F156: 0 | G156: 0 | H156: 0 | I156: 0 | J156: 0 | K156: 0 | L156: 0 | M156: 0 | N156: 0 | O156: 0 | P156: 0 | Q156: 0 | R156: 0 | S156: 0 | T156: 0 | U156: 0 | V156: 0 | W156: 0 | X156: 0 | Y156: 0 | Z156: 0 | AA156: 0 | AB156: 0 | AC156: 0 | AD156: 0 | AE156: 0
A157: * | B157: Voľby spolu z-skóre | C157: Q | D157: =IF(D149<>"",IF($AT$149<>"",IF($AT$149>0,(D149-$AS$149)/$AT$149,""),""),"") ->  | E157: =IF(E149<>"",IF($AT$149<>"",IF($AT$149>0,(E149-$AS$149)/$AT$149,""),""),"") -> 
B158: Prvá voľba z-skóre | D158: =IF(D150<>"",IF($AT$150<>"",IF($AT$150>0,(D150-$AS$150)/$AT$150,""),""),"") ->  | E158: =IF(E150<>"",IF($AT$150<>"",IF($AT$150>0,(E150-$AS$150)/$AT$150,""),""),"") -> 
B159: Druhá voľba z-skóre | D159: =IF(D151<>"",IF($AT$151<>"",IF($AT$151>0,(D151-$AS$151)/$AT$151,""),""),"") ->  | E159: =IF(E151<>"",IF($AT$151<>"",IF($AT$151>0,(E151-$AS$151)/$AT$151,""),""),"") -> 
B160: Tretia voľba z-skóre | D160: =IF(D152<>"",IF($AT$152<>"",IF($AT$152>0,(D152-$AS$152)/$AT$152,""),""),"") ->  | E160: =IF(E152<>"",IF($AT$152<>"",IF($AT$152>0,(E152-$AS$152)/$AT$152,""),""),"") -> 
A161: Q_14 | B161: Voľby spolu n | C161: Q | D161: 0 | E161: 0 | F161: 0 | G161: 0 | H161: 0 | I161: 0 | J161: 0 | K161: 0 | L161: 0 | M161: 0 | N161: 0 | O161: 0 | P161: 0 | Q161: 0 | R161: 0 | S161: 0 | T161: 0 | U161: 0 | V161: 0 | W161: 0 | X161: 0 | Y161: 0 | Z161: 0 | AA161: 0 | AB161: 0 | AC161: 0 | AD161: 0 | AE161: 0 | AR161: =SUM(D161:AQ161) -> 0 | AS161: =IF(AR161>0,AVERAGE(D161:AQ161),"") ->  | AT161: =IF(AR161>0,STDEV(D161:AQ161),"") ->  | AU161: =MAX(D161:AQ161) -> 0
B162: Prvá voľba n | C162: 0 | D162: 0 | E162: 0 | F162: 0 | G162: 0 | H162: 0 | I162: 0 | J162: 0 | K162: 0 | L162: 0 | M162: 0 | N162: 0 | O162: 0 | P162: 0 | Q162: 0 | R162: 0 | S162: 0 | T162: 0 | U162: 0 | V162: 0 | W162: 0 | X162: 0 | Y162: 0 | Z162: 0 | AA162: 0 | AB162: 0 | AC162: 0 | AD162: 0 | AE162: 0 | AR162: =SUM(D162:AQ162) -> 0 | AS162: =IF(AR161>0,AVERAGE(D162:AQ162),"") ->  | AT162: =IF(AR161>0,STDEV(D162:AQ162),"") -> 
B163: Druhá voľba n | C163: 0 | D163: 0 | E163: 0 | F163: 0 | G163: 0 | H163: 0 | I163: 0 | J163: 0 | K163: 0 | L163: 0 | M163: 0 | N163: 0 | O163: 0 | P163: 0 | Q163: 0 | R163: 0 | S163: 0 | T163: 0 | U163: 0 | V163: 0 | W163: 0 | X163: 0 | Y163: 0 | Z163: 0 | AA163: 0 | AB163: 0 | AC163: 0 | AD163: 0 | AE163: 0 | AR163: =SUM(D163:AQ163) -> 0 | AS163: =IF(AR161>0,AVERAGE(D163:AQ163),"") ->  | AT163: =IF(AR161>0,STDEV(D163:AQ163),"") -> 
B164: Tretia voľba n | C164: 0 | D164: 0 | E164: 0 | F164: 0 | G164: 0 | H164: 0 | I164: 0 | J164: 0 | K164: 0 | L164: 0 | M164: 0 | N164: 0 | O164: 0 | P164: 0 | Q164: 0 | R164: 0 | S164: 0 | T164: 0 | U164: 0 | V164: 0 | W164: 0 | X164: 0 | Y164: 0 | Z164: 0 | AA164: 0 | AB164: 0 | AC164: 0 | AD164: 0 | AE164: 0 | AR164: =SUM(D164:AQ164) -> 0 | AS164: =IF(AR161>0,AVERAGE(D164:AQ164),"") ->  | AT164: =IF(AR161>0,STDEV(D164:AQ164),"") ->  | AU164: =MAX(D164:AQ164) -> 0
B165: Voľby spolu % | C165: 0 | D165: 0 | E165: 0 | F165: 0 | G165: 0 | H165: 0 | I165: 0 | J165: 0 | K165: 0 | L165: 0 | M165: 0 | N165: 0 | O165: 0 | P165: 0 | Q165: 0 | R165: 0 | S165: 0 | T165: 0 | U165: 0 | V165: 0 | W165: 0 | X165: 0 | Y165: 0 | Z165: 0 | AA165: 0 | AB165: 0 | AC165: 0 | AD165: 0 | AE165: 0
B166: Prvá voľba % | C166: 0 | D166: 0 | E166: 0 | F166: 0 | G166: 0 | H166: 0 | I166: 0 | J166: 0 | K166: 0 | L166: 0 | M166: 0 | N166: 0 | O166: 0 | P166: 0 | Q166: 0 | R166: 0 | S166: 0 | T166: 0 | U166: 0 | V166: 0 | W166: 0 | X166: 0 | Y166: 0 | Z166: 0 | AA166: 0 | AB166: 0 | AC166: 0 | AD166: 0 | AE166: 0
B167: Druhá voľba % | C167: 0 | D167: 0 | E167: 0 | F167: 0 | G167: 0 | H167: 0 | I167: 0 | J167: 0 | K167: 0 | L167: 0 | M167: 0 | N167: 0 | O167: 0 | P167: 0 | Q167: 0 | R167: 0 | S167: 0 | T167: 0 | U167: 0 | V167: 0 | W167: 0 | X167: 0 | Y167: 0 | Z167: 0 | AA167: 0 | AB167: 0 | AC167: 0 | AD167: 0 | AE167: 0
B168: Tretia voľba % | C168: 0 | D168: 0 | E168: 0 | F168: 0 | G168: 0 | H168: 0 | I168: 0 | J168: 0 | K168: 0 | L168: 0 | M168: 0 | N168: 0 | O168: 0 | P168: 0 | Q168: 0 | R168: 0 | S168: 0 | T168: 0 | U168: 0 | V168: 0 | W168: 0 | X168: 0 | Y168: 0 | Z168: 0 | AA168: 0 | AB168: 0 | AC168: 0 | AD168: 0 | AE168: 0
A169: * | B169: Voľby spolu z-skóre | C169: Q | D169: =IF(D161<>"",IF($AT$161<>"",IF($AT$161>0,(D161-$AS$161)/$AT$161,""),""),"") ->  | E169: =IF(E161<>"",IF($AT$161<>"",IF($AT$161>0,(E161-$AS$161)/$AT$161,""),""),"") -> 
B170: Prvá voľba z-skóre | D170: =IF(D162<>"",IF($AT$162<>"",IF($AT$162>0,(D162-$AS$162)/$AT$162,""),""),"") ->  | E170: =IF(E162<>"",IF($AT$162<>"",IF($AT$162>0,(E162-$AS$162)/$AT$162,""),""),"") -> 
B171: Druhá voľba z-skóre | D171: =IF(D163<>"",IF($AT$163<>"",IF($AT$163>0,(D163-$AS$163)/$AT$163,""),""),"") ->  | E171: =IF(E163<>"",IF($AT$163<>"",IF($AT$163>0,(E163-$AS$163)/$AT$163,""),""),"") -> 
B172: Tretia voľba z-skóre | D172: =IF(D164<>"",IF($AT$164<>"",IF($AT$164>0,(D164-$AS$164)/$AT$164,""),""),"") ->  | E172: =IF(E164<>"",IF($AT$164<>"",IF($AT$164>0,(E164-$AS$164)/$AT$164,""),""),"") -> 
A173: Q_15 | B173: Voľby spolu n | C173: Q | D173: 0 | E173: 0 | F173: 0 | G173: 0 | H173: 0 | I173: 0 | J173: 0 | K173: 0 | L173: 0 | M173: 0 | N173: 0 | O173: 0 | P173: 0 | Q173: 0 | R173: 0 | S173: 0 | T173: 0 | U173: 0 | V173: 0 | W173: 0 | X173: 0 | Y173: 0 | Z173: 0 | AA173: 0 | AB173: 0 | AC173: 0 | AD173: 0 | AE173: 0 | AR173: =SUM(D173:AQ173) -> 0 | AS173: =IF(AR173>0,AVERAGE(D173:AQ173),"") ->  | AT173: =IF(AR173>0,STDEV(D173:AQ173),"") ->  | AU173: =MAX(D173:AQ173) -> 0
B174: Prvá voľba n | C174: 0 | D174: 0 | E174: 0 | F174: 0 | G174: 0 | H174: 0 | I174: 0 | J174: 0 | K174: 0 | L174: 0 | M174: 0 | N174: 0 | O174: 0 | P174: 0 | Q174: 0 | R174: 0 | S174: 0 | T174: 0 | U174: 0 | V174: 0 | W174: 0 | X174: 0 | Y174: 0 | Z174: 0 | AA174: 0 | AB174: 0 | AC174: 0 | AD174: 0 | AE174: 0 | AR174: =SUM(D174:AQ174) -> 0 | AS174: =IF(AR173>0,AVERAGE(D174:AQ174),"") ->  | AT174: =IF(AR173>0,STDEV(D174:AQ174),"") -> 
B175: Druhá voľba n | C175: 0 | D175: 0 | E175: 0 | F175: 0 | G175: 0 | H175: 0 | I175: 0 | J175: 0 | K175: 0 | L175: 0 | M175: 0 | N175: 0 | O175: 0 | P175: 0 | Q175: 0 | R175: 0 | S175: 0 | T175: 0 | U175: 0 | V175: 0 | W175: 0 | X175: 0 | Y175: 0 | Z175: 0 | AA175: 0 | AB175: 0 | AC175: 0 | AD175: 0 | AE175: 0 | AR175: =SUM(D175:AQ175) -> 0 | AS175: =IF(AR173>0,AVERAGE(D175:AQ175),"") ->  | AT175: =IF(AR173>0,STDEV(D175:AQ175),"") -> 
B176: Tretia voľba n | C176: 0 | D176: 0 | E176: 0 | F176: 0 | G176: 0 | H176: 0 | I176: 0 | J176: 0 | K176: 0 | L176: 0 | M176: 0 | N176: 0 | O176: 0 | P176: 0 | Q176: 0 | R176: 0 | S176: 0 | T176: 0 | U176: 0 | V176: 0 | W176: 0 | X176: 0 | Y176: 0 | Z176: 0 | AA176: 0 | AB176: 0 | AC176: 0 | AD176: 0 | AE176: 0 | AR176: =SUM(D176:AQ176) -> 0 | AS176: =IF(AR173>0,AVERAGE(D176:AQ176),"") ->  | AT176: =IF(AR173>0,STDEV(D176:AQ176),"") ->  | AU176: =MAX(D176:AQ176) -> 0
B177: Voľby spolu % | C177: 0 | D177: 0 | E177: 0 | F177: 0 | G177: 0 | H177: 0 | I177: 0 | J177: 0 | K177: 0 | L177: 0 | M177: 0 | N177: 0 | O177: 0 | P177: 0 | Q177: 0 | R177: 0 | S177: 0 | T177: 0 | U177: 0 | V177: 0 | W177: 0 | X177: 0 | Y177: 0 | Z177: 0 | AA177: 0 | AB177: 0 | AC177: 0 | AD177: 0 | AE177: 0
B178: Prvá voľba % | C178: 0 | D178: 0 | E178: 0 | F178: 0 | G178: 0 | H178: 0 | I178: 0 | J178: 0 | K178: 0 | L178: 0 | M178: 0 | N178: 0 | O178: 0 | P178: 0 | Q178: 0 | R178: 0 | S178: 0 | T178: 0 | U178: 0 | V178: 0 | W178: 0 | X178: 0 | Y178: 0 | Z178: 0 | AA178: 0 | AB178: 0 | AC178: 0 | AD178: 0 | AE178: 0
B179: Druhá voľba % | C179: 0 | D179: 0 | E179: 0 | F179: 0 | G179: 0 | H179: 0 | I179: 0 | J179: 0 | K179: 0 | L179: 0 | M179: 0 | N179: 0 | O179: 0 | P179: 0 | Q179: 0 | R179: 0 | S179: 0 | T179: 0 | U179: 0 | V179: 0 | W179: 0 | X179: 0 | Y179: 0 | Z179: 0 | AA179: 0 | AB179: 0 | AC179: 0 | AD179: 0 | AE179: 0
B180: Tretia voľba % | C180: 0 | D180: 0 | E180: 0 | F180: 0 | G180: 0 | H180: 0 | I180: 0 | J180: 0 | K180: 0 | L180: 0 | M180: 0 | N180: 0 | O180: 0 | P180: 0 | Q180: 0 | R180: 0 | S180: 0 | T180: 0 | U180: 0 | V180: 0 | W180: 0 | X180: 0 | Y180: 0 | Z180: 0 | AA180: 0 | AB180: 0 | AC180: 0 | AD180: 0 | AE180: 0
A181: * | B181: Voľby spolu z-skóre | C181: Q | D181: =IF(D173<>"",IF($AT$173<>"",IF($AT$173>0,(D173-$AS$173)/$AT$173,""),""),"") ->  | E181: =IF(E173<>"",IF($AT$173<>"",IF($AT$173>0,(E173-$AS$173)/$AT$173,""),""),"") -> 
B182: Prvá voľba z-skóre | D182: =IF(D174<>"",IF($AT$174<>"",IF($AT$174>0,(D174-$AS$174)/$AT$174,""),""),"") ->  | E182: =IF(E174<>"",IF($AT$174<>"",IF($AT$174>0,(E174-$AS$174)/$AT$174,""),""),"") -> 
B183: Druhá voľba z-skóre | D183: =IF(D175<>"",IF($AT$175<>"",IF($AT$175>0,(D175-$AS$175)/$AT$175,""),""),"") ->  | E183: =IF(E175<>"",IF($AT$175<>"",IF($AT$175>0,(E175-$AS$175)/$AT$175,""),""),"") -> 
B184: Tretia voľba z-skóre | D184: =IF(D176<>"",IF($AT$176<>"",IF($AT$176>0,(D176-$AS$176)/$AT$176,""),""),"") ->  | E184: =IF(E176<>"",IF($AT$176<>"",IF($AT$176>0,(E176-$AS$176)/$AT$176,""),""),"") -> 
A185: Q_16 | B185: Voľby spolu n | C185: Q | D185: 0 | E185: 0 | F185: 0 | G185: 0 | H185: 0 | I185: 0 | J185: 0 | K185: 0 | L185: 0 | M185: 0 | N185: 0 | O185: 0 | P185: 0 | Q185: 0 | R185: 0 | S185: 0 | T185: 0 | U185: 0 | V185: 0 | W185: 0 | X185: 0 | Y185: 0 | Z185: 0 | AA185: 0 | AB185: 0 | AC185: 0 | AD185: 0 | AE185: 0 | AR185: =SUM(D185:AQ185) -> 0 | AS185: =IF(AR185>0,AVERAGE(D185:AQ185),"") ->  | AT185: =IF(AR185>0,STDEV(D185:AQ185),"") ->  | AU185: =MAX(D185:AQ185) -> 0
B186: Prvá voľba n | C186: 0 | D186: 0 | E186: 0 | F186: 0 | G186: 0 | H186: 0 | I186: 0 | J186: 0 | K186: 0 | L186: 0 | M186: 0 | N186: 0 | O186: 0 | P186: 0 | Q186: 0 | R186: 0 | S186: 0 | T186: 0 | U186: 0 | V186: 0 | W186: 0 | X186: 0 | Y186: 0 | Z186: 0 | AA186: 0 | AB186: 0 | AC186: 0 | AD186: 0 | AE186: 0 | AR186: =SUM(D186:AQ186) -> 0 | AS186: =IF(AR185>0,AVERAGE(D186:AQ186),"") ->  | AT186: =IF(AR185>0,STDEV(D186:AQ186),"") -> 
B187: Druhá voľba n | C187: 0 | D187: 0 | E187: 0 | F187: 0 | G187: 0 | H187: 0 | I187: 0 | J187: 0 | K187: 0 | L187: 0 | M187: 0 | N187: 0 | O187: 0 | P187: 0 | Q187: 0 | R187: 0 | S187: 0 | T187: 0 | U187: 0 | V187: 0 | W187: 0 | X187: 0 | Y187: 0 | Z187: 0 | AA187: 0 | AB187: 0 | AC187: 0 | AD187: 0 | AE187: 0 | AR187: =SUM(D187:AQ187) -> 0 | AS187: =IF(AR185>0,AVERAGE(D187:AQ187),"") ->  | AT187: =IF(AR185>0,STDEV(D187:AQ187),"") -> 
B188: Tretia voľba n | C188: 0 | D188: 0 | E188: 0 | F188: 0 | G188: 0 | H188: 0 | I188: 0 | J188: 0 | K188: 0 | L188: 0 | M188: 0 | N188: 0 | O188: 0 | P188: 0 | Q188: 0 | R188: 0 | S188: 0 | T188: 0 | U188: 0 | V188: 0 | W188: 0 | X188: 0 | Y188: 0 | Z188: 0 | AA188: 0 | AB188: 0 | AC188: 0 | AD188: 0 | AE188: 0 | AR188: =SUM(D188:AQ188) -> 0 | AS188: =IF(AR185>0,AVERAGE(D188:AQ188),"") ->  | AT188: =IF(AR185>0,STDEV(D188:AQ188),"") ->  | AU188: =MAX(D188:AQ188) -> 0
B189: Voľby spolu % | C189: 0 | D189: 0 | E189: 0 | F189: 0 | G189: 0 | H189: 0 | I189: 0 | J189: 0 | K189: 0 | L189: 0 | M189: 0 | N189: 0 | O189: 0 | P189: 0 | Q189: 0 | R189: 0 | S189: 0 | T189: 0 | U189: 0 | V189: 0 | W189: 0 | X189: 0 | Y189: 0 | Z189: 0 | AA189: 0 | AB189: 0 | AC189: 0 | AD189: 0 | AE189: 0
B190: Prvá voľba % | C190: 0 | D190: 0 | E190: 0 | F190: 0 | G190: 0 | H190: 0 | I190: 0 | J190: 0 | K190: 0 | L190: 0 | M190: 0 | N190: 0 | O190: 0 | P190: 0 | Q190: 0 | R190: 0 | S190: 0 | T190: 0 | U190: 0 | V190: 0 | W190: 0 | X190: 0 | Y190: 0 | Z190: 0 | AA190: 0 | AB190: 0 | AC190: 0 | AD190: 0 | AE190: 0
B191: Druhá voľba % | C191: 0 | D191: 0 | E191: 0 | F191: 0 | G191: 0 | H191: 0 | I191: 0 | J191: 0 | K191: 0 | L191: 0 | M191: 0 | N191: 0 | O191: 0 | P191: 0 | Q191: 0 | R191: 0 | S191: 0 | T191: 0 | U191: 0 | V191: 0 | W191: 0 | X191: 0 | Y191: 0 | Z191: 0 | AA191: 0 | AB191: 0 | AC191: 0 | AD191: 0 | AE191: 0
B192: Tretia voľba % | C192: 0 | D192: 0 | E192: 0 | F192: 0 | G192: 0 | H192: 0 | I192: 0 | J192: 0 | K192: 0 | L192: 0 | M192: 0 | N192: 0 | O192: 0 | P192: 0 | Q192: 0 | R192: 0 | S192: 0 | T192: 0 | U192: 0 | V192: 0 | W192: 0 | X192: 0 | Y192: 0 | Z192: 0 | AA192: 0 | AB192: 0 | AC192: 0 | AD192: 0 | AE192: 0
A193: * | B193: Voľby spolu z-skóre | C193: Q | D193: =IF(D185<>"",IF($AT185<>"",IF($AT185>0,(D185-$AS185)/$AT185,""),""),"") ->  | E193: =IF(E185<>"",IF(E185<>0,IF($AT$5>0,(E185-$AS$5)/$AT$5,""),""),"") -> 
B194: Prvá voľba z-skóre | D194: =IF(D186<>"",IF($AT186<>"",IF($AT186>0,(D186-$AS186)/$AT186,""),""),"") ->  | E194: =IF(E186<>"",IF(E186<>0,IF($AT$6>0,(E186-$AS$6)/$AT$6,""),""),"") -> 
B195: Druhá voľba z-skóre | D195: =IF(D187<>"",IF($AT187<>"",IF($AT187>0,(D187-$AS187)/$AT187,""),""),"") ->  | E195: =IF(E187<>"",IF(E187<>0,IF($AT$7>0,(E187-$AS$7)/$AT$7,""),""),"") -> 
B196: Tretia voľba z-skóre | D196: =IF(D188<>"",IF($AT188<>"",IF($AT188>0,(D188-$AS188)/$AT188,""),""),"") ->  | E196: =IF(E188<>"",IF(E188<>0,IF($AT$8>0,(E188-$AS$8)/$AT$8,""),""),"") -> 
A197: Q_17 | B197: Voľby spolu n | C197: Q | D197: 0 | E197: 0 | F197: 0 | G197: 0 | H197: 0 | I197: 0 | J197: 0 | K197: 0 | L197: 0 | M197: 0 | N197: 0 | O197: 0 | P197: 0 | Q197: 0 | R197: 0 | S197: 0 | T197: 0 | U197: 0 | V197: 0 | W197: 0 | X197: 0 | Y197: 0 | Z197: 0 | AA197: 0 | AB197: 0 | AC197: 0 | AD197: 0 | AE197: 0 | AR197: =SUM(D197:AQ197) -> 0 | AS197: =IF(AR197>0,AVERAGE(D197:AQ197),"") ->  | AT197: =IF(AR197>0,STDEV(D197:AQ197),"") ->  | AU197: =MAX(D197:AQ197) -> 0
B198: Prvá voľba n | C198: 0 | D198: 0 | E198: 0 | F198: 0 | G198: 0 | H198: 0 | I198: 0 | J198: 0 | K198: 0 | L198: 0 | M198: 0 | N198: 0 | O198: 0 | P198: 0 | Q198: 0 | R198: 0 | S198: 0 | T198: 0 | U198: 0 | V198: 0 | W198: 0 | X198: 0 | Y198: 0 | Z198: 0 | AA198: 0 | AB198: 0 | AC198: 0 | AD198: 0 | AE198: 0 | AR198: =SUM(D198:AQ198) -> 0 | AS198: =IF(AR197>0,AVERAGE(D198:AQ198),"") ->  | AT198: =IF(AR197>0,STDEV(D198:AQ198),"") -> 
B199: Druhá voľba n | C199: 0 | D199: 0 | E199: 0 | F199: 0 | G199: 0 | H199: 0 | I199: 0 | J199: 0 | K199: 0 | L199: 0 | M199: 0 | N199: 0 | O199: 0 | P199: 0 | Q199: 0 | R199: 0 | S199: 0 | T199: 0 | U199: 0 | V199: 0 | W199: 0 | X199: 0 | Y199: 0 | Z199: 0 | AA199: 0 | AB199: 0 | AC199: 0 | AD199: 0 | AE199: 0 | AR199: =SUM(D199:AQ199) -> 0 | AS199: =IF(AR197>0,AVERAGE(D199:AQ199),"") ->  | AT199: =IF(AR197>0,STDEV(D199:AQ199),"") -> 
B200: Tretia voľba n | C200: 0 | D200: 0 | E200: 0 | F200: 0 | G200: 0 | H200: 0 | I200: 0 | J200: 0 | K200: 0 | L200: 0 | M200: 0 | N200: 0 | O200: 0 | P200: 0 | Q200: 0 | R200: 0 | S200: 0 | T200: 0 | U200: 0 | V200: 0 | W200: 0 | X200: 0 | Y200: 0 | Z200: 0 | AA200: 0 | AB200: 0 | AC200: 0 | AD200: 0 | AE200: 0 | AR200: =SUM(D200:AQ200) -> 0 | AS200: =IF(AR197>0,AVERAGE(D200:AQ200),"") ->  | AT200: =IF(AR197>0,STDEV(D200:AQ200),"") ->  | AU200: =MAX(D200:AQ200) -> 0
... 75 more rows

Sheet Grafy
A1: Bar grafy z-skóre na steny 20 otázok max | E1: 5 | F1: 6 | G1: 7 | H1: 8 | I1: 9 | J1: 10 | K1: 11 | L1: 12 | M1: 13 | N1: 14 | O1: 15 | P1: 16 | Q1: 17 | R1: 18 | S1: 19 | T1: 20 | U1: 21 | V1: 22 | W1: 23 | X1: 24 | Y1: 25 | Z1: 26 | AA1: 27 | AB1: 28
E2: 1 | F2: 2 | G2: 3 | H2: 4 | I2: 5 | J2: 6 | K2: 7 | L2: 8 | M2: 9 | N2: 10 | O2: 11 | P2: 12 | Q2: 13 | R2: 14 | S2: 15 | T2: 16 | U2: 17 | V2: 18 | W2: 19 | X2: 20 | Y2: 21 | Z2: 22 | AA2: 23 | AB2: 24 | AC2: 25 | AD2: 26 | AE2: 27 | AF2: 28 | AG2: 29 | AH2: 30 | AI2: 31 | AJ2: 32 | AK2: 33 | AL2: 34 | AM2: 35 | AN2: 36 | AO2: 37 | AP2: 38 | AQ2: 39 | AR2: 40
B3: Počet | C3: =Sumy_All_Q!B3 -> 28 | D3: Konotácia P +; N –; Q = nezadaná | E3: =IF(Sumy_All_Q!D4<>"",Sumy_All_Q!D4,"") -> "01_Oso m" | F3: =IF(Sumy_All_Q!E4<>"",Sumy_All_Q!E4,"") -> "02_Oso m" | G3: =IF(Sumy_All_Q!F4<>"",Sumy_All_Q!F4,"") -> "03_Oso m" | H3: =IF(Sumy_All_Q!G4<>"",Sumy_All_Q!G4,"") -> "04_Oso m" | I3: =IF(Sumy_All_Q!H4<>"",Sumy_All_Q!H4,"") -> "05_Oso m" | J3: =IF(Sumy_All_Q!I4<>"",Sumy_All_Q!I4,"") -> "*06_Oso m" | K3: =IF(Sumy_All_Q!J4<>"",Sumy_All_Q!J4,"") -> "07_Oso m" | L3: =IF(Sumy_All_Q!K4<>"",Sumy_All_Q!K4,"") -> "08_Oso m" | M3: =IF(Sumy_All_Q!L4<>"",Sumy_All_Q!L4,"") -> "09_Oso f" | N3: =IF(Sumy_All_Q!M4<>"",Sumy_All_Q!M4,"") -> "**10_Oso m" | O3: =IF(Sumy_All_Q!N4<>"",Sumy_All_Q!N4,"") -> "11_Oso m" | P3: =IF(Sumy_All_Q!O4<>"",Sumy_All_Q!O4,"") -> "12_Oso m" | Q3: =IF(Sumy_All_Q!P4<>"",Sumy_All_Q!P4,"") -> "13_Oso m" | R3: =IF(Sumy_All_Q!Q4<>"",Sumy_All_Q!Q4,"") -> "14_Oso m" | S3: =IF(Sumy_All_Q!R4<>"",Sumy_All_Q!R4,"") -> "15_Oso f" | T3: =IF(Sumy_All_Q!S4<>"",Sumy_All_Q!S4,"") -> "16_Oso f" | U3: =IF(Sumy_All_Q!T4<>"",Sumy_All_Q!T4,"") -> "17_Oso f" | V3: =IF(Sumy_All_Q!U4<>"",Sumy_All_Q!U4,"") -> "18_Oso f" | W3: =IF(Sumy_All_Q!V4<>"",Sumy_All_Q!V4,"") -> "19_Oso f" | X3: =IF(Sumy_All_Q!W4<>"",Sumy_All_Q!W4,"") -> "20_Oso f" | Y3: =IF(Sumy_All_Q!X4<>"",Sumy_All_Q!X4,"") -> "21_Oso f" | Z3: =IF(Sumy_All_Q!Y4<>"",Sumy_All_Q!Y4,"") -> "22_Oso f" | AA3: =IF(Sumy_All_Q!Z4<>"",Sumy_All_Q!Z4,"") -> "23_Oso f" | AB3: =IF(Sumy_All_Q!AA4<>"",Sumy_All_Q!AA4,"") -> "24_Oso f" | AC3: =IF(Sumy_All_Q!AB4<>"",Sumy_All_Q!AB4,"") -> "25_Oso f" | AD3: =IF(Sumy_All_Q!AC4<>"",Sumy_All_Q!AC4,"") -> "26_Oso f" | AE3: =IF(Sumy_All_Q!AD4<>"",Sumy_All_Q!AD4,"") -> "27_Oso f" | AF3: =IF(Sumy_All_Q!AE4<>"",Sumy_All_Q!AE4,"") -> "28_Oso f" | AG3: =IF(Sumy_All_Q!AF4<>"",Sumy_All_Q!AF4,"") ->  | AH3: =IF(Sumy_All_Q!AG4<>"",Sumy_All_Q!AG4,"") ->  | AI3: =IF(Sumy_All_Q!AH4<>"",Sumy_All_Q!AH4,"") ->  | AJ3: =IF(Sumy_All_Q!AI4<>"",Sumy_All_Q!AI4,"") ->  | AK3: =IF(Sumy_All_Q!AJ4<>"",Sumy_All_Q!AJ4,"") ->  | AL3: =IF(Sumy_All_Q!AK4<>"",Sumy_All_Q!AK4,"") ->  | AM3: =IF(Sumy_All_Q!AL4<>"",Sumy_All_Q!AL4,"") ->  | AN3: =IF(Sumy_All_Q!AM4<>"",Sumy_All_Q!AM4,"") ->  | AO3: =IF(Sumy_All_Q!AN4<>"",Sumy_All_Q!AN4,"") ->  | AP3: =IF(Sumy_All_Q!AO4<>"",Sumy_All_Q!AO4,"") ->  | AQ3: =IF(Sumy_All_Q!AP4<>"",Sumy_All_Q!AP4,"") ->  | AR3: =IF(Sumy_All_Q!AQ4<>"",Sumy_All_Q!AQ4,"") -> 
B4: Otázka 1 | C4: z-skóre | D4: P | E4: =Sumy_All_Q!D13 -> -0.3683025438 | F4: =Sumy_All_Q!E13 -> -1.193300242 | G4: =Sumy_All_Q!F13 -> -0.7808013929 | H4: =Sumy_All_Q!G13 -> -0.7808013929 | I4: =Sumy_All_Q!H13 -> 0.4566951543 | J4: =Sumy_All_Q!I13 -> -1.193300242 | K4: =Sumy_All_Q!J13 -> 0.4566951543 | L4: =Sumy_All_Q!K13 -> 0.4566951543 | M4: =Sumy_All_Q!L13 -> 1.281692852 | N4: =Sumy_All_Q!M13 -> -0.3683025438 | O4: =Sumy_All_Q!N13 -> 0.04419630526 | P4: =Sumy_All_Q!O13 -> 0.04419630526 | Q4: =Sumy_All_Q!P13 -> -0.7808013929 | R4: =Sumy_All_Q!Q13 -> -0.3683025438 | S4: =Sumy_All_Q!R13 -> -1.193300242 | T4: =Sumy_All_Q!S13 -> -0.3683025438 | U4: =Sumy_All_Q!T13 -> -1.193300242 | V4: =Sumy_All_Q!U13 -> 0.4566951543 | W4: =Sumy_All_Q!V13 -> -0.7808013929 | X4: =Sumy_All_Q!W13 -> -0.3683025438 | Y4: =Sumy_All_Q!X13 -> -0.3683025438 | Z4: =Sumy_All_Q!Y13 -> 0.8691940034 | AA4: =Sumy_All_Q!Z13 -> 2.931688249 | AB4: =Sumy_All_Q!AA13 -> 0.04419630526 | AC4: =Sumy_All_Q!AB13 -> 0.04419630526 | AD4: =Sumy_All_Q!AC13 -> -0.3683025438 | AE4: =Sumy_All_Q!AD13 -> 2.106690551 | AF4: =Sumy_All_Q!AE13 -> 1.281692852 | AG4: =Sumy_All_Q!AF13 ->  | AH4: =Sumy_All_Q!AG13 ->  | AI4: =Sumy_All_Q!AH13 ->  | AJ4: =Sumy_All_Q!AI13 ->  | AK4: =Sumy_All_Q!AJ13 ->  | AL4: =Sumy_All_Q!AK13 ->  | AM4: =Sumy_All_Q!AL13 ->  | AN4: =Sumy_All_Q!AM13 ->  | AO4: =Sumy_All_Q!AN13 ->  | AP4: =Sumy_All_Q!AO13 ->  | AQ4: =Sumy_All_Q!AP13 ->  | AR4: =Sumy_All_Q!AQ13 -> 
B5: Otázka 2 | C5: z-skóre | D5: =Sumy_All_Q!C25 -> P | E5: =Sumy_All_Q!D25 -> -0.5475384946 | F5: =Sumy_All_Q!E25 -> -0.8368041143 | G5: =Sumy_All_Q!F25 -> 0.03099274498 | H5: =Sumy_All_Q!G25 -> -0.5475384946 | I5: =Sumy_All_Q!H25 -> -0.5475384946 | J5: =Sumy_All_Q!I25 -> -0.8368041143 | K5: =Sumy_All_Q!J25 -> 0.8987896043 | L5: =Sumy_All_Q!K25 -> 0.3202583647 | M5: =Sumy_All_Q!L25 -> 1.188055224 | N5: =Sumy_All_Q!M25 -> -0.8368041143 | O5: =Sumy_All_Q!N25 -> -0.5475384946 | P5: =Sumy_All_Q!O25 -> -0.8368041143 | Q5: =Sumy_All_Q!P25 -> -0.5475384946 | R5: =Sumy_All_Q!Q25 -> -0.2582728748 | S5: =Sumy_All_Q!R25 -> -0.2582728748 | T5: =Sumy_All_Q!S25 -> -0.8368041143 | U5: =Sumy_All_Q!T25 -> -0.8368041143 | V5: =Sumy_All_Q!U25 -> 0.6095239845 | W5: =Sumy_All_Q!V25 -> -0.2582728748 | X5: =Sumy_All_Q!W25 -> -0.5475384946 | Y5: =Sumy_All_Q!X25 -> -0.5475384946 | Z5: =Sumy_All_Q!Y25 -> -0.5475384946 | AA5: =Sumy_All_Q!Z25 -> 3.212914562 | AB5: =Sumy_All_Q!AA25 -> -0.8368041143 | AC5: =Sumy_All_Q!AB25 -> 1.766586464 | AD5: =Sumy_All_Q!AC25 -> 0.8987896043 | AE5: =Sumy_All_Q!AD25 -> 0.6095239845 | AF5: =Sumy_All_Q!AE25 -> 1.477320844 | AG5: =Sumy_All_Q!AF25 ->  | AH5: =Sumy_All_Q!AG25 ->  | AI5: =Sumy_All_Q!AH25 ->  | AJ5: =Sumy_All_Q!AI25 ->  | AK5: =Sumy_All_Q!AJ25 ->  | AL5: =Sumy_All_Q!AK25 ->  | AM5: =Sumy_All_Q!AL25 ->  | AN5: =Sumy_All_Q!AM25 ->  | AO5: =Sumy_All_Q!AN25 ->  | AP5: =Sumy_All_Q!AO25 ->  | AQ5: =Sumy_All_Q!AP25 ->  | AR5: =Sumy_All_Q!AQ25 -> 
B6: Otázka 3 | C6: z-skóre | D6: =Sumy_All_Q!C37 -> P | E6: =Sumy_All_Q!D37 -> -0.9184564814 | F6: =Sumy_All_Q!E37 -> -1.403678773 | G6: =Sumy_All_Q!F37 -> -0.4332341893 | H6: =Sumy_All_Q!G37 -> -1.403678773 | I6: =Sumy_All_Q!H37 -> 0.5372103948 | J6: =Sumy_All_Q!I37 -> -0.4332341893 | K6: =Sumy_All_Q!J37 -> 0.5372103948 | L6: =Sumy_All_Q!K37 -> 0.5372103948 | M6: =Sumy_All_Q!L37 -> 1.022432687 | N6: =Sumy_All_Q!M37 -> 0.05198810272 | O6: =Sumy_All_Q!N37 -> 0.5372103948 | P6: =Sumy_All_Q!O37 -> 0.5372103948 | Q6: =Sumy_All_Q!P37 -> -1.403678773 | R6: =Sumy_All_Q!Q37 -> -0.9184564814 | S6: =Sumy_All_Q!R37 -> -0.9184564814 | T6: =Sumy_All_Q!S37 -> 0.5372103948 | U6: =Sumy_All_Q!T37 -> -0.9184564814 | V6: =Sumy_All_Q!U37 -> 1.022432687 | W6: =Sumy_All_Q!V37 -> -0.4332341893 | X6: =Sumy_All_Q!W37 -> 0.05198810272 | Y6: =Sumy_All_Q!X37 -> 0.5372103948 | Z6: =Sumy_All_Q!Y37 -> 0.05198810272 | AA6: =Sumy_All_Q!Z37 -> 2.963321855 | AB6: =Sumy_All_Q!AA37 -> -0.9184564814 | AC6: =Sumy_All_Q!AB37 -> 0.05198810272 | AD6: =Sumy_All_Q!AC37 -> -0.9184564814 | AE6: =Sumy_All_Q!AD37 -> 1.507654979 | AF6: =Sumy_All_Q!AE37 -> 0.5372103948 | AG6: =Sumy_All_Q!AF37 ->  | AH6: =Sumy_All_Q!AG37 ->  | AI6: =Sumy_All_Q!AH37 ->  | AJ6: =Sumy_All_Q!AI37 ->  | AK6: =Sumy_All_Q!AJ37 ->  | AL6: =Sumy_All_Q!AK37 ->  | AM6: =Sumy_All_Q!AL37 ->  | AN6: =Sumy_All_Q!AM37 ->  | AO6: =Sumy_All_Q!AN37 ->  | AP6: =Sumy_All_Q!AO37 ->  | AQ6: =Sumy_All_Q!AP37 ->  | AR6: =Sumy_All_Q!AQ37 -> 
B7: Otázka 4 | C7: z-skóre | D7: =Sumy_All_Q!C49 -> P | E7: =Sumy_All_Q!D49 -> -0.5159852075 | F7: =Sumy_All_Q!E49 -> -0.5159852075 | G7: =Sumy_All_Q!F49 -> -0.5159852075 | H7: =Sumy_All_Q!G49 -> -0.5159852075 | I7: =Sumy_All_Q!H49 -> -0.1592546937 | J7: =Sumy_All_Q!I49 -> -0.5159852075 | K7: =Sumy_All_Q!J49 -> -0.1592546937 | L7: =Sumy_All_Q!K49 -> -0.3376199506 | M7: =Sumy_All_Q!L49 -> 1.267667362 | N7: =Sumy_All_Q!M49 -> -0.5159852075 | O7: =Sumy_All_Q!N49 -> -0.5159852075 | P7: =Sumy_All_Q!O49 -> -0.5159852075 | Q7: =Sumy_All_Q!P49 -> -0.5159852075 | R7: =Sumy_All_Q!Q49 -> -0.5159852075 | S7: =Sumy_All_Q!R49 -> 0.9109368479 | T7: =Sumy_All_Q!S49 -> -0.5159852075 | U7: =Sumy_All_Q!T49 -> -0.5159852075 | V7: =Sumy_All_Q!U49 -> -0.1592546937 | W7: =Sumy_All_Q!V49 -> -0.5159852075 | X7: =Sumy_All_Q!W49 -> 0.01911056324 | Y7: =Sumy_All_Q!X49 -> -0.5159852075 | Z7: =Sumy_All_Q!Y49 -> -0.5159852075 | AA7: =Sumy_All_Q!Z49 -> 3.943146216 | AB7: =Sumy_All_Q!AA49 -> -0.5159852075 | AC7: =Sumy_All_Q!AB49 -> 1.624397876 | AD7: =Sumy_All_Q!AC49 -> 0.9109368479 | AE7: =Sumy_All_Q!AD49 -> -0.5159852075 | AF7: =Sumy_All_Q!AE49 -> 0.9109368479 | AG7: =Sumy_All_Q!AF49 ->  | AH7: =Sumy_All_Q!AG49 ->  | AI7: =Sumy_All_Q!AH49 ->  | AJ7: =Sumy_All_Q!AI49 ->  | AK7: =Sumy_All_Q!AJ49 ->  | AL7: =Sumy_All_Q!AK49 ->  | AM7: =Sumy_All_Q!AL49 ->  | AN7: =Sumy_All_Q!AM49 ->  | AO7: =Sumy_All_Q!AN49 ->  | AP7: =Sumy_All_Q!AO49 ->  | AQ7: =Sumy_All_Q!AP49 ->  | AR7: =Sumy_All_Q!AQ49 -> 
B8: Otázka 5 | C8: z-skóre | D8: =Sumy_All_Q!C61 -> P | E8: =Sumy_All_Q!D61 -> -0.3438272569 | F8: =Sumy_All_Q!E61 -> -1.180971882 | G8: =Sumy_All_Q!F61 -> -0.7623995696 | H8: =Sumy_All_Q!G61 -> -0.7623995696 | I8: =Sumy_All_Q!H61 -> -0.3438272569 | J8: =Sumy_All_Q!I61 -> -0.7623995696 | K8: =Sumy_All_Q!J61 -> 0.9118896813 | L8: =Sumy_All_Q!K61 -> 0.07474505585 | M8: =Sumy_All_Q!L61 -> 0.07474505585 | N8: =Sumy_All_Q!M61 -> -0.7623995696 | O8: =Sumy_All_Q!N61 -> 0.4933173686 | P8: =Sumy_All_Q!O61 -> -0.3438272569 | Q8: =Sumy_All_Q!P61 -> -0.3438272569 | R8: =Sumy_All_Q!Q61 -> 0.07474505585 | S8: =Sumy_All_Q!R61 -> -1.180971882 | T8: =Sumy_All_Q!S61 -> -1.180971882 | U8: =Sumy_All_Q!T61 -> -1.180971882 | V8: =Sumy_All_Q!U61 -> 0.9118896813 | W8: =Sumy_All_Q!V61 -> 0.4933173686 | X8: =Sumy_All_Q!W61 -> -0.3438272569 | Y8: =Sumy_All_Q!X61 -> 0.07474505585 | Z8: =Sumy_All_Q!Y61 -> 0.07474505585 | AA8: =Sumy_All_Q!Z61 -> 3.423323558 | AB8: =Sumy_All_Q!AA61 -> -0.3438272569 | AC8: =Sumy_All_Q!AB61 -> 1.330461994 | AD8: =Sumy_All_Q!AC61 -> -0.3438272569 | AE8: =Sumy_All_Q!AD61 -> 1.330461994 | AF8: =Sumy_All_Q!AE61 -> 0.9118896813 | AG8: =Sumy_All_Q!AF61 ->  | AH8: =Sumy_All_Q!AG61 ->  | AI8: =Sumy_All_Q!AH61 ->  | AJ8: =Sumy_All_Q!AI61 ->  | AK8: =Sumy_All_Q!AJ61 ->  | AL8: =Sumy_All_Q!AK61 ->  | AM8: =Sumy_All_Q!AL61 ->  | AN8: =Sumy_All_Q!AM61 ->  | AO8: =Sumy_All_Q!AN61 ->  | AP8: =Sumy_All_Q!AO61 ->  | AQ8: =Sumy_All_Q!AP61 ->  | AR8: =Sumy_All_Q!AQ61 -> 
B9: Otázka 6 | C9: z-skóre | D9: =Sumy_All_Q!C73 -> N | E9: =Sumy_All_Q!D73 -> -0.5401534254 | F9: =Sumy_All_Q!E73 -> 1.728490961 | G9: =Sumy_All_Q!F73 -> -0.5401534254 | H9: =Sumy_All_Q!G73 -> 0.5941687679 | I9: =Sumy_All_Q!H73 -> -0.1620460276 | J9: =Sumy_All_Q!I73 -> 3.051866853 | K9: =Sumy_All_Q!J73 -> -0.5401534254 | L9: =Sumy_All_Q!K73 -> -0.3510997265 | M9: =Sumy_All_Q!L73 -> -0.5401534254 | N9: =Sumy_All_Q!M73 -> 3.240920552 | O9: =Sumy_All_Q!N73 -> -0.5401534254 | P9: =Sumy_All_Q!O73 -> 0.02700767127 | Q9: =Sumy_All_Q!P73 -> -0.5401534254 | R9: =Sumy_All_Q!Q73 -> -0.5401534254 | S9: =Sumy_All_Q!R73 -> -0.3510997265 | T9: =Sumy_All_Q!S73 -> -0.1620460276 | U9: =Sumy_All_Q!T73 -> -0.1620460276 | V9: =Sumy_All_Q!U73 -> -0.3510997265 | W9: =Sumy_All_Q!V73 -> -0.5401534254 | X9: =Sumy_All_Q!W73 -> -0.3510997265 | Y9: =Sumy_All_Q!X73 -> -0.1620460276 | Z9: =Sumy_All_Q!Y73 -> -0.1620460276 | AA9: =Sumy_All_Q!Z73 -> -0.1620460276 | AB9: =Sumy_All_Q!AA73 -> -0.1620460276 | AC9: =Sumy_All_Q!AB73 -> -0.3510997265 | AD9: =Sumy_All_Q!AC73 -> -0.5401534254 | AE9: =Sumy_All_Q!AD73 -> -0.3510997265 | AF9: =Sumy_All_Q!AE73 -> -0.5401534254 | AG9: =Sumy_All_Q!AF73 ->  | AH9: =Sumy_All_Q!AG73 ->  | AI9: =Sumy_All_Q!AH73 ->  | AJ9: =Sumy_All_Q!AI73 ->  | AK9: =Sumy_All_Q!AJ73 ->  | AL9: =Sumy_All_Q!AK73 ->  | AM9: =Sumy_All_Q!AL73 ->  | AN9: =Sumy_All_Q!AM73 ->  | AO9: =Sumy_All_Q!AN73 ->  | AP9: =Sumy_All_Q!AO73 ->  | AQ9: =Sumy_All_Q!AP73 ->  | AR9: =Sumy_All_Q!AQ73 -> 
B10: Otázka 7 | C10: z-skóre | D10: =Sumy_All_Q!C85 -> N | E10: =Sumy_All_Q!D85 -> -0.3462975828 | F10: =Sumy_All_Q!E85 -> 1.849098414 | G10: =Sumy_All_Q!F85 -> -0.5292472491 | H10: =Sumy_All_Q!G85 -> 1.300249415 | I10: =Sumy_All_Q!H85 -> 0.01960174997 | J10: =Sumy_All_Q!I85 -> 3.129746078 | K10: =Sumy_All_Q!J85 -> -0.5292472491 | L10: =Sumy_All_Q!K85 -> -0.3462975828 | M10: =Sumy_All_Q!L85 -> -0.5292472491 | N10: =Sumy_All_Q!M85 -> 2.763846745 | O10: =Sumy_All_Q!N85 -> -0.5292472491 | P10: =Sumy_All_Q!O85 -> 0.2025514163 | Q10: =Sumy_All_Q!P85 -> -0.5292472491 | R10: =Sumy_All_Q!Q85 -> -0.5292472491 | S10: =Sumy_All_Q!R85 -> -0.3462975828 | T10: =Sumy_All_Q!S85 -> -0.3462975828 | U10: =Sumy_All_Q!T85 -> 0.01960174997 | V10: =Sumy_All_Q!U85 -> -0.5292472491 | W10: =Sumy_All_Q!V85 -> -0.5292472491 | X10: =Sumy_All_Q!W85 -> -0.3462975828 | Y10: =Sumy_All_Q!X85 -> -0.5292472491 | Z10: =Sumy_All_Q!Y85 -> -0.5292472491 | AA10: =Sumy_All_Q!Z85 -> -0.1633479164 | AB10: =Sumy_All_Q!AA85 -> -0.3462975828 | AC10: =Sumy_All_Q!AB85 -> -0.5292472491 | AD10: =Sumy_All_Q!AC85 -> -0.5292472491 | AE10: =Sumy_All_Q!AD85 -> -0.1633479164 | AF10: =Sumy_All_Q!AE85 -> -0.5292472491 | AG10: =Sumy_All_Q!AF85 ->  | AH10: =Sumy_All_Q!AG85 ->  | AI10: =Sumy_All_Q!AH85 ->  | AJ10: =Sumy_All_Q!AI85 ->  | AK10: =Sumy_All_Q!AJ85 ->  | AL10: =Sumy_All_Q!AK85 ->  | AM10: =Sumy_All_Q!AL85 ->  | AN10: =Sumy_All_Q!AM85 ->  | AO10: =Sumy_All_Q!AN85 ->  | AP10: =Sumy_All_Q!AO85 ->  | AQ10: =Sumy_All_Q!AP85 ->  | AR10: =Sumy_All_Q!AQ85 -> 
B11: Otázka 8 | C11: z-skóre | D11: =Sumy_All_Q!C97 -> N | E11: =Sumy_All_Q!D97 -> -0.4369517184 | F11: =Sumy_All_Q!E97 -> 2.102314872 | G11: =Sumy_All_Q!F97 -> -0.6677941357 | H11: =Sumy_All_Q!G97 -> 0.7172603679 | I11: =Sumy_All_Q!H97 -> -0.2061093011 | J11: =Sumy_All_Q!I97 -> 2.794842123 | K11: =Sumy_All_Q!J97 -> -0.2061093011 | L11: =Sumy_All_Q!K97 -> -0.4369517184 | M11: =Sumy_All_Q!L97 -> -0.6677941357 | N11: =Sumy_All_Q!M97 -> 3.025684541 | O11: =Sumy_All_Q!N97 -> -0.4369517184 | P11: =Sumy_All_Q!O97 -> -0.4369517184 | Q11: =Sumy_All_Q!P97 -> -0.6677941357 | R11: =Sumy_All_Q!Q97 -> -0.6677941357 | S11: =Sumy_All_Q!R97 -> -0.2061093011 | T11: =Sumy_All_Q!S97 -> -0.2061093011 | U11: =Sumy_All_Q!T97 -> -0.2061093011 | V11: =Sumy_All_Q!U97 -> -0.2061093011 | W11: =Sumy_All_Q!V97 -> -0.4369517184 | X11: =Sumy_All_Q!W97 -> -0.2061093011 | Y11: =Sumy_All_Q!X97 -> -0.4369517184 | Z11: =Sumy_All_Q!Y97 -> -0.4369517184 | AA11: =Sumy_All_Q!Z97 -> -0.4369517184 | AB11: =Sumy_All_Q!AA97 -> -0.2061093011 | AC11: =Sumy_All_Q!AB97 -> -0.2061093011 | AD11: =Sumy_All_Q!AC97 -> -0.6677941357 | AE11: =Sumy_All_Q!AD97 -> 0.7172603679 | AF11: =Sumy_All_Q!AE97 -> -0.6677941357 | AG11: =Sumy_All_Q!AF97 ->  | AH11: =Sumy_All_Q!AG97 ->  | AI11: =Sumy_All_Q!AH97 ->  | AJ11: =Sumy_All_Q!AI97 ->  | AK11: =Sumy_All_Q!AJ97 ->  | AL11: =Sumy_All_Q!AK97 ->  | AM11: =Sumy_All_Q!AL97 ->  | AN11: =Sumy_All_Q!AM97 ->  | AO11: =Sumy_All_Q!AN97 ->  | AP11: =Sumy_All_Q!AO97 ->  | AQ11: =Sumy_All_Q!AP97 ->  | AR11: =Sumy_All_Q!AQ97 -> 
B12: Otázka 9 | C12: z-skóre | D12: =Sumy_All_Q!C109 -> N | E12: =Sumy_All_Q!D109 -> -0.4864971297 | F12: =Sumy_All_Q!E109 -> 2.876939817 | G12: =Sumy_All_Q!F109 -> -0.4864971297 | H12: =Sumy_All_Q!G109 -> 0.3543621068 | I12: =Sumy_All_Q!H109 -> -0.3183252824 | J12: =Sumy_All_Q!I109 -> 2.540596122 | K12: =Sumy_All_Q!J109 -> -0.4864971297 | L12: =Sumy_All_Q!K109 -> 0.01801841221 | M12: =Sumy_All_Q!L109 -> -0.4864971297 | N12: =Sumy_All_Q!M109 -> 2.876939817 | O12: =Sumy_All_Q!N109 -> -0.3183252824 | P12: =Sumy_All_Q!O109 -> -0.1501534351 | Q12: =Sumy_All_Q!P109 -> -0.3183252824 | R12: =Sumy_All_Q!Q109 -> -0.4864971297 | S12: =Sumy_All_Q!R109 -> -0.4864971297 | T12: =Sumy_All_Q!S109 -> -0.3183252824 | U12: =Sumy_All_Q!T109 -> -0.3183252824 | V12: =Sumy_All_Q!U109 -> -0.3183252824 | W12: =Sumy_All_Q!V109 -> -0.4864971297 | X12: =Sumy_All_Q!W109 -> -0.4864971297 | Y12: =Sumy_All_Q!X109 -> -0.4864971297 | Z12: =Sumy_All_Q!Y109 -> -0.4864971297 | AA12: =Sumy_All_Q!Z109 -> -0.4864971297 | AB12: =Sumy_All_Q!AA109 -> 0.1861902595 | AC12: =Sumy_All_Q!AB109 -> -0.3183252824 | AD12: =Sumy_All_Q!AC109 -> -0.4864971297 | AE12: =Sumy_All_Q!AD109 -> -0.1501534351 | AF12: =Sumy_All_Q!AE109 -> -0.4864971297 | AG12: =Sumy_All_Q!AF109 ->  | AH12: =Sumy_All_Q!AG109 ->  | AI12: =Sumy_All_Q!AH109 ->  | AJ12: =Sumy_All_Q!AI109 ->  | AK12: =Sumy_All_Q!AJ109 ->  | AL12: =Sumy_All_Q!AK109 ->  | AM12: =Sumy_All_Q!AL109 ->  | AN12: =Sumy_All_Q!AM109 ->  | AO12: =Sumy_All_Q!AN109 ->  | AP12: =Sumy_All_Q!AO109 ->  | AQ12: =Sumy_All_Q!AP109 ->  | AR12: =Sumy_All_Q!AQ109 -> 
B13: Otázka 10 | C13: z-skóre | D13: =Sumy_All_Q!C121 -> N | E13: =Sumy_All_Q!D121 -> -0.4938332753 | F13: =Sumy_All_Q!E121 -> 1.332418082 | G13: =Sumy_All_Q!F121 -> -0.2329402242 | H13: =Sumy_All_Q!G121 -> 1.071525031 | I13: =Sumy_All_Q!H121 -> 1.071525031 | J13: =Sumy_All_Q!I121 -> 2.636883338 | K13: =Sumy_All_Q!J121 -> -0.2329402242 | L13: =Sumy_All_Q!K121 -> -0.7547263264 | M13: =Sumy_All_Q!L121 -> -0.7547263264 | N13: =Sumy_All_Q!M121 -> 3.15866944 | O13: =Sumy_All_Q!N121 -> -0.7547263264 | P13: =Sumy_All_Q!O121 -> -0.2329402242 | Q13: =Sumy_All_Q!P121 -> -0.7547263264 | R13: =Sumy_All_Q!Q121 -> -0.7547263264 | S13: =Sumy_All_Q!R121 -> -0.4938332753 | T13: =Sumy_All_Q!S121 -> -0.2329402242 | U13: =Sumy_All_Q!T121 -> -0.4938332753 | V13: =Sumy_All_Q!U121 -> -0.7547263264 | W13: =Sumy_All_Q!V121 -> -0.2329402242 | X13: =Sumy_All_Q!W121 -> -0.2329402242 | Y13: =Sumy_All_Q!X121 -> -0.4938332753 | Z13: =Sumy_All_Q!Y121 -> 0.0279528269 | AA13: =Sumy_All_Q!Z121 -> 0.0279528269 | AB13: =Sumy_All_Q!AA121 -> -0.2329402242 | AC13: =Sumy_All_Q!AB121 -> 0.0279528269 | AD13: =Sumy_All_Q!AC121 -> -0.7547263264 | AE13: =Sumy_All_Q!AD121 -> 0.288845878 | AF13: =Sumy_All_Q!AE121 -> -0.7547263264 | AG13: =Sumy_All_Q!AF121 ->  | AH13: =Sumy_All_Q!AG121 ->  | AI13: =Sumy_All_Q!AH121 ->  | AJ13: =Sumy_All_Q!AI121 ->  | AK13: =Sumy_All_Q!AJ121 ->  | AL13: =Sumy_All_Q!AK121 ->  | AM13: =Sumy_All_Q!AL121 ->  | AN13: =Sumy_All_Q!AM121 ->  | AO13: =Sumy_All_Q!AN121 ->  | AP13: =Sumy_All_Q!AO121 ->  | AQ13: =Sumy_All_Q!AP121 ->  | AR13: =Sumy_All_Q!AQ121 -> 
B14: Otázka 11 | C14: z-skóre | D14: =Sumy_All_Q!C133 -> Q | E14: =Sumy_All_Q!D133 ->  | F14: =Sumy_All_Q!E133 ->  | G14: =Sumy_All_Q!F133 ->  | H14: =Sumy_All_Q!G133 ->  | I14: =Sumy_All_Q!H133 ->  | J14: =Sumy_All_Q!I133 ->  | K14: =Sumy_All_Q!J133 ->  | L14: =Sumy_All_Q!K133 ->  | M14: =Sumy_All_Q!L133 ->  | N14: =Sumy_All_Q!M133 ->  | O14: =Sumy_All_Q!N133 ->  | P14: =Sumy_All_Q!O133 ->  | Q14: =Sumy_All_Q!P133 ->  | R14: =Sumy_All_Q!Q133 ->  | S14: =Sumy_All_Q!R133 ->  | T14: =Sumy_All_Q!S133 ->  | U14: =Sumy_All_Q!T133 ->  | V14: =Sumy_All_Q!U133 ->  | W14: =Sumy_All_Q!V133 ->  | X14: =Sumy_All_Q!W133 ->  | Y14: =Sumy_All_Q!X133 ->  | Z14: =Sumy_All_Q!Y133 ->  | AA14: =Sumy_All_Q!Z133 ->  | AB14: =Sumy_All_Q!AA133 ->  | AC14: =Sumy_All_Q!AB133 ->  | AD14: =Sumy_All_Q!AC133 ->  | AE14: =Sumy_All_Q!AD133 ->  | AF14: =Sumy_All_Q!AE133 ->  | AG14: =Sumy_All_Q!AF133 ->  | AH14: =Sumy_All_Q!AG133 ->  | AI14: =Sumy_All_Q!AH133 ->  | AJ14: =Sumy_All_Q!AI133 ->  | AK14: =Sumy_All_Q!AJ133 ->  | AL14: =Sumy_All_Q!AK133 ->  | AM14: =Sumy_All_Q!AL133 ->  | AN14: =Sumy_All_Q!AM133 ->  | AO14: =Sumy_All_Q!AN133 ->  | AP14: =Sumy_All_Q!AO133 ->  | AQ14: =Sumy_All_Q!AP133 ->  | AR14: =Sumy_All_Q!AQ133 -> 
B15: Otázka 12 | C15: z-skóre | D15: =Sumy_All_Q!C145 -> Q | E15: =Sumy_All_Q!D145 ->  | F15: =Sumy_All_Q!E145 ->  | G15: =Sumy_All_Q!F145 ->  | H15: =Sumy_All_Q!G145 ->  | I15: =Sumy_All_Q!H145 ->  | J15: =Sumy_All_Q!I145 ->  | K15: =Sumy_All_Q!J145 ->  | L15: =Sumy_All_Q!K145 ->  | M15: =Sumy_All_Q!L145 ->  | N15: =Sumy_All_Q!M145 ->  | O15: =Sumy_All_Q!N145 ->  | P15: =Sumy_All_Q!O145 ->  | Q15: =Sumy_All_Q!P145 ->  | R15: =Sumy_All_Q!Q145 ->  | S15: =Sumy_All_Q!R145 ->  | T15: =Sumy_All_Q!S145 ->  | U15: =Sumy_All_Q!T145 ->  | V15: =Sumy_All_Q!U145 ->  | W15: =Sumy_All_Q!V145 ->  | X15: =Sumy_All_Q!W145 ->  | Y15: =Sumy_All_Q!X145 ->  | Z15: =Sumy_All_Q!Y145 ->  | AA15: =Sumy_All_Q!Z145 ->  | AB15: =Sumy_All_Q!AA145 ->  | AC15: =Sumy_All_Q!AB145 ->  | AD15: =Sumy_All_Q!AC145 ->  | AE15: =Sumy_All_Q!AD145 ->  | AF15: =Sumy_All_Q!AE145 ->  | AG15: =Sumy_All_Q!AF145 ->  | AH15: =Sumy_All_Q!AG145 ->  | AI15: =Sumy_All_Q!AH145 ->  | AJ15: =Sumy_All_Q!AI145 ->  | AK15: =Sumy_All_Q!AJ145 ->  | AL15: =Sumy_All_Q!AK145 ->  | AM15: =Sumy_All_Q!AL145 ->  | AN15: =Sumy_All_Q!AM145 ->  | AO15: =Sumy_All_Q!AN145 ->  | AP15: =Sumy_All_Q!AO145 ->  | AQ15: =Sumy_All_Q!AP145 ->  | AR15: =Sumy_All_Q!AQ145 -> 
B16: Otázka 13 | C16: z-skóre | D16: =Sumy_All_Q!C157 -> Q | E16: =Sumy_All_Q!D157 ->  | F16: =Sumy_All_Q!E157 ->  | G16: =Sumy_All_Q!F157 ->  | H16: =Sumy_All_Q!G157 ->  | I16: =Sumy_All_Q!H157 ->  | J16: =Sumy_All_Q!I157 ->  | K16: =Sumy_All_Q!J157 ->  | L16: =Sumy_All_Q!K157 ->  | M16: =Sumy_All_Q!L157 ->  | N16: =Sumy_All_Q!M157 ->  | O16: =Sumy_All_Q!N157 ->  | P16: =Sumy_All_Q!O157 ->  | Q16: =Sumy_All_Q!P157 ->  | R16: =Sumy_All_Q!Q157 ->  | S16: =Sumy_All_Q!R157 ->  | T16: =Sumy_All_Q!S157 ->  | U16: =Sumy_All_Q!T157 ->  | V16: =Sumy_All_Q!U157 ->  | W16: =Sumy_All_Q!V157 ->  | X16: =Sumy_All_Q!W157 ->  | Y16: =Sumy_All_Q!X157 ->  | Z16: =Sumy_All_Q!Y157 ->  | AA16: =Sumy_All_Q!Z157 ->  | AB16: =Sumy_All_Q!AA157 ->  | AC16: =Sumy_All_Q!AB157 ->  | AD16: =Sumy_All_Q!AC157 ->  | AE16: =Sumy_All_Q!AD157 ->  | AF16: =Sumy_All_Q!AE157 ->  | AG16: =Sumy_All_Q!AF157 ->  | AH16: =Sumy_All_Q!AG157 ->  | AI16: =Sumy_All_Q!AH157 ->  | AJ16: =Sumy_All_Q!AI157 ->  | AK16: =Sumy_All_Q!AJ157 ->  | AL16: =Sumy_All_Q!AK157 ->  | AM16: =Sumy_All_Q!AL157 ->  | AN16: =Sumy_All_Q!AM157 ->  | AO16: =Sumy_All_Q!AN157 ->  | AP16: =Sumy_All_Q!AO157 ->  | AQ16: =Sumy_All_Q!AP157 ->  | AR16: =Sumy_All_Q!AQ157 -> 
B17: Otázka 14 | C17: z-skóre | D17: =Sumy_All_Q!C169 -> Q | E17: =Sumy_All_Q!D169 ->  | F17: =Sumy_All_Q!E169 ->  | G17: =Sumy_All_Q!F169 ->  | H17: =Sumy_All_Q!G169 ->  | I17: =Sumy_All_Q!H169 ->  | J17: =Sumy_All_Q!I169 ->  | K17: =Sumy_All_Q!J169 ->  | L17: =Sumy_All_Q!K169 ->  | M17: =Sumy_All_Q!L169 ->  | N17: =Sumy_All_Q!M169 ->  | O17: =Sumy_All_Q!N169 ->  | P17: =Sumy_All_Q!O169 ->  | Q17: =Sumy_All_Q!P169 ->  | R17: =Sumy_All_Q!Q169 ->  | S17: =Sumy_All_Q!R169 ->  | T17: =Sumy_All_Q!S169 ->  | U17: =Sumy_All_Q!T169 ->  | V17: =Sumy_All_Q!U169 ->  | W17: =Sumy_All_Q!V169 ->  | X17: =Sumy_All_Q!W169 ->  | Y17: =Sumy_All_Q!X169 ->  | Z17: =Sumy_All_Q!Y169 ->  | AA17: =Sumy_All_Q!Z169 ->  | AB17: =Sumy_All_Q!AA169 ->  | AC17: =Sumy_All_Q!AB169 ->  | AD17: =Sumy_All_Q!AC169 ->  | AE17: =Sumy_All_Q!AD169 ->  | AF17: =Sumy_All_Q!AE169 ->  | AG17: =Sumy_All_Q!AF169 ->  | AH17: =Sumy_All_Q!AG169 ->  | AI17: =Sumy_All_Q!AH169 ->  | AJ17: =Sumy_All_Q!AI169 ->  | AK17: =Sumy_All_Q!AJ169 ->  | AL17: =Sumy_All_Q!AK169 ->  | AM17: =Sumy_All_Q!AL169 ->  | AN17: =Sumy_All_Q!AM169 ->  | AO17: =Sumy_All_Q!AN169 ->  | AP17: =Sumy_All_Q!AO169 ->  | AQ17: =Sumy_All_Q!AP169 ->  | AR17: =Sumy_All_Q!AQ169 -> 
B18: Otázka 15 | C18: z-skóre | D18: =Sumy_All_Q!C181 -> Q | E18: =Sumy_All_Q!D181 ->  | F18: =Sumy_All_Q!E181 ->  | G18: =Sumy_All_Q!F181 ->  | H18: =Sumy_All_Q!G181 ->  | I18: =Sumy_All_Q!H181 ->  | J18: =Sumy_All_Q!I181 ->  | K18: =Sumy_All_Q!J181 ->  | L18: =Sumy_All_Q!K181 ->  | M18: =Sumy_All_Q!L181 ->  | N18: =Sumy_All_Q!M181 ->  | O18: =Sumy_All_Q!N181 ->  | P18: =Sumy_All_Q!O181 ->  | Q18: =Sumy_All_Q!P181 ->  | R18: =Sumy_All_Q!Q181 ->  | S18: =Sumy_All_Q!R181 ->  | T18: =Sumy_All_Q!S181 ->  | U18: =Sumy_All_Q!T181 ->  | V18: =Sumy_All_Q!U181 ->  | W18: =Sumy_All_Q!V181 ->  | X18: =Sumy_All_Q!W181 ->  | Y18: =Sumy_All_Q!X181 ->  | Z18: =Sumy_All_Q!Y181 ->  | AA18: =Sumy_All_Q!Z181 ->  | AB18: =Sumy_All_Q!AA181 ->  | AC18: =Sumy_All_Q!AB181 ->  | AD18: =Sumy_All_Q!AC181 ->  | AE18: =Sumy_All_Q!AD181 ->  | AF18: =Sumy_All_Q!AE181 ->  | AG18: =Sumy_All_Q!AF181 ->  | AH18: =Sumy_All_Q!AG181 ->  | AI18: =Sumy_All_Q!AH181 ->  | AJ18: =Sumy_All_Q!AI181 ->  | AK18: =Sumy_All_Q!AJ181 ->  | AL18: =Sumy_All_Q!AK181 ->  | AM18: =Sumy_All_Q!AL181 ->  | AN18: =Sumy_All_Q!AM181 ->  | AO18: =Sumy_All_Q!AN181 ->  | AP18: =Sumy_All_Q!AO181 ->  | AQ18: =Sumy_All_Q!AP181 ->  | AR18: =Sumy_All_Q!AQ181 -> 
B19: Otázka 16 | C19: z-skóre | D19: =Sumy_All_Q!C193 -> Q | E19: =Sumy_All_Q!D193 ->  | F19: =Sumy_All_Q!E193 ->  | G19: =Sumy_All_Q!F193 ->  | H19: =Sumy_All_Q!G193 ->  | I19: =Sumy_All_Q!H193 ->  | J19: =Sumy_All_Q!I193 ->  | K19: =Sumy_All_Q!J193 ->  | L19: =Sumy_All_Q!K193 ->  | M19: =Sumy_All_Q!L193 ->  | N19: =Sumy_All_Q!M193 ->  | O19: =Sumy_All_Q!N193 ->  | P19: =Sumy_All_Q!O193 ->  | Q19: =Sumy_All_Q!P193 ->  | R19: =Sumy_All_Q!Q193 ->  | S19: =Sumy_All_Q!R193 ->  | T19: =Sumy_All_Q!S193 ->  | U19: =Sumy_All_Q!T193 ->  | V19: =Sumy_All_Q!U193 ->  | W19: =Sumy_All_Q!V193 ->  | X19: =Sumy_All_Q!W193 ->  | Y19: =Sumy_All_Q!X193 ->  | Z19: =Sumy_All_Q!Y193 ->  | AA19: =Sumy_All_Q!Z193 ->  | AB19: =Sumy_All_Q!AA193 ->  | AC19: =Sumy_All_Q!AB193 ->  | AD19: =Sumy_All_Q!AC193 ->  | AE19: =Sumy_All_Q!AD193 ->  | AF19: =Sumy_All_Q!AE193 ->  | AG19: =Sumy_All_Q!AF193 ->  | AH19: =Sumy_All_Q!AG193 ->  | AI19: =Sumy_All_Q!AH193 ->  | AJ19: =Sumy_All_Q!AI193 ->  | AK19: =Sumy_All_Q!AJ193 ->  | AL19: =Sumy_All_Q!AK193 ->  | AM19: =Sumy_All_Q!AL193 ->  | AN19: =Sumy_All_Q!AM193 ->  | AO19: =Sumy_All_Q!AN193 ->  | AP19: =Sumy_All_Q!AO193 ->  | AQ19: =Sumy_All_Q!AP193 ->  | AR19: =Sumy_All_Q!AQ193 -> 
B20: Otázka 17 | C20: z-skóre | D20: =Sumy_All_Q!C205 -> Q | E20: =Sumy_All_Q!D205 ->  | F20: =Sumy_All_Q!E205 ->  | G20: =Sumy_All_Q!F205 ->  | H20: =Sumy_All_Q!G205 ->  | I20: =Sumy_All_Q!H205 ->  | J20: =Sumy_All_Q!I205 ->  | K20: =Sumy_All_Q!J205 ->  | L20: =Sumy_All_Q!K205 ->  | M20: =Sumy_All_Q!L205 ->  | N20: =Sumy_All_Q!M205 ->  | O20: =Sumy_All_Q!N205 ->  | P20: =Sumy_All_Q!O205 ->  | Q20: =Sumy_All_Q!P205 ->  | R20: =Sumy_All_Q!Q205 ->  | S20: =Sumy_All_Q!R205 ->  | T20: =Sumy_All_Q!S205 ->  | U20: =Sumy_All_Q!T205 ->  | V20: =Sumy_All_Q!U205 ->  | W20: =Sumy_All_Q!V205 ->  | X20: =Sumy_All_Q!W205 ->  | Y20: =Sumy_All_Q!X205 ->  | Z20: =Sumy_All_Q!Y205 ->  | AA20: =Sumy_All_Q!Z205 ->  | AB20: =Sumy_All_Q!AA205 ->  | AC20: =Sumy_All_Q!AB205 ->  | AD20: =Sumy_All_Q!AC205 ->  | AE20: =Sumy_All_Q!AD205 ->  | AF20: =Sumy_All_Q!AE205 ->  | AG20: =Sumy_All_Q!AF205 ->  | AH20: =Sumy_All_Q!AG205 ->  | AI20: =Sumy_All_Q!AH205 ->  | AJ20: =Sumy_All_Q!AI205 ->  | AK20: =Sumy_All_Q!AJ205 ->  | AL20: =Sumy_All_Q!AK205 ->  | AM20: =Sumy_All_Q!AL205 ->  | AN20: =Sumy_All_Q!AM205 ->  | AO20: =Sumy_All_Q!AN205 ->  | AP20: =Sumy_All_Q!AO205 ->  | AQ20: =Sumy_All_Q!AP205 ->  | AR20: =Sumy_All_Q!AQ205 -> 
B21: Otázka 18 | C21: z-skóre | D21: =Sumy_All_Q!C217 -> Q | E21: =Sumy_All_Q!D217 ->  | F21: =Sumy_All_Q!E217 ->  | G21: =Sumy_All_Q!F217 ->  | H21: =Sumy_All_Q!G217 ->  | I21: =Sumy_All_Q!H217 ->  | J21: =Sumy_All_Q!I217 ->  | K21: =Sumy_All_Q!J217 ->  | L21: =Sumy_All_Q!K217 ->  | M21: =Sumy_All_Q!L217 ->  | N21: =Sumy_All_Q!M217 ->  | O21: =Sumy_All_Q!N217 ->  | P21: =Sumy_All_Q!O217 ->  | Q21: =Sumy_All_Q!P217 ->  | R21: =Sumy_All_Q!Q217 ->  | S21: =Sumy_All_Q!R217 ->  | T21: =Sumy_All_Q!S217 ->  | U21: =Sumy_All_Q!T217 ->  | V21: =Sumy_All_Q!U217 ->  | W21: =Sumy_All_Q!V217 ->  | X21: =Sumy_All_Q!W217 ->  | Y21: =Sumy_All_Q!X217 ->  | Z21: =Sumy_All_Q!Y217 ->  | AA21: =Sumy_All_Q!Z217 ->  | AB21: =Sumy_All_Q!AA217 ->  | AC21: =Sumy_All_Q!AB217 ->  | AD21: =Sumy_All_Q!AC217 ->  | AE21: =Sumy_All_Q!AD217 ->  | AF21: =Sumy_All_Q!AE217 ->  | AG21: =Sumy_All_Q!AF217 ->  | AH21: =Sumy_All_Q!AG217 ->  | AI21: =Sumy_All_Q!AH217 ->  | AJ21: =Sumy_All_Q!AI217 ->  | AK21: =Sumy_All_Q!AJ217 ->  | AL21: =Sumy_All_Q!AK217 ->  | AM21: =Sumy_All_Q!AL217 ->  | AN21: =Sumy_All_Q!AM217 ->  | AO21: =Sumy_All_Q!AN217 ->  | AP21: =Sumy_All_Q!AO217 ->  | AQ21: =Sumy_All_Q!AP217 ->  | AR21: =Sumy_All_Q!AQ217 -> 
B22: Otázka 19 | C22: z-skóre | D22: =Sumy_All_Q!C229 -> Q | E22: =Sumy_All_Q!D229 ->  | F22: =Sumy_All_Q!E229 ->  | G22: =Sumy_All_Q!F229 ->  | H22: =Sumy_All_Q!G229 ->  | I22: =Sumy_All_Q!H229 ->  | J22: =Sumy_All_Q!I229 ->  | K22: =Sumy_All_Q!J229 ->  | L22: =Sumy_All_Q!K229 ->  | M22: =Sumy_All_Q!L229 ->  | N22: =Sumy_All_Q!M229 ->  | O22: =Sumy_All_Q!N229 ->  | P22: =Sumy_All_Q!O229 ->  | Q22: =Sumy_All_Q!P229 ->  | R22: =Sumy_All_Q!Q229 ->  | S22: =Sumy_All_Q!R229 ->  | T22: =Sumy_All_Q!S229 ->  | U22: =Sumy_All_Q!T229 ->  | V22: =Sumy_All_Q!U229 ->  | W22: =Sumy_All_Q!V229 ->  | X22: =Sumy_All_Q!W229 ->  | Y22: =Sumy_All_Q!X229 ->  | Z22: =Sumy_All_Q!Y229 ->  | AA22: =Sumy_All_Q!Z229 ->  | AB22: =Sumy_All_Q!AA229 ->  | AC22: =Sumy_All_Q!AB229 ->  | AD22: =Sumy_All_Q!AC229 ->  | AE22: =Sumy_All_Q!AD229 ->  | AF22: =Sumy_All_Q!AE229 ->  | AG22: =Sumy_All_Q!AF229 ->  | AH22: =Sumy_All_Q!AG229 ->  | AI22: =Sumy_All_Q!AH229 ->  | AJ22: =Sumy_All_Q!AI229 ->  | AK22: =Sumy_All_Q!AJ229 ->  | AL22: =Sumy_All_Q!AK229 ->  | AM22: =Sumy_All_Q!AL229 ->  | AN22: =Sumy_All_Q!AM229 ->  | AO22: =Sumy_All_Q!AN229 ->  | AP22: =Sumy_All_Q!AO229 ->  | AQ22: =Sumy_All_Q!AP229 ->  | AR22: =Sumy_All_Q!AQ229 -> 
B23: Otázka 20 | C23: z-skóre | D23: =Sumy_All_Q!C241 -> Q | E23: =Sumy_All_Q!D241 ->  | F23: =Sumy_All_Q!E241 ->  | G23: =Sumy_All_Q!F241 ->  | H23: =Sumy_All_Q!G241 ->  | I23: =Sumy_All_Q!H241 ->  | J23: =Sumy_All_Q!I241 ->  | K23: =Sumy_All_Q!J241 ->  | L23: =Sumy_All_Q!K241 ->  | M23: =Sumy_All_Q!L241 ->  | N23: =Sumy_All_Q!M241 ->  | O23: =Sumy_All_Q!N241 ->  | P23: =Sumy_All_Q!O241 ->  | Q23: =Sumy_All_Q!P241 ->  | R23: =Sumy_All_Q!Q241 ->  | S23: =Sumy_All_Q!R241 ->  | T23: =Sumy_All_Q!S241 ->  | U23: =Sumy_All_Q!T241 ->  | V23: =Sumy_All_Q!U241 ->  | W23: =Sumy_All_Q!V241 ->  | X23: =Sumy_All_Q!W241 ->  | Y23: =Sumy_All_Q!X241 ->  | Z23: =Sumy_All_Q!Y241 ->  | AA23: =Sumy_All_Q!Z241 ->  | AB23: =Sumy_All_Q!AA241 ->  | AC23: =Sumy_All_Q!AB241 ->  | AD23: =Sumy_All_Q!AC241 ->  | AE23: =Sumy_All_Q!AD241 ->  | AF23: =Sumy_All_Q!AE241 ->  | AG23: =Sumy_All_Q!AF241 ->  | AH23: =Sumy_All_Q!AG241 ->  | AI23: =Sumy_All_Q!AH241 ->  | AJ23: =Sumy_All_Q!AI241 ->  | AK23: =Sumy_All_Q!AJ241 ->  | AL23: =Sumy_All_Q!AK241 ->  | AM23: =Sumy_All_Q!AL241 ->  | AN23: =Sumy_All_Q!AM241 ->  | AO23: =Sumy_All_Q!AN241 ->  | AP23: =Sumy_All_Q!AO241 ->  | AQ23: =Sumy_All_Q!AP241 ->  | AR23: =Sumy_All_Q!AQ241 -> 
B25: Otázka 1 | C25: steny | D25: =D4 -> P | E25: =IF(E4<>"",IF(E4>2.5,10,ROUND(E4 *2+5.5,0)),"") -> 5 | F25: =IF(F4<>"",IF(F4>2.5,10,ROUND(F4 *2+5.5,0)),"") -> 3 | G25: 4 | H25: 4 | I25: 6 | J25: 3 | K25: 6 | L25: 6 | M25: 8 | N25: 5 | O25: 6 | P25: 6 | Q25: 4 | R25: 5 | S25: 3 | T25: 5 | U25: 3 | V25: 6 | W25: 4 | X25: 5 | Y25: 5 | Z25: 7 | AA25: 10 | AB25: 6 | AC25: 6 | AD25: 5 | AE25: 10 | AF25: 8
B26: Otázka 2 | C26: steny | D26: =D5 -> P | E26: 4 | F26: =IF(F5<>"",IF(F5>2.5,10,ROUND(F5 *2+5.5,0)),"") -> 4 | G26: 6 | H26: 4 | I26: 4 | J26: 4 | K26: 7 | L26: 6 | M26: 8 | N26: 4 | O26: 4 | P26: 4 | Q26: 4 | R26: 5 | S26: 5 | T26: 4 | U26: =IF(U5<>"",IF(U5>2.5,10,ROUND(U5 *2+5.5,0)),"") -> 4 | V26: 7 | W26: 5 | X26: 4 | Y26: 4 | Z26: 4 | AA26: 10 | AB26: 4 | AC26: 9 | AD26: 7 | AE26: 7 | AF26: 8
B27: Otázka 3 | C27: steny | D27: P | E27: 4 | F27: =IF(F6<>"",IF(F6>2.5,10,ROUND(F6 *2+5.5,0)),"") -> 3 | G27: 5 | H27: 3 | I27: 7 | J27: 5 | K27: 7 | L27: 7 | M27: 8 | N27: 6 | O27: 7 | P27: 7 | Q27: 3 | R27: 4 | S27: 4 | T27: 7 | U27: =IF(U6<>"",IF(U6>2.5,10,ROUND(U6 *2+5.5,0)),"") -> 4 | V27: 8 | W27: 5 | X27: 6 | Y27: 7 | Z27: 6 | AA27: 10 | AB27: 4 | AC27: 6 | AD27: 4 | AE27: 9 | AF27: 7
B28: Otázka 4 | C28: steny | D28: P | E28: 4 | F28: =IF(F7<>"",IF(F7>2.5,10,ROUND(F7 *2+5.5,0)),"") -> 4 | G28: 4 | H28: 4 | I28: 5 | J28: 4 | K28: 5 | L28: 5 | M28: 8 | N28: 4 | O28: 4 | P28: 4 | Q28: 4 | R28: 4 | S28: 7 | T28: 4 | U28: =IF(U7<>"",IF(U7>2.5,10,ROUND(U7 *2+5.5,0)),"") -> 4 | V28: 5 | W28: 4 | X28: 6 | Y28: 4 | Z28: 4 | AA28: 10 | AB28: 4 | AC28: 9 | AD28: 7 | AE28: 4 | AF28: 7
B29: Otázka 5 | C29: steny | D29: P | E29: 5 | F29: =IF(F8<>"",IF(F8>2.5,10,ROUND(F8 *2+5.5,0)),"") -> 3 | G29: 4 | H29: 4 | I29: 5 | J29: 4 | K29: 7 | L29: 6 | M29: 6 | N29: 4 | O29: 6 | P29: 5 | Q29: 5 | R29: 6 | S29: 3 | T29: 3 | U29: =IF(U8<>"",IF(U8>2.5,10,ROUND(U8 *2+5.5,0)),"") -> 3 | V29: 7 | W29: 6 | X29: 5 | Y29: 6 | Z29: 6 | AA29: 10 | AB29: 5 | AC29: 8 | AD29: 5 | AE29: 8 | AF29: 7
B30: Otázka 6 | C30: steny | D30: N | E30: 4 | F30: =IF(F9<>"",IF(F9>2.5,10,ROUND(F9 *2+5.5,0)),"") -> 9 | G30: 4 | H30: 7 | I30: 5 | J30: 10 | K30: 4 | L30: 5 | M30: 4 | N30: 10 | O30: 4 | P30: 6 | Q30: 4 | R30: 4 | S30: 5 | T30: 5 | U30: =IF(U9<>"",IF(U9>2.5,10,ROUND(U9 *2+5.5,0)),"") -> 5 | V30: 5 | W30: 4 | X30: 5 | Y30: 5 | Z30: 5 | AA30: 5 | AB30: 5 | AC30: 5 | AD30: 4 | AE30: 5 | AF30: 4
B31: Otázka 7 | C31: steny | D31: N | E31: 5 | F31: =IF(F10<>"",IF(F10>2.5,10,ROUND(F10 *2+5.5,0)),"") -> 9 | G31: 4 | H31: 8 | I31: 6 | J31: 10 | K31: 4 | L31: 5 | M31: 4 | N31: 10 | O31: 4 | P31: 6 | Q31: 4 | R31: 4 | S31: 5 | T31: 5 | U31: =IF(U10<>"",IF(U10>2.5,10,ROUND(U10 *2+5.5,0)),"") -> 6 | V31: 4 | W31: 4 | X31: 5 | Y31: 4 | Z31: 4 | AA31: 5 | AB31: 5 | AC31: 4 | AD31: 4 | AE31: 5 | AF31: 4
B32: Otázka 8 | C32: steny | D32: N | E32: 5 | F32: =IF(F11<>"",IF(F11>2.5,10,ROUND(F11 *2+5.5,0)),"") -> 10 | G32: 4 | H32: 7 | I32: 5 | J32: 10 | K32: 5 | L32: 5 | M32: 4 | N32: 10 | O32: 5 | P32: 5 | Q32: 4 | R32: 4 | S32: 5 | T32: 5 | U32: =IF(U11<>"",IF(U11>2.5,10,ROUND(U11 *2+5.5,0)),"") -> 5 | V32: 5 | W32: 5 | X32: 5 | Y32: 5 | Z32: 5 | AA32: 5 | AB32: 5 | AC32: 5 | AD32: 4 | AE32: 7 | AF32: 4
B33: Otázka 9 | C33: steny | D33: N | E33: 5 | F33: =IF(F12<>"",IF(F12>2.5,10,ROUND(F12 *2+5.5,0)),"") -> 10 | G33: 5 | H33: 6 | I33: 5 | J33: 10 | K33: 5 | L33: 6 | M33: 5 | N33: 10 | O33: 5 | P33: 5 | Q33: 5 | R33: 5 | S33: 5 | T33: 5 | U33: =IF(U12<>"",IF(U12>2.5,10,ROUND(U12 *2+5.5,0)),"") -> 5 | V33: 5 | W33: 5 | X33: 5 | Y33: 5 | Z33: 5 | AA33: 5 | AB33: 6 | AC33: 5 | AD33: 5 | AE33: 5 | AF33: 5
B34: Otázka 10 | C34: steny | D34: N | E34: 5 | F34: =IF(F13<>"",IF(F13>2.5,10,ROUND(F13 *2+5.5,0)),"") -> 8 | G34: 5 | H34: 8 | I34: 8 | J34: 10 | K34: 5 | L34: 4 | M34: 4 | N34: 10 | O34: 4 | P34: 5 | Q34: 4 | R34: 4 | S34: 5 | T34: 5 | U34: =IF(U13<>"",IF(U13>2.5,10,ROUND(U13 *2+5.5,0)),"") -> 5 | V34: 4 | W34: 5 | X34: 5 | Y34: 5 | Z34: 6 | AA34: 6 | AB34: 5 | AC34: 6 | AD34: 4 | AE34: 6 | AF34: 4
B35: Otázka 11 | C35: steny | D35: Q | F35: =IF(F14<>"",IF(F14>2.5,10,ROUND(F14 *2+5.5,0)),"") ->  | U35: =IF(U14<>"",IF(U14>2.5,10,ROUND(U14 *2+5.5,0)),"") -> 
B36: Otázka 12 | C36: steny | D36: Q | F36: =IF(F15<>"",IF(F15>2.5,10,ROUND(F15 *2+5.5,0)),"") ->  | U36: =IF(U15<>"",IF(U15>2.5,10,ROUND(U15 *2+5.5,0)),"") -> 
B37: Otázka 13 | C37: steny | D37: Q | F37: =IF(F16<>"",IF(F16>2.5,10,ROUND(F16 *2+5.5,0)),"") ->  | U37: =IF(U16<>"",IF(U16>2.5,10,ROUND(U16 *2+5.5,0)),"") -> 
B38: Otázka 14 | C38: steny | D38: Q | F38: =IF(F17<>"",IF(F17>2.5,10,ROUND(F17 *2+5.5,0)),"") ->  | U38: =IF(U17<>"",IF(U17>2.5,10,ROUND(U17 *2+5.5,0)),"") -> 
B39: Otázka 15 | C39: steny | D39: Q | F39: =IF(F18<>"",IF(F18>2.5,10,ROUND(F18 *2+5.5,0)),"") ->  | U39: =IF(U18<>"",IF(U18>2.5,10,ROUND(U18 *2+5.5,0)),"") -> 
B40: Otázka 16 | C40: steny | D40: Q | F40: =IF(F19<>"",IF(F19>2.5,10,ROUND(F19 *2+5.5,0)),"") ->  | U40: =IF(U19<>"",IF(U19>2.5,10,ROUND(U19 *2+5.5,0)),"") -> 
B41: Otázka 17 | C41: steny | D41: Q | F41: =IF(F20<>"",IF(F20>2.5,10,ROUND(F20 *2+5.5,0)),"") ->  | U41: =IF(U20<>"",IF(U20>2.5,10,ROUND(U20 *2+5.5,0)),"") -> 
B42: Otázka 18 | C42: steny | D42: Q | F42: =IF(F21<>"",IF(F21>2.5,10,ROUND(F21 *2+5.5,0)),"") ->  | U42: =IF(U21<>"",IF(U21>2.5,10,ROUND(U21 *2+5.5,0)),"") -> 
B43: Otázka 19 | C43: steny | D43: Q | E43: =IF(E22<>"",IF(E22>2.5,10,ROUND(E22 *2+5.5,0)),"") ->  | U43: =IF(U22<>"",IF(U22>2.5,10,ROUND(U22 *2+5.5,0)),"") -> 
B44: Otázka 20 | C44: steny | D44: Q | E44: =IF(E23<>"",IF(E23>2.5,10,ROUND(E23 *2+5.5,0)),"") -> 
B46: Hranica normy P | C46: P_HH | D46: P | E46: =IF(E4<>"",7,"") -> 7 | F46: =IF(F4<>"",7,"") -> 7 | G46: 7 | H46: 7 | I46: 7 | J46: 7 | K46: 7 | L46: 7 | M46: 7 | N46: 7 | O46: 7 | P46: 7 | Q46: 7 | R46: 7 | S46: 7 | T46: 7 | U46: 7 | V46: 7 | W46: 7 | X46: 7 | Y46: 7 | Z46: 7 | AA46: 7 | AB46: 7 | AC46: 7 | AD46: 7 | AE46: 7 | AF46: 7
B47: Hranica normy N | C47: N_HH | D47: N | E47: =IF(E4<>"",3,"") -> 3 | F47: =IF(F4<>"",3,"") -> 3 | G47: 3 | H47: 3 | I47: 3 | J47: 3 | K47: 3 | L47: 3 | M47: 3 | N47: 3 | O47: 3 | P47: 3 | Q47: 3 | R47: 3 | S47: 3 | T47: 3 | U47: 3 | V47: 3 | W47: 3 | X47: 3 | Y47: 3 | Z47: 3 | AA47: 3 | AB47: 3 | AC47: 3 | AD47: 3 | AE47: 3 | AF47: 3
K49: Pozicie žiakov vo všetkých otázkach; 3 voľby Pozitívne konotácie versus Negatívne
D75: Pozicie žiakov v jednotlivých otázkach; 3 voľby

Sheet Questions
B1: → | C1: Hlavička sgm. Nemazať! | D1: "Version 01.00","Škola","Psychológ","Obdobie","Dátum","Trieda"
A2: Konotácia | C2: Nemazať! | D2: Skrátené
A3: P | B3: 1 | C3: "1. S kým z triedy by si chcel sedieť v jednej lavici?" | D3: 1. Sedieť
A4: P | B4: 2 | C4: "2. S kým z triedy by si najradšej písaval úlohy a učieval sa?" | D4: 2. Učiť sa
A5: P | B5: 3 | C5: "3. S kým z triedy by si chcel stráviť prázdniny na pustom ostrove?" | D5: 3. Ostrov
A6: P | B6: 4 | C6: "4. Kto by najlepšie dokázal hájiť záujmy triedy?" | D6: 4. Hájiť
A7: P | B7: 5 | C7: "5. Komu z triedy by si zveril svoje tajomstvo?" | D7: 5. Tajomstvo
A8: N | B8: 6 | C8: "6. S kým z triedy by si nechcel sedieť v jednej lavici?" | D8: 6. Nesedieť
A9: N | B9: 7 | C9: "7. S kým z triedy by si v žiadnom prípade nechcel písavať úlohy a učievať sa?" | D9: 7. Neučiť sa
A10: N | B10: 8 | C10: "8. S kým z triedy by si nechcel stráviť prázdniny na pustom ostrove?" | D10: 8. Nie Ostrov
A11: N | B11: 9 | C11: "9. Koho by si vôbec nevybral na hájenie záujmov triedy?" | D11: 9. Nie Hájiť
A12: N | B12: 10 | C12: "10. Komu z triedy by si nikdy nezveril svoje tajomstvo?" | D12: 10. Nezveril
A13: Q | B13: 11 | C13: "11. Nezadaná" | D13: 11. Nezadaná
A14: Q | B14: 12 | C14: "12. Nezadaná" | D14: 12. Nezadaná
A15: Q | B15: 13 | C15: "13. Nezadaná" | D15: 13. Nezadaná
A16: Q | B16: 14 | C16: "14. Nezadaná" | D16: 14. Nezadaná
A17: Q | B17: 15 | C17: "15. Nezadaná" | D17: 15. Nezadaná
A18: Q | B18: 16 | C18: "16. Nezadaná" | D18: 16. Nezadaná
A19: Q | B19: 17 | C19: "17. Nezadaná" | D19: 17. Nezadaná
A20: Q | B20: 18 | C20: "18. Nezadaná" | D20: 18. Nezadaná
A21: Q | B21: 19 | C21: "19. Nezadaná" | D21: 19. Nezadaná
A22: Q | B22: 20 | C22: "20. Nezadaná" | D22: 20. Nezadaná
C24: Nemazať!
C25: Suma volieb 1 + 2 + 3 spolu
C26: Suma volieb 1
C27: Suma volieb 2
C28: Suma volieb 3
C29: Percento Suma volieb 1
C30: Percento Suma volieb 2
C31: Percento Suma volieb 3
C32: Percento Suma volieb 1 + 2 + 3 spolu

Sheet Technický návod
B1: Technický návod na obsluhu všetkých spreadsheetov na vyhodnotenie sociometrie verzie A, B, C, D, E, F,G.
B2: Mgr. Stanislav Fila, psychológ CPPPaP Banská Bystrica
B4: Dôležité technické poznámky.
B6: A. Musíme mať povolené makrá. (Všetky verzie spreadsheeotov).
C8: Pretože spreadsheet obsahuje makrá v jazyku Visual Basic pred samotnou prácou
B9: je potrebné povoliť makrá.
B11: V EXCELI 2003.
B12: Dáme Nastroje → Možnosti → Zabezpečenie → Zabezpečenie makier
B34: Môžeme zvoliť podľa potreby Stredná alebo ak máme dobrý rezidentný Antivirový program aj Nizka.
